{"text_format":"1","workbook":"xlsx","n_sheets":3,"sheets":["FORM","Sheet2","New Applicant"],"not_rendered":{"charts":0,"images":16,"macros":1,"external_links":0,"defined_names":35,"comments":1,"pivot_tables":0},"unopened":[],"bounds":{"document_bytes":16777216,"sheet_cells":100000,"rows_first":2000,"rows_last":500,"rows_between":2000,"halvings":0,"cell_chars":16384,"cell_head_chars":4096},"cells_cut":0,"cells_raw":0,"read":"whole","date_system":"1900"}

{"sheet":"FORM","index":0,"n_rows":487,"n_cols":158,"rows_kept":487,"cut":false,"hidden":false,"merged":[[297,2,297,37],[298,2,298,37],[299,2,300,37],[301,2,302,37],[295,2,295,37],[296,2,296,37],[3,0,3,26],[4,0,4,26],[139,26,139,28],[139,29,139,36],[139,12,139,17],[119,35,119,36],[119,27,119,29],[140,26,140,28],[140,29,140,36],[140,18,140,22],[276,1,276,17],[275,18,275,36],[276,18,276,36],[273,1,273,17],[274,1,274,17],[275,1,275,17],[270,18,270,36],[98,11,98,16],[96,1,96,10],[102,1,102,10],[102,17,102,21],[102,11,102,16],[116,11,116,12],[116,13,116,14],[97,17,97,21],[97,1,97,10],[100,1,100,10],[100,11,100,16],[100,17,100,21],[120,27,120,29],[120,30,120,32],[120,33,120,34],[120,19,120,23],[101,1,101,10],[101,11,101,16],[101,17,101,21],[103,1,103,10],[103,11,103,16],[103,17,103,21],[109,17,110,18],[119,17,119,18],[120,17,120,18],[119,30,119,32],[119,33,119,34],[119,19,119,23],[119,24,119,26],[119,11,119,12],[119,1,119,6],[119,7,119,8],[274,18,274,36],[117,11,117,12],[116,15,116,16],[118,11,118,12],[118,13,118,14],[118,15,118,16],[262,8,263,18],[262,19,263,36],[250,1,250,36],[252,2,252,11],[270,1,270,17],[272,18,272,36],[272,1,272,17],[112,11,112,12],[112,13,112,14],[273,18,273,36],[115,11,115,12],[262,3,263,7],[252,12,252,13],[251,2,251,11],[113,11,113,12],[113,13,113,14],[113,15,113,16],[136,29,136,36],[134,29,134,36],[134,12,134,17],[134,1,134,11],[119,9,119,10],[119,13,119,14],[119,15,119,16],[138,29,138,36],[139,18,139,22],[268,18,268,36],[269,18,269,36],[264,1,264,36],[271,18,271,36],[266,1,266,17],[267,1,267,17],[268,1,268,17],[271,1,271,17],[269,1,269,17],[251,12,251,13],[251,15,251,22],[252,15,252,22],[112,15,112,16],[109,27,110,29],[90,30,90,36],[109,30,110,32],[109,35,110,36],[99,26,99,29],[97,11,97,16],[90,1,90,10],[90,11,90,16],[91,1,91,10],[91,11,91,16],[95,1,95,10],[95,11,95,16],[95,17,95,21],[92,30,92,36],[104,30,104,36],[107,0,107,36],[108,0,108,36],[109,1,110,6],[109,7,110,8],[237,2,237,9],[238,2,238,9],[237,10,237,36],[242,2,242,36],[262,1,263,2],[251,35,251,36],[251,26,251,34],[252,26,252,34],[248,2,248,24],[245,25,245,36],[246,25,246,36],[248,25,248,36],[246,2,246,24],[245,2,245,24],[266,18,266,36],[267,18,267,36],[255,1,255,36],[256,1,258,36],[259,1,260,2],[259,3,260,7],[259,8,260,18],[259,19,260,36],[265,1,265,36],[261,1,261,36],[170,37,170,45],[94,37,94,47],[98,37,98,47],[102,37,102,47],[103,37,103,47],[97,37,97,47],[95,37,95,47],[111,37,111,47],[106,37,106,47],[105,37,105,47],[111,33,111,34],[94,1,94,10],[76,1,76,14],[76,15,76,21],[87,0,87,36],[84,1,84,14],[84,32,84,36],[88,1,89,10],[92,1,92,10],[92,11,92,16],[120,11,120,12],[120,13,120,14],[120,15,120,16],[120,1,120,6],[120,7,120,8],[120,9,120,10],[122,35,122,36],[122,27,122,29],[111,13,111,14],[85,28,85,31],[109,24,110,26],[109,15,109,16],[78,37,78,47],[77,30,77,34],[75,30,75,34],[93,37,93,47],[93,1,93,10],[93,11,93,16],[90,37,90,47],[91,17,91,21],[91,37,91,47],[92,37,92,47],[72,37,72,47],[68,37,68,46],[74,37,74,47],[73,37,73,47],[75,37,75,47],[78,30,78,34],[78,35,78,36],[77,35,77,36],[76,30,76,34],[76,35,76,36],[81,32,81,36],[82,28,82,31],[82,32,82,36],[85,15,85,27],[81,28,81,31],[84,15,84,27],[85,32,85,36],[83,32,83,36],[83,15,83,27],[84,28,84,31],[8,37,8,49],[35,35,35,36],[5,0,6,26],[1,38,2,54],[3,38,4,54],[1,0,1,26],[2,0,2,26],[7,0,8,26],[11,0,12,14],[9,0,9,26],[75,26,75,29],[11,17,12,20],[11,21,12,26],[8,134,9,140],[20,32,20,36],[19,28,19,31],[16,30,16,36],[18,32,18,36],[7,113,8,123],[11,27,12,30],[75,35,75,36],[1,27,9,36],[11,37,12,50],[73,35,73,36],[73,22,73,25],[67,35,67,36],[64,30,64,34],[64,35,64,36],[74,30,74,34],[73,1,73,14],[72,35,72,36],[70,30,71,34],[15,1,15,4],[16,7,16,11],[19,1,19,4],[16,1,16,4],[16,5,16,6],[18,7,18,10],[17,1,17,6],[18,1,18,4],[18,5,18,6],[18,11,18,14],[13,1,13,7],[61,35,61,36],[61,30,61,34],[58,30,58,34],[55,35,56,36],[57,35,57,36],[60,35,60,36],[57,30,57,34],[58,35,58,36],[15,7,15,14],[99,37,99,47],[100,37,100,47],[101,37,101,47],[104,37,104,47],[109,0,110,0],[106,22,106,25],[109,11,110,12],[109,33,110,34],[106,1,106,10],[106,11,106,16],[96,37,96,47],[51,26,51,36],[47,23,47,26],[62,22,62,25],[60,30,60,34],[73,26,73,29],[72,26,72,29],[59,35,59,36],[59,30,59,34],[80,32,80,36],[79,1,79,36],[80,15,80,27],[80,28,80,31],[76,26,76,29],[76,22,76,25],[67,1,67,14],[67,15,67,21],[68,1,68,14],[90,17,90,21],[92,17,92,21],[93,17,93,21],[70,35,71,36],[22,28,22,36],[21,1,21,36],[20,19,20,22],[20,15,20,18],[22,1,23,9],[24,1,24,4],[24,5,24,7],[24,8,24,9],[106,17,106,21],[109,9,110,10],[109,19,109,23],[110,19,110,23],[19,23,19,27],[30,13,30,18],[35,27,35,29],[30,22,30,29],[35,24,35,26],[24,29,24,36],[73,30,73,34],[63,30,63,34],[68,30,68,34],[65,35,65,36],[68,35,68,36],[66,35,66,36],[65,30,65,34],[99,1,99,10],[99,11,99,16],[98,1,98,10],[98,17,98,21],[99,17,99,21],[96,11,96,16],[96,17,96,21],[15,38,16,49],[15,26,15,29],[15,15,15,17],[13,18,13,24],[16,12,16,17],[15,18,15,25],[15,30,15,36],[16,18,16,25],[14,0,14,36],[15,5,15,6],[10,37,10,50],[13,37,13,49],[11,31,12,36],[39,30,39,34],[23,34,23,36],[18,37,18,47],[33,37,33,46],[34,37,34,45],[19,32,19,36],[20,28,20,31],[39,20,39,23],[35,30,35,34],[34,30,34,34],[22,19,22,27],[36,15,36,19],[35,15,35,19],[36,27,36,29],[28,27,28,28],[23,12,23,15],[22,10,22,18],[24,27,24,28],[24,20,24,22],[19,5,19,6],[20,1,20,4],[19,11,19,14],[20,23,20,27],[20,5,20,6],[19,7,19,10],[20,7,20,10],[20,11,20,14],[19,15,19,18],[19,19,19,22],[18,15,18,18],[16,26,16,29],[18,28,18,31],[17,7,17,17],[18,19,18,22],[18,23,18,27],[17,18,17,36],[63,15,63,21],[63,22,63,25],[65,22,65,25],[64,26,64,29],[70,22,71,25],[70,1,71,14],[64,22,64,25],[23,16,23,18],[66,26,66,29],[67,26,67,29],[70,26,71,29],[69,1,69,36],[66,30,66,34],[66,22,66,25],[68,26,68,29],[67,30,67,34],[70,15,71,21],[74,26,74,29],[88,22,89,25],[88,26,89,29],[83,28,83,31],[82,15,82,27],[75,22,75,25],[88,17,89,21],[91,30,91,36],[78,1,78,14],[78,22,78,25],[75,1,75,14],[72,22,72,25],[75,15,75,21],[74,1,74,14],[74,15,74,21],[74,22,74,25],[73,15,73,21],[72,30,72,34],[72,1,72,14],[72,15,72,21],[99,22,99,25],[98,26,98,29],[93,26,93,29],[93,30,93,36],[95,30,95,36],[94,30,94,36],[97,22,97,25],[95,22,95,25],[94,22,94,25],[93,22,93,25],[92,22,92,25],[96,22,96,25],[97,26,97,29],[95,26,95,29],[96,26,96,29],[92,26,92,29],[98,22,98,25],[96,30,96,36],[111,35,111,36],[111,1,111,6],[111,7,111,8],[111,9,111,10],[111,17,111,18],[111,19,111,23],[111,30,111,32],[111,24,111,26],[111,27,111,29],[111,15,111,16],[104,1,104,10],[104,26,104,29],[105,1,105,10],[103,22,103,25],[105,11,105,16],[105,17,105,21],[104,11,104,16],[104,17,104,21],[103,26,103,29],[105,22,105,25],[110,15,110,16],[109,13,110,14],[111,11,111,12],[113,30,113,32],[113,33,113,34],[113,35,113,36],[113,1,113,6],[113,7,113,8],[113,9,113,10],[113,17,113,18],[113,19,113,23],[113,24,113,26],[113,27,113,29],[112,35,112,36],[112,1,112,6],[112,7,112,8],[112,9,112,10],[112,17,112,18],[112,19,112,23],[112,24,112,26],[112,27,112,29],[112,30,112,32],[112,33,112,34],[115,19,115,23],[115,24,115,26],[115,27,115,29],[116,35,116,36],[116,1,116,6],[116,7,116,8],[116,9,116,10],[116,17,116,18],[116,19,116,23],[116,24,116,26],[114,1,114,6],[114,7,114,8],[114,9,114,10],[115,30,115,32],[115,33,115,34],[115,35,115,36],[115,1,115,6],[115,7,115,8],[115,9,115,10],[115,17,115,18],[114,17,114,18],[114,11,114,12],[114,13,114,14],[114,15,114,16],[115,13,115,14],[115,15,115,16],[114,35,114,36],[114,19,114,23],[114,24,114,26],[114,27,114,29],[114,30,114,32],[114,33,114,34],[117,19,117,23],[117,13,117,14],[117,15,117,16],[118,35,118,36],[118,1,118,6],[118,7,118,8],[118,9,118,10],[118,17,118,18],[118,19,118,23],[118,24,118,26],[116,27,116,29],[116,30,116,32],[116,33,116,34],[117,35,117,36],[117,1,117,6],[117,7,117,8],[117,9,117,10],[117,17,117,18],[117,24,117,26],[117,27,117,29],[120,24,120,26],[121,35,121,36],[121,19,121,23],[121,24,121,26],[121,27,121,29],[120,35,120,36],[121,30,121,32],[118,27,118,29],[118,30,118,32],[118,33,118,34],[121,1,121,6],[121,7,121,8],[121,9,121,10],[121,17,121,18],[121,11,121,12],[121,13,121,14],[121,15,121,16],[123,24,123,26],[124,17,124,18],[124,19,124,23],[124,13,124,14],[124,15,124,16],[124,1,124,6],[124,7,124,8],[124,9,124,10],[124,11,124,12],[124,24,124,26],[122,7,122,8],[122,9,122,10],[123,30,123,32],[123,33,123,34],[123,27,123,29],[123,11,123,12],[123,13,123,14],[123,15,123,16],[123,17,123,18],[123,19,123,23],[122,13,122,14],[122,15,122,16],[122,30,122,32],[123,1,123,6],[123,7,123,8],[123,9,123,10],[122,11,122,12],[122,17,122,18],[122,19,122,23],[122,1,122,6],[126,30,126,32],[126,19,126,23],[126,24,126,26],[126,15,126,16],[126,27,126,29],[125,17,125,18],[125,19,125,23],[127,30,127,32],[127,27,127,29],[127,24,127,26],[127,19,127,23],[125,1,125,6],[125,7,125,8],[125,9,125,10],[125,11,125,12],[126,33,126,34],[125,24,125,26],[125,13,125,14],[125,15,125,16],[126,17,126,18],[126,13,126,14],[158,28,158,36],[156,1,156,36],[129,13,129,14],[134,18,134,22],[131,9,131,10],[142,1,144,36],[131,35,131,36],[131,19,131,23],[131,24,131,26],[131,15,131,16],[159,0,160,0],[159,1,160,2],[153,25,153,27],[150,0,151,0],[158,21,158,27],[159,3,160,20],[155,1,155,14],[154,25,154,27],[154,22,154,24],[153,22,153,24],[134,23,134,25],[136,1,136,11],[129,1,129,6],[129,7,129,8],[129,9,129,10],[129,11,129,12],[136,18,136,22],[131,11,131,12],[131,13,131,14],[129,15,129,16],[139,23,139,25],[169,7,169,10],[164,1,164,36],[161,3,162,20],[168,25,168,28],[168,29,168,32],[168,33,168,36],[169,1,169,6],[159,37,159,45],[161,28,162,36],[159,28,160,36],[159,21,160,27],[161,21,162,27],[165,1,165,36],[164,37,164,45],[161,37,161,45],[161,1,162,2],[163,1,163,36],[199,0,199,36],[200,1,200,7],[201,8,201,36],[181,1,182,36],[194,1,194,36],[173,25,173,28],[173,29,173,32],[173,33,173,36],[174,1,174,6],[180,1,180,36],[174,29,174,32],[177,1,177,4],[177,5,177,7],[200,8,200,22],[200,23,200,27],[200,28,200,36],[211,1,211,36],[209,17,209,24],[209,25,209,29],[207,23,207,36],[210,25,210,29],[207,18,207,22],[207,1,207,3],[209,30,209,36],[210,1,210,16],[210,17,210,24],[205,11,205,15],[205,16,205,18],[205,19,205,26],[205,27,205,29],[205,30,205,36],[207,4,207,7],[201,1,201,7],[197,1,197,32],[202,23,202,36],[187,1,187,36],[195,1,195,32],[189,1,190,36],[177,8,177,12],[178,5,178,7],[184,1,184,36],[170,29,170,32],[170,25,170,28],[172,0,172,36],[178,17,178,31],[178,13,178,15],[177,17,177,31],[177,13,177,15],[174,11,174,14],[173,1,173,6],[173,7,173,10],[170,11,170,14],[174,7,174,10],[174,20,174,24],[174,15,174,18],[173,20,173,24],[170,15,170,18],[170,20,170,24],[173,15,173,18],[170,7,170,10],[171,1,171,36],[192,1,193,32],[188,1,188,36],[202,8,202,22],[213,19,213,28],[214,11,214,14],[214,19,214,28],[213,15,213,18],[218,27,218,31],[214,15,214,18],[215,11,215,14],[215,15,215,18],[214,29,214,32],[215,29,215,32],[207,11,207,17],[202,1,203,7],[209,1,209,16],[215,1,215,10],[213,1,213,10],[214,1,214,10],[213,11,213,14],[206,1,206,36],[203,23,203,36],[204,8,204,16],[204,17,204,25],[204,1,205,7],[203,8,203,22],[205,8,205,10],[207,8,207,10],[219,1,219,5],[219,6,219,10],[220,1,220,5],[220,6,220,10],[219,32,219,36],[218,1,218,5],[218,6,218,10],[218,11,218,15],[218,16,218,20],[219,11,219,15],[219,16,219,20],[219,21,219,26],[219,27,219,31],[218,21,218,26],[217,32,217,36],[215,19,215,28],[215,33,215,36],[216,1,216,36],[217,1,217,5],[217,6,217,10],[217,11,217,15],[217,16,217,20],[217,21,217,26],[217,27,217,31],[222,1,222,36],[371,122,371,123],[280,11,280,14],[280,15,280,18],[281,1,281,36],[282,32,282,36],[225,1,225,36],[226,1,229,36],[230,1,230,36],[232,10,232,36],[220,11,220,15],[220,16,220,20],[221,11,221,15],[220,32,220,36],[221,21,221,26],[221,27,221,31],[221,32,221,36],[221,16,221,20],[220,21,220,26],[220,27,220,31],[221,1,221,5],[221,6,221,10],[231,1,231,36],[232,2,232,9],[233,2,233,9],[234,2,234,9],[233,10,233,36],[235,2,235,9],[240,1,240,36],[236,10,236,36],[239,1,239,36],[247,2,247,24],[223,1,224,7],[223,8,224,29],[223,30,224,31],[223,32,224,36],[252,35,252,36],[254,1,254,36],[278,15,278,18],[280,1,280,10],[279,33,279,36],[371,124,371,125],[247,25,247,36],[280,33,280,36],[280,19,280,28],[283,21,283,26],[283,27,283,31],[280,29,280,32],[278,19,278,28],[278,29,278,32],[278,33,278,36],[243,1,243,36],[244,1,244,36],[241,2,241,36],[234,10,234,36],[235,10,235,36],[253,14,253,36],[253,2,253,11],[253,12,253,13],[251,23,251,24],[252,23,252,24],[249,1,249,36],[238,10,238,36],[236,2,236,9],[372,126,372,127],[372,128,372,129],[374,130,374,131],[375,122,375,123],[375,124,375,125],[375,126,375,127],[375,128,375,129],[375,130,375,131],[374,122,374,123],[374,124,374,125],[371,128,371,129],[371,130,371,131],[372,130,372,131],[373,122,373,123],[373,124,373,125],[373,126,373,127],[373,128,373,129],[373,130,373,131],[372,122,372,123],[372,124,372,125],[371,126,371,127],[376,126,376,127],[376,128,376,129],[378,130,378,131],[379,122,379,123],[379,124,379,125],[379,126,379,127],[379,128,379,129],[379,130,379,131],[378,122,378,123],[378,124,378,125],[374,126,374,127],[374,128,374,129],[376,130,376,131],[377,122,377,123],[377,124,377,125],[377,126,377,127],[377,128,377,129],[377,130,377,131],[376,122,376,123],[376,124,376,125],[380,126,380,127],[380,128,380,129],[382,130,382,131],[383,122,383,123],[383,124,383,125],[383,126,383,127],[383,128,383,129],[383,130,383,131],[382,122,382,123],[382,124,382,125],[378,126,378,127],[378,128,378,129],[380,130,380,131],[381,122,381,123],[381,124,381,125],[381,126,381,127],[381,128,381,129],[381,130,381,131],[380,122,380,123],[380,124,380,125],[387,122,387,123],[387,124,387,125],[387,126,387,127],[387,128,387,129],[387,130,387,131],[386,122,386,123],[386,124,386,125],[382,126,382,127],[382,128,382,129],[384,130,384,131],[385,122,385,123],[385,124,385,125],[385,126,385,127],[385,128,385,129],[385,130,385,131],[384,122,384,123],[384,124,384,125],[395,124,395,125],[395,126,395,127],[395,128,395,129],[218,32,218,36],[213,29,213,32],[394,130,394,131],[392,130,392,131],[393,122,393,123],[393,124,393,125],[393,126,393,127],[390,130,390,131],[391,130,391,131],[390,126,390,127],[390,128,390,129],[395,130,395,131],[394,122,394,123],[394,124,394,125],[394,126,394,127],[394,128,394,129],[395,122,395,123],[391,122,391,123],[391,124,391,125],[391,126,391,127],[391,128,391,129],[392,124,392,125],[392,126,392,127],[392,128,392,129],[390,122,390,123],[390,124,390,125],[386,126,386,127],[386,128,386,129],[388,126,388,127],[184,37,184,47],[204,26,204,36],[214,33,214,36],[214,37,214,47],[210,30,210,36],[212,0,212,36],[213,33,213,36],[209,37,209,47],[187,37,187,45],[191,1,191,36],[393,128,393,129],[393,130,393,131],[392,122,392,123],[195,37,195,48],[192,37,193,47],[188,37,188,47],[218,37,218,46],[213,37,213,48],[215,37,215,47],[197,37,197,48],[388,128,388,129],[388,130,388,131],[389,122,389,123],[389,124,389,125],[389,126,389,127],[389,128,389,129],[389,130,389,131],[388,122,388,123],[388,124,388,125],[384,126,384,127],[384,128,384,129],[386,130,386,131],[136,23,136,25],[137,18,137,22],[173,11,173,14],[175,1,175,6],[140,23,140,25],[140,12,140,17],[136,12,136,17],[138,12,138,17],[138,18,138,22],[137,12,137,17],[150,1,151,14],[149,0,149,36],[178,1,178,4],[174,37,174,45],[175,37,175,45],[174,25,174,28],[180,37,180,47],[174,33,174,36],[175,25,175,28],[175,33,175,36],[175,7,175,10],[175,15,175,18],[176,1,176,36],[169,37,169,46],[168,1,168,6],[168,7,168,10],[168,11,168,14],[168,15,168,18],[168,20,168,24],[169,25,169,28],[169,29,169,32],[169,33,169,36],[77,22,77,25],[77,26,77,29],[74,35,74,36],[65,26,65,29],[61,22,61,25],[67,22,67,25],[68,15,68,21],[64,15,64,21],[68,22,68,25],[78,26,78,29],[130,13,130,14],[130,15,130,16],[130,17,130,18]],"merged_total":1414,"flags":["merged_cut"]}
[null,null,null,null,null,null,null,null,null,null,null,null,null,null,null,null,null,null,null,null,null,null,null,null,null,null,{"$f":"ROW(B175)","v":175},{"$f":"ROW(A146)","v":146},null,null,null,null,null,null,null,null,null,null,null,null,null,null,null,null,null,null,null,null,null,null,null,null,{"$f":"ROW(AJ73)","v":73},{"$f":"ROW(AJ79)","v":79},null,null,null,null,null,null,null,null,null,null,null,null,null,null,null,null,null,null,null,{"$f":"ROW(A211)","v":211},{"$f":"ROW(A284)","v":284},{"$f":"ROW(A160)","v":160},null,null,null,null,null,null,null,null,null,null,null,null,null,null,null,null,null,null,0,0,0,0,null,null,null,null,null,null,null,{"$f":"ROW(DB289)","v":289},null,null,null,null,null,null,null,null,null,null,null,null,null,null,null,null,null,null,null,null,null,null,null,null,null,null,null,null,null,null,null,null,null,null,null,null,null,null,null,null,null,null,null,null,null,null,null,null,null,null,"fb1 is the row number",{"$f":"ROW(O254)","v":254}]
["HIGH TIDE SHIP MANAGEMENT PVT LTD.",null,null,null,null,null,null,null,null,null,null,null,null,null,null,null,null,null,null,null,null,null,null,null,null,null,null,"Kindly affix a regular & \nrecent passport size \nPHOTOGRAPH .",null,null,null,null,null,null,null,null,null,null,"Application form not validated ",null,null,null,null,null,null,null,null,null,null,null,null,null,null,null,null,null,null,null,null,null,null,null,null,null,null,null,null,null,null,null,null,null,null,null,null,null,null,null,null,null,null,null,null,null,null,null,null,null,null,null,null,null,null,null,null,null,null,null,null,null,null,null,null,null,null,null,null,null,null,null,null,null,null,null,null,null,null,null,null,null,null,null,null,null,null,null,null,null,null,null,null,null,null,null,null,null,null,null,null,null,null,null,null,null,{"$f":"ROW(I201)","v":201}]
["505, Cosmos Plaza, Opp. Indian Oil Society, J.P. Road, Andheri (W), Mumbai - 58. (INDIA)",null,null,null,null,null,null,null,null,null,null,null,null,null,null,null,null,null,null,null,null,null,null,null,null,null,null,null,null,null,null,null,null,null,null,null,null,null,null,null,null,null,null,null,null,null,null,null,null,null,null,null,null,null,null,null,null,null,null,null,null,null,null,null,null,null,null,null,null,null,null,null,null,null,null,null,null,null,null,null,null,null,null,null,null,null,null,null,null,null,null,null,null,null,null,null,null,null,null,null,null,null,null,null,null,null,null,null,null,null,null,null,null,null,null,null,null,null,null,null,null,null,null,null,null,null,null,null,null,null,null,null,null,null,null,null,null,null,null,null,null,null,null,"X"]
["T :- +91-22-26376523 / +91 9867850006",null,null,null,null,null,null,null,null,null,null,null,null,null,null,null,null,null,null,null,null,null,null,null,null,null,null,null,null,null,null,null,null,null,null,null,null,null,"will be rejected"]
["E :- management@hightideship.com / www.hightideship.com"]
["APPLICATION FORM"]
[]
[]
[]
[]
[null,null,null,null,null,null,null,null,null,null,null,null,null,null,null,null,null,null,null,null,null,null,null,null,null,null,null,null,null,null,null,null,null,null,null,null,null,"<<< click on desired tab/ button to view "]
["A P P L I C A T I O N     F O R M ",null,null,null,null,null,null,null,null,null,null,null,null,null,null,null,null,"Date :",null,null,null,{"$f":"D260","v":"00:00:00"}]
[]
[1,"Rank Applied For :",null,null,null,null,null,null,null,null,null,null,null,null,null,null,null,null,"Date Of Availability:",null,null,null,null,null,null,null,null,null,null,0,2006,4,1,null,null,null,null," [ select from dropdown menu ]",null,null,null,null,null,null,null,null,null,null,null,null,null,null,null,null,null,null,null,null,null,null,null,null,null,null,null,null,null,null,null,null,null,null,null,null,null,null,null,null,null,null,null,null,null,null,null,null,null,null,null,null,null,null,null,null,null,null,null,null,null,null,null,null,null,null,null,null,null,null,"D"]
["PERSONAL DESCRIPTION AND INFORMATION"]
[2,"Name",null,null,null,"Last:",null,null,null,null,null,null,null,null,null,"First:",null,null,null,null,null,null,null,null,null,null,"Middle:",null,null,null,null,null,null,null,null,null,null,null,"[ Please fill as in your passport ]",null,null,null,null,null,null,null,null,null,null,null,null,null,null,null,null,null,null,null,null,null,null,null,null,null,null,null,null,null,null,null,null,null,null,null,null,null,null,null,null,null,null,null,null,null,null,null,null,null,null,null,null,null,null,null,null,null,null,null,null,null,null,null,null,null,null,null,null,null,"D"]
[3,"Birth",null,null,null,"Date:",null,null,null,null,null,null,"Place & Country:",null,null,null,null,null,null,null,null,null,null,null,null,null,"Nationality:",null,null,null,"ROMANIAN",null,null,null,null,null,null,null,null,null,null,null,null,null,null,null,null,null,null,null,null,null,null,null,null,null,null,null,null,null,null,null,null,null,null,null,null,null,null,null,null,null,null,null,null,null,null,null,null,null,null,null,null,null,null,null,null,null,null,null,null,null,null,null,null,null,null,null,null,null,null,null,null,null,null,null,null,null,"D"]
[null,"INDOS Number",null,null,null,null,null,null,null,null,null,null,null,null,null,null,null,null,null,null,null,null,null,null,null,null,null,null,null,null,null,null,null,null,null,null,null,null,null,null,null,null,null,null,null,null,null,null,null,null,null,null,null,null,null,null,null,null,null,null,null,null,null,null,null,null,null,null,null,null,null,null,null,null,null,null,null,null,null,null,null,null,null,null,null,null,null,null,null,null,null,null,null,null,null,null,null,null,null,null,null,null,null,null,null,null,null,null,"D"]
[4,"Passport ",null,null,null,"No:",null,null,null,null,null,"Place of Issue",null,null,null,null,null,null,null,"Date of Issue",null,null,null,null,null,null,null,null,"Date of Expiry",null,null,null,null,null,null,null,null," [ date format - dd/mmm/yy ]",null,null,null,null,null,null,null,null,null,null,null,null,null,null,null,null,null,null,null,null,null,null,null,null,null,null,null,null,null,null,null,null,null,null,null,null,null,null,null,null,null,null,null,null,null,null,null,null,null,null,null,null,null,null,null,null,null,null,null,null,null,null,null,null,null,null,null,null,null,null,"D"]
[5,"U.S. Visa",null,null,null,"Type:",null,null,null,null,null,"Place of Issue",null,null,null,null,null,null,null,"Date of Issue",null,null,null,null,null,null,null,null,"Date of Expiry",null,null,null,null,null,null,null,null,null,null,null,null,null,null,null,null,null,null,null,null,null,null,null,null,null,null,null,null,null,null,null,null,null,null,null,null,null,null,null,null,null,null,null,null,null,null,null,null,null,null,null,null,null,null,null,null,null,null,null,null,null,null,null,null,null,null,null,null,null,null,null,null,null,null,null,null,null,null,null,"D"]
[null,"U.S Visa",null,null,null,"Sec.",null,null,null,null,null,"Place of Issue",null,null,null,null,null,null,null,"Date of Issue",null,null,null,null,null,null,null,null,"Date of Expiry",null,null,null,null,null,null,null,null,null,null,null,null,null,null,null,null,null,null,null,null,null,null,null,null,null,null,null,null,null,null,null,null,null,null,null,null,null,null,null,null,null,null,null,null,null,null,null,null,null,null,null,null,null,null,null,null,null,null,null,null,null,null,null,null,null,null,null,null,null,null,null,null,null,null,null,null,null,null,null,"D"]
[]
[6,"Permanent  Address  &  Contact Details",null,null,null,null,null,null,null,null,null,null,null,null,null,null,null,null,null,null,null,null,null,null,null,null,null,null,null,null,null,null,null,null,null,null,null,null,null,null,null,null,null,null,null,null,null,null,null,null,null,null,null,null,null,null,null,null,null,null,null,null,null,null,null,null,null,null,null,null,null,null,null,null,null,null,null,null,null,null,null,null,null,null,null,null,null,null,null,null,null,null,null,null,null,null,null,null,null,null,null,null,null,null,null,null,null,null,"D"]
[null,null,null,null,null,null,null,null,null,null,"City",null,null,null,null,null,"State",null,null,null,null,null,null,null,"Country",null,null,null,null,null,null,"ZipCode",null,null,null,null,null,null,null,null,null,null,null,null,null,null,null,null,null,null,null,null,null,null,null,null,null,null,null,null,null,null,null,null,null,null,null,null,null,null,null,null,null,null,null,null,null,null,null,null,null,null,null,null,null,null,null,null,null,null,null,null,null,null,null,null,null,null,null,null,null,null,null,null,null,null,null,null,"D"]
[null,"STD Code ",null,null,null,null,null,null,"Res.",null,null,null,null,null,"Fax:",null,null,null,null,null,"Mobile:",null,null,null,null,null,null,"Email",null,null,null,null,null,null,null,null,null,null,null,null,null,null,null,null,null,null,null,null,null,null,null,null,null,null,null,null,null,null,null,null,null,null,null,null,null,null,null,null,null,null,null,null,null,null,null,null,null,null,null,null,null,null,null,null,null,null,null,null,null,null,null,null,null,null,null,null,null,null,null,null,null,null,null,null,null,null,null,null,"D"]
[]
[7,"Correspondence  Address & Contact Details : ",null,null,null,null,null,null,null,null,null,null,null,null,null,null,null,null,null,null,null,null,null,null,null,null,null,null,null,null,null,null,null,null,null,null,null,null,null,null,null,null,null,null,null,null,null,null,null,null,null,null,null,null,null,null,null,null,null,null,null,null,null,null,null,null,null,null,null,null,null,null,null,null,null,null,null,null,null,null,null,null,null,null,null,null,null,null,null,null,null,null,null,null,null,null,null,null,null,null,null,null,null,null,null,null,null,null,"D"]
[null,null,null,null,null,null,null,null,null,null,"City",null,null,null,null,null,"State",null,null,null,null,null,null,null,"Country",null,null,null,null,null,null,"Zip Code",null,null,null,null,null,null,null,null,null,null,null,null,null,null,null,null,null,null,null,null,null,null,null,null,null,null,null,null,null,null,null,null,null,null,null,null,null,null,null,null,null,null,null,null,null,null,null,null,null,null,null,null,null,null,null,null,null,null,null,null,null,null,null,null,null,null,null,null,null,null,null,null,null,null,null,null,"D"]
[null,"STD Code ",null,null,null,null,null,null,"Res.",null,null,null,null,null,"Fax:",null,null,null,null,null,"Mobile:",null,null,null,null,null,null,"Email",null,null,null,null,null,null,null,null,null,null,null,null,null,null,null,null,null,null,null,null,null,null,null,null,null,null,null,null,null,null,null,null,null,null,null,null,null,null,null,null,null,null,null,null,null,null,null,null,null,null,null,null,null,null,null,null,null,null,null,null,null,null,null,null,null,null,null,null,null,null,null,null,null,null,null,null,null,null,null,null,"D"]
[null,null,null,null,null,null,null,null,null,null,null,null,null,null,null,null,null,null,null,null,null,null,null,null,null,null,null,null,null,null,null,null,null,null,null,null,null," [ select from dropdown menu ]"]
[8,"Marital  Status",null,null,null,null,null,null,null,null,null,null,null," No. of Children",null,null,null,null,null,null,null,null,"Nearest Airport / Station",null,null,null,null,null,null,null,null,null,null,null,null,null,null,null,null,null,null,null,null,null,null,null,null,null,null,null,null,null,null,null,null,null,null,null,null,null,null,null,null,null,null,null,null,null,null,null,null,null,null,null,null,null,null,null,null,null,null,null,null,null,null,null,null,null,null,null,null,null,null,null,null,null,null,null,null,null,null,null,null,null,null,null,null,null,"D"]
[]
[9,"Family/NOK/Emergency Contact",null,null,null,null,null,null,null,null,"Rela-tion",null,"Date of Birth",null,null,"Place of Birth",null,null,null,null,"Passport No.",null,null,null,"Date of Issue",null,null,"Date of Expiry",null,null,"Place of Issue",null,null,null,null,"ECNR"]
[null,null,null,null,null,null,null,null,null,null,null,null,null,null,null,null,null,null,null,null,null,null,null,null,null,null,null,null,null,null,null,null,null,null,null,null,null," [ date format - dd/mmm/yy]"]
[null,null,null,null,null,null,null,null,null,null,null,null,null,null,null,null,null,null,null,null,null,null,null,null,null,null,null,null,null,null,null,null,null,null,null,null,null,null,null,null,null,null,null,null,null,null,null,null,null,null,null,null,null,null,null,null,null,null,null,null,null,null,null,null,null,null,null,null,null,null,null,null,null,null,null,null,null,null,null,null,null,null,null,null,null,null,null,null,null,null,null,null,null,null,null,null,null,null,null,null,null,null,null,null,null,null,null,null,"D"]
[null,null,null,null,null,null,null,null,null,null,null,null,null,null,null,null,null,null,null,null,null,null,null,null,null,null,null,null,null,null,null,null,null,null,null,null,null,null,null,null,null,null,null,null,null,null,null,null,null,null,null,null,null,null,null,null,null,null,null,null,null,null,null,null,null,null,null,null,null,null,null,null,null,null,null,null,null,null,null,null,null,null,null,null,null,null,null,null,null,null,null,null,null,null,null,null,null,null,null,null,null,null,null,null,null,null,null,null,"D"]
[null,null,null,null,null,null,null,null,null,null,null,null,null,null,null,null,null,null,null,null,null,null,null,null,null,null,null,null,null,null,null,null,null,null,null,null,null,null,null,null,null,null,null,null,null,null,null,null,null,null,null,null,null,null,null,null,null,null,null,null,null,null,null,null,null,null,null,null,null,null,null,null,null,null,null,null,null,null,null,null,null,null,null,null,null,null,null,null,null,null,null,null,null,null,null,null,null,null,null,null,null,null,null,null,null,null,null,null,"D"]
[null,null,null,null,null,null,null,null,null,null,null,null,null,null,null,null,null,null,null,null,null,null,null,null,null,null,null,null,null,null,null,null,null,null,null,null,null,null,null,null,null,null,null,null,null,null,null,null,null,null,null,null,null,null,null,null,null,null,null,null,null,null,null,null,null,null,null,null,null,null,null,null,null,null,null,null,null,null,null,null,null,null,null,null,null,null,null,null,null,null,null,null,null,null,null,null,null,null,null,null,null,null,null,null,null,null,null,null,"D"]
[null,null,null,null,null,null,null,null,null,null,null,null,null,null,null,null,null,null,null,null,null,null,null,null,null,null,null,null,null,null,null,null,null,null,null,null,null,null,null,null,null,null,null,null,null,null,null,null,null,null,null,null,null,null,null,null,null,null,null,null,null,null,null,null,null,null,null,null,null,null,null,null,null,null,null,null,null,null,null,null,null,null,null,null,null,null,null,null,null,null,null,null,null,null,null,null,null,null,null,null,null,null,null,null,null,null,null,null,"D"]
[null,null,null,null,null,null,null,null,null,null,null,null,null,null,null,null,null,null,null,null,null,null,null,null,null,null,null,null,null,null,null,null,null,null,null,null,null,null,null,null,null,null,null,null,null,null,null,null,null,null,null,null,null,null,null,null,null,null,null,null,null,null,null,null,null,null,null,null,null,null,null,null,null,null,null,null,null,null,null,null,null,null,null,null,null,null,null,null,null,null,null,null,null,null,null,null,null,null,null,null,null,null,null,null,null,null,null,null,"D"]
[null,null,null,null,null,null,null,null,null,null,null,null,null,null,null,null,null,null,null,null,null,null,null,null,null,null,null,null,null,null,null,null,null,null,null,null,null,null,null,null,null,null,null,null,null,null,null,null,null,null,null,null,null,null,null,null,null,null,null,null,null,null,null,null,null,null,null,null,null,null,null,null,null,null,null,null,null,null,null,null,null,null,null,null,null,null,null,null,null,null,null,null,null,null,null,null,null,null,null,null,null,null,null,null,null,null,null,null,"D"]
[null,null,null,null,null,null,null,null,null,null,null,null,null,null,null,null,null,null,null,null,null,null,null,null,null,null,null,null,null,null,null,null,null,null,null,null,null,null,null,null,null,null,null,null,null,null,null,null,null,null,null,null,null,null,null,null,null,null,null,null,null,null,null,null,null,null,null,null,null,null,null,null,null,null,null,null,null,null,null,null,null,null,null,null,null,null,null,null,null,null,null,null,null,null,null,null,null,null,null,null,null,null,null,null,null,null,null,null,"D"]
[]
[10,"Next of Kin - [ Name , Address & Contact Details]",null,null,null,null,null,null,null,null,"Name",null,null,null,null,null,null,null,null,null,null,null,null,null,null,null,null,"Relationship",null,null,null,null,null,null,null,null,null,null,null,null,null,null,null,null,null,null,null,null,null,null,null,null,null,null,null,null,null,null,null,null,null,null,null,null,null,null,null,null,null,null,null,null,null,null,null,null,null,null,null,null,null,null,null,null,null,null,null,null,null,null,null,null,null,null,null,null,null,null,null,null,null,null,null,null,null,null,null,null,"D"]
[]
[null,null,null,null,null,null,null,null,null,null,null,null,null,null,null,null,null,null,null,null,null,null,null,"City",null,null,null,null,null,null,null,null,null,null,null,null,null,null,null,null,null,null,null,null,null,null,null,null,null,null,null,null,null,null,null,null,null,null,null,null,null,null,null,null,null,null,null,null,null,null,null,null,null,null,null,null,null,null,null,null,null,null,null,null,null,null,null,null,null,null,null,null,null,null,null,null,null,null,null,null,null,null,null,null,null,null,null,null,"D"]
[null,null,null,null,null,null,null,null,null,null,"State",null,null,null,null,null,null,null,"Country",null,null,null,null,null,null,null,null,null,null,"Zip Code",null,null,null,null,null,null,null,null,null,null,null,null,null,null,null,null,null,null,null,null,null,null,null,null,null,null,null,null,null,null,null,null,null,null,null,null,null,null,null,null,null,null,null,null,null,null,null,null,null,null,null,null,null,null,null,null,null,null,null,null,null,null,null,null,null,null,null,null,null,null,null,null,null,null,null,null,null,null,"D"]
[null,"Std. Code ",null,null,null,null,null,null,"Res.",null,null,null,null,null,"Fax:",null,null,null,null,null,"Mobile:",null,null,null,null,null,null,"Email",null,null,null,null,null,null,null,null,null,null,null,null,null,null,null,null,null,null,null,null,null,null,null,null,null,null,null,null,null,null,null,null,null,null,null,null,null,null,null,null,null,null,null,null,null,null,null,null,null,null,null,null,null,null,null,null,null,null,null,null,null,null,null,null,null,null,null,null,null,null,null,null,null,null,null,null,null,null,null,null,"D"]
[]
[11,"Emergency Address            [If family onboard]",null,null,null,null,null,null,null,null,"Name",null,null,null,null,null,null,null,null,null,null,null,null,null,null,null,null,null,null,null,null,null,null,null,null,null,null,null,null,null,null,null,null,null,null,null,null,null,null,null,null,null,null,null,null,null,null,null,null,null,null,null,null,null,null,null,null,null,null,null,null,null,null,null,null,null,null,null,null,null,null,null,null,null,null,null,null,null,null,null,null,null,null,null,null,null,null,null,null,null,null,null,null,null,null,null,null,null,"D"]
[]
[null,null,null,null,null,null,null,null,null,null,null,null,null,null,null,null,null,null,null,null,null,null,null,"City"]
[null,null,null,null,null,null,null,null,null,null,"State",null,null,null,null,null,null,null,"Country",null,null,null,null,null,null,null,null,null,null,"Zip Code",null,null,null,null,null,null,null,null,null,null,null,null,null,null,null,null,null,null,null,null,null,null,null,null,null,null,null,null,null,null,null,null,null,null,null,null,null,null,null,null,null,null,null,null,null,null,null,null,null,null,null,null,null,null,null,null,null,null,null,null,null,null,null,null,null,null,null,null,null,null,null,null,null,null,null,null,null,null,"D"]
[null,"STD Code ",null,null,null,null,null,null,"Res.",null,null,null,null,null,"Fax:",null,null,null,null,null,"Mobile:",null,null,null,null,null,null,"Email",null,null,null,null,null,null,null,null,null,null,null,null,null,null,null,null,null,null,null,null,null,null,null,null,null,null,null,null,null,null,null,null,null,null,null,null,null,null,null,null,null,null,null,null,null,null,null,null,null,null,null,null,null,null,null,null,null,null,null,null,null,null,null,null,null,null,null,null,null,null,null,null,null,null,null,null,null,null,null,null,"D"]
[]
[12,"Licence  Grade -  [Description]",null,null,null,null,null,null,null,null,null,null,null,null,null,"Number",null,null,null,null,null,null,"Date of Issue ",null,null,null,"Date of Expiry",null,null,null,"Issuing Country",null,null,null,null,"Nat-  ional"]
[]
[null,null,null,null,null,null,null,null,null,null,null,null,null,null,null,null,null,null,null,null,null,null,null,null,null,null,null,null,null,null,null,null,null,null,null,null,null,"[date format - dd/mmm/yy ]",null,null,null,null,null,null,null,null,null,null,null,null,null,null,null,null,null,null,null,null,null,null,null,null,null,null,null,null,null,null,null,null,null,null,null,null,null,null,null,null,null,null,null,null,null,null,null,null,null,null,null,null,null,null,null,null,null,null,null,null,null,null,null,null,null,null,null,null,null,null,"D"]
[null,null,null,null,null,null,null,null,null,null,null,null,null,null,null,null,null,null,null,null,null,null,null,null,null,null,null,null,null,null,null,null,null,null,null,null,null,null,null,null,null,null,null,null,null,null,null,null,null,null,null,null,null,null,null,null,null,null,null,null,null,null,null,null,null,null,null,null,null,null,null,null,null,null,null,null,null,null,null,null,null,null,null,null,null,null,null,null,null,null,null,null,null,null,null,null,null,null,null,null,null,null,null,null,null,null,null,null,"D"]
[null,null,null,null,null,null,null,null,null,null,null,null,null,null,null,null,null,null,null,null,null,null,null,null,null,null,null,null,null,null,null,null,null,null,null,null,null,null,null,null,null,null,null,null,null,null,null,null,null,null,null,null,null,null,null,null,null,null,null,null,null,null,null,null,null,null,null,null,null,null,null,null,null,null,null,null,null,null,null,null,null,null,null,null,null,null,null,null,null,null,null,null,null,null,null,null,null,null,null,null,null,null,null,null,null,null,null,null,"D"]
[null,null,null,null,null,null,null,null,null,null,null,null,null,null,null,null,null,null,null,null,null,null,null,null,null,null,null,null,null,null,null,null,null,null,null,null,null,null,null,null,null,null,null,null,null,null,null,null,null,null,null,null,null,null,null,null,null,null,null,null,null,null,null,null,null,null,null,null,null,null,null,null,null,null,null,null,null,null,null,null,null,null,null,null,null,null,null,null,null,null,null,null,null,null,null,null,null,null,null,null,null,null,null,null,null,null,null,null,"D"]
[null,null,null,null,null,null,null,null,null,null,null,null,null,null,null,null,null,null,null,null,null,null,null,null,null,null,null,null,null,null,null,null,null,null,null,null,null,null,null,null,null,null,null,null,null,null,null,null,null,null,null,null,null,null,null,null,null,null,null,null,null,null,null,null,null,null,null,null,null,null,null,null,null,null,null,null,null,null,null,null,null,null,null,null,null,null,null,null,null,null,null,null,null,null,null,null,null,null,null,null,null,null,null,null,null,null,null,null,"D"]
[null,null,null,null,null,null,null,null,null,null,null,null,null,null,null,null,null,null,null,null,null,null,null,null,null,null,null,null,null,null,null,null,null,null,null,null,null,null,null,null,null,null,null,null,null,null,null,null,null,null,null,null,null,null,null,null,null,null,null,null,null,null,null,null,null,null,null,null,null,null,null,null,null,null,null,null,null,null,null,null,null,null,null,null,null,null,null,null,null,null,null,null,null,null,null,null,null,null,null,null,null,null,null,null,null,null,null,null,"D"]
[null,null,null,null,null,null,null,null,null,null,null,null,null,null,null,null,null,null,null,null,null,null,null,null,null,null,null,null,null,null,null,null,null,null,null,null,null,null,null,null,null,null,null,null,null,null,null,null,null,null,null,null,null,null,null,null,null,null,null,null,null,null,null,null,null,null,null,null,null,null,null,null,null,null,null,null,null,null,null,null,null,null,null,null,null,null,null,null,null,null,null,null,null,null,null,null,null,null,null,null,null,null,null,null,null,null,null,null,"D"]
[null,null,null,null,null,null,null,null,null,null,null,null,null,null,null,null,null,null,null,null,null,null,null,null,null,null,null,null,null,null,null,null,null,null,null,null,null,null,null,null,null,null,null,null,null,null,null,null,null,null,null,null,null,null,null,null,null,null,null,null,null,null,null,null,null,null,null,null,null,null,null,null,null,null,null,null,null,null,null,null,null,null,null,null,null,null,null,null,null,null,null,null,null,null,null,null,null,null,null,null,null,null,null,null,null,null,null,null,"D"]
[null,null,null,null,null,null,null,null,null,null,null,null,null,null,null,null,null,null,null,null,null,null,null,null,null,null,null,null,null,null,null,null,null,null,null,null,null,null,null,null,null,null,null,null,null,null,null,null,null,null,null,null,null,null,null,null,null,null,null,null,null,null,null,null,null,null,null,null,null,null,null,null,null,null,null,null,null,null,null,null,null,null,null,null,null,null,null,null,null,null,null,null,null,null,null,null,null,null,null,null,null,null,null,null,null,null,null,null,"D"]
[null,null,null,null,null,null,null,null,null,null,null,null,null,null,null,null,null,null,null,null,null,null,null,null,null,null,null,null,null,null,null,null,null,null,null,null,null,null,null,null,null,null,null,null,null,null,null,null,null,null,null,null,null,null,null,null,null,null,null,null,null,null,null,null,null,null,null,null,null,null,null,null,null,null,null,null,null,null,null,null,null,null,null,null,null,null,null,null,null,null,null,null,null,null,null,null,null,null,null,null,null,null,null,null,null,null,null,null,"D"]
[null,null,null,null,null,null,null,null,null,null,null,null,null,null,null,null,null,null,null,null,null,null,null,null,null,null,null,null,null,null,null,null,null,null,null,null,null,null,null,null,null,null,null,null,null,null,null,null,null,null,null,null,null,null,null,null,null,null,null,null,null,null,null,null,null,null,null,null,null,null,null,null,null,null,null,null,null,null,null,null,null,null,null,null,null,null,null,null,null,null,null,null,null,null,null,null,null,null,null,null,null,null,null,null,null,null,null,null,"D"]
[null,null,null,null,null,null,null,null,null,null,null,null,null,null,null,null,null,null,null,null,null,null,null,null,null,null,null,null,null,null,null,null,null,null,null,null,null,null,null,null,null,null,null,null,null,null,null,null,null,null,null,null,null,null,null,null,null,null,null,null,null,null,null,null,null,null,null,null,null,null,null,null,null,null,null,null,null,null,null,null,null,null,null,null,null,null,null,null,null,null,null,null,null,null,null,null,null,null,null,null,null,null,null,null,null,null,null,null,"D"]
[]
[13,"Seaman Book  [ C.D.C ]",null,null,null,null,null,null,null,null,null,null,null,null,null,"Number",null,null,null,null,null,null,"Date of Issue",null,null,null,"Date of Expiry",null,null,null,"Place of Issue (Country)",null,null,null,null,"Nat-  ional"]
[]
[null,null,null,null,null,null,null,null,null,null,null,null,null,null,null,null,null,null,null,null,null,null,null,null,null,null,null,null,null,null,null,null,null,null,null,"No",null," [ date format - dd/mmm/yy ]",null,null,null,null,null,null,null,null,null,null,null,null,null,null,null,null,null,null,null,null,null,null,null,null,null,null,null,null,null,null,null,null,null,null,null,null,null,null,null,null,null,null,null,null,null,null,null,null,null,null,null,null,null,null,null,null,null,null,null,null,null,null,null,null,null,null,null,null,null,null,"D"]
[null,null,null,null,null,null,null,null,null,null,null,null,null,null,null,null,null,null,null,null,null,null,null,null,null,null,null,null,null,null,null,null,null,null,null,"No",null,null,null,null,null,null,null,null,null,null,null,null,null,null,null,null,null,null,null,null,null,null,null,null,null,null,null,null,null,null,null,null,null,null,null,null,null,null,null,null,null,null,null,null,null,null,null,null,null,null,null,null,null,null,null,null,null,null,null,null,null,null,null,null,null,null,null,null,null,null,null,null,"D"]
[null,null,null,null,null,null,null,null,null,null,null,null,null,null,null,null,null,null,null,null,null,null,null,null,null,null,null,null,null,null,null,null,null,null,null,"No",null,null,null,null,null,null,null,null,null,null,null,null,null,null,null,null,null,null,null,null,null,null,null,null,null,null,null,null,null,null,null,null,null,null,null,null,null,null,null,null,null,null,null,null,null,null,null,null,null,null,null,null,null,null,null,null,null,null,null,null,null,null,null,null,null,null,null,null,null,null,null,null,"D"]
[null,null,null,null,null,null,null,null,null,null,null,null,null,null,null,null,null,null,null,null,null,null,null,null,null,null,null,null,null,null,null,null,null,null,null,"No",null,null,null,null,null,null,null,null,null,null,null,null,null,null,null,null,null,null,null,null,null,null,null,null,null,null,null,null,null,null,null,null,null,null,null,null,null,null,null,null,null,null,null,null,null,null,null,null,null,null,null,null,null,null,null,null,null,null,null,null,null,null,null,null,null,null,null,null,null,null,null,null,"D"]
[null,null,null,null,null,null,null,null,null,null,null,null,null,null,null,null,null,null,null,null,null,null,null,null,null,null,null,null,null,null,null,null,null,null,null,"No",null,null,null,null,null,null,null,null,null,null,null,null,null,null,null,null,null,null,null,null,null,null,null,null,null,null,null,null,null,null,null,null,null,null,null,null,null,null,null,null,null,null,null,null,null,null,null,null,null,null,null,null,null,null,null,null,null,null,null,null,null,null,null,null,null,null,null,null,null,null,null,null,"D"]
[null,null,null,null,null,null,null,null,null,null,null,null,null,null,null,null,null,null,null,null,null,null,null,null,null,null,null,null,null,null,null,null,null,null,null,"No",null,null,null,null,null,null,null,null,null,null,null,null,null,null,null,null,null,null,null,null,null,null,null,null,null,null,null,null,null,null,null,null,null,null,null,null,null,null,null,null,null,null,null,null,null,null,null,null,null,null,null,null,null,null,null,null,null,null,null,null,null,null,null,null,null,null,null,null,null,null,null,null,"D"]
[null,null,null,null,null,null,null,null,null,null,null,null,null,null,null,null,null,null,null,null,null,null,null,null,null,null,null,null,null,null,null,null,null,null,null,"No",null,null,null,null,null,null,null,null,null,null,null,null,null,null,null,null,null,null,null,null,null,null,null,null,null,null,null,null,null,null,null,null,null,null,null,null,null,null,null,null,null,null,null,null,null,null,null,null,null,null,null,null,null,null,null,null,null,null,null,null,null,null,null,null,null,null,null,null,null,null,null,null,"D"]
[14,"Other visa"]
[null,"Name",null,null,null,null,null,null,null,null,null,null,null,null,null,"Place of Issue",null,null,null,null,null,null,null,null,null,null,null,null,"Date of Issue",null,null,null,"Date of Expiry"]
[null,null,null,null,null,null,null,null,null,null,null,null,null,null,null,null,null,null,null,null,null,null,null,null,null,null,null,null,null,null,null,null,null,null,null,null,null,null,null,null,null,null,null,null,null,null,null,null,null,null,null,null,null,null,null,null,null,null,null,null,null,null,null,null,null,null,null,null,null,null,null,null,null,null,null,null,null,null,null,null,null,null,null,null,null,null,null,null,null,null,null,null,null,null,null,null,null,null,null,null,null,null,null,null,null,null,null,null,"D"]
[null,null,null,null,null,null,null,null,null,null,null,null,null,null,null,null,null,null,null,null,null,null,null,null,null,null,null,null,null,null,null,null,null,null,null,null,null,null,null,null,null,null,null,null,null,null,null,null,null,null,null,null,null,null,null,null,null,null,null,null,null,null,null,null,null,null,null,null,null,null,null,null,null,null,null,null,null,null,null,null,null,null,null,null,null,null,null,null,null,null,null,null,null,null,null,null,null,null,null,null,null,null,null,null,null,null,null,null,"D"]
[null,null,null,null,null,null,null,null,null,null,null,null,null,null,null,null,null,null,null,null,null,null,null,null,null,null,null,null,null,null,null,null,null,null,null,null,null,null,null,null,null,null,null,null,null,null,null,null,null,null,null,null,null,null,null,null,null,null,null,null,null,null,null,null,null,null,null,null,null,null,null,null,null,null,null,null,null,null,null,null,null,null,null,null,null,null,null,null,null,null,null,null,null,null,null,null,null,null,null,null,null,null,null,null,null,null,null,null,"D"]
[null,null,null,null,null,null,null,null,null,null,null,null,null,null,null,null,null,null,null,null,null,null,null,null,null,null,null,null,null,null,null,null,null,null,null,null,null,null,null,null,null,null,null,null,null,null,null,null,null,null,null,null,null,null,null,null,null,null,null,null,null,null,null,null,null,null,null,null,null,null,null,null,null,null,null,null,null,null,null,null,null,null,null,null,null,null,null,null,null,null,null,null,null,null,null,null,null,null,null,null,null,null,null,null,null,null,null,null,"D"]
[null,null,null,null,null,null,null,null,null,null,null,null,null,null,null,null,null,null,null,null,null,null,null,null,null,null,null,null,null,null,null,null,null,null,null,null,null,null,null,null,null,null,null,null,null,null,null,null,null,null,null,null,null,null,null,null,null,null,null,null,null,null,null,null,null,null,null,null,null,null,null,null,null,null,null,null,null,null,null,null,null,null,null,null,null,null,null,null,null,null,null,null,null,null,null,null,null,null,null,null,null,null,null,null,null,null,null,null,"D"]
[]
["COURSES AND CERTIFICATES"]
[15,"Description",null,null,null,null,null,null,null,null,null,"Issuing Authority",null,null,null,null,null,"Number",null,null,null,null,"Date of Issue",null,null,null,"Date of  Expiry",null,null,null,"Issuing Country"]
[]
[null,null,null,null,null,null,null,null,null,null,null,null,null,null,null,null,null,null,null,null,null,null,null,null,null,null,null,null,null,null,null,null,null,null,null,null,null," [ date format - dd/mmm/yy ]",null,null,null,null,null,null,null,null,null,null,null,null,null,null,null,null,null,null,null,null,null,null,null,null,null,null,null,null,null,null,null,null,null,null,null,null,null,null,null,null,null,null,null,null,null,null,null,null,null,null,null,null,null,null,null,null,null,null,null,null,null,null,null,null,null,null,null,null,null,null,"D"]
[null,null,null,null,null,null,null,null,null,null,null,null,null,null,null,null,null,null,null,null,null,null,null,null,null,null,null,null,null,null,null,null,null,null,null,null,null,null,null,null,null,null,null,null,null,null,null,null,null,null,null,null,null,null,null,null,null,null,null,null,null,null,null,null,null,null,null,null,null,null,null,null,null,null,null,null,null,null,null,null,null,null,null,null,null,null,null,null,null,null,null,null,null,null,null,null,null,null,null,null,null,null,null,null,null,null,null,null,"D"]
[null,null,null,null,null,null,null,null,null,null,null,null,null,null,null,null,null,null,null,null,null,null,null,null,null,null,null,null,null,null,null,null,null,null,null,null,null,null,null,null,null,null,null,null,null,null,null,null,null,null,null,null,null,null,null,null,null,null,null,null,null,null,null,null,null,null,null,null,null,null,null,null,null,null,null,null,null,null,null,null,null,null,null,null,null,null,null,null,null,null,null,null,null,null,null,null,null,null,null,null,null,null,null,null,null,null,null,null,"D"]
[null,null,null,null,null,null,null,null,null,null,null,null,null,null,null,null,null,null,null,null,null,null,null,null,null,null,null,null,null,null,null,null,null,null,null,null,null,null,null,null,null,null,null,null,null,null,null,null,null,null,null,null,null,null,null,null,null,null,null,null,null,null,null,null,null,null,null,null,null,null,null,null,null,null,null,null,null,null,null,null,null,null,null,null,null,null,null,null,null,null,null,null,null,null,null,null,null,null,null,null,null,null,null,null,null,null,null,null,"D"]
[null,null,null,null,null,null,null,null,null,null,null,null,null,null,null,null,null,null,null,null,null,null,null,null,null,null,null,null,null,null,null,null,null,null,null,null,null,null,null,null,null,null,null,null,null,null,null,null,null,null,null,null,null,null,null,null,null,null,null,null,null,null,null,null,null,null,null,null,null,null,null,null,null,null,null,null,null,null,null,null,null,null,null,null,null,null,null,null,null,null,null,null,null,null,null,null,null,null,null,null,null,null,null,null,null,null,null,null,"D"]
[null,null,null,null,null,null,null,null,null,null,null,null,null,null,null,null,null,null,null,null,null,null,null,null,null,null,null,null,null,null,null,null,null,null,null,null,null,null,null,null,null,null,null,null,null,null,null,null,null,null,null,null,null,null,null,null,null,null,null,null,null,null,null,null,null,null,null,null,null,null,null,null,null,null,null,null,null,null,null,null,null,null,null,null,null,null,null,null,null,null,null,null,null,null,null,null,null,null,null,null,null,null,null,null,null,null,null,null,"D"]
[null,null,null,null,null,null,null,null,null,null,null,null,null,null,null,null,null,null,null,null,null,null,null,null,null,null,null,null,null,null,null,null,null,null,null,null,null,null,null,null,null,null,null,null,null,null,null,null,null,null,null,null,null,null,null,null,null,null,null,null,null,null,null,null,null,null,null,null,null,null,null,null,null,null,null,null,null,null,null,null,null,null,null,null,null,null,null,null,null,null,null,null,null,null,null,null,null,null,null,null,null,null,null,null,null,null,null,null,"D"]
[null,null,null,null,null,null,null,null,null,null,null,null,null,null,null,null,null,null,null,null,null,null,null,null,null,null,null,null,null,null,null,null,null,null,null,null,null,null,null,null,null,null,null,null,null,null,null,null,null,null,null,null,null,null,null,null,null,null,null,null,null,null,null,null,null,null,null,null,null,null,null,null,null,null,null,null,null,null,null,null,null,null,null,null,null,null,null,null,null,null,null,null,null,null,null,null,null,null,null,null,null,null,null,null,null,null,null,null,"D"]
[null,null,null,null,null,null,null,null,null,null,null,null,null,null,null,null,null,null,null,null,null,null,null,null,null,null,null,null,null,null,null,null,null,null,null,null,null,null,null,null,null,null,null,null,null,null,null,null,null,null,null,null,null,null,null,null,null,null,null,null,null,null,null,null,null,null,null,null,null,null,null,null,null,null,null,null,null,null,null,null,null,null,null,null,null,null,null,null,null,null,null,null,null,null,null,null,null,null,null,null,null,null,null,null,null,null,null,null,"D"]
[null,null,null,null,null,null,null,null,null,null,null,null,null,null,null,null,null,null,null,null,null,null,null,null,null,null,null,null,null,null,null,null,null,null,null,null,null,null,null,null,null,null,null,null,null,null,null,null,null,null,null,null,null,null,null,null,null,null,null,null,null,null,null,null,null,null,null,null,null,null,null,null,null,null,null,null,null,null,null,null,null,null,null,null,null,null,null,null,null,null,null,null,null,null,null,null,null,null,null,null,null,null,null,null,null,null,null,null,"D"]
[null,null,null,null,null,null,null,null,null,null,null,null,null,null,null,null,null,null,null,null,null,null,null,null,null,null,null,null,null,null,null,null,null,null,null,null,null,null,null,null,null,null,null,null,null,null,null,null,null,null,null,null,null,null,null,null,null,null,null,null,null,null,null,null,null,null,null,null,null,null,null,null,null,null,null,null,null,null,null,null,null,null,null,null,null,null,null,null,null,null,null,null,null,null,null,null,null,null,null,null,null,null,null,null,null,null,null,null,"D"]
[null,null,null,null,null,null,null,null,null,null,null,null,null,null,null,null,null,null,null,null,null,null,null,null,null,null,null,null,null,null,null,null,null,null,null,null,null,null,null,null,null,null,null,null,null,null,null,null,null,null,null,null,null,null,null,null,null,null,null,null,null,null,null,null,null,null,null,null,null,null,null,null,null,null,null,null,null,null,null,null,null,null,null,null,null,null,null,null,null,null,null,null,null,null,null,null,null,null,null,null,null,null,null,null,null,null,null,null,"D"]
[null,null,null,null,null,null,null,null,null,null,null,null,null,null,null,null,null,null,null,null,null,null,null,null,null,null,null,null,null,null,null,null,null,null,null,null,null,null,null,null,null,null,null,null,null,null,null,null,null,null,null,null,null,null,null,null,null,null,null,null,null,null,null,null,null,null,null,null,null,null,null,null,null,null,null,null,null,null,null,null,null,null,null,null,null,null,null,null,null,null,null,null,null,null,null,null,null,null,null,null,null,null,null,null,null,null,null,null,"D"]
[null,null,null,null,null,null,null,null,null,null,null,null,null,null,null,null,null,null,null,null,null,null,null,null,null,null,null,null,null,null,null,null,null,null,null,null,null,null,null,null,null,null,null,null,null,null,null,null,null,null,null,null,null,null,null,null,null,null,null,null,null,null,null,null,null,null,null,null,null,null,null,null,null,null,null,null,null,null,null,null,null,null,null,null,null,null,null,null,null,null,null,null,null,null,null,null,null,null,null,null,null,null,null,null,null,null,null,null,"D"]
[null,null,null,null,null,null,null,null,null,null,null,null,null,null,null,null,null,null,null,null,null,null,null,null,null,null,null,null,null,null,null,null,null,null,null,null,null,null,null,null,null,null,null,null,null,null,null,null,null,null,null,null,null,null,null,null,null,null,null,null,null,null,null,null,null,null,null,null,null,null,null,null,null,null,null,null,null,null,null,null,null,null,null,null,null,null,null,null,null,null,null,null,null,null,null,null,null,null,null,null,null,null,null,null,null,null,null,null,"D"]
[null,null,null,null,null,null,null,null,null,null,null,null,null,null,null,null,null,null,null,null,null,null,null,null,null,null,null,null,null,null,null,null,null,null,null,null,null,null,null,null,null,null,null,null,null,null,null,null,null,null,null,null,null,null,null,null,null,null,null,null,null,null,null,null,null,null,null,null,null,null,null,null,null,null,null,null,null,null,null,null,null,null,null,null,null,null,null,null,null,null,null,null,null,null,null,null,null,null,null,null,null,null,null,null,null,null,null,null,"D"]
[null,null,null,null,null,null,null,null,null,null,null,null,null,null,null,null,null,null,null,null,null,null,null,null,null,null,null,null,null,null,null,null,null,null,null,null,null,null,null,null,null,null,null,null,null,null,null,null,null,null,null,null,null,null,null,null,null,null,null,null,null,null,null,null,null,null,null,null,null,null,null,null,null,null,null,null,null,null,null,null,null,null,null,null,null,null,null,null,null,null,null,null,null,null,null,null,null,null,null,null,null,null,null,null,null,null,null,null,"D"]
["Note: Details of any more courses / certificates other than the above may be included  below in box No. 18 - [SUMMARY]"]
["PREVIOUS SEA EXP.  [ Datewise upto 10 previous vessels in ascending order ] ie : End with your last vessel served"]
[16,"Vessel Name",null,null,null,null,null,"Flag",null,"Type",null,"Dwt",null,"GRT",null,"Engine",null,"Bhp",null,"Manning Agts /",null,null,null,null,"Rank",null,null,"From",null,null,"To",null,null,"UMS",null,"TEUs"]
[null,null,null,null,null,null,null,null,null,null,null,null,null,null,null,"Type",null,null,null,"Owners Name"]
[null,null,null,null,null,null,null,null,null,null,null,null,null,null,null,null,null,null,null,null,null,null,null,null,null,null,null,null,null,null,null,null,null,null,null,null,null," [ date format - dd/mmm/yy ]",null,null,null,null,null,null,null,null,null,null,null,null,null,null,null,null,null,null,null,null,null,null,null,null,null,null,null,null,null,null,null,null,null,null,null,null,null,null,null,null,null,null,null,null,null,null,null,null,null,null,null,null,null,null,null,null,null,null,null,null,null,null,null,null,null,null,null,null,null,null,"D"]
[null,null,null,null,null,null,null,null,null,null,null,null,null,null,null,null,null,null,null,null,null,null,null,null,null,null,null,null,null,null,null,null,null,null,null,null,null,null,null,null,null,null,null,null,null,null,null,null,null,null,null,null,null,null,null,null,null,null,null,null,null,null,null,null,null,null,null,null,null,null,null,null,null,null,null,null,null,null,null,null,null,null,null,null,null,null,null,null,null,null,null,null,null,null,null,null,null,null,null,null,null,null,null,null,null,null,null,null,"D"]
[null,null,null,null,null,null,null,null,null,null,null,null,null,null,null,null,null,null,null,null,null,null,null,null,null,null,null,null,null,null,null,null,null,null,null,null,null,null,null,null,null,null,null,null,null,null,null,null,null,null,null,null,null,null,null,null,null,null,null,null,null,null,null,null,null,null,null,null,null,null,null,null,null,null,null,null,null,null,null,null,null,null,null,null,null,null,null,null,null,null,null,null,null,null,null,null,null,null,null,null,null,null,null,null,null,null,null,null,"D"]
[null,null,null,null,null,null,null,null,null,null,null,null,null,null,null,null,null,null,null,null,null,null,null,null,null,null,null,null,null,null,null,null,null,null,null,null,null,null,null,null,null,null,null,null,null,null,null,null,null,null,null,null,null,null,null,null,null,null,null,null,null,null,null,null,null,null,null,null,null,null,null,null,null,null,null,null,null,null,null,null,null,null,null,null,null,null,null,null,null,null,null,null,null,null,null,null,null,null,null,null,null,null,null,null,null,null,null,null,"D"]
[null,null,null,null,null,null,null,null,null,null,null,null,null,null,null,null,null,null,null,null,null,null,null,null,null,null,null,null,null,null,null,null,null,null,null,null,null,null,null,null,null,null,null,null,null,null,null,null,null,null,null,null,null,null,null,null,null,null,null,null,null,null,null,null,null,null,null,null,null,null,null,null,null,null,null,null,null,null,null,null,null,null,null,null,null,null,null,null,null,null,null,null,null,null,null,null,null,null,null,null,null,null,null,null,null,null,null,null,"D"]
[null,null,null,null,null,null,null,null,null,null,null,null,null,null,null,null,null,null,null,null,null,null,null,null,null,null,null,null,null,null,null,null,null,null,null,null,null,null,null,null,null,null,null,null,null,null,null,null,null,null,null,null,null,null,null,null,null,null,null,null,null,null,null,null,null,null,null,null,null,null,null,null,null,null,null,null,null,null,null,null,null,null,null,null,null,null,null,null,null,null,null,null,null,null,null,null,null,null,null,null,null,null,null,null,null,null,null,null,"D"]
[null,null,null,null,null,null,null,null,null,null,null,null,null,null,null,null,null,null,null,null,null,null,null,null,null,null,null,null,null,null,null,null,null,null,null,null,null,null,null,null,null,null,null,null,null,null,null,null,null,null,null,null,null,null,null,null,null,null,null,null,null,null,null,null,null,null,null,null,null,null,null,null,null,null,null,null,null,null,null,null,null,null,null,null,null,null,null,null,null,null,null,null,null,null,null,null,null,null,null,null,null,null,null,null,null,null,null,null,"D"]
[null,null,null,null,null,null,null,null,null,null,null,null,null,null,null,null,null,null,null,null,null,null,null,null,null,null,null,null,null,null,null,null,null,null,null,null,null,null,null,null,null,null,null,null,null,null,null,null,null,null,null,null,null,null,null,null,null,null,null,null,null,null,null,null,null,null,null,null,null,null,null,null,null,null,null,null,null,null,null,null,null,null,null,null,null,null,null,null,null,null,null,null,null,null,null,null,null,null,null,null,null,null,null,null,null,null,null,null,"D"]
[null,null,null,null,null,null,null,null,null,null,null,null,null,null,null,null,null,null,null,null,null,null,null,null,null,null,null,null,null,null,null,null,null,null,null,null,null,null,null,null,null,null,null,null,null,null,null,null,null,null,null,null,null,null,null,null,null,null,null,null,null,null,null,null,null,null,null,null,null,null,null,null,null,null,null,null,null,null,null,null,null,null,null,null,null,null,null,null,null,null,null,null,null,null,null,null,null,null,null,null,null,null,null,null,null,null,null,null,"D"]
[null,null,null,null,null,null,null,null,null,null,null,null,null,null,null,null,null,null,null,null,null,null,null,null,null,null,null,null,null,null,null,null,null,null,null,null,null,null,null,null,null,null,null,null,null,null,null,null,null,null,null,null,null,null,null,null,null,null,null,null,null,null,null,null,null,null,null,null,null,null,null,null,null,null,null,null,null,null,null,null,null,null,null,null,null,null,null,null,null,null,null,null,null,null,null,null,null,null,null,null,null,null,null,null,null,null,null,null,"D"]
[null,null,null,null,null,null,null,null,null,null,null,null,null,null,null,null,null,null,null,null,null,null,null,null,null,null,null,null,null,null,null,null,null,null,null,null,null,null,null,null,null,null,null,null,null,null,null,null,null,null,null,null,null,null,null,null,null,null,null,null,null,null,null,null,null,null,null,null,null,null,null,null,null,null,null,null,null,null,null,null,null,null,null,null,null,null,null,null,null,null,null,null,null,null,null,null,null,null,null,null,null,null,null,null,null,null,null,null,"D"]
[null,null,null,null,null,null,null,null,null,null,null,null,null,null,null,null,null,null,null,null,null,null,null,null,null,null,null,null,null,null,null,null,null,null,null,null,null,null,null,null,null,null,null,null,null,null,null,null,null,null,null,null,null,null,null,null,null,null,null,null,null,null,null,null,null,null,null,null,null,null,null,null,null,null,null,null,null,null,null,null,null,null,null,null,null,null,null,null,null,null,null,null,null,null,null,null,null,null,null,null,null,null,null,null,null,null,null,null,"D"]
[null,null,null,null,null,null,null,null,null,null,null,null,null,null,null,null,null,null,null,null,null,null,null,null,null,null,null,null,null,null,null,null,null,null,null,null,null,null,null,null,null,null,null,null,null,null,null,null,null,null,null,null,null,null,null,null,null,null,null,null,null,null,null,null,null,null,null,null,null,null,null,null,null,null,null,null,null,null,null,null,null,null,null,null,null,null,null,null,null,null,null,null,null,null,null,null,null,null,null,null,null,null,null,null,null,null,null,null,"D"]
[null,null,null,null,null,null,null,null,null,null,null,null,null,null,null,null,null,null,null,null,null,null,null,null,null,null,null,null,null,null,null,null,null,null,null,null,null,null,null,null,null,null,null,null,null,null,null,null,null,null,null,null,null,null,null,null,null,null,null,null,null,null,null,null,null,null,null,null,null,null,null,null,null,null,null,null,null,null,null,null,null,null,null,null,null,null,null,null,null,null,null,null,null,null,null,null,null,null,null,null,null,null,null,null,null,null,null,null,"D"]
[null,null,null,null,null,null,null,null,null,null,null,null,null,null,null,null,null,null,null,null,null,null,null,null,null,null,null,null,null,null,null,null,null,null,null,null,null,null,null,null,null,null,null,null,null,null,null,null,null,null,null,null,null,null,null,null,null,null,null,null,null,null,null,null,null,null,null,null,null,null,null,null,null,null,null,null,null,null,null,null,null,null,null,null,null,null,null,null,null,null,null,null,null,null,null,null,null,null,null,null,null,null,null,null,null,null,null,null,"D"]
[null,null,null,null,null,null,null,null,null,null,null,null,null,null,null,null,null,null,null,null,null,null,null,null,null,null,null,null,null,null,null,null,null,null,null,null,null,null,null,null,null,null,null,null,null,null,null,null,null,null,null,null,null,null,null,null,null,null,null,null,null,null,null,null,null,null,null,null,null,null,null,null,null,null,null,null,null,null,null,null,null,null,null,null,null,null,null,null,null,null,null,null,null,null,null,null,null,null,null,null,null,null,null,null,null,null,null,null,"D"]
[null,null,null,null,null,null,null,null,null,null,null,null,null,null,null,null,null,null,null,null,null,null,null,null,null,null,null,null,null,null,null,null,null,null,null,null,null,null,null,null,null,null,null,null,null,null,null,null,null,null,null,null,null,null,null,null,null,null,null,null,null,null,null,null,null,null,null,null,null,null,null,null,null,null,null,null,null,null,null,null,null,null,null,null,null,null,null,null,null,null,null,null,null,null,null,null,null,null,null,null,null,null,null,null,null,null,null,null,"D"]
[null,null,null,null,null,null,null,null,null,null,null,null,null,null,null,null,null,null,null,null,null,null,null,null,null,null,null,null,null,null,null,null,null,null,null,null,null,null,null,null,null,null,null,null,null,null,null,null,null,null,null,null,null,null,null,null,null,null,null,null,null,null,null,null,null,null,null,null,null,null,null,null,null,null,null,null,null,null,null,null,null,null,null,null,null,null,null,null,null,null,null,null,null,null,null,null,null,null,null,null,null,null,null,null,null,null,null,null,"D"]
[null,null,null,null,null,null,null,null,null,null,null,null,null,null,null,null,null,null,null,null,null,null,null,null,null,null,null,null,null,null,null,null,null,null,null,null,null,null,null,null,null,null,null,null,null,null,null,null,null,null,null,null,null,null,null,null,null,null,null,null,null,null,null,null,null,null,null,null,null,null,null,null,null,null,null,null,null,null,null,null,null,null,null,null,null,null,null,null,null,null,null,null,null,null,null,null,null,null,null,null,null,null,null,null,null,null,null,null,"D"]
[null,null,null,null,null,null,null,null,null,null,null,null,null,null,null,null,null,null,null,null,null,null,null,null,null,null,null,null,null,null,null,null,null,null,null,null,null,null,null,null,null,null,null,null,null,null,null,null,null,null,null,null,null,null,null,null,null,null,null,null,null,null,null,null,null,null,null,null,null,null,null,null,null,null,null,null,null,null,null,null,null,null,null,null,null,null,null,null,null,null,null,null,null,null,null,null,null,null,null,null,null,null,null,null,null,null,null,null,"D"]
[null,null,null,null,null,null,null,null,null,null,null,null,null,null,null,null,null,null,null,null,null,null,null,null,null,null,null,null,null,null,null,null,null,null,null,null,null,null,null,null,null,null,null,null,null,null,null,null,null,null,null,null,null,null,null,null,null,null,null,null,null,null,null,null,null,null,null,null,null,null,null,null,null,null,null,null,null,null,null,null,null,null,null,null,null,null,null,null,null,null,null,null,null,null,null,null,null,null,null,null,null,null,null,null,null,null,null,null,"D"]
[null,"Note : Eng. Officers and Elec.Officers to indicate UMS experience"]
["Shore Based Experience"]
[17,"  Site",null,null,null,null,null,null,null,null,null,null," Type",null,null,null,null,null," Trade",null,null,null,null,"Sign On",null,null,"Sign Off",null,null," Manning Agent"]
[]
[]
[]
[]
[]
[]
[null,"aa"]
[18,"SUMMARY OF KNOWLEDGE AND EXPERIENCE ACQUIRED [Give a brief resume of your Career and Experience at Sea, e.g. Type of Ships, Engines, Specific Trades (E.G. ICE / Lighterage etc.), \nreactivation, New Buildings, Shore Experience, Computer Knowledge etc.]  \n"]
[]
[]
[null,null,null,null,null,null,null,null,null,null,null,null,null,null,null,null,null,null,null,null,null,null,null,null,null,null,null,null,null,null,null,null,null,null,null,null,null,null,null,null,null,null,null,null,null,null,null,null,null,null,null,null,null,null,null,null,null,null,null,null,null,null,null,null,null,null,null,null,null,null,null,null,null,null,null,null,null,null,null,null,null,null,null,null,null,null,null,null,null,null,null,null,null,null,null,null,null,null,null,null,null,null,null,null,null,null,null,null,"D"]
[null,null,null,null,null,null,null,null,null,null,null,null,null,null,null,null,null,null,null,null,null,null,null,null,null,null,null,null,null,null,null,null,null,null,null,null,null,null,null,null,null,null,null,null,null,null,null,null,null,null,null,null,null,null,null,null,null,null,null,null,null,null,null,null,null,null,null,null,null,null,null,null,null,null,null,null,null,null,null,null,null,null,null,null,null,null,null,null,null,null,null,null,null,null,null,null,null,null,null,null,null,null,null,null,null,null,null,null,"D"]
[null,null,null,null,null,null,null,null,null,null,null,null,null,null,null,null,null,null,null,null,null,null,null,null,null,null,null,null,null,null,null,null,null,null,null,null,null,null,null,null,null,null,null,null,null,null,null,null,null,null,null,null,null,null,null,null,null,null,null,null,null,null,null,null,null,null,null,null,null,null,null,null,null,null,null,null,null,null,null,null,null,null,null,null,null,null,null,null,null,null,null,null,null,null,null,null,null,null,null,null,null,null,null,null,null,null,null,null,"D"]
[]
["EDUCATIONAL BACKGROUND  [ please include pre-sea training ]"]
[17,"Name of Schools / Colleges Attended",null,null,null,null,null,null,null,null,null,null,null,null,null,"City / Country",null,null,null,null,null,null,"From",null,null,"To",null,null,"Type of Degree / Diploma / Qualification Received"]
[]
[null,null,null,null,null,null,null,null,null,null,null,null,null,null,null,null,null,null,null,null,null,null,null,null,null,null,null,null,null,null,null,null,null,null,null,null,null," [ date format - mmm/yyyy ]",null,null,null,null,null,null,null,null,null,null,null,null,null,null,null,null,null,null,null,null,null,null,null,null,null,null,null,null,null,null,null,null,null,null,null,null,null,null,null,null,null,null,null,null,null,null,null,null,null,null,null,null,null,null,null,null,null,null,null,null,null,null,null,null,null,null,null,null,null,null,"D"]
[null,null,null,null,null,null,null,null,null,null,null,null,null,null,null,null,null,null,null,null,null,null,null,null,null,null,null,null,null,null,null,null,null,null,null,null,null,null,null,null,null,null,null,null,null,null,null,null,null,null,null,null,null,null,null,null,null,null,null,null,null,null,null,null,null,null,null,null,null,null,null,null,null,null,null,null,null,null,null,null,null,null,null,null,null,null,null,null,null,null,null,null,null,null,null,null,null,null,null,null,null,null,null,null,null,null,null,null,"D"]
[null,null,null,null,null,null,null,null,null,null,null,null,null,null,null,null,null,null,null,null,null,null,null,null,null,null,null,null,null,null,null,null,null,null,null,null,null,null,null,null,null,null,null,null,null,null,null,null,null,null,null,null,null,null,null,null,null,null,null,null,null,null,null,null,null,null,null,null,null,null,null,null,null,null,null,null,null,null,null,null,null,null,null,null,null,null,null,null,null,null,null,null,null,null,null,null,null,null,null,null,null,null,null,null,null,null,null,null,"D"]
[null,null,null,null,null,null,null,null,null,null,null,null,null,null,null,null,null,null,null,null,null,null,null,null,null,null,null,null,null,null,null,null,null,null,null,null,null,null,null,null,null,null,null,null,null,null,null,null,null,null,null,null,null,null,null,null,null,null,null,null,null,null,null,null,null,null,null,null,null,null,null,null,null,null,null,null,null,null,null,null,null,null,null,null,null,null,null,null,null,null,null,null,null,null,null,null,null,null,null,null,null,null,null,null,null,null,null,null,"D"]
[]
["REFERENCES:"]
[20,"Title",null,"Name",null,null,null,null,null,null,null,null,null,null,null,null,null,null,null,null,null,"Company Name",null,null,null,null,null,null,"Phone Number"]
["A",null,null,null,null,null,null,null,null,null,null,null,null,null,null,null,null,null,null,null,null,null,null,null,null,null,null,null,null,null,null,null,null,null,null,null,null,null,null,null,null,null,null,null,null,null,null,null,null,null,null,null,null,null,null,null,null,null,null,null,null,null,null,null,null,null,null,null,null,null,null,null,null,null,null,null,null,null,null,null,null,null,null,null,null,null,null,null,null,null,null,null,null,null,null,null,null,null,null,null,null,null,null,null,null,null,null,null,"D"]
[null,null,null,null,null,null,null,null,null,null,null,null,null,null,null,null,null,null,null,null,null,null,null,null,null,null,null,null,null,null,null,null,null,null,null,null,null,null,null,null,null,null,null,null,null,null,null,null,null,null,null,null,null,null,null,null,null,null,null,null,null,null,null,null,null,null,null,null,null,null,null,null,null,null,null,null,null,null,null,null,null,null,null,null,null,null,null,null,null,null,null,null,null,null,null,null,null,null,null,null,null,null,null,null,null,null,null,null,"D"]
["B",null,null,null,null,null,null,null,null,null,null,null,null,null,null,null,null,null,null,null,null,null,null,null,null,null,null,null,null,null,null,null,null,null,null,null,null,null,null,null,null,null,null,null,null,null,null,null,null,null,null,null,null,null,null,null,null,null,null,null,null,null,null,null,null,null,null,null,null,null,null,null,null,null,null,null,null,null,null,null,null,null,null,null,null,null,null,null,null,null,null,null,null,null,null,null,null,null,null,null,null,null,null,null,null,null,null,null,"D"]
[null,null,null,null,null,null,null,null,null,null,null,null,null,null,null,null,null,null,null,null,null,null,null,null,null,null,null,null,null,null,null,null,null,null,null,null,null,null,null,null,null,null,null,null,null,null,null,null,null,null,null,null,null,null,null,null,null,null,null,null,null,null,null,null,null,null,null,null,null,null,null,null,null,null,null,null,null,null,null,null,null,null,null,null,null,null,null,null,null,null,null,null,null,null,null,null,null,null,null,null,null,null,null,null,null,null,null,null,"D"]
[null,"Address"]
["A",null,null,null,null,null,null,null,null,null,null,null,null,null,null,null,null,null,null,null,null,null,null,null,null,null,null,null,null,null,null,null,null,null,null,null,null,null,null,null,null,null,null,null,null,null,null,null,null,null,null,null,null,null,null,null,null,null,null,null,null,null,null,null,null,null,null,null,null,null,null,null,null,null,null,null,null,null,null,null,null,null,null,null,null,null,null,null,null,null,null,null,null,null,null,null,null,null,null,null,null,null,null,null,null,null,null,null,"D"]
["B",null,null,null,null,null,null,null,null,null,null,null,null,null,null,null,null,null,null,null,null,null,null,null,null,null,null,null,null,null,null,null,null,null,null,null,null,null,null,null,null,null,null,null,null,null,null,null,null,null,null,null,null,null,null,null,null,null,null,null,null,null,null,null,null,null,null,null,null,null,null,null,null,null,null,null,null,null,null,null,null,null,null,null,null,null,null,null,null,null,null,null,null,null,null,null,null,null,null,null,null,null,null,null,null,null,null,null,"D"]
[]
["LANGUAGES"]
[18,"LANGUAGE",null,null,null,null,null,"Spoken",null,null,null,"Written",null,null,null,"Read",null,null,null,null,"OTHER [specify]",null,null,null,null,"Spoken",null,null,null,"Written",null,null,null,"Read"]
[null,"ENGLISH",null,null,null,null,null,null,null,null,null,null,null,null,null,null,null,null,null,null,null,null,null,null,null,null,null,null,null,null,null,null,null,null,null,null,null,null,null,null,null,null,null,null,null,null,null,null,null,null,null,null,null,null,null,null,null,null,null,null,null,null,null,null,null,null,null,null,null,null,null,null,null,null,null,null,null,null,null,null,null,null,null,null,null,null,null,null,null,null,null,null,null,null,null,null,null,null,null,null,null,null,null,null,null,null,null,null,"D"]
[null,null,null,null,null,null,null,null,null,null,null,null,null,null,null,null,null,null,null,null,null,null,null,null,null,null,null,null,null,null,null,null,null,null,null,null,null,null,null,null,null,null,null,null,null,null,null,null,null,null,null,null,null,null,null,null,null,null,null,null,null,null,null,null,null,null,null,null,null,null,null,null,null,null,null,null,null,null,null,null,null,null,null,null,null,null,null,null,null,null,null,null,null,null,null,null,null,null,null,null,null,null,null,null,null,null,null,null,"D"]
[]
["PHYSICAL DECLARATION "]
[19,"VISION",null,null,null,null,null,"Excellent",null,null,null,"Good",null,null,null,"Poor",null,null,null,null,"HEARING",null,null,null,null,"Normal",null,null,null,"Poor",null,null,null,"Nil"]
[null,"With Glasses",null,null,null,null,null,null,null,null,null,null,null,null,null,null,null,null,null,null,"Right Ear",null,null,null,null,null,null,null,null,null,null,null,null,null,null,null,null,null,null,null,null,null,null,null,null,null,null,null,null,null,null,null,null,null,null,null,null,null,null,null,null,null,null,null,null,null,null,null,null,null,null,null,null,null,null,null,null,null,null,null,null,null,null,null,null,null,null,null,null,null,null,null,null,null,null,null,null,null,null,null,null,null,null,null,null,null,null,null,"D"]
[null,"Without  Glasses",null,null,null,null,null,null,null,null,null,null,null,null,null,null,null,null,null,null,"Left Ear",null,null,null,null,null,null,null,null,null,null,null,null,null,null,null,null,null,null,null,null,null,null,null,null,null,null,null,null,null,null,null,null,null,null,null,null,null,null,null,null,null,null,null,null,null,null,null,null,null,null,null,null,null,null,null,null,null,null,null,null,null,null,null,null,null,null,null,null,null,null,null,null,null,null,null,null,null,null,null,null,null,null,null,null,null,null,null,"D"]
[]
[null,"Height (cms)",null,null,null,null,null,null,"Hair  [colour]",null,null,null,null,null,null,null,null,"Identification Mark on body  [if any]",null,null,null,null,null,null,null,null,null,null,null,null,null,null,null,null,null,null,null,null,null,null,null,null,null,null,null,null,null,null,null,null,null,null,null,null,null,null,null,null,null,null,null,null,null,null,null,null,null,null,null,null,null,null,null,null,null,null,null,null,null,null,null,null,null,null,null,null,null,null,null,null,null,null,null,null,null,null,null,null,null,null,null,null,null,null,null,null,null,null,"D"]
[null,"Weight (kgs)",null,null,null,null,null,null,"Eyes [colour]",null,null,null,null,null,null,null,null,null,null,null,null,null,null,null,null,null,null,null,null,null,null,null,null,null,null,null,null,{"$f":"ROW(B182)","v":182},null,null,null,null,null,null,null,null,null,null,null,null,null,null,null,null,null,null,null,null,null,null,null,null,null,null,null,null,null,null,null,null,null,null,null,null,null,null,null,null,null,null,null,null,null,null,null,null,null,null,null,null,null,null,null,null,null,null,null,null,null,null,null,null,null,null,null,null,null,null,"D"]
[]
["a","Are you involved in any marine accident/investigations? [Collision/Grounding/Fire/Pollution]?  If yes please give details",null,null,null,null,null,null,null,null,null,null,null,null,null,null,null,null,null,null,null,null,null,null,null,null,null,null,null,null,null,null,null,null,null,null,null,"[ select from dropdown menu ]",null,null,null,null,null,null,null,null,null,null,null,null,null,null,null,null,null,null,null,null,null,null,null,null,null,null,null,null,null,null,null,null,null,null,null,null,null,null,null,null,null,null,null,null,null,null,null,null,null,null,null,null,null,null,null,null,null,null,null,null,null,null,null,null,null,null,null,null,null,null,"D"]
[null,null,null,null,null,null,null,null,null,null,null,null,null,null,null,null,null,null,null,null,null,null,null,null,null,null,null,null,null,null,null,null,null,null,null,null,null,null,null,null,null,null,null,null,null,null,null,null,null,null,null,null,null,null,null,null,null,null,null,null,null,null,null,null,null,null,null,null,null,null,null,null,null,null,null,null,null,null,null,null,null,null,null,null,null,null,null,null,null,null,null,null,null,null,null,null,null,null,null,null,null,null,null,null,null,null,null,null,"D"]
[null,null,null,null,null,null,null,null,null,null,null,null,null,null,null,null,null,null,null,null,null,null,null,null,null,null,null,null,null,null,null,null,null,null,null,null,null,{"$f":"ROW(B186)","v":186},null,null,null,null,null,null,null,null,null,null,null,null,null,null,null,null,null,null,null,null,null,null,null,null,null,null,null,null,null,null,null,null,null,null,null,null,null,null,null,null,null,null,null,null,null,null,null,null,null,null,null,null,null,null,null,null,null,null,null,null,null,null,null,null,null,null,null,null,null,null,"D"]
[]
["b","Did you suffer any accident which rendered you temporarily and / or partially disabled ? If yes please give details.",null,null,null,null,null,null,null,null,null,null,null,null,null,null,null,null,null,null,null,null,null,null,null,null,null,null,null,null,null,null,null,null,null,null,null,"[ select from dropdown menu ]",null,null,null,null,null,null,null,null,null,null,null,null,null,null,null,null,null,null,null,null,null,null,null,null,null,null,null,null,null,null,null,null,null,null,null,null,null,null,null,null,null,null,null,null,null,null,null,null,null,null,null,null,null,null,null,null,null,null,null,null,null,null,null,null,null,null,null,null,null,null,"D"]
[null,null,null,null,null,null,null,null,null,null,null,null,null,null,null,null,null,null,null,null,null,null,null,null,null,null,null,null,null,null,null,null,null,null,null,null,null,null,null,null,null,null,null,null,null,null,null,null,null,null,null,null,null,null,null,null,null,null,null,null,null,null,null,null,null,null,null,null,null,null,null,null,null,null,null,null,null,null,null,null,null,null,null,null,null,null,null,null,null,null,null,null,null,null,null,null,null,null,null,null,null,null,null,null,null,null,null,null,"D"]
[null,null,null,null,null,null,null,null,null,null,null,null,null,null,null,null,null,null,null,null,null,null,null,null,null,null,null,null,null,null,null,null,null,null,null,null,null,null,null,null,null,null,null,null,null,null,null,null,null,null,null,null,null,null,null,null,null,null,null,null,null,null,null,null,null,null,null,null,null,null,null,null,null,null,null,null,null,null,null,null,null,null,null,null,null,null,null,null,null,null,null,null,null,null,null,null,null,null,null,null,null,null,null,null,null,null,null,null,"D"]
[]
["c","Are you currently under medical treatment or taking medication for existing conditions?  If yes please give details",null,null,null,null,null,null,null,null,null,null,null,null,null,null,null,null,null,null,null,null,null,null,null,null,null,null,null,null,null,null,null,null,null,null,null,"[ select from dropdown menu ]",null,null,null,null,null,null,null,null,null,null,null,null,null,null,null,null,null,null,null,null,null,null,null,null,null,null,null,null,null,null,null,null,null,null,null,null,null,null,null,null,null,null,null,null,null,null,null,null,null,null,null,null,null,null,null,null,null,null,null,null,null,null,null,null,null,null,null,null,null,null,"D"]
[null,null,null,null,null,null,null,null,null,null,null,null,null,null,null,null,null,null,null,null,null,null,null,null,null,null,null,null,null,null,null,null,null,null,null,null,null,null,null,null,null,null,null,null,null,null,null,null,null,null,null,null,null,null,null,null,null,null,null,null,null,null,null,null,null,null,null,null,null,null,null,null,null,null,null,null,null,null,null,null,null,null,null,null,null,null,null,null,null,null,null,null,null,null,null,null,null,null,null,null,null,null,null,null,null,null,null,null,"D"]
[null,null,null,null,null,null,null,null,null,null,null,null,null,null,null,null,null,null,null,null,null,null,null,null,null,null,null,null,null,null,null,null,null,null,null,null,null,null,null,null,null,null,null,null,null,null,null,null,null,null,null,null,null,null,null,null,null,null,null,null,null,null,null,null,null,null,null,null,null,null,null,null,null,null,null,null,null,null,null,null,null,null,null,null,null,null,null,null,null,null,null,null,null,null,null,null,null,null,null,null,null,null,null,null,null,null,null,null,"D"]
[]
["d","Did you suffer , or do you presently suffer from any diseases likely to render you unfit for sea service or likely to endager the health of other persons onboard ?",null,null,null,null,null,null,null,null,null,null,null,null,null,null,null,null,null,null,null,null,null,null,null,null,null,null,null,null,null,null,null,null,null,null,null,"[ select from dropdown menu ]"]
[]
[]
["e","Did you ever undergo psychiatric treatment ?",null,null,null,null,null,null,null,null,null,null,null,null,null,null,null,null,null,null,null,null,null,null,null,null,null,null,null,null,null,null,null,null,null,null,null,"[ select from dropdown menu ]"]
[]
["f","Are you addicted to alcohol or drugs of any kind ?",null,null,null,null,null,null,null,null,null,null,null,null,null,null,null,null,null,null,null,null,null,null,null,null,null,null,null,null,null,null,null,null,null,null,null,"[ select from dropdown menu ]"]
[]
["UNION MEMBERSHIP DETAILS "]
[]
[]
[]
[]
[]
[]
[]
[]
[]
[null,"Membership No. [ For Officers]",null,null,null,null,null,null,null,null,null,null,null,null,null,null,null,null,null,null,null,null,null,null,null,"Date",null,null,null,null,null,null,null,null,null,null,null,"[ date format - dd-mmm-yy ]",null,null,null,null,null,null,null,null,null,null,null,null,null,null,null,null,null,null,null,null,null,null,null,null,null,null,null,null,null,null,null,null,null,null,null,null,null,null,null,null,null,null,null,null,null,null,null,null,null,null,null,null,null,null,null,null,null,null,null,null,null,null,null,null,null,null,null,null,null,null,"D"]
[23,"Seaman Registration No. [ For Ratings]",null,null,null,null,null,null,null,null,null,null,null,null,null,null,null,null,null,null,null,null,null,null,null,"Date",null,null,null,null,null,null,null,null,null,null,null,null,null,null,null,null,null,null,null,null,null,null,null,null,null,null,null,null,null,null,null,null,null,null,null,null,null,null,null,null,null,null,null,null,null,null,null,null,null,null,null,null,null,null,null,null,null,null,null,null,null,null,null,null,null,null,null,null,null,null,null,null,null,null,null,null,null,null,null,null,null,null,"D"]
[]
[]
[]
[]
[]
[]
[]
[]
[]
[]
[]
[]
[]
[]
[]
[]
[]
[]
[]
[]
[24,"ADDITIONAL INFORMATION"]
[null,"a.","CARGO'S CARRIED"]
[null,"b.","TRADING PATTERN"]
[null,"c.","NATIONALITIES SAILED WITH"]
[null,"d.","CARGO GEAR'S"]
[null,"e.","COMPUTER SKILL"]
[null,"f.","CARGO GEAR'S"]
[null,"g.","MISCELLANEOUS"]
[]
[25,"REASON FOR LEAVING LAST EMPLOYER"]
[null,"a."]
[null,"b."]
[]
[26,"CONTACTS OF SENIOR OFFICERS SAILED WITH FOR REFERENCE CHECK (NAME & PHONE  NUMBER)"]
[null,null,"Name",null,null,null,null,null,null,null,null,null,null,null,null,null,null,null,null,null,null,null,null,null,null,"Phone Number"]
[null,1]
[null,2]
[null,3]
[]
[27,"HOW DID YOU COME TO KNOW ABOUT US? (Please tick the appropriate medium)       "]
[null,"A","Company presentation/seminar",null,null,null,null,null,null,null,null,null,null,null,"B","Marine Club notice-board",null,null,null,null,null,null,null,null,null,"C","Marine magazine advertisement"]
[null,"D","Newspaper advertisement",null,null,null,null,null,null,null,null,null,null,null,"E","Told by seagoing friend(s)",null,null,null,null,null,null,null,null,null,"F","Direct Mail from Company"]
[null,"G","Others (Please specify)"]
[]
[28,"DECLARATION"]
[null,"I certify that the details given by me in filling up this form are true, complete, and correct to best of my knowledge and belief. I understand that any misrepresentation or material omission made in this application     form or other    documents submitted to West Asia Maritime Ltd may renders me liable for termination or dismissal."]
[]
[]
[null,"Date:",null,null,null,null,null,null,"SIGNATURE OF APPLICANT"]
[]
[null,"An acknowledgement of this application is received."]
[null,"Date:",null,null,null,null,null,null,"SIGNATURE OF APPLICANT"]
[]
[null,"Please hand in, mail or e-mail your application to:"]
[]
[null,"401, Olympia, Hiranandani Gardens, Powai",null,null,null,null,null,null,null,null,null,null,null,null,null,null,null,null,"208, Oriental House, Gulmohar Enclave Commercial Complex"]
[null,"Mumbai - 400 076 ",null,null,null,null,null,null,null,null,null,null,null,null,null,null,null,null,"New Delhi –110 049"]
[null,"Telephone: (022) 5704224         Fax: 91-11- 5704226  ",null,null,null,null,null,null,null,null,null,null,null,null,null,null,null,null,"Telephone: (011) 6510111, 6510222       Fax: 91-11-6960222"]
[]
[]
[null,"6-A, EGA Trade Centre"]
[null,"809, Poonamalle High Road"]
[null,"Kilpauk, Chennai 600 010"]
[null,"Tel: 91-44-26616007/6407"]
[null,"Fax: 91-44-52178054"]
[]
[]
[29,"INITIAL INTERVIEW",null,null,null,null,null,null,null,null,null,"SIGHTED",null,null,null,"CHECKED",null,null,null,"Experience confrmd by interview"]
[null,"Original Licences/Passport/CDC ",null,null,null,null,null,null,null,null,null,null,null,null,null,null,null,null,null,"Details confirmed by Interview."]
[null,"STCW and Training Certificates ",null,null,null,null,null,null,null,null,null,null,null,null,null,null,null,null,null,"References Checked"]
[]
[null,"GRADING",null,null,null,null,"EDUCATION",null,null,null,null,"EXPERIENCE",null,null,null,null,"PERSONALITY",null,null,null,null,"COMMUNICATION",null,null,null,null,null,"POTENTIAL",null,null,null,null,"OVERALL ASSESMENT"]
[null,"Excellent",null,null,null,null,null,null,null,null,null,null,null,null,null,null,null,null,null,null,null,null,null,null,null,null,null,null,null,null,null,null,null,null,null,null,null,null," [ date format - dd-mmm-yy ]",null,null,null,null,null,null,null,null,null,null,null,null,null,null,null,null,null,null,null,null,null,null,null,null,null,null,null,null,null,null,null,null,null,null,null,null,null,null,null,null,null,null,null,null,null,null,null,null,null,null,null,null,null,null,null,null,null,null,null,null,null,null,null,null,null,null,null,null,null,"D"]
[null,"Good",null,null,null,null,null,null,null,null,null,null,null,null,null,null,null,null,null,null,null,null,null,null,null,null,null,null,null,null,null,null,null,null,null,null,null,null,null,null,null,null,null,null,null,null,null,null,null,null,null,null,null,null,null,null,null,null,null,null,null,null,null,null,null,null,null,null,null,null,null,null,null,null,null,null,null,null,null,null,null,null,null,null,null,null,null,null,null,null,null,null,null,null,null,null,null,null,null,null,null,null,null,null,null,null,null,null,"D"]
[null,"Satisfactory",null,null,null,null,null,null,null,null,null,null,null,null,null,null,null,null,null,null,null,null,null,null,null,null,null,null,null,null,null,null,null,null,null,null,null,null,null,null,null,null,null,null,null,null,null,null,null,null,null,null,null,null,null,null,null,null,null,null,null,null,null,null,null,null,null,null,null,null,null,null,null,null,null,null,null,null,null,null,null,null,null,null,null,null,null,null,null,null,null,null,null,null,null,null,null,null,null,null,null,null,null,null,null,null,null,null,"D"]
[null,"Poor",null,null,null,null,null,null,null,null,null,null,null,null,null,null,null,null,null,null,null,null,null,null,null,null,null,null,null,null,null,null,null,null,null,null,null,null,null,null,null,null,null,null,null,null,null,null,null,null,null,null,null,null,null,null,null,null,null,null,null,null,null,null,null,null,null,null,null,null,null,null,null,null,null,null,null,null,null,null,null,null,null,null,null,null,null,null,null,null,null,null,null,null,null,null,null,null,null,null,null,null,null,null,null,null,null,null,"D"]
[]
[null,"Interviewed by:",null,null,null,null,null,null,null,null,null,null,null,null,null,null,null,null,null,null,null,null,null,null,null,null,null,null,null,null,"Date:",null,null,null,null,null,null,null,null,null,null,null,null,null,null,null,null,null,null,null,null,null,null,null,null,null,null,null,null,null,null,null,null,null,null,null,null,null,null,null,null,null,null,null,null,null,null,null,null,null,null,null,null,null,null,null,null,null,null,null,null,null,null,null,null,null,null,null,null,null,null,null,null,null,null,null,null,null,"D"]
[]
[null,"Additional Comments:"]
[]
[]
[]
[]
[null,null,"1. Declare and Affirm"]
[null,null,"1. The information given in application form pages 1 to 4 is true and correct."]
[null,null,"2. I am not addicted to alcohol or any drugs."]
[null,null,"3. I am not aware of any illness or injury will make me deemed unfit for sea service."]
[null,null,"4. I am fully aware and understand that High Tide Ship Management Pvt Ltd., is offerring position on behalf of the principal as agents only."]
[]
[null,null,"5. I have no objections - whatsoever - in High Tide Ship Management Pvt Ltd., approaching and verifying my past records, with any of my previous employers. My previous employers details are given by me in page 4  - in sea experience"]
[]
[]
[]
[null,null,null,null,null,null,null,null,null,null,null," Applicants name and signature ",null,null,null,null,null,null,null,null,null,null,null,"Date:"]
[]
[]
[]
[]
[]
[]
[]
[]
[]
[]
[]
[]
[]
[]
[]
[]
[]
[]
[]
[]
[]
[]
[]
[]
[]
[]
[]
[]
[]
[]
[]
[]
[]
[]
[]
[]
[]
[]
[]
[]
[]
[]
[]
[]
[]
[]
[]
[]
[]
[]
[]
[]
[]
[]
[]
[]
[]
[]
[]
[]
[]
[]
[null,null,null,null,null,null,null,null,null,null,null,null,null,null,null,null,null,null,null,null,null,null,null,null,null,null,null,null,null,null,null,null,null,null,null,null,null,null,null,null,null,null,null,null,null,null,null,null,null,null,null,null,null,null,null,null,null,null,null,null,null,null,null,null,null,null,null,null,null,null,null,null,null,null,null,null,null,null,null,null,null,null,null,null,null,null,null,null,null,null,null,null,null,null,null,null,null,null,null,null,null,null,null,null,null,null,"DROPDOWN BOX",null,null,null,null,null,null,null,null,null,null,null,null,null,null,null,"SEATIME CALCULATION"]
[]
[]
[null,null,null,null,null,null,null,null,null,null,null,null,null,null,null,null,null,null,null,null,null,null,null,null,null,null,null,null,null,null,null,null,null,null,null,null,null,null,null,null,null,null,null,null,null,null,null,null,null,null,null,null,null,null,null,null,null,null,null,null,null,null,null,null,null,null,null,null,null,null,null,null,null,null,null,null,null,null,null,null,null,null,null,null,null,null,null,null,null,null,null,null,null,null,null,null,null,null,null,null,null,null,null,null,null,null,"Single ","Agartala","MASTER","01",null,null,"Australia","Australia",null,"Yes","Support",null,null,null,null,null,{"$f":"DU372/30","v":0},null,{"$f":"DAYS360(AB112,AE112)","v":0},null,{"$f":"ROUNDDOWN(DS372,0)","v":0},null,{"$f":"DS372-DW372","v":0},null,{"$f":"DY372*30","v":0}]
[null,null,null,null,null,null,null,null,null,null,null,null,null,null,null,null,null,null,null,null,null,null,null,null,null,null,null,null,null,null,null,null,null,null,null,null,null,null,null,null,null,null,null,null,null,null,null,null,null,null,null,null,null,null,null,null,null,null,null,null,null,null,null,null,null,null,null,null,null,null,null,null,null,null,null,null,null,null,null,null,null,null,null,null,null,null,null,null,null,null,null,null,null,null,null,null,null,null,null,null,null,null,null,null,null,null,"Married","Agatti","CH.OFFICER","02","January",2007,"Hong Kong","Bahamas",null,"No","Operational",null,null,null,null,null,0,null,{"$f":"DAYS360(AB113,AE113)","v":0},null,{"$f":"ROUNDDOWN(DS373,0)","v":0},null,0,null,{"$f":"DY373*30","v":0}]
[null,null,null,null,null,null,null,null,null,null,null,null,null,null,null,null,null,null,null,null,null,null,null,null,null,null,null,null,null,null,null,null,null,null,null,null,null,null,null,null,null,null,null,null,null,null,null,null,null,null,null,null,null,null,null,null,null,null,null,null,null,null,null,null,null,null,null,null,null,null,null,null,null,null,null,null,null,null,null,null,null,null,null,null,null,null,null,null,null,null,null,null,null,null,null,null,null,null,null,null,null,null,null,null,null,null,"Separated","Agra","2nd OFFICER","03","February",2008,"India","French",null,null,"Management",null,null,null,null,null,0,null,{"$f":"DAYS360(AB114,AE114)","v":0},null,0,null,0,null,0]
[null,null,null,null,null,null,null,null,null,null,null,null,null,null,null,null,null,null,null,null,null,null,null,null,null,null,null,null,null,null,null,null,null,null,null,null,null,null,null,null,null,null,null,null,null,null,null,null,null,null,null,null,null,null,null,null,null,null,null,null,null,null,null,null,null,null,null,null,null,null,null,null,null,null,null,null,null,null,null,null,null,null,null,null,null,null,null,null,null,null,null,null,null,null,null,null,null,null,null,null,null,null,null,null,null,null,"Divorced","Ahmedabad","3rd OFFICER","04","March",2009,"Ireland","Hong Kong",null,null,null,null,null,null,null,null,0,null,0,null,0,null,0,null,0]
[null,null,null,null,null,null,null,null,null,null,null,null,null,null,null,null,null,null,null,null,null,null,null,null,null,null,null,null,null,null,null,null,null,null,null,null,null,null,null,null,null,null,null,null,null,null,null,null,null,null,null,null,null,null,null,null,null,null,null,null,null,null,null,null,null,null,null,null,null,null,null,null,null,null,null,null,null,null,null,null,null,null,null,null,null,null,null,null,null,null,null,null,null,null,null,null,null,null,null,null,null,null,null,null,null,null,"Widowed","Aizwal","Dk. CADET","05","April",2010,"N.Zealand","India",null,null,null,null,null,null,null,null,0,null,0,null,0,null,0,null,0]
[null,null,null,null,null,null,null,null,null,null,null,null,null,null,null,null,null,null,null,null,null,null,null,null,null,null,null,null,null,null,null,null,null,null,null,null,null,null,null,null,null,null,null,null,null,null,null,null,null,null,null,null,null,null,null,null,null,null,null,null,null,null,null,null,null,null,null,null,null,null,null,null,null,null,null,null,null,null,null,null,null,null,null,null,null,null,null,null,null,null,null,null,null,null,null,null,null,null,null,null,null,null,null,null,null,null,null,"Akola","RADIO OFF","06","May",2011,"Singapore","Ireland",null,null,null,null,null,null,null,null,0,null,0,null,0,null,0,null,0]
[null,null,null,null,null,null,null,null,null,null,null,null,null,null,null,null,null,null,null,null,null,null,null,null,null,null,null,null,null,null,null,null,null,null,null,null,null,null,null,null,null,null,null,null,null,null,null,null,null,null,null,null,null,null,null,null,null,null,null,null,null,null,null,null,null,null,null,null,null,null,null,null,null,null,null,null,null,null,null,null,null,null,null,null,null,null,null,null,null,null,null,null,null,null,null,null,null,null,null,null,null,null,null,null,null,null,null,"Allahabad","FAO","07","June",2012,"U.K.","Liberian",null,null,null,null,null,null,null,null,0,null,0,null,0,null,0,null,0]
[null,null,null,null,null,null,null,null,null,null,null,null,null,null,null,null,null,null,null,null,null,null,null,null,null,null,null,null,null,null,null,null,null,null,null,null,null,null,null,null,null,null,null,null,null,null,null,null,null,null,null,null,null,null,null,null,null,null,null,null,null,null,null,null,null,null,null,null,null,null,null,null,null,null,null,null,null,null,null,null,null,null,null,null,null,null,null,null,null,null,null,null,null,null,null,null,null,null,null,null,null,null,null,null,null,null,null,"Amritsar","CH. ENGINEER","08","July",2013,"Other","N.Zealand",null,null,null,null,null,null,null,null,0,null,0,null,0,null,0,null,0]
[null,null,null,null,null,null,null,null,null,null,null,null,null,null,null,null,null,null,null,null,null,null,null,null,null,null,null,null,null,null,null,null,null,null,null,null,null,null,null,null,null,null,null,null,null,null,null,null,null,null,null,null,null,null,null,null,null,null,null,null,null,null,null,null,null,null,null,null,null,null,null,null,null,null,null,null,null,null,null,null,null,null,null,null,null,null,null,null,null,null,null,null,null,null,null,null,null,null,null,null,null,null,null,null,null,null,null,"Arkonam","2nd ENGINEER","09","August",2014,null,"Norwegian",null,null,null,null,null,null,null,null,0,null,0,null,0,null,0,null,0]
[null,null,null,null,null,null,null,null,null,null,null,null,null,null,null,null,null,null,null,null,null,null,null,null,null,null,null,null,null,null,null,null,null,null,null,null,null,null,null,null,null,null,null,null,null,null,null,null,null,null,null,null,null,null,null,null,null,null,null,null,null,null,null,null,null,null,null,null,null,null,null,null,null,null,null,null,null,null,null,null,null,null,null,null,null,null,null,null,null,null,null,null,null,null,null,null,null,null,null,null,null,null,null,null,null,null,null,"Aurangabad","3rd ENGINEER","10","September",2015,null,"Panamanian",null,null,null,null,null,null,null,null,0,null,0,null,0,null,0,null,0]
[null,null,null,null,null,null,null,null,null,null,null,null,null,null,null,null,null,null,null,null,null,null,null,null,null,null,null,null,null,null,null,null,null,null,null,null,null,null,null,null,null,null,null,null,null,null,null,null,null,null,null,null,null,null,null,null,null,null,null,null,null,null,null,null,null,null,null,null,null,null,null,null,null,null,null,null,null,null,null,null,null,null,null,null,null,null,null,null,null,null,null,null,null,null,null,null,null,null,null,null,null,null,null,null,null,null,null,"Baghdogra","4th ENGINEER","11","October",null,null,"Singapore",null,null,null,null,null,null,null,null,0,null,0,null,0,null,0,null,0]
[null,null,null,null,null,null,null,null,null,null,null,null,null,null,null,null,null,null,null,null,null,null,null,null,null,null,null,null,null,null,null,null,null,null,null,null,null,null,null,null,null,null,null,null,null,null,null,null,null,null,null,null,null,null,null,null,null,null,null,null,null,null,null,null,null,null,null,null,null,null,null,null,null,null,null,null,null,null,null,null,null,null,null,null,null,null,null,null,null,null,null,null,null,null,null,null,null,null,null,null,null,null,null,null,null,null,null,"Bangalore","5th ENGINEER","12","November",null,null,"U.K.",null,null,null,null,null,null,null,null,0,null,0,null,0,null,0,null,0]
[null,null,null,null,null,null,null,null,null,null,null,null,null,null,null,null,null,null,null,null,null,null,null,null,null,null,null,null,null,null,null,null,null,null,null,null,null,null,null,null,null,null,null,null,null,null,null,null,null,null,null,null,null,null,null,null,null,null,null,null,null,null,null,null,null,null,null,null,null,null,null,null,null,null,null,null,null,null,null,null,null,null,null,null,null,null,null,null,null,null,null,null,null,null,null,null,null,null,null,null,null,null,null,null,null,null,null,"Bareilly","ENG. CADET","13","December",null,null,"Other",null,null,null,null,null,null,null,null,0,null,0,null,0,null,0,null,0]
[null,null,null,null,null,null,null,null,null,null,null,null,null,null,null,null,null,null,null,null,null,null,null,null,null,null,null,null,null,null,null,null,null,null,null,null,null,null,null,null,null,null,null,null,null,null,null,null,null,null,null,null,null,null,null,null,null,null,null,null,null,null,null,null,null,null,null,null,null,null,null,null,null,null,null,null,null,null,null,null,null,null,null,null,null,null,null,null,null,null,null,null,null,null,null,null,null,null,null,null,null,null,null,null,null,null,null,"Behala","GAS ENGINEER","14",null,null,null,null,null,null,null,null,null,null,null,null,0,null,0,null,0,null,0,null,0]
[null,null,null,null,null,null,null,null,null,null,null,null,null,null,null,null,null,null,null,null,null,null,null,null,null,null,null,null,null,null,null,null,null,null,null,null,null,null,null,null,null,null,null,null,null,null,null,null,null,null,null,null,null,null,null,null,null,null,null,null,null,null,null,null,null,null,null,null,null,null,null,null,null,null,null,null,null,null,null,null,null,null,null,null,null,null,null,null,null,null,null,null,null,null,null,null,null,null,null,null,null,null,null,null,null,null,null,"Belgaum","El. OFFICER","15",null,null,null,null,null,null,null,null,null,null,null,null,0,null,0,null,0,null,0,null,0]
[null,null,null,null,null,null,null,null,null,null,null,null,null,null,null,null,null,null,null,null,null,null,null,null,null,null,null,null,null,null,null,null,null,null,null,null,null,null,null,null,null,null,null,null,null,null,null,null,null,null,null,null,null,null,null,null,null,null,null,null,null,null,null,null,null,null,null,null,null,null,null,null,null,null,null,null,null,null,null,null,null,null,null,null,null,null,null,null,null,null,null,null,null,null,null,null,null,null,null,null,null,null,null,null,null,null,null,"Bhavnagar","ETO","16",null,null,null,null,null,null,null,null,null,null,null,null,0,null,0,null,0,null,0,null,0]
[null,null,null,null,null,null,null,null,null,null,null,null,null,null,null,null,null,null,null,null,null,null,null,null,null,null,null,null,null,null,null,null,null,null,null,null,null,null,null,null,null,null,null,null,null,null,null,null,null,null,null,null,null,null,null,null,null,null,null,null,null,null,null,null,null,null,null,null,null,null,null,null,null,null,null,null,null,null,null,null,null,null,null,null,null,null,null,null,null,null,null,null,null,null,null,null,null,null,null,null,null,null,null,null,null,null,null,"Bhopal","REO","17",null,null,null,null,null,null,null,null,null,null,null,null,0,null,0,null,0,null,0,null,0]
[null,null,null,null,null,null,null,null,null,null,null,null,null,null,null,null,null,null,null,null,null,null,null,null,null,null,null,null,null,null,null,null,null,null,null,null,null,null,null,null,null,null,null,null,null,null,null,null,null,null,null,null,null,null,null,null,null,null,null,null,null,null,null,null,null,null,null,null,null,null,null,null,null,null,null,null,null,null,null,null,null,null,null,null,null,null,null,null,null,null,null,null,null,null,null,null,null,null,null,null,null,null,null,null,null,null,null,"Bhubaneswar","TRAINEE  E/O","18",null,null,null,null,null,null,null,null,null,null,null,null,0,null,0,null,0,null,0,null,0]
[null,null,null,null,null,null,null,null,null,null,null,null,null,null,null,null,null,null,null,null,null,null,null,null,null,null,null,null,null,null,null,null,null,null,null,null,null,null,null,null,null,null,null,null,null,null,null,null,null,null,null,null,null,null,null,null,null,null,null,null,null,null,null,null,null,null,null,null,null,null,null,null,null,null,null,null,null,null,null,null,null,null,null,null,null,null,null,null,null,null,null,null,null,null,null,null,null,null,null,null,null,null,null,null,null,null,null,"Bhuj","BOSUN","19",null,null,null,null,null,null,null,null,null,null,null,null,0,null,0,null,0,null,0,null,0]
[null,null,null,null,null,null,null,null,null,null,null,null,null,null,null,null,null,null,null,null,null,null,null,null,null,null,null,null,null,null,null,null,null,null,null,null,null,null,null,null,null,null,null,null,null,null,null,null,null,null,null,null,null,null,null,null,null,null,null,null,null,null,null,null,null,null,null,null,null,null,null,null,null,null,null,null,null,null,null,null,null,null,null,null,null,null,null,null,null,null,null,null,null,null,null,null,null,null,null,null,null,null,null,null,null,null,null,"Bilaspur","ABLESEAMAN","20",null,null,null,null,null,null,null,null,null,null,null,null,0,null,0,null,0,null,0,null,0]
[null,null,null,null,null,null,null,null,null,null,null,null,null,null,null,null,null,null,null,null,null,null,null,null,null,null,null,null,null,null,null,null,null,null,null,null,null,null,null,null,null,null,null,null,null,null,null,null,null,null,null,null,null,null,null,null,null,null,null,null,null,null,null,null,null,null,null,null,null,null,null,null,null,null,null,null,null,null,null,null,null,null,null,null,null,null,null,null,null,null,null,null,null,null,null,null,null,null,null,null,null,null,null,null,null,null,null,"Calcutta","ORD. SEAMAN","21",null,null,null,null,null,null,null,null,null,null,null,null,{"$f":"DU392/30","v":0},null,0,null,{"$f":"ROUNDDOWN(DS392,0)","v":0},null,{"$f":"DS392-DW392","v":0},null,0]
[null,null,null,null,null,null,null,null,null,null,null,null,null,null,null,null,null,null,null,null,null,null,null,null,null,null,null,null,null,null,null,null,null,null,null,null,null,null,null,null,null,null,null,null,null,null,null,null,null,null,null,null,null,null,null,null,null,null,null,null,null,null,null,null,null,null,null,null,null,null,null,null,null,null,null,null,null,null,null,null,null,null,null,null,null,null,null,null,null,null,null,null,null,null,null,null,null,null,null,null,null,null,null,null,null,null,null,"Calicut","TRAINEE OS","22",null,null,null,null,null,null,null,null,null,null,null,null,{"$f":"DU393/30","v":0},null,{"$f":"DAYS360(AE133,AH133)","v":0},null,0,null,{"$f":"DS393-DW393","v":0},null,0]
[null,null,null,null,null,null,null,null,null,null,null,null,null,null,null,null,null,null,null,null,null,null,null,null,null,null,null,null,null,null,null,null,null,null,null,null,null,null,null,null,null,null,null,null,null,null,null,null,null,null,null,null,null,null,null,null,null,null,null,null,null,null,null,null,null,null,null,null,null,null,null,null,null,null,null,null,null,null,null,null,null,null,null,null,null,null,null,null,null,null,null,null,null,null,null,null,null,null,null,null,null,null,null,null,null,null,null,"Car Nicobar","MOTOR MAN","23",null,null,null,null,null,null,null,null,null,null,null,null,{"$f":"DU394/30","v":{"$error":"#REF!"}},null,{"$f":"DAYS360(#REF!,#REF!)","v":{"$error":"#REF!"}},null,{"$error":"#REF!"},null,{"$f":"DS394-DW394","v":{"$error":"#REF!"}},null,{"$error":"#REF!"}]
[null,null,null,null,null,null,null,null,null,null,null,null,null,null,null,null,null,null,null,null,null,null,null,null,null,null,null,null,null,null,null,null,null,null,null,null,null,null,null,null,null,null,null,null,null,null,null,null,null,null,null,null,null,null,null,null,null,null,null,null,null,null,null,null,null,null,null,null,null,null,null,null,null,null,null,null,null,null,null,null,null,null,null,null,null,null,null,null,null,null,null,null,null,null,null,null,null,null,null,null,null,null,null,null,null,null,null,"Chakulia","OILER","24",null,null,null,null,null,null,null,null,null,null,null,null,{"$f":"DU395/30","v":{"$error":"#REF!"}},null,{"$f":"DAYS360(#REF!,#REF!)","v":{"$error":"#REF!"}},null,{"$error":"#REF!"},null,{"$f":"DS395-DW395","v":{"$error":"#REF!"}},null,{"$error":"#REF!"}]
[null,null,null,null,null,null,null,null,null,null,null,null,null,null,null,null,null,null,null,null,null,null,null,null,null,null,null,null,null,null,null,null,null,null,null,null,null,null,null,null,null,null,null,null,null,null,null,null,null,null,null,null,null,null,null,null,null,null,null,null,null,null,null,null,null,null,null,null,null,null,null,null,null,null,null,null,null,null,null,null,null,null,null,null,null,null,null,null,null,null,null,null,null,null,null,null,null,null,null,null,null,null,null,null,null,null,null,"Chandigarh","WIPER","25",null,null,null,null,null,null,null,null,null,null,null,null,{"$f":"DU396/30","v":{"$error":"#REF!"}},null,{"$f":"DAYS360(#REF!,#REF!)","v":{"$error":"#REF!"}},null,{"$error":"#REF!"},null,{"$f":"DS396-DW396","v":{"$error":"#REF!"}},null,{"$error":"#REF!"}]
[null,null,null,null,null,null,null,null,null,null,null,null,null,null,null,null,null,null,null,null,null,null,null,null,null,null,null,null,null,null,null,null,null,null,null,null,null,null,null,null,null,null,null,null,null,null,null,null,null,null,null,null,null,null,null,null,null,null,null,null,null,null,null,null,null,null,null,null,null,null,null,null,null,null,null,null,null,null,null,null,null,null,null,null,null,null,null,null,null,null,null,null,null,null,null,null,null,null,null,null,null,null,null,null,null,null,null,"Chennai","TRAINEE  WIPER","26"]
[null,null,null,null,null,null,null,null,null,null,null,null,null,null,null,null,null,null,null,null,null,null,null,null,null,null,null,null,null,null,null,null,null,null,null,null,null,null,null,null,null,null,null,null,null,null,null,null,null,null,null,null,null,null,null,null,null,null,null,null,null,null,null,null,null,null,null,null,null,null,null,null,null,null,null,null,null,null,null,null,null,null,null,null,null,null,null,null,null,null,null,null,null,null,null,null,null,null,null,null,null,null,null,null,null,null,null,"Cochin","FITTER","27"]
[null,null,null,null,null,null,null,null,null,null,null,null,null,null,null,null,null,null,null,null,null,null,null,null,null,null,null,null,null,null,null,null,null,null,null,null,null,null,null,null,null,null,null,null,null,null,null,null,null,null,null,null,null,null,null,null,null,null,null,null,null,null,null,null,null,null,null,null,null,null,null,null,null,null,null,null,null,null,null,null,null,null,null,null,null,null,null,null,null,null,null,null,null,null,null,null,null,null,null,null,null,null,null,null,null,null,null,"Coimbatore","TRAINEE FITTER","28"]
[null,null,null,null,null,null,null,null,null,null,null,null,null,null,null,null,null,null,null,null,null,null,null,null,null,null,null,null,null,null,null,null,null,null,null,null,null,null,null,null,null,null,null,null,null,null,null,null,null,null,null,null,null,null,null,null,null,null,null,null,null,null,null,null,null,null,null,null,null,null,null,null,null,null,null,null,null,null,null,null,null,null,null,null,null,null,null,null,null,null,null,null,null,null,null,null,null,null,null,null,null,null,null,null,null,null,null,"Cooch Behar","PUMPMAN","29"]
[null,null,null,null,null,null,null,null,null,null,null,null,null,null,null,null,null,null,null,null,null,null,null,null,null,null,null,null,null,null,null,null,null,null,null,null,null,null,null,null,null,null,null,null,null,null,null,null,null,null,null,null,null,null,null,null,null,null,null,null,null,null,null,null,null,null,null,null,null,null,null,null,null,null,null,null,null,null,null,null,null,null,null,null,null,null,null,null,null,null,null,null,null,null,null,null,null,null,null,null,null,null,null,null,null,null,null,"Deesa","CHIEF COOK","30"]
[null,null,null,null,null,null,null,null,null,null,null,null,null,null,null,null,null,null,null,null,null,null,null,null,null,null,null,null,null,null,null,null,null,null,null,null,null,null,null,null,null,null,null,null,null,null,null,null,null,null,null,null,null,null,null,null,null,null,null,null,null,null,null,null,null,null,null,null,null,null,null,null,null,null,null,null,null,null,null,null,null,null,null,null,null,null,null,null,null,null,null,null,null,null,null,null,null,null,null,null,null,null,null,null,null,null,null,"Dehradun","MESSMAN /GS","31"]
[null,null,null,null,null,null,null,null,null,null,null,null,null,null,null,null,null,null,null,null,null,null,null,null,null,null,null,null,null,null,null,null,null,null,null,null,null,null,null,null,null,null,null,null,null,null,null,null,null,null,null,null,null,null,null,null,null,null,null,null,null,null,null,null,null,null,null,null,null,null,null,null,null,null,null,null,null,null,null,null,null,null,null,null,null,null,null,null,null,null,null,null,null,null,null,null,null,null,null,null,null,null,null,null,null,null,null,"Delhi"]
[null,null,null,null,null,null,null,null,null,null,null,null,null,null,null,null,null,null,null,null,null,null,null,null,null,null,null,null,null,null,null,null,null,null,null,null,null,null,null,null,null,null,null,null,null,null,null,null,null,null,null,null,null,null,null,null,null,null,null,null,null,null,null,null,null,null,null,null,null,null,null,null,null,null,null,null,null,null,null,null,null,null,null,null,null,null,null,null,null,null,null,null,null,null,null,null,null,null,null,null,null,null,null,null,null,null,null,"Delhi"]
[null,null,null,null,null,null,null,null,null,null,null,null,null,null,null,null,null,null,null,null,null,null,null,null,null,null,null,null,null,null,null,null,null,null,null,null,null,null,null,null,null,null,null,null,null,null,null,null,null,null,null,null,null,null,null,null,null,null,null,null,null,null,null,null,null,null,null,null,null,null,null,null,null,null,null,null,null,null,null,null,null,null,null,null,null,null,null,null,null,null,null,null,null,null,null,null,null,null,null,null,null,null,null,null,null,null,null,"Dibrugarh"]
[null,null,null,null,null,null,null,null,null,null,null,null,null,null,null,null,null,null,null,null,null,null,null,null,null,null,null,null,null,null,null,null,null,null,null,null,null,null,null,null,null,null,null,null,null,null,null,null,null,null,null,null,null,null,null,null,null,null,null,null,null,null,null,null,null,null,null,null,null,null,null,null,null,null,null,null,null,null,null,null,null,null,null,null,null,null,null,null,null,null,null,null,null,null,null,null,null,null,null,null,null,null,null,null,null,null,null,"Dimapur"]
[null,null,null,null,null,null,null,null,null,null,null,null,null,null,null,null,null,null,null,null,null,null,null,null,null,null,null,null,null,null,null,null,null,null,null,null,null,null,null,null,null,null,null,null,null,null,null,null,null,null,null,null,null,null,null,null,null,null,null,null,null,null,null,null,null,null,null,null,null,null,null,null,null,null,null,null,null,null,null,null,null,null,null,null,null,null,null,null,null,null,null,null,null,null,null,null,null,null,null,null,null,null,null,null,null,null,null,"Dunakonda"]
[null,null,null,null,null,null,null,null,null,null,null,null,null,null,null,null,null,null,null,null,null,null,null,null,null,null,null,null,null,null,null,null,null,null,null,null,null,null,null,null,null,null,null,null,null,null,null,null,null,null,null,null,null,null,null,null,null,null,null,null,null,null,null,null,null,null,null,null,null,null,null,null,null,null,null,null,null,null,null,null,null,null,null,null,null,null,null,null,null,null,null,null,null,null,null,null,null,null,null,null,null,null,null,null,null,null,null,"Dundigul"]
[null,null,null,null,null,null,null,null,null,null,null,null,null,null,null,null,null,null,null,null,null,null,null,null,null,null,null,null,null,null,null,null,null,null,null,null,null,null,null,null,null,null,null,null,null,null,null,null,null,null,null,null,null,null,null,null,null,null,null,null,null,null,null,null,null,null,null,null,null,null,null,null,null,null,null,null,null,null,null,null,null,null,null,null,null,null,null,null,null,null,null,null,null,null,null,null,null,null,null,null,null,null,null,null,null,null,null,"Gaya"]
[null,null,null,null,null,null,null,null,null,null,null,null,null,null,null,null,null,null,null,null,null,null,null,null,null,null,null,null,null,null,null,null,null,null,null,null,null,null,null,null,null,null,null,null,null,null,null,null,null,null,null,null,null,null,null,null,null,null,null,null,null,null,null,null,null,null,null,null,null,null,null,null,null,null,null,null,null,null,null,null,null,null,null,null,null,null,null,null,null,null,null,null,null,null,null,null,null,null,null,null,null,null,null,null,null,null,null,"Goa"]
[null,null,null,null,null,null,null,null,null,null,null,null,null,null,null,null,null,null,null,null,null,null,null,null,null,null,null,null,null,null,null,null,null,null,null,null,null,null,null,null,null,null,null,null,null,null,null,null,null,null,null,null,null,null,null,null,null,null,null,null,null,null,null,null,null,null,null,null,null,null,null,null,null,null,null,null,null,null,null,null,null,null,null,null,null,null,null,null,null,null,null,null,null,null,null,null,null,null,null,null,null,null,null,null,null,null,null,"Gorakhpur"]
[null,null,null,null,null,null,null,null,null,null,null,null,null,null,null,null,null,null,null,null,null,null,null,null,null,null,null,null,null,null,null,null,null,null,null,null,null,null,null,null,null,null,null,null,null,null,null,null,null,null,null,null,null,null,null,null,null,null,null,null,null,null,null,null,null,null,null,null,null,null,null,null,null,null,null,null,null,null,null,null,null,null,null,null,null,null,null,null,null,null,null,null,null,null,null,null,null,null,null,null,null,null,null,null,null,null,null,"Guwahati"]
[null,null,null,null,null,null,null,null,null,null,null,null,null,null,null,null,null,null,null,null,null,null,null,null,null,null,null,null,null,null,null,null,null,null,null,null,null,null,null,null,null,null,null,null,null,null,null,null,null,null,null,null,null,null,null,null,null,null,null,null,null,null,null,null,null,null,null,null,null,null,null,null,null,null,null,null,null,null,null,null,null,null,null,null,null,null,null,null,null,null,null,null,null,null,null,null,null,null,null,null,null,null,null,null,null,null,null,"Gwalior"]
[null,null,null,null,null,null,null,null,null,null,null,null,null,null,null,null,null,null,null,null,null,null,null,null,null,null,null,null,null,null,null,null,null,null,null,null,null,null,null,null,null,null,null,null,null,null,null,null,null,null,null,null,null,null,null,null,null,null,null,null,null,null,null,null,null,null,null,null,null,null,null,null,null,null,null,null,null,null,null,null,null,null,null,null,null,null,null,null,null,null,null,null,null,null,null,null,null,null,null,null,null,null,null,null,null,null,null,"Hyderabad"]
[null,null,null,null,null,null,null,null,null,null,null,null,null,null,null,null,null,null,null,null,null,null,null,null,null,null,null,null,null,null,null,null,null,null,null,null,null,null,null,null,null,null,null,null,null,null,null,null,null,null,null,null,null,null,null,null,null,null,null,null,null,null,null,null,null,null,null,null,null,null,null,null,null,null,null,null,null,null,null,null,null,null,null,null,null,null,null,null,null,null,null,null,null,null,null,null,null,null,null,null,null,null,null,null,null,null,null,"Imphal"]
[null,null,null,null,null,null,null,null,null,null,null,null,null,null,null,null,null,null,null,null,null,null,null,null,null,null,null,null,null,null,null,null,null,null,null,null,null,null,null,null,null,null,null,null,null,null,null,null,null,null,null,null,null,null,null,null,null,null,null,null,null,null,null,null,null,null,null,null,null,null,null,null,null,null,null,null,null,null,null,null,null,null,null,null,null,null,null,null,null,null,null,null,null,null,null,null,null,null,null,null,null,null,null,null,null,null,null,"Indore"]
[null,null,null,null,null,null,null,null,null,null,null,null,null,null,null,null,null,null,null,null,null,null,null,null,null,null,null,null,null,null,null,null,null,null,null,null,null,null,null,null,null,null,null,null,null,null,null,null,null,null,null,null,null,null,null,null,null,null,null,null,null,null,null,null,null,null,null,null,null,null,null,null,null,null,null,null,null,null,null,null,null,null,null,null,null,null,null,null,null,null,null,null,null,null,null,null,null,null,null,null,null,null,null,null,null,null,null,"Jabalpur"]
[null,null,null,null,null,null,null,null,null,null,null,null,null,null,null,null,null,null,null,null,null,null,null,null,null,null,null,null,null,null,null,null,null,null,null,null,null,null,null,null,null,null,null,null,null,null,null,null,null,null,null,null,null,null,null,null,null,null,null,null,null,null,null,null,null,null,null,null,null,null,null,null,null,null,null,null,null,null,null,null,null,null,null,null,null,null,null,null,null,null,null,null,null,null,null,null,null,null,null,null,null,null,null,null,null,null,null,"Jaipur"]
[null,null,null,null,null,null,null,null,null,null,null,null,null,null,null,null,null,null,null,null,null,null,null,null,null,null,null,null,null,null,null,null,null,null,null,null,null,null,null,null,null,null,null,null,null,null,null,null,null,null,null,null,null,null,null,null,null,null,null,null,null,null,null,null,null,null,null,null,null,null,null,null,null,null,null,null,null,null,null,null,null,null,null,null,null,null,null,null,null,null,null,null,null,null,null,null,null,null,null,null,null,null,null,null,null,null,null,"Jammu"]
[null,null,null,null,null,null,null,null,null,null,null,null,null,null,null,null,null,null,null,null,null,null,null,null,null,null,null,null,null,null,null,null,null,null,null,null,null,null,null,null,null,null,null,null,null,null,null,null,null,null,null,null,null,null,null,null,null,null,null,null,null,null,null,null,null,null,null,null,null,null,null,null,null,null,null,null,null,null,null,null,null,null,null,null,null,null,null,null,null,null,null,null,null,null,null,null,null,null,null,null,null,null,null,null,null,null,null,"Jamnagar"]
[null,null,null,null,null,null,null,null,null,null,null,null,null,null,null,null,null,null,null,null,null,null,null,null,null,null,null,null,null,null,null,null,null,null,null,null,null,null,null,null,null,null,null,null,null,null,null,null,null,null,null,null,null,null,null,null,null,null,null,null,null,null,null,null,null,null,null,null,null,null,null,null,null,null,null,null,null,null,null,null,null,null,null,null,null,null,null,null,null,null,null,null,null,null,null,null,null,null,null,null,null,null,null,null,null,null,null,"Jamshedpur"]
[null,null,null,null,null,null,null,null,null,null,null,null,null,null,null,null,null,null,null,null,null,null,null,null,null,null,null,null,null,null,null,null,null,null,null,null,null,null,null,null,null,null,null,null,null,null,null,null,null,null,null,null,null,null,null,null,null,null,null,null,null,null,null,null,null,null,null,null,null,null,null,null,null,null,null,null,null,null,null,null,null,null,null,null,null,null,null,null,null,null,null,null,null,null,null,null,null,null,null,null,null,null,null,null,null,null,null,"Jhansi"]
[null,null,null,null,null,null,null,null,null,null,null,null,null,null,null,null,null,null,null,null,null,null,null,null,null,null,null,null,null,null,null,null,null,null,null,null,null,null,null,null,null,null,null,null,null,null,null,null,null,null,null,null,null,null,null,null,null,null,null,null,null,null,null,null,null,null,null,null,null,null,null,null,null,null,null,null,null,null,null,null,null,null,null,null,null,null,null,null,null,null,null,null,null,null,null,null,null,null,null,null,null,null,null,null,null,null,null,"Jharsuguda"]
[null,null,null,null,null,null,null,null,null,null,null,null,null,null,null,null,null,null,null,null,null,null,null,null,null,null,null,null,null,null,null,null,null,null,null,null,null,null,null,null,null,null,null,null,null,null,null,null,null,null,null,null,null,null,null,null,null,null,null,null,null,null,null,null,null,null,null,null,null,null,null,null,null,null,null,null,null,null,null,null,null,null,null,null,null,null,null,null,null,null,null,null,null,null,null,null,null,null,null,null,null,null,null,null,null,null,null,"Jodhpur"]
[null,null,null,null,null,null,null,null,null,null,null,null,null,null,null,null,null,null,null,null,null,null,null,null,null,null,null,null,null,null,null,null,null,null,null,null,null,null,null,null,null,null,null,null,null,null,null,null,null,null,null,null,null,null,null,null,null,null,null,null,null,null,null,null,null,null,null,null,null,null,null,null,null,null,null,null,null,null,null,null,null,null,null,null,null,null,null,null,null,null,null,null,null,null,null,null,null,null,null,null,null,null,null,null,null,null,null,"Jogbani"]
[null,null,null,null,null,null,null,null,null,null,null,null,null,null,null,null,null,null,null,null,null,null,null,null,null,null,null,null,null,null,null,null,null,null,null,null,null,null,null,null,null,null,null,null,null,null,null,null,null,null,null,null,null,null,null,null,null,null,null,null,null,null,null,null,null,null,null,null,null,null,null,null,null,null,null,null,null,null,null,null,null,null,null,null,null,null,null,null,null,null,null,null,null,null,null,null,null,null,null,null,null,null,null,null,null,null,null,"Jorhat"]
[null,null,null,null,null,null,null,null,null,null,null,null,null,null,null,null,null,null,null,null,null,null,null,null,null,null,null,null,null,null,null,null,null,null,null,null,null,null,null,null,null,null,null,null,null,null,null,null,null,null,null,null,null,null,null,null,null,null,null,null,null,null,null,null,null,null,null,null,null,null,null,null,null,null,null,null,null,null,null,null,null,null,null,null,null,null,null,null,null,null,null,null,null,null,null,null,null,null,null,null,null,null,null,null,null,null,null,"Kailashahar"]
[null,null,null,null,null,null,null,null,null,null,null,null,null,null,null,null,null,null,null,null,null,null,null,null,null,null,null,null,null,null,null,null,null,null,null,null,null,null,null,null,null,null,null,null,null,null,null,null,null,null,null,null,null,null,null,null,null,null,null,null,null,null,null,null,null,null,null,null,null,null,null,null,null,null,null,null,null,null,null,null,null,null,null,null,null,null,null,null,null,null,null,null,null,null,null,null,null,null,null,null,null,null,null,null,null,null,null,"Kamalpur"]
[null,null,null,null,null,null,null,null,null,null,null,null,null,null,null,null,null,null,null,null,null,null,null,null,null,null,null,null,null,null,null,null,null,null,null,null,null,null,null,null,null,null,null,null,null,null,null,null,null,null,null,null,null,null,null,null,null,null,null,null,null,null,null,null,null,null,null,null,null,null,null,null,null,null,null,null,null,null,null,null,null,null,null,null,null,null,null,null,null,null,null,null,null,null,null,null,null,null,null,null,null,null,null,null,null,null,null,"Kandla"]
[null,null,null,null,null,null,null,null,null,null,null,null,null,null,null,null,null,null,null,null,null,null,null,null,null,null,null,null,null,null,null,null,null,null,null,null,null,null,null,null,null,null,null,null,null,null,null,null,null,null,null,null,null,null,null,null,null,null,null,null,null,null,null,null,null,null,null,null,null,null,null,null,null,null,null,null,null,null,null,null,null,null,null,null,null,null,null,null,null,null,null,null,null,null,null,null,null,null,null,null,null,null,null,null,null,null,null,"Kanpur"]
[null,null,null,null,null,null,null,null,null,null,null,null,null,null,null,null,null,null,null,null,null,null,null,null,null,null,null,null,null,null,null,null,null,null,null,null,null,null,null,null,null,null,null,null,null,null,null,null,null,null,null,null,null,null,null,null,null,null,null,null,null,null,null,null,null,null,null,null,null,null,null,null,null,null,null,null,null,null,null,null,null,null,null,null,null,null,null,null,null,null,null,null,null,null,null,null,null,null,null,null,null,null,null,null,null,null,null,"Keshod"]
[null,null,null,null,null,null,null,null,null,null,null,null,null,null,null,null,null,null,null,null,null,null,null,null,null,null,null,null,null,null,null,null,null,null,null,null,null,null,null,null,null,null,null,null,null,null,null,null,null,null,null,null,null,null,null,null,null,null,null,null,null,null,null,null,null,null,null,null,null,null,null,null,null,null,null,null,null,null,null,null,null,null,null,null,null,null,null,null,null,null,null,null,null,null,null,null,null,null,null,null,null,null,null,null,null,null,null,"Khajuraho"]
[null,null,null,null,null,null,null,null,null,null,null,null,null,null,null,null,null,null,null,null,null,null,null,null,null,null,null,null,null,null,null,null,null,null,null,null,null,null,null,null,null,null,null,null,null,null,null,null,null,null,null,null,null,null,null,null,null,null,null,null,null,null,null,null,null,null,null,null,null,null,null,null,null,null,null,null,null,null,null,null,null,null,null,null,null,null,null,null,null,null,null,null,null,null,null,null,null,null,null,null,null,null,null,null,null,null,null,"Khandwa"]
[null,null,null,null,null,null,null,null,null,null,null,null,null,null,null,null,null,null,null,null,null,null,null,null,null,null,null,null,null,null,null,null,null,null,null,null,null,null,null,null,null,null,null,null,null,null,null,null,null,null,null,null,null,null,null,null,null,null,null,null,null,null,null,null,null,null,null,null,null,null,null,null,null,null,null,null,null,null,null,null,null,null,null,null,null,null,null,null,null,null,null,null,null,null,null,null,null,null,null,null,null,null,null,null,null,null,null,"Kolhapur"]
[null,null,null,null,null,null,null,null,null,null,null,null,null,null,null,null,null,null,null,null,null,null,null,null,null,null,null,null,null,null,null,null,null,null,null,null,null,null,null,null,null,null,null,null,null,null,null,null,null,null,null,null,null,null,null,null,null,null,null,null,null,null,null,null,null,null,null,null,null,null,null,null,null,null,null,null,null,null,null,null,null,null,null,null,null,null,null,null,null,null,null,null,null,null,null,null,null,null,null,null,null,null,null,null,null,null,null,"Town"]
[null,null,null,null,null,null,null,null,null,null,null,null,null,null,null,null,null,null,null,null,null,null,null,null,null,null,null,null,null,null,null,null,null,null,null,null,null,null,null,null,null,null,null,null,null,null,null,null,null,null,null,null,null,null,null,null,null,null,null,null,null,null,null,null,null,null,null,null,null,null,null,null,null,null,null,null,null,null,null,null,null,null,null,null,null,null,null,null,null,null,null,null,null,null,null,null,null,null,null,null,null,null,null,null,null,null,null,"Lucknow"]
[null,null,null,null,null,null,null,null,null,null,null,null,null,null,null,null,null,null,null,null,null,null,null,null,null,null,null,null,null,null,null,null,null,null,null,null,null,null,null,null,null,null,null,null,null,null,null,null,null,null,null,null,null,null,null,null,null,null,null,null,null,null,null,null,null,null,null,null,null,null,null,null,null,null,null,null,null,null,null,null,null,null,null,null,null,null,null,null,null,null,null,null,null,null,null,null,null,null,null,null,null,null,null,null,null,null,null,"Ludhiana"]
[null,null,null,null,null,null,null,null,null,null,null,null,null,null,null,null,null,null,null,null,null,null,null,null,null,null,null,null,null,null,null,null,null,null,null,null,null,null,null,null,null,null,null,null,null,null,null,null,null,null,null,null,null,null,null,null,null,null,null,null,null,null,null,null,null,null,null,null,null,null,null,null,null,null,null,null,null,null,null,null,null,null,null,null,null,null,null,null,null,null,null,null,null,null,null,null,null,null,null,null,null,null,null,null,null,null,null,"Madurai"]
[null,null,null,null,null,null,null,null,null,null,null,null,null,null,null,null,null,null,null,null,null,null,null,null,null,null,null,null,null,null,null,null,null,null,null,null,null,null,null,null,null,null,null,null,null,null,null,null,null,null,null,null,null,null,null,null,null,null,null,null,null,null,null,null,null,null,null,null,null,null,null,null,null,null,null,null,null,null,null,null,null,null,null,null,null,null,null,null,null,null,null,null,null,null,null,null,null,null,null,null,null,null,null,null,null,null,null,"Malda"]
[null,null,null,null,null,null,null,null,null,null,null,null,null,null,null,null,null,null,null,null,null,null,null,null,null,null,null,null,null,null,null,null,null,null,null,null,null,null,null,null,null,null,null,null,null,null,null,null,null,null,null,null,null,null,null,null,null,null,null,null,null,null,null,null,null,null,null,null,null,null,null,null,null,null,null,null,null,null,null,null,null,null,null,null,null,null,null,null,null,null,null,null,null,null,null,null,null,null,null,null,null,null,null,null,null,null,null,"Mangalore"]
[null,null,null,null,null,null,null,null,null,null,null,null,null,null,null,null,null,null,null,null,null,null,null,null,null,null,null,null,null,null,null,null,null,null,null,null,null,null,null,null,null,null,null,null,null,null,null,null,null,null,null,null,null,null,null,null,null,null,null,null,null,null,null,null,null,null,null,null,null,null,null,null,null,null,null,null,null,null,null,null,null,null,null,null,null,null,null,null,null,null,null,null,null,null,null,null,null,null,null,null,null,null,null,null,null,null,null,"Mumbai"]
[null,null,null,null,null,null,null,null,null,null,null,null,null,null,null,null,null,null,null,null,null,null,null,null,null,null,null,null,null,null,null,null,null,null,null,null,null,null,null,null,null,null,null,null,null,null,null,null,null,null,null,null,null,null,null,null,null,null,null,null,null,null,null,null,null,null,null,null,null,null,null,null,null,null,null,null,null,null,null,null,null,null,null,null,null,null,null,null,null,null,null,null,null,null,null,null,null,null,null,null,null,null,null,null,null,null,null,"Muzaffarpur"]
[null,null,null,null,null,null,null,null,null,null,null,null,null,null,null,null,null,null,null,null,null,null,null,null,null,null,null,null,null,null,null,null,null,null,null,null,null,null,null,null,null,null,null,null,null,null,null,null,null,null,null,null,null,null,null,null,null,null,null,null,null,null,null,null,null,null,null,null,null,null,null,null,null,null,null,null,null,null,null,null,null,null,null,null,null,null,null,null,null,null,null,null,null,null,null,null,null,null,null,null,null,null,null,null,null,null,null,"Mysore"]
[null,null,null,null,null,null,null,null,null,null,null,null,null,null,null,null,null,null,null,null,null,null,null,null,null,null,null,null,null,null,null,null,null,null,null,null,null,null,null,null,null,null,null,null,null,null,null,null,null,null,null,null,null,null,null,null,null,null,null,null,null,null,null,null,null,null,null,null,null,null,null,null,null,null,null,null,null,null,null,null,null,null,null,null,null,null,null,null,null,null,null,null,null,null,null,null,null,null,null,null,null,null,null,null,null,null,null,"Nagpur"]
[null,null,null,null,null,null,null,null,null,null,null,null,null,null,null,null,null,null,null,null,null,null,null,null,null,null,null,null,null,null,null,null,null,null,null,null,null,null,null,null,null,null,null,null,null,null,null,null,null,null,null,null,null,null,null,null,null,null,null,null,null,null,null,null,null,null,null,null,null,null,null,null,null,null,null,null,null,null,null,null,null,null,null,null,null,null,null,null,null,null,null,null,null,null,null,null,null,null,null,null,null,null,null,null,null,null,null,"Nanded"]
[null,null,null,null,null,null,null,null,null,null,null,null,null,null,null,null,null,null,null,null,null,null,null,null,null,null,null,null,null,null,null,null,null,null,null,null,null,null,null,null,null,null,null,null,null,null,null,null,null,null,null,null,null,null,null,null,null,null,null,null,null,null,null,null,null,null,null,null,null,null,null,null,null,null,null,null,null,null,null,null,null,null,null,null,null,null,null,null,null,null,null,null,null,null,null,null,null,null,null,null,null,null,null,null,null,null,null,"North Lakhimpur"]
[null,null,null,null,null,null,null,null,null,null,null,null,null,null,null,null,null,null,null,null,null,null,null,null,null,null,null,null,null,null,null,null,null,null,null,null,null,null,null,null,null,null,null,null,null,null,null,null,null,null,null,null,null,null,null,null,null,null,null,null,null,null,null,null,null,null,null,null,null,null,null,null,null,null,null,null,null,null,null,null,null,null,null,null,null,null,null,null,null,null,null,null,null,null,null,null,null,null,null,null,null,null,null,null,null,null,null,"Ozar"]
[null,null,null,null,null,null,null,null,null,null,null,null,null,null,null,null,null,null,null,null,null,null,null,null,null,null,null,null,null,null,null,null,null,null,null,null,null,null,null,null,null,null,null,null,null,null,null,null,null,null,null,null,null,null,null,null,null,null,null,null,null,null,null,null,null,null,null,null,null,null,null,null,null,null,null,null,null,null,null,null,null,null,null,null,null,null,null,null,null,null,null,null,null,null,null,null,null,null,null,null,null,null,null,null,null,null,null,"Panagarh"]
[null,null,null,null,null,null,null,null,null,null,null,null,null,null,null,null,null,null,null,null,null,null,null,null,null,null,null,null,null,null,null,null,null,null,null,null,null,null,null,null,null,null,null,null,null,null,null,null,null,null,null,null,null,null,null,null,null,null,null,null,null,null,null,null,null,null,null,null,null,null,null,null,null,null,null,null,null,null,null,null,null,null,null,null,null,null,null,null,null,null,null,null,null,null,null,null,null,null,null,null,null,null,null,null,null,null,null,"Panna"]
[null,null,null,null,null,null,null,null,null,null,null,null,null,null,null,null,null,null,null,null,null,null,null,null,null,null,null,null,null,null,null,null,null,null,null,null,null,null,null,null,null,null,null,null,null,null,null,null,null,null,null,null,null,null,null,null,null,null,null,null,null,null,null,null,null,null,null,null,null,null,null,null,null,null,null,null,null,null,null,null,null,null,null,null,null,null,null,null,null,null,null,null,null,null,null,null,null,null,null,null,null,null,null,null,null,null,null,"Pantnagar"]
[null,null,null,null,null,null,null,null,null,null,null,null,null,null,null,null,null,null,null,null,null,null,null,null,null,null,null,null,null,null,null,null,null,null,null,null,null,null,null,null,null,null,null,null,null,null,null,null,null,null,null,null,null,null,null,null,null,null,null,null,null,null,null,null,null,null,null,null,null,null,null,null,null,null,null,null,null,null,null,null,null,null,null,null,null,null,null,null,null,null,null,null,null,null,null,null,null,null,null,null,null,null,null,null,null,null,null,"Pasighat"]
[null,null,null,null,null,null,null,null,null,null,null,null,null,null,null,null,null,null,null,null,null,null,null,null,null,null,null,null,null,null,null,null,null,null,null,null,null,null,null,null,null,null,null,null,null,null,null,null,null,null,null,null,null,null,null,null,null,null,null,null,null,null,null,null,null,null,null,null,null,null,null,null,null,null,null,null,null,null,null,null,null,null,null,null,null,null,null,null,null,null,null,null,null,null,null,null,null,null,null,null,null,null,null,null,null,null,null,"Pathankot"]
[null,null,null,null,null,null,null,null,null,null,null,null,null,null,null,null,null,null,null,null,null,null,null,null,null,null,null,null,null,null,null,null,null,null,null,null,null,null,null,null,null,null,null,null,null,null,null,null,null,null,null,null,null,null,null,null,null,null,null,null,null,null,null,null,null,null,null,null,null,null,null,null,null,null,null,null,null,null,null,null,null,null,null,null,null,null,null,null,null,null,null,null,null,null,null,null,null,null,null,null,null,null,null,null,null,null,null,"Patna"]
[null,null,null,null,null,null,null,null,null,null,null,null,null,null,null,null,null,null,null,null,null,null,null,null,null,null,null,null,null,null,null,null,null,null,null,null,null,null,null,null,null,null,null,null,null,null,null,null,null,null,null,null,null,null,null,null,null,null,null,null,null,null,null,null,null,null,null,null,null,null,null,null,null,null,null,null,null,null,null,null,null,null,null,null,null,null,null,null,null,null,null,null,null,null,null,null,null,null,null,null,null,null,null,null,null,null,null,"Pondicherry"]
[null,null,null,null,null,null,null,null,null,null,null,null,null,null,null,null,null,null,null,null,null,null,null,null,null,null,null,null,null,null,null,null,null,null,null,null,null,null,null,null,null,null,null,null,null,null,null,null,null,null,null,null,null,null,null,null,null,null,null,null,null,null,null,null,null,null,null,null,null,null,null,null,null,null,null,null,null,null,null,null,null,null,null,null,null,null,null,null,null,null,null,null,null,null,null,null,null,null,null,null,null,null,null,null,null,null,null,"Porbandar"]
[null,null,null,null,null,null,null,null,null,null,null,null,null,null,null,null,null,null,null,null,null,null,null,null,null,null,null,null,null,null,null,null,null,null,null,null,null,null,null,null,null,null,null,null,null,null,null,null,null,null,null,null,null,null,null,null,null,null,null,null,null,null,null,null,null,null,null,null,null,null,null,null,null,null,null,null,null,null,null,null,null,null,null,null,null,null,null,null,null,null,null,null,null,null,null,null,null,null,null,null,null,null,null,null,null,null,null,"Port Blair"]
[null,null,null,null,null,null,null,null,null,null,null,null,null,null,null,null,null,null,null,null,null,null,null,null,null,null,null,null,null,null,null,null,null,null,null,null,null,null,null,null,null,null,null,null,null,null,null,null,null,null,null,null,null,null,null,null,null,null,null,null,null,null,null,null,null,null,null,null,null,null,null,null,null,null,null,null,null,null,null,null,null,null,null,null,null,null,null,null,null,null,null,null,null,null,null,null,null,null,null,null,null,null,null,null,null,null,null,"Prasanthinilayam"]
[null,null,null,null,null,null,null,null,null,null,null,null,null,null,null,null,null,null,null,null,null,null,null,null,null,null,null,null,null,null,null,null,null,null,null,null,null,null,null,null,null,null,null,null,null,null,null,null,null,null,null,null,null,null,null,null,null,null,null,null,null,null,null,null,null,null,null,null,null,null,null,null,null,null,null,null,null,null,null,null,null,null,null,null,null,null,null,null,null,null,null,null,null,null,null,null,null,null,null,null,null,null,null,null,null,null,null,"Pune"]
[null,null,null,null,null,null,null,null,null,null,null,null,null,null,null,null,null,null,null,null,null,null,null,null,null,null,null,null,null,null,null,null,null,null,null,null,null,null,null,null,null,null,null,null,null,null,null,null,null,null,null,null,null,null,null,null,null,null,null,null,null,null,null,null,null,null,null,null,null,null,null,null,null,null,null,null,null,null,null,null,null,null,null,null,null,null,null,null,null,null,null,null,null,null,null,null,null,null,null,null,null,null,null,null,null,null,null,"Town"]
[null,null,null,null,null,null,null,null,null,null,null,null,null,null,null,null,null,null,null,null,null,null,null,null,null,null,null,null,null,null,null,null,null,null,null,null,null,null,null,null,null,null,null,null,null,null,null,null,null,null,null,null,null,null,null,null,null,null,null,null,null,null,null,null,null,null,null,null,null,null,null,null,null,null,null,null,null,null,null,null,null,null,null,null,null,null,null,null,null,null,null,null,null,null,null,null,null,null,null,null,null,null,null,null,null,null,null,"Raipur"]
[null,null,null,null,null,null,null,null,null,null,null,null,null,null,null,null,null,null,null,null,null,null,null,null,null,null,null,null,null,null,null,null,null,null,null,null,null,null,null,null,null,null,null,null,null,null,null,null,null,null,null,null,null,null,null,null,null,null,null,null,null,null,null,null,null,null,null,null,null,null,null,null,null,null,null,null,null,null,null,null,null,null,null,null,null,null,null,null,null,null,null,null,null,null,null,null,null,null,null,null,null,null,null,null,null,null,null,"Rajahmundry"]
[null,null,null,null,null,null,null,null,null,null,null,null,null,null,null,null,null,null,null,null,null,null,null,null,null,null,null,null,null,null,null,null,null,null,null,null,null,null,null,null,null,null,null,null,null,null,null,null,null,null,null,null,null,null,null,null,null,null,null,null,null,null,null,null,null,null,null,null,null,null,null,null,null,null,null,null,null,null,null,null,null,null,null,null,null,null,null,null,null,null,null,null,null,null,null,null,null,null,null,null,null,null,null,null,null,null,null,"Rajkot"]
[null,null,null,null,null,null,null,null,null,null,null,null,null,null,null,null,null,null,null,null,null,null,null,null,null,null,null,null,null,null,null,null,null,null,null,null,null,null,null,null,null,null,null,null,null,null,null,null,null,null,null,null,null,null,null,null,null,null,null,null,null,null,null,null,null,null,null,null,null,null,null,null,null,null,null,null,null,null,null,null,null,null,null,null,null,null,null,null,null,null,null,null,null,null,null,null,null,null,null,null,null,null,null,null,null,null,null,"Ranchi"]
[null,null,null,null,null,null,null,null,null,null,null,null,null,null,null,null,null,null,null,null,null,null,null,null,null,null,null,null,null,null,null,null,null,null,null,null,null,null,null,null,null,null,null,null,null,null,null,null,null,null,null,null,null,null,null,null,null,null,null,null,null,null,null,null,null,null,null,null,null,null,null,null,null,null,null,null,null,null,null,null,null,null,null,null,null,null,null,null,null,null,null,null,null,null,null,null,null,null,null,null,null,null,null,null,null,null,null,"Ratnagiri"]
[null,null,null,null,null,null,null,null,null,null,null,null,null,null,null,null,null,null,null,null,null,null,null,null,null,null,null,null,null,null,null,null,null,null,null,null,null,null,null,null,null,null,null,null,null,null,null,null,null,null,null,null,null,null,null,null,null,null,null,null,null,null,null,null,null,null,null,null,null,null,null,null,null,null,null,null,null,null,null,null,null,null,null,null,null,null,null,null,null,null,null,null,null,null,null,null,null,null,null,null,null,null,null,null,null,null,null,"Raxaul"]
[null,null,null,null,null,null,null,null,null,null,null,null,null,null,null,null,null,null,null,null,null,null,null,null,null,null,null,null,null,null,null,null,null,null,null,null,null,null,null,null,null,null,null,null,null,null,null,null,null,null,null,null,null,null,null,null,null,null,null,null,null,null,null,null,null,null,null,null,null,null,null,null,null,null,null,null,null,null,null,null,null,null,null,null,null,null,null,null,null,null,null,null,null,null,null,null,null,null,null,null,null,null,null,null,null,null,null,"Rourkela"]
[null,null,null,null,null,null,null,null,null,null,null,null,null,null,null,null,null,null,null,null,null,null,null,null,null,null,null,null,null,null,null,null,null,null,null,null,null,null,null,null,null,null,null,null,null,null,null,null,null,null,null,null,null,null,null,null,null,null,null,null,null,null,null,null,null,null,null,null,null,null,null,null,null,null,null,null,null,null,null,null,null,null,null,null,null,null,null,null,null,null,null,null,null,null,null,null,null,null,null,null,null,null,null,null,null,null,null,"Rupsi"]
[null,null,null,null,null,null,null,null,null,null,null,null,null,null,null,null,null,null,null,null,null,null,null,null,null,null,null,null,null,null,null,null,null,null,null,null,null,null,null,null,null,null,null,null,null,null,null,null,null,null,null,null,null,null,null,null,null,null,null,null,null,null,null,null,null,null,null,null,null,null,null,null,null,null,null,null,null,null,null,null,null,null,null,null,null,null,null,null,null,null,null,null,null,null,null,null,null,null,null,null,null,null,null,null,null,null,null,"Salem"]
[null,null,null,null,null,null,null,null,null,null,null,null,null,null,null,null,null,null,null,null,null,null,null,null,null,null,null,null,null,null,null,null,null,null,null,null,null,null,null,null,null,null,null,null,null,null,null,null,null,null,null,null,null,null,null,null,null,null,null,null,null,null,null,null,null,null,null,null,null,null,null,null,null,null,null,null,null,null,null,null,null,null,null,null,null,null,null,null,null,null,null,null,null,null,null,null,null,null,null,null,null,null,null,null,null,null,null,"Satna"]
[null,null,null,null,null,null,null,null,null,null,null,null,null,null,null,null,null,null,null,null,null,null,null,null,null,null,null,null,null,null,null,null,null,null,null,null,null,null,null,null,null,null,null,null,null,null,null,null,null,null,null,null,null,null,null,null,null,null,null,null,null,null,null,null,null,null,null,null,null,null,null,null,null,null,null,null,null,null,null,null,null,null,null,null,null,null,null,null,null,null,null,null,null,null,null,null,null,null,null,null,null,null,null,null,null,null,null,"Shella"]
[null,null,null,null,null,null,null,null,null,null,null,null,null,null,null,null,null,null,null,null,null,null,null,null,null,null,null,null,null,null,null,null,null,null,null,null,null,null,null,null,null,null,null,null,null,null,null,null,null,null,null,null,null,null,null,null,null,null,null,null,null,null,null,null,null,null,null,null,null,null,null,null,null,null,null,null,null,null,null,null,null,null,null,null,null,null,null,null,null,null,null,null,null,null,null,null,null,null,null,null,null,null,null,null,null,null,null,"Shillong"]
[null,null,null,null,null,null,null,null,null,null,null,null,null,null,null,null,null,null,null,null,null,null,null,null,null,null,null,null,null,null,null,null,null,null,null,null,null,null,null,null,null,null,null,null,null,null,null,null,null,null,null,null,null,null,null,null,null,null,null,null,null,null,null,null,null,null,null,null,null,null,null,null,null,null,null,null,null,null,null,null,null,null,null,null,null,null,null,null,null,null,null,null,null,null,null,null,null,null,null,null,null,null,null,null,null,null,null,"Shimla"]
[null,null,null,null,null,null,null,null,null,null,null,null,null,null,null,null,null,null,null,null,null,null,null,null,null,null,null,null,null,null,null,null,null,null,null,null,null,null,null,null,null,null,null,null,null,null,null,null,null,null,null,null,null,null,null,null,null,null,null,null,null,null,null,null,null,null,null,null,null,null,null,null,null,null,null,null,null,null,null,null,null,null,null,null,null,null,null,null,null,null,null,null,null,null,null,null,null,null,null,null,null,null,null,null,null,null,null,"Sholapur"]
[null,null,null,null,null,null,null,null,null,null,null,null,null,null,null,null,null,null,null,null,null,null,null,null,null,null,null,null,null,null,null,null,null,null,null,null,null,null,null,null,null,null,null,null,null,null,null,null,null,null,null,null,null,null,null,null,null,null,null,null,null,null,null,null,null,null,null,null,null,null,null,null,null,null,null,null,null,null,null,null,null,null,null,null,null,null,null,null,null,null,null,null,null,null,null,null,null,null,null,null,null,null,null,null,null,null,null,"Silchar"]
[null,null,null,null,null,null,null,null,null,null,null,null,null,null,null,null,null,null,null,null,null,null,null,null,null,null,null,null,null,null,null,null,null,null,null,null,null,null,null,null,null,null,null,null,null,null,null,null,null,null,null,null,null,null,null,null,null,null,null,null,null,null,null,null,null,null,null,null,null,null,null,null,null,null,null,null,null,null,null,null,null,null,null,null,null,null,null,null,null,null,null,null,null,null,null,null,null,null,null,null,null,null,null,null,null,null,null,"Srinagar"]
[null,null,null,null,null,null,null,null,null,null,null,null,null,null,null,null,null,null,null,null,null,null,null,null,null,null,null,null,null,null,null,null,null,null,null,null,null,null,null,null,null,null,null,null,null,null,null,null,null,null,null,null,null,null,null,null,null,null,null,null,null,null,null,null,null,null,null,null,null,null,null,null,null,null,null,null,null,null,null,null,null,null,null,null,null,null,null,null,null,null,null,null,null,null,null,null,null,null,null,null,null,null,null,null,null,null,null,"Tambaram"]
[null,null,null,null,null,null,null,null,null,null,null,null,null,null,null,null,null,null,null,null,null,null,null,null,null,null,null,null,null,null,null,null,null,null,null,null,null,null,null,null,null,null,null,null,null,null,null,null,null,null,null,null,null,null,null,null,null,null,null,null,null,null,null,null,null,null,null,null,null,null,null,null,null,null,null,null,null,null,null,null,null,null,null,null,null,null,null,null,null,null,null,null,null,null,null,null,null,null,null,null,null,null,null,null,null,null,null,"Tanjore"]
[null,null,null,null,null,null,null,null,null,null,null,null,null,null,null,null,null,null,null,null,null,null,null,null,null,null,null,null,null,null,null,null,null,null,null,null,null,null,null,null,null,null,null,null,null,null,null,null,null,null,null,null,null,null,null,null,null,null,null,null,null,null,null,null,null,null,null,null,null,null,null,null,null,null,null,null,null,null,null,null,null,null,null,null,null,null,null,null,null,null,null,null,null,null,null,null,null,null,null,null,null,null,null,null,null,null,null,"Tiruchirappalli"]
[null,null,null,null,null,null,null,null,null,null,null,null,null,null,null,null,null,null,null,null,null,null,null,null,null,null,null,null,null,null,null,null,null,null,null,null,null,null,null,null,null,null,null,null,null,null,null,null,null,null,null,null,null,null,null,null,null,null,null,null,null,null,null,null,null,null,null,null,null,null,null,null,null,null,null,null,null,null,null,null,null,null,null,null,null,null,null,null,null,null,null,null,null,null,null,null,null,null,null,null,null,null,null,null,null,null,null,"Tirupati"]
[null,null,null,null,null,null,null,null,null,null,null,null,null,null,null,null,null,null,null,null,null,null,null,null,null,null,null,null,null,null,null,null,null,null,null,null,null,null,null,null,null,null,null,null,null,null,null,null,null,null,null,null,null,null,null,null,null,null,null,null,null,null,null,null,null,null,null,null,null,null,null,null,null,null,null,null,null,null,null,null,null,null,null,null,null,null,null,null,null,null,null,null,null,null,null,null,null,null,null,null,null,null,null,null,null,null,null,"Trivandrum"]
[null,null,null,null,null,null,null,null,null,null,null,null,null,null,null,null,null,null,null,null,null,null,null,null,null,null,null,null,null,null,null,null,null,null,null,null,null,null,null,null,null,null,null,null,null,null,null,null,null,null,null,null,null,null,null,null,null,null,null,null,null,null,null,null,null,null,null,null,null,null,null,null,null,null,null,null,null,null,null,null,null,null,null,null,null,null,null,null,null,null,null,null,null,null,null,null,null,null,null,null,null,null,null,null,null,null,null,"Udaipur"]
[null,null,null,null,null,null,null,null,null,null,null,null,null,null,null,null,null,null,null,null,null,null,null,null,null,null,null,null,null,null,null,null,null,null,null,null,null,null,null,null,null,null,null,null,null,null,null,null,null,null,null,null,null,null,null,null,null,null,null,null,null,null,null,null,null,null,null,null,null,null,null,null,null,null,null,null,null,null,null,null,null,null,null,null,null,null,null,null,null,null,null,null,null,null,null,null,null,null,null,null,null,null,null,null,null,null,null,"Vadodara"]
[null,null,null,null,null,null,null,null,null,null,null,null,null,null,null,null,null,null,null,null,null,null,null,null,null,null,null,null,null,null,null,null,null,null,null,null,null,null,null,null,null,null,null,null,null,null,null,null,null,null,null,null,null,null,null,null,null,null,null,null,null,null,null,null,null,null,null,null,null,null,null,null,null,null,null,null,null,null,null,null,null,null,null,null,null,null,null,null,null,null,null,null,null,null,null,null,null,null,null,null,null,null,null,null,null,null,null,"Varanasi"]
[null,null,null,null,null,null,null,null,null,null,null,null,null,null,null,null,null,null,null,null,null,null,null,null,null,null,null,null,null,null,null,null,null,null,null,null,null,null,null,null,null,null,null,null,null,null,null,null,null,null,null,null,null,null,null,null,null,null,null,null,null,null,null,null,null,null,null,null,null,null,null,null,null,null,null,null,null,null,null,null,null,null,null,null,null,null,null,null,null,null,null,null,null,null,null,null,null,null,null,null,null,null,null,null,null,null,null,"Vijayawada"]
[null,null,null,null,null,null,null,null,null,null,null,null,null,null,null,null,null,null,null,null,null,null,null,null,null,null,null,null,null,null,null,null,null,null,null,null,null,null,null,null,null,null,null,null,null,null,null,null,null,null,null,null,null,null,null,null,null,null,null,null,null,null,null,null,null,null,null,null,null,null,null,null,null,null,null,null,null,null,null,null,null,null,null,null,null,null,null,null,null,null,null,null,null,null,null,null,null,null,null,null,null,null,null,null,null,null,null,"Vishakhapatnam"]
[null,null,null,null,null,null,null,null,null,null,null,null,null,null,null,null,null,null,null,null,null,null,null,null,null,null,null,null,null,null,null,null,null,null,null,null,null,null,null,null,null,null,null,null,null,null,null,null,null,null,null,null,null,null,null,null,null,null,null,null,null,null,null,null,null,null,null,null,null,null,null,null,null,null,null,null,null,null,null,null,null,null,null,null,null,null,null,null,null,null,null,null,null,null,null,null,null,null,null,null,null,null,null,null,null,null,null,"Warangal"]
[null,null,null,null,null,null,null,null,null,null,null,null,null,null,null,null,null,null,null,null,null,null,null,null,null,null,null,null,null,null,null,null,null,null,null,null,null,null,null,null,null,null,null,null,null,null,null,null,null,null,null,null,null,null,null,null,null,null,null,null,null,null,null,null,null,null,null,null,null,null,null,null,null,null,null,null,null,null,null,null,null,null,null,null,null,null,null,null,null,null,null,null,null,null,null,null,null,null,null,null,null,null,null,null,null,null,null,"Yelahanka"]

{"sheet":"Sheet2","index":1,"n_rows":2,"n_cols":1,"rows_kept":2,"cut":false,"hidden":false,"merged":[[25,0,25,35],[18,0,18,35],[19,0,19,35],[13,0,13,35],[15,0,15,35],[16,0,16,35],[17,0,17,35],[20,0,20,35],[21,0,21,35],[22,0,22,35],[23,0,23,35],[24,0,24,35],[44,0,44,35],[49,0,49,35],[45,0,45,35],[48,0,48,35],[32,0,32,35],[33,0,33,35],[38,0,38,35],[39,0,39,35],[40,0,40,35],[41,0,41,35],[55,0,55,35],[0,0,0,35],[51,0,51,35],[52,0,52,35],[53,0,53,35],[11,0,11,35],[12,0,12,35],[46,0,46,35],[47,0,47,35],[7,0,7,35],[54,0,54,35],[1,0,3,35],[4,0,4,35],[5,0,5,35],[6,0,6,35],[50,0,50,35],[8,0,8,35],[42,0,42,35],[43,0,43,35],[36,0,36,35],[37,0,37,35],[28,0,28,35],[29,0,29,35],[30,0,30,35],[31,0,31,35],[9,0,9,35],[34,0,34,35],[35,0,35,35],[10,0,10,35],[14,0,14,35],[26,0,26,35],[27,0,27,35]]}
["CANDIDATES SUMMARY OF KNOWLEDGE AND EXPERIENCE  CONTD."]
["SUMMARY OF KNOWLEDGE AND EXPERIENCE ACQUIRED [Give a brief resume of your Career and Experience at Sea, e.g. Type of Ships, Engines, Specific Trades (E.G. ICE / Lighterage etc.), reactivation, New Buildings, Shore Experience, Computer Knowledge etc.]  \n"]

{"sheet":"New Applicant","index":2,"n_rows":1081,"n_cols":256,"rows_kept":1081,"cut":false,"hidden":false,"merged":[]}
[null,null,null,null,null,null,null,null,null,null,null,null,null,null,null,null,null,null,null,null,null,null,null,null,null,null,null,null,"$AC$2:$AC$37","$AD$2:$AD$362","$AE$2:$AE$275",null,"$AG$2:$AG$390","$AH$2:$AH$201","$AI$2:$AI$201","$AJ$2:$AJ$6","$AK$2:$AK$8","$AL$2:$AL$91","$AM$2:$AM$45","$AN$2:$AN$8","$AO$2:$AO$28","$AP$2:$AP$26","$AQ$2:$AQ$201","$AR$2:$AR$2",null,"$AT$2:$AT$37","$AU$2:$AU$187","$AV$2:$AV$17","$AW$2:$AW$503",null,null,"$AZ$2:$AZ$5"]
[null,null,null,null,null,null,null,null,null,null,null,null,null,null,null,null,null,null,null,null,null,null,null,null,null,null,null,null,"2ND COOK","11G0000419","AB",null,"AALBORG","ALBANIAN","ALBANIAN","CHRISTIAN","COMPANION","AKASAK","AHTS","BAHAMAS","AUNT","ARABIC","ALBANIA",null,null,"2ND COOK","ADP","COMPASSIONATE GROUND","10 AL 25",null,null,"NONE",null,null,null,null,null,null,null,null,null,null,null,null,null,null,null,null,null,null,null,null,null,null,null,null,null,null,null,null,null,null,null,null,null,null,null,null,null,null,null,null,null,null,null,null,null,null,null,null,null,null,null,null,null,null,null,null,null,null,null,null,null,null,null,null,null,null,null,null,null,null,null,null,null,null,null,null,null,null,null,null,null,null,null,null,null,null,null,null,null,null,null,null,null,null,null,null,null,null,null,null,null,null,null,null,null,null,null,null,null,null,null,null,null,null,null,null,null,null,null,null,null,null,null,null,null,null,null,null,null,null,null,null,null,null,null,null,null,null,null,null,null,null,null,null,null,null,null,null,null,null,null,null,null,null,null,null,null,null,null,null,null,null,null,null,null,null,null,null,null,null,null,null,null,null,null,null,null,null,null,null,null,null,null,null,null,null,null,null,null,null,null,null,null,null,null,null,null,null,null,null,null,null,null,"Yes"]
[null,null,null,null,null,null,null,null,null,null,null,null,null,null,null,null,null,null,null,null,null,null,null,null,null,null,null,null,"2ND ENGINEER","1ST CLASS MASTER","ADV. GAS TANKER SAFETY COURSE",null,"AALESUND","ALGERIA","ALGERIA","HINDU","DIVORCED","AKASAKA MITSUBISHI","AHTS TUG/UTILITY","BELIZE","BROTHER","BENGALI","ALGERIA",null,null,"2ND ENGINEER","AED","COMPLANY REQUEST","10 RND 68",null,null,"POOR",null,null,null,null,null,null,null,null,null,null,null,null,null,null,null,null,null,null,null,null,null,null,null,null,null,null,null,null,null,null,null,null,null,null,null,null,null,null,null,null,null,null,null,null,null,null,null,null,null,null,null,null,null,null,null,null,null,null,null,null,null,null,null,null,null,null,null,null,null,null,null,null,null,null,null,null,null,null,null,null,null,null,null,null,null,null,null,null,null,null,null,null,null,null,null,null,null,null,null,null,null,null,null,null,null,null,null,null,null,null,null,null,null,null,null,null,null,null,null,null,null,null,null,null,null,null,null,null,null,null,null,null,null,null,null,null,null,null,null,null,null,null,null,null,null,null,null,null,null,null,null,null,null,null,null,null,null,null,null,null,null,null,null,null,null,null,null,null,null,null,null,null,null,null,null,null,null,null,null,null,null,null,null,null,null,null,null,null,null,null,null,null,null,null,null,null,null,null,null,null,null,null,null,"No"]
[null,null,null,null,null,null,null,null,null,null,null,null,null,null,null,null,null,null,null,null,null,null,null,null,null,null,null,null,"2ND OFFICER","1ST CLASS TUG MASTER","ADVANCE CHEMICAL TANKER COURSE",null,"AARHUS","AMERICAN","AMERICAN","MUSLIM","MARRIED","AKASAKI DIESEL","BULK CARRIER","INDIAN","BROTHER IN LAW","ENGLISH","ANDORRA",null,null,"2ND OFFICER","AFA","COMPLETED CONTRACT","10 RND 90",null,null,"FAIR"]
[null,null,null,null,null,null,null,null,null,null,null,null,null,null,null,null,null,null,null,null,null,null,null,null,null,null,null,null,"3RD ENGINEER","1ST MATE","ADVANCE FIRE FIGHTING",null,"AASIAAT","ANDORRA","ANDORRA","OTHERS","NOT KNOWN","ALLEN","CAPESIZE","LIBERIAN","COMPANION","FRENCH","ANGOLA",null,null,"3RD ENGINEER","ALL","EXPRING DOCUMENTS","10 UEC 85/180D",null,null,"GOOD"]
[null,null,null,null,null,null,null,null,null,null,null,null,null,null,null,null,null,null,null,null,null,null,null,null,null,null,null,null,"3RD OFFICER","2ND  CLASS MASTER","ADVANCE TANKER SAFETY COURSE",null,"ABADAN","ANGOLA","ANGOLA","SIKH","SEPARATED","ALPHA","CAR CARRIERS","MARSHALL","COUSIN","GEORGIAN","ANTIGUA / BARBUDA",null,null,"3RD OFFICER","AMD","INDICPLINE","10 UEC 85/180E"]
[null,null,null,null,null,null,null,null,null,null,null,null,null,null,null,null,null,null,null,null,null,null,null,null,null,null,null,null,"4TH ENGINEER","2ND CLASS INLAND MASTER","ADVANCED COURSE",null,"ABAKAN","ANTIGUA / BARBUDA","ANTIGUA / BARBUDA",null,"SINGLE","ANGLO BELGIAN CORP","CARGO VESSEL","OTHER","DAUGHTER","GREEK","ARGENTINA",null,null,"4TH ENGINEER","ANG","MANAGEMENT CHANGE","10K90MC"]
[null,null,null,null,null,null,null,null,null,null,null,null,null,null,null,null,null,null,null,null,null,null,null,null,null,null,null,null,"ABLE SEAMAN","2ND CLASS MASTER (IV)","AFF (PANAMA)",null,"ABERDEEN","ARGENTINIAN","ARGENTINIAN",null,"WIDOWED","BERGE","CEMENT CARRIERS","PANAMA","DAUGHTER IN LAW","GUJARATI","ARMENIA",null,null,"ABLE SEAMAN","AOK","MEDICAL GROUND","10PC4-2V-570"]
[null,null,null,null,null,null,null,null,null,null,null,null,null,null,null,null,null,null,null,null,null,null,null,null,null,null,null,null,"ADDITIONAL DECK BOY","3RD ENG/ PANAMA","AHTS",null,"ABHA","ARMENIAN","ARMENIAN",null,null,"BERGEN DIESEL","CHEMICAL TANKER",null,"FATHER","HINDI","ARUBA",null,null,"ADDITIONAL DECK BOY","ARA","MUTUAL CONCERN","10V 23 L/VO"]
[null,null,null,null,null,null,null,null,null,null,null,null,null,null,null,null,null,null,null,null,null,null,null,null,null,null,null,null,"ADDITIONAL ENGINE BOY","BELIZE COC","ARPA",null,"ABIDJAN","ARUBA","ARUBA",null,null,"BOLNES","CONTAINER VESSEL",null,"FATHER IN LAW","INDONESIAN","AUSTRALIA",null,null,"ADDITIONAL ENGINE BOY","ARS","OTHERS","10V23L-VO"]
[null,null,null,null,null,null,null,null,null,null,null,null,null,null,null,null,null,null,null,null,null,null,null,null,null,null,null,null,"ADMINISTRATIVE OFFICER","CH ENG (BAHAMAS)","BASIC FIRE FIGHTING",null,"ABU DHABI","AUSTRALIAN","AUSTRALIAN",null,null,"BURMEISTER & WAIN","CREW BOAT",null,"FIANCEE","KANNADA","AUSTRIA",null,null,"ADMINISTRATIVE OFFICER","ATS","PERSONAL REASONS","11K90KF"]
[null,null,null,null,null,null,null,null,null,null,null,null,null,null,null,null,null,null,null,null,null,null,null,null,null,null,null,null,"ASSISTANT COOK","CH ENG (PANAMA)","BASIC SAFETY TRAINING",null,"ABU SIMBEL","AUSTRIAN","AUSTRIAN",null,null,"CALLESEN","CREW UTILITY VESSEL",null,"FRIEND","KONKANI","AZERBAIJAN",null,null,"ASSISTANT COOK","AUD","PROMOTION","12 M281 AK"]
[null,null,null,null,null,null,null,null,null,null,null,null,null,null,null,null,null,null,null,null,null,null,null,null,null,null,null,null,"BOSUN","CH ENGINEER (BAHAMAS)","BRIDGE RESOURCE MANAGEMENT",null,"ABUJA","AZERBAIJANI","AZERBAIJANI",null,null,"CATERPILLAR","CRUDE OIL",null,"GRANDFATHER","MALAYALAM","AZORES",null,null,"BOSUN","AWG","TRANSFER","12 M282"]
[null,null,null,null,null,null,null,null,null,null,null,null,null,null,null,null,null,null,null,null,null,null,null,null,null,null,null,null,"CHIEF COOK","CH MATE (PAN)","BRIDGE TEAM MANAGEMENT",null,"ACAPULCO","AZORES","AZORES",null,null,"CEGIELSKI","FINISH PRODUCT",null,"GRANDMOTHER","MALAYU","BAHAMAS",null,null,"CHIEF COOK","AZM","VESSEL ACCIDENT","12 M282 AK"]
[null,null,null,null,null,null,null,null,null,null,null,null,null,null,null,null,null,null,null,null,null,null,null,null,null,null,null,null,"CHIEF ENGINEER","CH MATE NCV","BST",null,"ACCRA","BAHAMAS","BAHAMAS",null,null,"CROSSLEY","FISHING VESSEL",null,"HALF SISTER","MARATHI","BAHRAIN",null,null,"CHIEF ENGINEER","BAD","VESSEL NAME CHANGE","12 M453 AK"]
[null,null,null,null,null,null,null,null,null,null,null,null,null,null,null,null,null,null,null,null,null,null,null,null,null,null,null,null,"CHIEF OFFICER","CH. MATE ( F.G)","CATERING CERTIFICATE",null,"ADANA","BAHRAIN","BAHRAIN",null,null,"DAIHATSU","FLOATING CONDOMINIUM",null,"HUSBAND","MARWADI","BANGLADESH",null,null,"CHIEF OFFICER","BBD","VESSEL SCRAPPED","12 M453 B/C"]
[null,null,null,null,null,null,null,null,null,null,null,null,null,null,null,null,null,null,null,null,null,null,null,null,null,null,null,null,"CRANE OPERATOR","CH/ENG (PANAMA)","CATERING COURSE ( CHINESE CUISINE)",null,"ADDIS ABABA","BANGLADESHI","BANGLADESHI",null,null,"DE LAVAL","FLOATING CRANE",null,"KHOAT","NEPALESE","BARBADOS",null,null,"CRANE OPERATOR","BDT","VESSEL SOLD","12 M551 AK"]
[null,null,null,null,null,null,null,null,null,null,null,null,null,null,null,null,null,null,null,null,null,null,null,null,null,null,null,null,"DECK BOY","CH/MATE (F.G)","CATERING COURSE (ARABIC &INDIAN)",null,"ADELAIDE","BARBADOS","BARBADOS",null,null,"DETROIT","GANTRY",null,"MOTHER","ODIYA","BELARUS",null,null,"DECK BOY","BEF",null,"12 M552"]
[null,null,null,null,null,null,null,null,null,null,null,null,null,null,null,null,null,null,null,null,null,null,null,null,null,null,null,null,"DECK CADET","CL III ENG (PAN)","CATERING TRAINING CERTIFICATE",null,"ADEN","BELARUSSIAN","BELARUSSIAN",null,null,"DEUTZ","GAS TANKER",null,"MOTHER IN LAW","PORTUGUESE","BELGIUM",null,null,"DECK CADET","BGL",null,"12 UEC 85/180D"]
[null,null,null,null,null,null,null,null,null,null,null,null,null,null,null,null,null,null,null,null,null,null,null,null,null,null,null,null,"ELECTRICIAN","CLASS IV PART A (NCV)","CH ENG OFF. OF A MOTORSHIP",null,"ADLER/SOCHI","BELGIUM","BELGIUM",null,null,"DIESEL","GENERAL CARGO",null,"NEPHEW","PUNJABI","BELIZE",null,null,"ELECTRICIAN","BHD",null,"12 UEC 85/180E"]
[null,null,null,null,null,null,null,null,null,null,null,null,null,null,null,null,null,null,null,null,null,null,null,null,null,null,null,null,"ENGINE BOY","CL-II (DECK)","CHEM TANKER FAMILIARIZATION",null,"ADRAR","BELIZE","BELIZE",null,null,"DOXFORD","HANDY SIZE VESSEL",null,"NIECE","RAJASTHANI","BENIN",null,null,"ENGINE BOY","BIF",null,"12 UEV 30/40C"]
[null,null,null,null,null,null,null,null,null,null,null,null,null,null,null,null,null,null,null,null,null,null,null,null,null,null,null,null,"ENGINE CADET","COC - OFFICERS","CHEMCO",null,"AGADIR","BENIN","BENIN",null,null,"EL.CRANES","HEAVY LIFT VESSEL",null,"SELF","RUSSIAN","BERMUDA",null,null,"ENGINE CADET","BMD",null,"12 UEV 42/56C"]
[null,null,null,null,null,null,null,null,null,null,null,null,null,null,null,null,null,null,null,null,null,null,null,null,null,null,null,null,"FITTER","COC - OFFICERS ----","CHEMICAL TANKER FAMILIARIZATION",null,"AGARTALA","BERMUDIAN","BERMUDIAN",null,null,"ENGLISH ELECTRIC","HOPPE DREDGE",null,"SISTER","SINDHI","BOSNIA AND HERZEGOVINA",null,null,"FITTER","BND",null,"12K 90MC"]
[null,null,null,null,null,null,null,null,null,null,null,null,null,null,null,null,null,null,null,null,null,null,null,null,null,null,null,null,"JUNIOR ELECTRICIAN","COC - OFFICERS 00W","CONTAINER SHIP FAMILIARIZATION & HULL INSPECTION",null,"AGATTI ISLAND","BOSNIAN","BOSNIAN",null,null,"FAIRBANK MORSE","LIVESTOCK CARRIER",null,"SISTER IN LAW","TAMIL","BRAZIL",null,null,"JUNIOR ELECTRICIAN","BOB",null,"12K 98MC-C"]
[null,null,null,null,null,null,null,null,null,null,null,null,null,null,null,null,null,null,null,null,null,null,null,null,null,null,null,null,"JUNIOR ENGINEER","COC - OFFICERS 1ST ENGR","CONTAINERSHIP FAMILIARIZATION",null,"AGEN","BRAZILIAN","BRAZILIAN",null,null,"FIAT","MBC",null,"SON","TELEGU","BRUNEI",null,null,"JUNIOR ENGINEER","BRL",null,"12PC2-5V-400"]
[null,null,null,null,null,null,null,null,null,null,null,null,null,null,null,null,null,null,null,null,null,null,null,null,null,null,null,null,"JUNIOR OFFICER","COC - OFFICERS 1ST MATE","COPCO",null,"AGRA","BRITISH","BRITISH",null,null,"FIAT BORSIG","MOTOR TANKER",null,"SON IN LAW","URDU","BULGARIA",null,null,"JUNIOR OFFICER","BRR",null,"12V32D"]
[null,null,null,null,null,null,null,null,null,null,null,null,null,null,null,null,null,null,null,null,null,null,null,null,null,null,null,null,"MASTER","COC - OFFICERS 1ST MATE FG","COURSE",null,"AGRI","BRUNEI","BRUNEI",null,null,"FINANTIERI","MULTIPURPOSE TUG",null,"UNCLE",null,"CAMBODIA",null,null,"MASTER","BSD",null,"14 V40/54A"]
[null,null,null,null,null,null,null,null,null,null,null,null,null,null,null,null,null,null,null,null,null,null,null,null,null,null,null,null,"MESSMAN","COC - OFFICERS 1ST/ENGG","CPSC & RB",null,"AGUADILLA","BULGARIAN","BULGARIAN",null,null,"GAS TURBINE","MULTIPURPOSE VESSEL",null,"WIFE",null,"CAMEROON",null,null,"MESSMAN","BWP",null,"14 V52/55"]
[null,null,null,null,null,null,null,null,null,null,null,null,null,null,null,null,null,null,null,null,null,null,null,null,null,null,null,null,"OILER","COC - OFFICERS 2 MATE (FG)","CR OPERATOR TEST CERT.",null,"AHMEDABAD","CAMBODIAN","CAMBODIAN",null,null,"GENERAL ELECTRIC","OBO",null,null,null,"CANADA",null,null,"OILER","BYR",null,"14V52/55A"]
[null,null,null,null,null,null,null,null,null,null,null,null,null,null,null,null,null,null,null,null,null,null,null,null,null,null,null,null,"OOW ENGINEER","COC - OFFICERS 2 MATE F.G","CRANE OPERATORS COURSE (HYDRAULIC)",null,"AIZAWL","CAMEROON","CAMEROON",null,null,"GENERAL MOTORS","OIL TANKER",null,null,null,"CANARY ISLANDS",null,null,"OOW ENGINEER","BZD",null,"16 M453 B"]
[null,null,null,null,null,null,null,null,null,null,null,null,null,null,null,null,null,null,null,null,null,null,null,null,null,null,null,null,"ORDINARY SEAMAN","COC - OFFICERS 2 MATE FG","CREW SAFETY",null,"AKITA","CANADIAN","CANADIAN",null,null,"GOTAVERKEN","PANAMAX",null,null,null,"CAPE VERDE",null,null,"ORDINARY SEAMAN","CAD",null,"16 M551 AK"]
[null,null,null,null,null,null,null,null,null,null,null,null,null,null,null,null,null,null,null,null,null,null,null,null,null,null,null,null,"OTHERS","COC - OFFICERS 2/OFF","CROWD MANAGEMENT (PASSENGER VSLS)",null,"AKOLA","CANARY ISLANDS","CANARY ISLANDS",null,null,"GRANDE MOTORI TRIEST","PASSENGER VESSEL",null,null,null,"CAYMAN ISLANDS",null,null,"OTHERS","CDP",null,"16 PC2V"]
[null,null,null,null,null,null,null,null,null,null,null,null,null,null,null,null,null,null,null,null,null,null,null,null,null,null,null,null,"PUMPMAN","COC - OFFICERS 2M F.G","CTFC DC",null,"ALEXANDRIA","CAPE VERDE","CAPE VERDE",null,null,"HANSHIN","PLATFORM SUPPLY VESSEL",null,null,null,"CHILE",null,null,"PUMPMAN","CHF",null,"16 UEV 30/40C"]
[null,null,null,null,null,null,null,null,null,null,null,null,null,null,null,null,null,null,null,null,null,null,null,null,null,null,null,null,"RADIO OFFICER","COC - OFFICERS 2M FG","D. C. CHEMICAL",null,"ALEXANDROUPOLIS","CAYMAN ISLANDS","CAYMAN ISLANDS",null,null,"HARLAND+WOLFF","PRODUCT TANKER",null,null,null,"CHINA",null,null,"RADIO OFFICER","CLP",null,"16 UEV 42/56C"]
[null,null,null,null,null,null,null,null,null,null,null,null,null,null,null,null,null,null,null,null,null,null,null,null,null,null,null,null,"TRAINEE SEAMAN","COC - OFFICERS 2M(FG)","D.C CHEMICAL",null,"AL-FUJAIRAH","CHILEAN","CHILEAN",null,null,"HITACHI","REEFER",null,null,null,"COLOMBIA",null,null,"TRAINEE SEAMAN","CNY",null,"16PC2-2V-400"]
[null,null,null,null,null,null,null,null,null,null,null,null,null,null,null,null,null,null,null,null,null,null,null,null,null,null,null,null,"TUG MASTER","COC - OFFICERS 2MFG","D.C ENDORSEMENT (GAS)",null,"ALGHERO","CHINESE","CHINESE",null,null,"HUYNDAI","RORO",null,null,null,"COMORES",null,null,"TUG MASTER","COP",null,"16V22"]
[null,null,null,null,null,null,null,null,null,null,null,null,null,null,null,null,null,null,null,null,null,null,null,null,null,null,null,null,"WIPER","COC - OFFICERS 2ND MATE","D.C ENDORSEMENT (OIL TANKER)",null,"ALGIERS","COLOMBIAN","COLOMBIAN",null,null,"ICHITA","SUPPLY UTILITY",null,null,null,"CONGO",null,null,"WIPER","CRC",null,"18 PC2 5"]
[null,null,null,null,null,null,null,null,null,null,null,null,null,null,null,null,null,null,null,null,null,null,null,null,null,null,null,null,null,"COC - OFFICERS 2ND MATE F.G","D.C. ( ENDORSEMENT)",null,"ALICANTE","COMORES","COMORES",null,null,"ISUZU","SUPPLY VESSEL",null,null,null,"COOK ISLANDS",null,null,null,"CUP",null,"18 UEV 30/40C"]
[null,null,null,null,null,null,null,null,null,null,null,null,null,null,null,null,null,null,null,null,null,null,null,null,null,null,null,null,null,"COC - OFFICERS 2ND MATE F.G.","D.C. ENDORSEMENT (CHEM)",null,"ALLAHABAD","CONGO","CONGO",null,null,"ITO DIESEL","TANKER CARRIER",null,null,null,"COSTA RICA",null,null,null,"CVE",null,"18 UEV 42/56C"]
[null,null,null,null,null,null,null,null,null,null,null,null,null,null,null,null,null,null,null,null,null,null,null,null,null,null,null,null,null,"COC - OFFICERS 2ND MATE FG","D.C. ENDORSEMENT (CHEMICAL)",null,"ALMERIA","COOK ISLANDS","COOK ISLANDS",null,null,"JRC CONSOLE","TOWING",null,null,null,"COTE D'IVOIRE",null,null,null,"CYP",null,"18 V40/54"]
[null,null,null,null,null,null,null,null,null,null,null,null,null,null,null,null,null,null,null,null,null,null,null,null,null,null,null,null,null,"COC - OFFICERS 2ND MATE FG.","D.C. ENDORSEMENT (OIL)",null,"ALONG","COSTA RICAN","COSTA RICAN",null,null,"KAWASAKI","TUG BOAT",null,null,null,"CROATIA",null,null,null,"CZK",null,"18V23L"]
[null,null,null,null,null,null,null,null,null,null,null,null,null,null,null,null,null,null,null,null,null,null,null,null,null,null,null,null,null,"COC - OFFICERS 2ND MATE FOREIGN GOING","D.C. ENDORSEMENT GAS",null,"ALTAMIRA","COTE D'IVOIRE","COTE D'IVOIRE",null,null,"KELVIN DIESEL","UTILITY",null,null,null,"CUBA",null,null,null,"DEM",null,"2 CSA"]
[null,null,null,null,null,null,null,null,null,null,null,null,null,null,null,null,null,null,null,null,null,null,null,null,null,null,null,null,null,"COC - OFFICERS 2ND MATE UNLIMITED","D.C. OIL",null,"AMBON","CROATIAN","CROATIAN",null,null,"KIRLOSKAR","VERY LARGE CRUDE OIL CARR",null,null,null,"CYPRUS",null,null,null,"DJF",null,"2 OIL 2SA"]
[null,null,null,null,null,null,null,null,null,null,null,null,null,null,null,null,null,null,null,null,null,null,null,null,null,null,null,null,null,"COC - OFFICERS 2ND MATE(FG)","D.C. PANAMA",null,"AMRITSAR","CUBAN","CUBAN",null,null,"KLOECKNER HUMBOLDT D","WOOD SHIP",null,null,null,"CZECH REPUBLIC",null,null,null,"DKK",null,"2.16ZVB40/48"]
[null,null,null,null,null,null,null,null,null,null,null,null,null,null,null,null,null,null,null,null,null,null,null,null,null,null,null,null,null,"COC - OFFICERS 2ND MATEFG","D.C.ENDORSEMENT (LPG)",null,"AMSTERDAM","CYPRUS","CYPRUS",null,null,"LIEBKNECHT","WORK BOAT",null,null,null,"DENMARK",null,null,null,"DOP",null,"2.5 PCV 16"]
[null,null,null,null,null,null,null,null,null,null,null,null,null,null,null,null,null,null,null,null,null,null,null,null,null,null,null,null,null,"COC - OFFICERS 2ND MATES F.G.","D.C.ENDORSEMENT (OIL/ CHEM/PETRO)",null,"ANAND","CZECH","CZECH",null,null,"M.A.K.",null,null,null,null,"DJIBOUTI",null,null,null,"DRP",null,"3 RND 90"]
[null,null,null,null,null,null,null,null,null,null,null,null,null,null,null,null,null,null,null,null,null,null,null,null,null,null,null,null,null,"COC - OFFICERS 2ND OFF","DANGEROUS CARGO ENDORSEMENT ( OIL)",null,"ANAPA","DANISH","DANISH",null,null,"M.A.N.",null,null,null,null,"DOMINICAN REPUBLIC",null,null,null,"DZD",null,"4 M351"]
[null,null,null,null,null,null,null,null,null,null,null,null,null,null,null,null,null,null,null,null,null,null,null,null,null,null,null,null,null,"COC - OFFICERS 2ND/ENG/III","DC ENDORESEMENT (OTFC)",null,"ANCONA","DJIBOUTI","DJIBOUTI",null,null,"M.T.U.",null,null,null,null,"ECUADOR",null,null,null,"ECS",null,"4 M351 A"]
[null,null,null,null,null,null,null,null,null,null,null,null,null,null,null,null,null,null,null,null,null,null,null,null,null,null,null,null,null,"COC - OFFICERS 2NDMATE(FG)","DECK RATING",null,"ANNABA","DOMINICAN","DOMINICAN",null,null,"M.W.M.",null,null,null,null,"EGYPT",null,null,null,"ECU",null,"4 M351 AK"]
[null,null,null,null,null,null,null,null,null,null,null,null,null,null,null,null,null,null,null,null,null,null,null,null,null,null,null,null,null,"COC - OFFICERS 3 RD ENGINEER","DIPLOMA IN HOTEL MANAGEMENT COURSE",null,"ANTALYA","ECUADORIAN","ECUADORIAN",null,null,"MAKITA DIESEL",null,null,null,null,"EL SALVADOR",null,null,null,"EEK",null,"4L 60MCE"]
[null,null,null,null,null,null,null,null,null,null,null,null,null,null,null,null,null,null,null,null,null,null,null,null,null,null,null,null,null,"COC - OFFICERS 3/1","DP ADVANCE COURSE",null,"ANTOFAGASTA","EGYPTIAN","EGYPTIAN",null,null,"MAN - B+ W",null,null,null,null,"EQUATORIAL GUINEA",null,null,null,"EGP",null,"4RLA90"]
[null,null,null,null,null,null,null,null,null,null,null,null,null,null,null,null,null,null,null,null,null,null,null,null,null,null,null,null,null,"COC - OFFICERS 3RD","DP BASICS INDUCTION COURSE",null,"ANTWERP","EQUATORIAL GUINEAN","EQUATORIAL GUINEAN",null,null,"MAN B&W",null,null,null,null,"ERITREA",null,null,null,"ESP",null,"5 GA 67"]
[null,null,null,null,null,null,null,null,null,null,null,null,null,null,null,null,null,null,null,null,null,null,null,null,null,null,null,null,null,"COC - OFFICERS 3RD  ENGG","DYNAMIC POSITIONING BASIC COURSE",null,"AOMORI","ERITREAN","ERITREAN",null,null,"MAN/DMR",null,null,null,null,"ESTONIA",null,null,null,"ETB",null,"5 RLA 56"]
[null,null,null,null,null,null,null,null,null,null,null,null,null,null,null,null,null,null,null,null,null,null,null,null,null,null,null,null,null,"COC - OFFICERS 3RD ENG","E F A",null,"AQABA","ESTONIAN","ESTONIAN",null,null,"MIRRLEES BLACKSTONE",null,null,null,null,"ETHIOPIA",null,null,null,"EUR",null,"5 RND 68"]
[null,null,null,null,null,null,null,null,null,null,null,null,null,null,null,null,null,null,null,null,null,null,null,null,null,null,null,null,null,"COC - OFFICERS 3RD ENGINEER","E.R. SIMULATOR",null,"ARKANGELSK","ETHIOPIAN","ETHIOPIAN",null,null,"MITSUBHISHI/AKASAKA",null,null,null,null,"FAEROE ISLANDS",null,null,null,"FIM",null,"5 RND 76M"]
[null,null,null,null,null,null,null,null,null,null,null,null,null,null,null,null,null,null,null,null,null,null,null,null,null,null,null,null,null,"COC - OFFICERS 3RD OFFICER","E.R. SIMULATOR (MANAGEMENT)",null,"ARUBA","FAEROES ISLANDS","FAEROES ISLANDS",null,null,"MITSUBISHI",null,null,null,null,"FALKLAND ISLANDS",null,null,null,"FJD",null,"5/6 RD 58"]
[null,null,null,null,null,null,null,null,null,null,null,null,null,null,null,null,null,null,null,null,null,null,null,null,null,null,null,null,null,"COC - OFFICERS 3RD/MATE","ECDIS",null,"ASTURIAS","FALKLAND ISLANDS","FALKLAND ISLANDS",null,null,"MITSUI DIESEL",null,null,null,null,"FIJI",null,null,null,"FKP",null,"501 TB"]
[null,null,null,null,null,null,null,null,null,null,null,null,null,null,null,null,null,null,null,null,null,null,null,null,null,null,null,null,null,"COC - OFFICERS 3RD/OFFI.","EDH",null,"ATHENS (PIRAEUS)","FIJIAN","FIJIAN",null,null,"MOHAB",null,null,null,null,"FINLAND",null,null,null,"FRF",null,"5K 62 EF"]
[null,null,null,null,null,null,null,null,null,null,null,null,null,null,null,null,null,null,null,null,null,null,null,null,null,null,null,null,null,"COC - OFFICERS A","EFA",null,"AUCKLAND","FILIPINO","FILIPINO",null,null,"MOTOR",null,null,null,null,"FRANCE",null,null,null,"GBP",null,"5L 55 GFCA"]
[null,null,null,null,null,null,null,null,null,null,null,null,null,null,null,null,null,null,null,null,null,null,null,null,null,null,null,null,null,"COC - OFFICERS CH MATE (NCV)","EFA / FAS / MFA",null,"AURANGABAD","FINNISH","FINNISH",null,null,"NIIGATA",null,null,null,null,"FRENCH POLYNESIA",null,null,null,"GEK",null,"5L 55G FCA"]
[null,null,null,null,null,null,null,null,null,null,null,null,null,null,null,null,null,null,null,null,null,null,null,null,null,null,null,null,null,"COC - OFFICERS CH. ENGINEER","EFA / FAS / MFA / MEDICARE (FIRT AID)",null,"BACOLOD","FRENCH","FRENCH",null,null,"NIPATZU",null,null,null,null,"GABON",null,null,null,"GHC",null,"5L 60 MC"]
[null,null,null,null,null,null,null,null,null,null,null,null,null,null,null,null,null,null,null,null,null,null,null,null,null,null,null,null,null,"COC - OFFICERS CHIEF MATE NCV","ELECTRICAL ENGINEER CERTIFICATE",null,"BADE","FRENCH POLYNESIAN","FRENCH POLYNESIAN",null,null,"NKK12PC2-6V",null,null,null,null,"GAMBIA",null,null,null,"GIP",null,"5L 80 GFCA"]
[null,null,null,null,null,null,null,null,null,null,null,null,null,null,null,null,null,null,null,null,null,null,null,null,null,null,null,null,null,"COC - OFFICERS CL IV","ELECTRICAL W/ SHOP FOR C/ENG, 2/ENG",null,"BAGDOGRA","GABON","GABON",null,null,"NOHAB",null,null,null,null,"GEORGIA",null,null,null,"GMD",null,"5L 80GFC 7"]
[null,null,null,null,null,null,null,null,null,null,null,null,null,null,null,null,null,null,null,null,null,null,null,null,null,null,null,null,null,"COC - OFFICERS CL IV NCV","ELEMENTARY FIRST AID",null,"BAHIA BLANCA","GAMBIAN","GAMBIAN",null,null,"NOHAP POLAR",null,null,null,null,"GERMANY",null,null,null,"GNF",null,"5L 90GBE"]
[null,null,null,null,null,null,null,null,null,null,null,null,null,null,null,null,null,null,null,null,null,null,null,null,null,null,null,null,null,"COC - OFFICERS CL IV(FG)","ELEMENTARY MARINE ENGLISH",null,"BAHRAIN","GEORGIAN","GEORGIAN",null,null,"NORMO DIESEL",null,null,null,null,"GHANA",null,null,null,"GRD",null,"5L60MC"]
[null,null,null,null,null,null,null,null,null,null,null,null,null,null,null,null,null,null,null,null,null,null,null,null,null,null,null,null,null,"COC - OFFICERS CL-3-CEO-<6000 KW-NCV","ELEMENTARY MARITIME ENGLISH",null,"BALIKPAPAN","GERMAN","GERMAN",null,null,"OTHER",null,null,null,null,"GIBRALTAR",null,null,null,"GTQ",null,"5L80MCE"]
[null,null,null,null,null,null,null,null,null,null,null,null,null,null,null,null,null,null,null,null,null,null,null,null,null,null,null,null,null,"COC - OFFICERS CLASS  3","ELEMENTARY SHIP SECURITY COURSE",null,"BALURGHAT","GHANAIAN","GHANAIAN",null,null,"PIELSTICK",null,null,null,null,"GREAT BRITAIN",null,null,null,"GWP",null,"5RLB90"]
[null,null,null,null,null,null,null,null,null,null,null,null,null,null,null,null,null,null,null,null,null,null,null,null,null,null,null,null,null,"COC - OFFICERS CLASS 1","ENDOS GMDSS",null,"BANDAR ABBAS","GIBRALTAR","GIBRALTAR",null,null,"POLAR",null,null,null,null,"GREECE",null,null,null,"GYD",null,"5RTA 38"]
[null,null,null,null,null,null,null,null,null,null,null,null,null,null,null,null,null,null,null,null,null,null,null,null,null,null,null,null,null,"COC - OFFICERS CLASS 1 (MOTOR)","ENG. DRIVER OF MOTOR",null,"BANGALORE","GREEK","GREEK",null,null,"RESITA 12V251FM",null,null,null,null,"GREENLAND",null,null,null,"HKD",null,"5RTA 72"]
[null,null,null,null,null,null,null,null,null,null,null,null,null,null,null,null,null,null,null,null,null,null,null,null,null,null,null,null,null,"COC - OFFICERS CLASS 2","ENGINE ROOM SIMULATOR",null,"BANGKOK","GREENLAND","GREENLAND",null,null,"RUSTON",null,null,null,null,"GRENADA",null,null,null,"HNL",null,"5S50MC"]
[null,null,null,null,null,null,null,null,null,null,null,null,null,null,null,null,null,null,null,null,null,null,null,null,null,null,null,null,null,"COC - OFFICERS CLASS 3","ENGINE ROOM SIMULATOR COURSE",null,"BANJARMASIN","GRENADAN","GRENADAN",null,null,"SEMT-PIELSTICK",null,null,null,null,"GUADELOUPE",null,null,null,"HRD",null,"5S60MC"]
[null,null,null,null,null,null,null,null,null,null,null,null,null,null,null,null,null,null,null,null,null,null,null,null,null,null,null,null,null,"COC - OFFICERS CLASS 4","ENGINE ROOM STIMULATOR",null,"BAOSHAN","GUADELOUPE","GUADELOUPE",null,null,"SHIKAWAJIMA HARIMA",null,null,null,null,"GUAM",null,null,null,"HTG",null,"5S60MC-C"]
[null,null,null,null,null,null,null,null,null,null,null,null,null,null,null,null,null,null,null,null,null,null,null,null,null,null,null,null,null,"COC - OFFICERS CLASS -4 NCV","ENGINE-ROOM WATCHKEEPING",null,"BARCELONA","GUAM","GUAM",null,null,"SHINPATSU",null,null,null,null,"GUATEMALA",null,null,null,"HUF",null,"5UEC33LSII"]
[null,null,null,null,null,null,null,null,null,null,null,null,null,null,null,null,null,null,null,null,null,null,null,null,null,null,null,null,null,"COC - OFFICERS CLASS I","F.P.F.F.",null,"BARRANQUILLA","GUATEMALAN","GUATEMALAN",null,null,"SKAMTI CONSOLE",null,null,null,null,"GUINEA",null,null,null,"IDR",null,"5UEC60LS"]
[null,null,null,null,null,null,null,null,null,null,null,null,null,null,null,null,null,null,null,null,null,null,null,null,null,null,null,null,null,"COC - OFFICERS CLASS IV","FP & FF / BFF / AFF (FIRE FIGHTING)",null,"BATUMI","GUINEA BISSAU","GUINEA BISSAU",null,null,"SKL",null,null,null,null,"GUINEA BISSAU",null,null,null,"IEP",null,"6 M281"]
[null,null,null,null,null,null,null,null,null,null,null,null,null,null,null,null,null,null,null,null,null,null,null,null,null,null,null,null,null,"COC - OFFICERS CLASS IV FG","FP & FF / BFF / AFF\t (FIRE FIGHTING)",null,"BEIJING","GUINEAN","GUINEAN",null,null,"STAL LAVAL",null,null,null,null,"GUYANA",null,null,null,"ILS",null,"6 M281 A"]
[null,null,null,null,null,null,null,null,null,null,null,null,null,null,null,null,null,null,null,null,null,null,null,null,null,null,null,null,null,"COC - OFFICERS CLASS IV PART A (NCV)","FPFF",null,"BELEM","GUYANAN","GUYANAN",null,null,"STALUIN",null,null,null,null,"HAITI",null,null,null,"INR",null,"6 M281 AK"]
[null,null,null,null,null,null,null,null,null,null,null,null,null,null,null,null,null,null,null,null,null,null,null,null,null,null,null,null,null,"COC - OFFICERS CLASS4","FREE FALL LIFEBOAT",null,"BELGAUM","HAITI","HAITI",null,null,"STEAM TURBINE",null,null,null,null,"HONDURAS",null,null,null,"IQD",null,"6 M282"]
[null,null,null,null,null,null,null,null,null,null,null,null,null,null,null,null,null,null,null,null,null,null,null,null,null,null,null,null,null,"COC - OFFICERS CLASS-6","G.T.F.C.",null,"BELIZE","HONDURAS","HONDURAS",null,null,"STORK",null,null,null,null,"HONG KONG",null,null,null,"IRR",null,"6 M282 AK"]
[null,null,null,null,null,null,null,null,null,null,null,null,null,null,null,null,null,null,null,null,null,null,null,null,null,null,null,null,null,"COC - OFFICERS CLASSIII/1","GAS TANKER",null,"BELLARY","HONG KONG","HONG KONG",null,null,"STORK WERKSPOOR",null,null,null,null,"HUNGARY",null,null,null,"ISK",null,"6 M32"]
[null,null,null,null,null,null,null,null,null,null,null,null,null,null,null,null,null,null,null,null,null,null,null,null,null,null,null,null,null,"COC - OFFICERS CLASSIV","GAS TANKER FAMILIARIZATION",null,"BERGEN","HUNGARIAN","HUNGARIAN",null,null,"STX-MAN B&W",null,null,null,null,"ICELAND",null,null,null,"ITL",null,"6 M32C"]
[null,null,null,null,null,null,null,null,null,null,null,null,null,null,null,null,null,null,null,null,null,null,null,null,null,null,null,null,null,"COC - OFFICERS CL-IV","GDMSS",null,"BERLIN","ICELANDIC","ICELANDIC",null,null,"SULZER",null,null,null,null,"INDIA",null,null,null,"JMD",null,"6 M332"]
[null,null,null,null,null,null,null,null,null,null,null,null,null,null,null,null,null,null,null,null,null,null,null,null,null,null,null,null,null,"COC - OFFICERS CL-IV(NCV)","GMDSS",null,"BHATINDA","INDIAN","INDIAN",null,null,"TOYOTA",null,null,null,null,"INDONESIA",null,null,null,"JOD",null,"6 M35"]
[null,null,null,null,null,null,null,null,null,null,null,null,null,null,null,null,null,null,null,null,null,null,null,null,null,null,null,null,null,"COC - OFFICERS EOOW","GMDSS (GOC)",null,"BHAVNAGAR","INDONESIAN","INDONESIAN",null,null,"TURBINE",null,null,null,null,"IRAN",null,null,null,"JPY",null,"6 M351"]
[null,null,null,null,null,null,null,null,null,null,null,null,null,null,null,null,null,null,null,null,null,null,null,null,null,null,null,null,null,"COC - OFFICERS II","GMDSS (UK)",null,"BHOPAL","IRANIAN","IRANIAN",null,null,"VOLVO",null,null,null,null,"IRAQ",null,null,null,"KES",null,"6 M385 A"]
[null,null,null,null,null,null,null,null,null,null,null,null,null,null,null,null,null,null,null,null,null,null,null,null,null,null,null,null,null,"COC - OFFICERS II MATE FG","GMDSS ENDORESEMENT",null,"BHUBANESWAR","IRAQIAN","IRAQIAN",null,null,"WARTSILA",null,null,null,null,"IRELAND",null,null,null,"KHR",null,"6 M385 AK"]
[null,null,null,null,null,null,null,null,null,null,null,null,null,null,null,null,null,null,null,null,null,null,null,null,null,null,null,null,null,"COC - OFFICERS II/1","GMDSS ENDORSMENT",null,"BHUJ","IRISH","IRISH",null,null,"WICHANN DIESEL",null,null,null,null,"ISLE OF MAN",null,null,null,"KIS",null,"6 M451"]
[null,null,null,null,null,null,null,null,null,null,null,null,null,null,null,null,null,null,null,null,null,null,null,null,null,null,null,null,null,"COC - OFFICERS IV","GMDSS UK / PANAMA",null,"BIKANER","ISLE OF MAN","ISLE OF MAN",null,null,"WICKMANN",null,null,null,null,"ISRAEL",null,null,null,"KMF",null,"6 M451 AK"]
[null,null,null,null,null,null,null,null,null,null,null,null,null,null,null,null,null,null,null,null,null,null,null,null,null,null,null,null,null,"COC - OFFICERS IV NCV/ III NCV HAVENT GOT COC","GMDSS UK PANAMA",null,"BILASPUR","ISRAEL","ISRAEL",null,null,"WIZEMAN DIESEL",null,null,null,null,"ITALY",null,null,null,"KPW",null,"6 M452"]
[null,null,null,null,null,null,null,null,null,null,null,null,null,null,null,null,null,null,null,null,null,null,null,null,null,null,null,null,null,"COC - OFFICERS MASTER","GMDSS-PANAMA",null,"BILBAO","ITALIAN","ITALIAN",null,null,"YANMAR",null,null,null,null,"IVORY COAST",null,null,null,"KRW",null,"6 M452 AK"]
[null,null,null,null,null,null,null,null,null,null,null,null,null,null,null,null,null,null,null,null,null,null,null,null,null,null,null,null,null,"COC - OFFICERS MASTER F.G","GMDSS-UK",null,"BILLUND","IVORY COAST","IVORY COAST",null,null,"ZGODA",null,null,null,null,"JAMAICA",null,null,null,"KWD",null,"6 M453 AK"]
[null,null,null,null,null,null,null,null,null,null,null,null,null,null,null,null,null,null,null,null,null,null,null,null,null,null,null,null,null,"COC - OFFICERS MATE(NCV)","GOC",null,"BIRD ISLAND","JAMAICAN","JAMAICAN",null,null,null,null,null,null,null,"JAPAN",null,null,null,"KYD",null,"6 M453 B/C"]
[null,null,null,null,null,null,null,null,null,null,null,null,null,null,null,null,null,null,null,null,null,null,null,null,null,null,null,null,null,"COC - OFFICERS MEO CL IV NCV","GOC (UK)",null,"BOGOTA","JAPANESE","JAPANESE",null,null,null,null,null,null,null,"JORDAN",null,null,null,"KZT",null,"6 M453C"]
[null,null,null,null,null,null,null,null,null,null,null,null,null,null,null,null,null,null,null,null,null,null,null,null,null,null,null,null,null,"COC - OFFICERS MEO CL IV(NCV)","H. CRANE OPRATOR",null,"BOMBAY","JORDANIAN","JORDANIAN",null,null,null,null,null,null,null,"KAZAKHSTAN",null,null,null,"LAK",null,"6 M551"]
[null,null,null,null,null,null,null,null,null,null,null,null,null,null,null,null,null,null,null,null,null,null,null,null,null,null,null,null,null,"COC - OFFICERS MEO CL(IV)","HAZMAT COURSE",null,"BREMEN","KAZAKHSTANI","KAZAKHSTANI",null,null,null,null,null,null,null,"KENYA",null,null,null,"LBP",null,"6 M551 AK"]
[null,null,null,null,null,null,null,null,null,null,null,null,null,null,null,null,null,null,null,null,null,null,null,null,null,null,null,null,null,"COC - OFFICERS MEO CL.1V NCV","HELICOPTER UNDERWATER ESCAPE TRAINING",null,"BRISBANE","KENIAN","KENIAN",null,null,null,null,null,null,null,"KERGUELEN ISLS",null,null,null,"LKR",null,"6 M552"]
[null,null,null,null,null,null,null,null,null,null,null,null,null,null,null,null,null,null,null,null,null,null,null,null,null,null,null,null,null,"COC - OFFICERS MEO CL-4","HUET",null,"BRISTOL","KERGUELEN ISLS","KERGUELEN ISLS",null,null,null,null,null,null,null,"KIRIBATI",null,null,null,"LRD",null,"6 M601"]
[null,null,null,null,null,null,null,null,null,null,null,null,null,null,null,null,null,null,null,null,null,null,null,null,null,null,null,null,null,"COC - OFFICERS MEO CLASS IV","HYDRAULIC WORKSHOP FOR ENGINEERS",null,"BRUSSELS","KIRIBATI","KIRIBATI",null,null,null,null,null,null,null,"KUWAIT",null,null,null,"LSL",null,"6 RD 90"]
[null,null,null,null,null,null,null,null,null,null,null,null,null,null,null,null,null,null,null,null,null,null,null,null,null,null,null,null,null,"COC - OFFICERS MEO CLASS IV (NCV)","HYDRAULICS/ PNEUMATIC & ELECTRONICS",null,"BUCHAREST","KUWAITI","KUWAITI",null,null,null,null,null,null,null,"KYRGYZSTAN",null,null,null,"LTL",null,"6 RLA 56"]
[null,null,null,null,null,null,null,null,null,null,null,null,null,null,null,null,null,null,null,null,null,null,null,null,null,null,null,null,null,"COC - OFFICERS MEO CLASS IV NCV 95T-0932","HYDROGEN SULPHIDE SAFETY",null,"BUENOS AIRES","KYRGYZSTANI","KYRGYZSTANI",null,null,null,null,null,null,null,"LATVIA",null,null,null,"LUF",null,"6 RLA 66"]
[null,null,null,null,null,null,null,null,null,null,null,null,null,null,null,null,null,null,null,null,null,null,null,null,null,null,null,null,null,"COC - OFFICERS MEO CLS IV","I.S.C.R.B.",null,"BUSAN","LATVIAN","LATVIAN",null,null,null,null,null,null,null,"LEBANON",null,null,null,"LVL",null,"6 RND 19M"]
[null,null,null,null,null,null,null,null,null,null,null,null,null,null,null,null,null,null,null,null,null,null,null,null,null,null,null,null,null,"COC - OFFICERS MEO-CL IV","I.S.M",null,"CAGLIARI","LEBANESE","LEBANESE",null,null,null,null,null,null,null,"LIBERIA",null,null,null,"LYD",null,"6 RND 68"]
[null,null,null,null,null,null,null,null,null,null,null,null,null,null,null,null,null,null,null,null,null,null,null,null,null,null,null,null,null,"COC - OFFICERS MEOCLASSIV","I.S.P.S",null,"CAIRO","LIBERIAN","LIBERIAN",null,null,null,null,null,null,null,"LIBYA",null,null,null,"MAD",null,"6 RND 76"]
[null,null,null,null,null,null,null,null,null,null,null,null,null,null,null,null,null,null,null,null,null,null,null,null,null,null,null,null,null,"COC - OFFICERS MEO-IV","I.S.P.S.",null,"CALCUTTA","LIBYIAN","LIBYIAN",null,null,null,null,null,null,null,"LITHUANIA",null,null,null,"MDL",null,"6 RND 76M"]
[null,null,null,null,null,null,null,null,null,null,null,null,null,null,null,null,null,null,null,null,null,null,null,null,null,null,null,null,null,"COC - OFFICERS N.C.V  CL-IV","I.S.PS.",null,"CALICUT","LITHUANIAN","LITHUANIAN",null,null,null,null,null,null,null,"LUXEMBOURG",null,null,null,"MGF",null,"6 RND 90"]
[null,null,null,null,null,null,null,null,null,null,null,null,null,null,null,null,null,null,null,null,null,null,null,null,null,null,null,null,null,"COC - OFFICERS NCV","IMEI",null,"CAPETOWN","LUXEMBOURG","LUXEMBOURG",null,null,null,null,null,null,null,"MADAGASCAR",null,null,null,"MNC",null,"6 RTA 58"]
[null,null,null,null,null,null,null,null,null,null,null,null,null,null,null,null,null,null,null,null,null,null,null,null,null,null,null,null,null,"COC - OFFICERS NCV CLASS","INDOS",null,"CAR NICOBAR","MADAGASCAN","MADAGASCAN",null,null,null,null,null,null,null,"MADEIRA",null,null,null,"MNT",null,"6 RTA 62U"]
[null,null,null,null,null,null,null,null,null,null,null,null,null,null,null,null,null,null,null,null,null,null,null,null,null,null,null,null,null,"COC - OFFICERS NCV CLASS IV","INDOS NO",null,"CARACAS","MADEIRA","MADEIRA",null,null,null,null,null,null,null,"MALAYSIA",null,null,null,"MOP",null,"6 UEC 45/115H"]
[null,null,null,null,null,null,null,null,null,null,null,null,null,null,null,null,null,null,null,null,null,null,null,null,null,null,null,null,null,"COC - OFFICERS NCV(NWKO)","INDOSE NO.",null,"CARDIFF","MALAYSIAN","MALAYSIAN",null,null,null,null,null,null,null,"MALDIVES",null,null,null,"MRO",null,"6 UEC 45/L"]
[null,null,null,null,null,null,null,null,null,null,null,null,null,null,null,null,null,null,null,null,null,null,null,null,null,null,null,null,null,"COC - OFFICERS NCV/NWKO","INTERNATIONAL SHIP SECURITY AWARENESS COURSE",null,"CARTAGENA","MALDIVES","MALDIVES",null,null,null,null,null,null,null,"MALTA",null,null,null,"MTL",null,"6 UEC 52/105C"]
[null,null,null,null,null,null,null,null,null,null,null,null,null,null,null,null,null,null,null,null,null,null,null,null,null,null,null,null,null,"COC - OFFICERS NCV-CL IV","INTERNATIONAL SHIP SECURITY AWARNESS COURSE",null,"CASABLANCA","MALTESE","MALTESE",null,null,null,null,null,null,null,"MARSHALL ISLANDS",null,null,null,"MUR",null,"6 UEC 52/105D"]
[null,null,null,null,null,null,null,null,null,null,null,null,null,null,null,null,null,null,null,null,null,null,null,null,null,null,null,null,null,"COC - OFFICERS NWKO","ISM",null,"CATANIA","MARSHALL ISLANDS","MARSHALL ISLANDS",null,null,null,null,null,null,null,"MARTINIQUE",null,null,null,"MVR",null,"6 UEC 52/105E"]
[null,null,null,null,null,null,null,null,null,null,null,null,null,null,null,null,null,null,null,null,null,null,null,null,null,null,null,null,null,"COC - OFFICERS NWKO (NCV)","ISM & ISPS\tCODE",null,"CHANDIGARH","MARTINIQUE","MARTINIQUE",null,null,null,null,null,null,null,"MAURITANIA",null,null,null,"MWK",null,"6 UEC 60/125E"]
[null,null,null,null,null,null,null,null,null,null,null,null,null,null,null,null,null,null,null,null,null,null,null,null,null,null,null,null,null,"COC - OFFICERS NWKO NCV","ISM CODE",null,"CHANGZHOU","MAURITANIAN","MAURITANIAN",null,null,null,null,null,null,null,"MAURITIUS",null,null,null,"MXN",null,"6 UEC 65/135D"]
[null,null,null,null,null,null,null,null,null,null,null,null,null,null,null,null,null,null,null,null,null,null,null,null,null,null,null,null,null,"COC - OFFICERS NWKO NCV (WRITTEN)","ISM FAMILIARISATION",null,"CHENNAI","MAURITIUS","MAURITIUS",null,null,null,null,null,null,null,"MEXICO",null,null,null,"MXP",null,"6 UEC 65/135E"]
[null,null,null,null,null,null,null,null,null,null,null,null,null,null,null,null,null,null,null,null,null,null,null,null,null,null,null,null,null,"COC - OFFICERS NWKO NCV -PART A","ISM TRAINING / COURSE",null,"CHISINAU","MEXICAN","MEXICAN",null,null,null,null,null,null,null,"MICRONESIA",null,null,null,"MYR",null,"6 UEC 85/180D"]
[null,null,null,null,null,null,null,null,null,null,null,null,null,null,null,null,null,null,null,null,null,null,null,null,null,null,null,null,null,"COC - OFFICERS NWKO PART-A","ISM.",null,"CHITTAGONG","MICRONESIAN","MICRONESIAN",null,null,null,null,null,null,null,"MOLDOVA",null,null,null,"MZM",null,"6 UEC 85/180E"]
[null,null,null,null,null,null,null,null,null,null,null,null,null,null,null,null,null,null,null,null,null,null,null,null,null,null,null,null,null,"COC - OFFICERS NWKO(NCV)","ISPS",null,"COCHIN","MOLDOVAN","MOLDOVAN",null,null,null,null,null,null,null,"MONACO",null,null,null,"NGN",null,"6 UEC 85LSII"]
[null,null,null,null,null,null,null,null,null,null,null,null,null,null,null,null,null,null,null,null,null,null,null,null,null,null,null,null,null,"COC - OFFICERS NWKO(NCV)PASS JAN 2012","ISPS & ISM",null,"COIMBATORE","MONACO","MONACO",null,null,null,null,null,null,null,"MOROCCO",null,null,null,"NIC",null,"6 UET 39/65C"]
[null,null,null,null,null,null,null,null,null,null,null,null,null,null,null,null,null,null,null,null,null,null,null,null,null,null,null,null,null,"COC - OFFICERS NWKO/NCV","ISPS & ISM CODE",null,"CONSTANTA","MOROCCO","MOROCCO",null,null,null,null,null,null,null,"MOZAMBIQUE",null,null,null,"NIO",null,"6 UET 45/75C"]
[null,null,null,null,null,null,null,null,null,null,null,null,null,null,null,null,null,null,null,null,null,null,null,null,null,null,null,null,null,"COC - OFFICERS NWKO-NCV","ISPS/SSO/CSO COURSE",null,"COOCH BEHAR","MOZAMBIQUE","MOZAMBIQUE",null,null,null,null,null,null,null,"MYANMAR",null,null,null,"NIS",null,"6 UET 45/80D"]
[null,null,null,null,null,null,null,null,null,null,null,null,null,null,null,null,null,null,null,null,null,null,null,null,null,null,null,null,null,"COC - OFFICERS O.O.W.DECK","L.C.S",null,"COPENHAGEN","MYANMAR","MYANMAR",null,null,null,null,null,null,null,"NAMIBIA",null,null,null,"NLG",null,"6 UET 52/90D"]
[null,null,null,null,null,null,null,null,null,null,null,null,null,null,null,null,null,null,null,null,null,null,null,null,null,null,null,null,null,"COC - OFFICERS OICNW(NCV)","L.G.T.F",null,"CUDDAPAH","NAMIBIAN","NAMIBIAN",null,null,null,null,null,null,null,"NAURU",null,null,null,"NOK",null,"60 EF"]
[null,null,null,null,null,null,null,null,null,null,null,null,null,null,null,null,null,null,null,null,null,null,null,null,null,null,null,null,null,"COC - OFFICERS ONE","L.G.T.F.",null,"CURACAO","NAURU","NAURU",null,null,null,null,null,null,null,"NETHERLAND ANTILLES",null,null,null,"NPR",null,"650 VT 2BF 110"]
[null,null,null,null,null,null,null,null,null,null,null,null,null,null,null,null,null,null,null,null,null,null,null,null,null,null,null,null,null,"COC - OFFICERS OOW","LCHS",null,"CURITIBA","NETHERLAND ANTILLES","NETHERLAND ANTILLES",null,null,null,null,null,null,null,"NETHERLANDS",null,null,null,"NZD",null,"674 VT 2BF 160"]
[null,null,null,null,null,null,null,null,null,null,null,null,null,null,null,null,null,null,null,null,null,null,null,null,null,null,null,null,null,"COC - OFFICERS OOW CLASS4","LCS",null,"DA NANG","NETHERLANDS","NETHERLANDS",null,null,null,null,null,null,null,"NEW CALEDONIA",null,null,null,"OMR",null,"684 VT 2BF 180"]
[null,null,null,null,null,null,null,null,null,null,null,null,null,null,null,null,null,null,null,null,null,null,null,null,null,null,null,null,null,"COC - OFFICERS OOW DECK UNLIMITED","LGTF",null,"DAKAR","NEW CALEDONIAN","NEW CALEDONIAN",null,null,null,null,null,null,null,"NEW ZEALAND",null,null,null,"PAB",null,"6EL 40"]
[null,null,null,null,null,null,null,null,null,null,null,null,null,null,null,null,null,null,null,null,null,null,null,null,null,null,null,null,null,"COC - OFFICERS OPERATIOAL LEVEL","LIQUEFIED GAS TANKER",null,"DALIAN","NEW ZEALAND","NEW ZEALAND",null,null,null,null,null,null,null,"NHA TRANG",null,null,null,"PEI",null,"6EL44"]
[null,null,null,null,null,null,null,null,null,null,null,null,null,null,null,null,null,null,null,null,null,null,null,null,null,null,null,null,null,"COC - OFFICERS SECOND MATE","LIQUID CARGO SIM.",null,"DAMAN","NICARAGUAN","NICARAGUAN",null,null,null,null,null,null,null,"NICARAGUA",null,null,null,"PEN",null,"6EL44"]
[null,null,null,null,null,null,null,null,null,null,null,null,null,null,null,null,null,null,null,null,null,null,null,null,null,null,null,null,null,"COC - OFFICERS SECOND OFF","LIQUID HANDLING SIMULATOR",null,"DAMMAM","NIGERIAN","NIGERIAN",null,null,null,null,null,null,null,"NIGERIA",null,null,null,"PES",null,"6K 62 EF"]
[null,null,null,null,null,null,null,null,null,null,null,null,null,null,null,null,null,null,null,null,null,null,null,null,null,null,null,null,null,"COC - OFFICERS THIRD ENGINEER","LPG",null,"DAPARIZO","NORTH KOREAN","NORTH KOREAN",null,null,null,null,null,null,null,"NORTH KOREA",null,null,null,"PGK",null,"6K 67 EF"]
[null,null,null,null,null,null,null,null,null,null,null,null,null,null,null,null,null,null,null,null,null,null,null,null,null,null,null,null,null,"COC - OFFICERS UNLIMITED","M. ENGLISH",null,"DARJEELING","NORWEGIAN","NORWEGIAN",null,null,null,null,null,null,null,"NORWAY",null,null,null,"PHP",null,"6K 74 EF"]
[null,null,null,null,null,null,null,null,null,null,null,null,null,null,null,null,null,null,null,null,null,null,null,null,null,null,null,null,null,"COC - OFFICERS WATCHKEEPER (DECK)","M.ENGLISH",null,"DARWIN","OMAN","OMAN",null,null,null,null,null,null,null,"OMAN",null,null,null,"PKR",null,"6KZ 70/120AE"]
[null,null,null,null,null,null,null,null,null,null,null,null,null,null,null,null,null,null,null,null,null,null,null,null,null,null,null,null,null,"COC - OFFICERS\t CL  IV (NCV)","MARITIME CATERING",null,"DAVAO","PAKISTANI","PAKISTANI",null,null,null,null,null,null,null,"PAKISTAN",null,null,null,"PLN",null,"6L 35MC"]
[null,null,null,null,null,null,null,null,null,null,null,null,null,null,null,null,null,null,null,null,null,null,null,null,null,null,null,null,null,"COC (KOREA)","MARITIME ENG.",null,"DEHRADUN","PALAU","PALAU",null,null,null,null,null,null,null,"PALAU",null,null,null,"PLZ",null,"6L 36MC"]
[null,null,null,null,null,null,null,null,null,null,null,null,null,null,null,null,null,null,null,null,null,null,null,null,null,null,null,null,null,"COC (PANAMA)","MARITIME ENGLISH",null,"DELHI","PANAMANIAN","PANAMANIAN",null,null,null,null,null,null,null,"PANAMA",null,null,null,"PTE",null,"6L 50MCE"]
[null,null,null,null,null,null,null,null,null,null,null,null,null,null,null,null,null,null,null,null,null,null,null,null,null,null,null,null,null,"COC MEO CL I (M)","MARITIME LABOUR CONVENTION -2006",null,"DENPASAR BALI","PAPUA NEW GUINEAN","PAPUA NEW GUINEAN",null,null,null,null,null,null,null,"PAPUA NEW GUINEA",null,null,null,"PYG",null,"6L 52/55B"]
[null,null,null,null,null,null,null,null,null,null,null,null,null,null,null,null,null,null,null,null,null,null,null,null,null,null,null,null,null,"DCE CHEM.","MASTER MEDICARE",null,"DETROIT","PARAGUAYAN","PARAGUAYAN",null,null,null,null,null,null,null,"PARAGUAY",null,null,null,"QAR",null,"6L 55GFC"]
[null,null,null,null,null,null,null,null,null,null,null,null,null,null,null,null,null,null,null,null,null,null,null,null,null,null,null,null,null,"DCE CHEM. 1","MEDICAL CARE",null,"DHAKA","PERUVIAN","PERUVIAN",null,null,null,null,null,null,null,"PERU",null,null,null,"RMB",null,"6L 60MC"]
[null,null,null,null,null,null,null,null,null,null,null,null,null,null,null,null,null,null,null,null,null,null,null,null,null,null,null,null,null,"DCE CHEM. LEV-02","MEDICAL FIRST AID",null,"DHANBAD","POLISH","POLISH",null,null,null,null,null,null,null,"PHILIPPINES",null,null,null,"ROL",null,"6L 67 GB"]
[null,null,null,null,null,null,null,null,null,null,null,null,null,null,null,null,null,null,null,null,null,null,null,null,null,null,null,null,null,"DCE CHEM. LEVEL 1","MEDICARE",null,"DHARAMSALA","PORTUGESE","PORTUGESE",null,null,null,null,null,null,null,"POLAND",null,null,null,"RUR",null,"6L 67 GB (MI)"]
[null,null,null,null,null,null,null,null,null,null,null,null,null,null,null,null,null,null,null,null,null,null,null,null,null,null,null,null,null,"DCE CHEM. LEVEL 2","MEDICARE (PANAMA)",null,"DIBRUGARH","PUERTO RICAN","PUERTO RICAN",null,null,null,null,null,null,null,"PORTUGAL",null,null,null,"RWF",null,"6L 80 EF"]
[null,null,null,null,null,null,null,null,null,null,null,null,null,null,null,null,null,null,null,null,null,null,null,null,null,null,null,null,null,"DCE CHEM. LEVEL1","MFA",null,"DIMAPUR","QATAR","QATAR",null,null,null,null,null,null,null,"PUERTO RICO",null,null,null,"SAR",null,"6L 80MCE"]
[null,null,null,null,null,null,null,null,null,null,null,null,null,null,null,null,null,null,null,null,null,null,null,null,null,null,null,null,null,"DCE CHEM. LEVEL-1","MOTORMANS CERTIFICATE",null,"DIU","REUNION","REUNION",null,null,null,null,null,null,null,"QATAR",null,null,null,"SBD",null,"6L26"]
[null,null,null,null,null,null,null,null,null,null,null,null,null,null,null,null,null,null,null,null,null,null,null,null,null,null,null,null,null,"DCE CHEM. LIVEL 1","NARAST",null,"DNEPROPETROVSK","ROMANIAN","ROMANIAN",null,null,null,null,null,null,null,"REUNION",null,null,null,"SCR",null,"6L35MC"]
[null,null,null,null,null,null,null,null,null,null,null,null,null,null,null,null,null,null,null,null,null,null,null,null,null,null,null,null,null,"DCE CHEM. MNGMNT","NAVIGATION WATCHKEEPING",null,"DONETSK","RUSSIAN","RUSSIAN",null,null,null,null,null,null,null,"ROMANIA",null,null,null,"SDP",null,"6L45 GFCA"]
[null,null,null,null,null,null,null,null,null,null,null,null,null,null,null,null,null,null,null,null,null,null,null,null,null,null,null,null,null,"DCE CHEM. OFFICER","NAVIGATION WATCHKEEPING (AB)",null,"DUBAI","SALVADORIAN","SALVADORIAN",null,null,null,null,null,null,null,"RUSSIA",null,null,null,"SEK",null,"6L46A"]
[null,null,null,null,null,null,null,null,null,null,null,null,null,null,null,null,null,null,null,null,null,null,null,null,null,null,null,null,null,"DCE CHEM. ONE","NWK",null,"DUBLIN","SAMOAN","SAMOAN",null,null,null,null,null,null,null,"SAMOA",null,null,null,"SGD",null,"6L50MC"]
[null,null,null,null,null,null,null,null,null,null,null,null,null,null,null,null,null,null,null,null,null,null,null,null,null,null,null,null,null,"DCE CHEM. OP","O.P.A",null,"DUM DUM","SAN PIERRE & MIQUELON","SAN PIERRE & MIQUELON",null,null,null,null,null,null,null,"SAN PIERRE & MIQUELON",null,null,null,"SHP",null,"6L50MC"]
[null,null,null,null,null,null,null,null,null,null,null,null,null,null,null,null,null,null,null,null,null,null,null,null,null,null,null,null,null,"DCE CHEM. OPERATION","O.T.F.C.(D.C.)",null,"DURBAN","SAN TOME & PRINCIPE","SAN TOME & PRINCIPE",null,null,null,null,null,null,null,"SAN TOME & PRINCIPE",null,null,null,"SIT",null,"6L60MCE"]
[null,null,null,null,null,null,null,null,null,null,null,null,null,null,null,null,null,null,null,null,null,null,null,null,null,null,null,null,null,"DCE CHEM. OPERATIONAL","OIL TANK. FAMILARISATION",null,"EDINBURG","SAUDI ARABIAN","SAUDI ARABIAN",null,null,null,null,null,null,null,"SAUDI ARABIA",null,null,null,"SKK",null,"6L67GFCA"]
[null,null,null,null,null,null,null,null,null,null,null,null,null,null,null,null,null,null,null,null,null,null,null,null,null,null,null,null,null,"DCE CHEM. OPRATION","OPERATIONAL LEVEL MEO CL IV (NCV)",null,"ESPERANCE","SENEGALESE","SENEGALESE",null,null,null,null,null,null,null,"SENEGAL",null,null,null,"SLL",null,"6L80GA"]
[null,null,null,null,null,null,null,null,null,null,null,null,null,null,null,null,null,null,null,null,null,null,null,null,null,null,null,null,null,"DCE CHEM. OPS","OTFC (DC ENDORESEMENT)",null,"FARIDABAD","SEYCHELLES","SEYCHELLES",null,null,null,null,null,null,null,"SEYCHELLES",null,null,null,"SOL",null,"6L80GF"]
[null,null,null,null,null,null,null,null,null,null,null,null,null,null,null,null,null,null,null,null,null,null,null,null,null,null,null,null,null,"DCE CHEM. SUPPORT","OTFC DC",null,"FRANKFURT","SIERRA LEONE","SIERRA LEONE",null,null,null,null,null,null,null,"SIERRA LEONE",null,null,null,"SOS",null,"6L90GB"]
[null,null,null,null,null,null,null,null,null,null,null,null,null,null,null,null,null,null,null,null,null,null,null,null,null,null,null,null,null,"DCE GAS","OTFC.DC",null,"FUKUOKA","SINGAPOREAN","SINGAPOREAN",null,null,null,null,null,null,null,"SINGAPORE",null,null,null,"SRG",null,"6LU 50A"]
[null,null,null,null,null,null,null,null,null,null,null,null,null,null,null,null,null,null,null,null,null,null,null,null,null,null,null,null,null,"DCE GAS -","OTFC-OIL TANKER . FAMILARISATION",null,"GAUHATI","SLOVAKIAN","SLOVAKIAN",null,null,null,null,null,null,null,"SLOVAKIA",null,null,null,"STD",null,"6LU 54"]
[null,null,null,null,null,null,null,null,null,null,null,null,null,null,null,null,null,null,null,null,null,null,null,null,null,null,null,null,null,"DCE GAS 0PERATION","OTFC-OIL TANKER FAMILIARIZATION",null,"GAYA","SLOVENIAN","SLOVENIAN",null,null,null,null,null,null,null,"SLOVENIA",null,null,null,"SUR",null,"6M32"]
[null,null,null,null,null,null,null,null,null,null,null,null,null,null,null,null,null,null,null,null,null,null,null,null,null,null,null,null,null,"DCE GAS 1","P S T",null,"GDANSK","SOLOMON ISLANDS","SOLOMON ISLANDS",null,null,null,null,null,null,null,"SOLOMON ISLANDS",null,null,null,"SVC",null,"6M453C"]
[null,null,null,null,null,null,null,null,null,null,null,null,null,null,null,null,null,null,null,null,null,null,null,null,null,null,null,null,null,"DCE GAS LEVEL 1","P S T/ PSCRB",null,"GIBRALTAR","SOMALIAN","SOMALIAN",null,null,null,null,null,null,null,"SOMALIA",null,null,null,"SYP",null,"6PT CM 30"]
[null,null,null,null,null,null,null,null,null,null,null,null,null,null,null,null,null,null,null,null,null,null,null,null,null,null,null,null,null,"DCE GAS OFFICER","P.S.C.R B",null,"GIMPO","SOUTH AFRICAN","SOUTH AFRICAN",null,null,null,null,null,null,null,"SOUTH AFRICA",null,null,null,"SZL",null,"6R 32"]
[null,null,null,null,null,null,null,null,null,null,null,null,null,null,null,null,null,null,null,null,null,null,null,null,null,null,null,null,null,"DCE GAS OP","P.S.C.R.B",null,"GISBORNE","SOUTH KOREAN","SOUTH KOREAN",null,null,null,null,null,null,null,"SOUTH KOREA",null,null,null,"THB",null,"6R 32D"]
[null,null,null,null,null,null,null,null,null,null,null,null,null,null,null,null,null,null,null,null,null,null,null,null,null,null,null,null,null,"DCE GAS OPERATIONAL","P.S.C.R.B.",null,"GLADSTONE","SPANISH","SPANISH",null,null,null,null,null,null,null,"SPAIN",null,null,null,"TJR",null,"6R 32E"]
[null,null,null,null,null,null,null,null,null,null,null,null,null,null,null,null,null,null,null,null,null,null,null,null,null,null,null,null,null,"DCE GAS SUPPORT","P.S.C.R.B./P.S. RATING",null,"GLASGOW","SRI LANKAN","SRI LANKAN",null,null,null,null,null,null,null,"SRI LANKA",null,null,null,"TMM",null,"6R46"]
[null,null,null,null,null,null,null,null,null,null,null,null,null,null,null,null,null,null,null,null,null,null,null,null,null,null,null,null,null,"DCE OIL","P.S.F.",null,"GOA","ST. HELENA","ST. HELENA",null,null,null,null,null,null,null,"ST. HELENA",null,null,null,"TND",null,"6RD 56"]
[null,null,null,null,null,null,null,null,null,null,null,null,null,null,null,null,null,null,null,null,null,null,null,null,null,null,null,null,null,"DCE OIL 0FFICER","P.S.R",null,"GORAKHPUR","ST. KITTS","ST. KITTS",null,null,null,null,null,null,null,"ST. KITTS",null,null,null,"TOP",null,"6RLA90"]
[null,null,null,null,null,null,null,null,null,null,null,null,null,null,null,null,null,null,null,null,null,null,null,null,null,null,null,null,null,"DCE OIL 1","PANAMA-LGTF",null,"GUANGZHOU","ST. LUCIA","ST. LUCIA",null,null,null,null,null,null,null,"ST. LUCIA",null,null,null,"TPE",null,"6RLB66"]
[null,null,null,null,null,null,null,null,null,null,null,null,null,null,null,null,null,null,null,null,null,null,null,null,null,null,null,null,null,"DCE OIL 3","PANAMA-OTFC/CTFC",null,"GUATEMALA","ST. VINCENT & GRENADINES","ST. VINCENT & GRENADINES",null,null,null,null,null,null,null,"ST. VINCENT & GRENADINES",null,null,null,"TRL",null,"6RND 68M"]
[null,null,null,null,null,null,null,null,null,null,null,null,null,null,null,null,null,null,null,null,null,null,null,null,null,null,null,null,null,"DCE OIL ENGINE","PASSENGER SHIP",null,"GUAYAQUIL","SUDANESE","SUDANESE",null,null,null,null,null,null,null,"SUDAN",null,null,null,"TTD",null,"6RND 90M"]
[null,null,null,null,null,null,null,null,null,null,null,null,null,null,null,null,null,null,null,null,null,null,null,null,null,null,null,null,null,"DCE OIL LAVEL 1","PASSENGER SHIP COURSE",null,"GUAYMAS","SURINAME","SURINAME",null,null,null,null,null,null,null,"SURINAME",null,null,null,"TWD",null,"6RTA 52"]
[null,null,null,null,null,null,null,null,null,null,null,null,null,null,null,null,null,null,null,null,null,null,null,null,null,null,null,null,null,"DCE OIL LEV-02","PASSENGER SHIP FAMILIARISATION",null,"GUNA","SWEDISH","SWEDISH",null,null,null,null,null,null,null,"SWEDEN",null,null,null,"TZS",null,"6RTA52"]
[null,null,null,null,null,null,null,null,null,null,null,null,null,null,null,null,null,null,null,null,null,null,null,null,null,null,null,null,null,"DCE OIL LEVEL - 2","PASSENGER SHIP FAMILIARIZATION",null,"GUWAHATI","SWISS","SWISS",null,null,null,null,null,null,null,"SWITZERLAND",null,null,null,"UAK",null,"6RTA62"]
[null,null,null,null,null,null,null,null,null,null,null,null,null,null,null,null,null,null,null,null,null,null,null,null,null,null,null,null,null,"DCE OIL LEVEL 1","PASSENGER SHIP SAFETY COURSE",null,"GWALIOR","SYRIAN","SYRIAN",null,null,null,null,null,null,null,"SYRIA",null,null,null,"UGS",null,"6RTA62U"]
[null,null,null,null,null,null,null,null,null,null,null,null,null,null,null,null,null,null,null,null,null,null,null,null,null,null,null,null,null,"DCE OIL LEVEL 1 SUPPORT","PET",null,"HAI PHONG","TAIWANESE","TAIWANESE",null,null,null,null,null,null,null,"TAIWAN",null,null,null,"USD",null,"6S 26MC"]
[null,null,null,null,null,null,null,null,null,null,null,null,null,null,null,null,null,null,null,null,null,null,null,null,null,null,null,null,null,"DCE OIL LEVEL 2","PETROLEUM TANKER FAMILIARISAION",null,"HAMBURG","TANZANIAN","TANZANIAN",null,null,null,null,null,null,null,"TANZANIA",null,null,null,"UYP",null,"6S 70MC"]
[null,null,null,null,null,null,null,null,null,null,null,null,null,null,null,null,null,null,null,null,null,null,null,null,null,null,null,null,null,"DCE OIL LEVEL I","PFC",null,"HANOI","THAI","THAI",null,null,null,null,null,null,null,"THAILAND",null,null,null,"UYU",null,"6S35MC"]
[null,null,null,null,null,null,null,null,null,null,null,null,null,null,null,null,null,null,null,null,null,null,null,null,null,null,null,null,null,"DCE OIL LEVEL1","PFRB",null,"HEATHROW","TOGO","TOGO",null,null,null,null,null,null,null,"TOGO",null,null,null,"VEB",null,"6S50MC"]
[null,null,null,null,null,null,null,null,null,null,null,null,null,null,null,null,null,null,null,null,null,null,null,null,null,null,null,null,null,"DCE OIL LEVEL-1","PRACTICAL ELECTRICAL FAMILIARIZATION",null,"HELSINKI","TONGA","TONGA",null,null,null,null,null,null,null,"TONGA",null,null,null,"VND",null,"6S50MC"]
[null,null,null,null,null,null,null,null,null,null,null,null,null,null,null,null,null,null,null,null,null,null,null,null,null,null,null,null,null,"DCE OIL LEVEL2","PRACTICAL MARINE ELECTRICAL WORKSHOP",null,"HIROSHIMA","TRINIDAD AND TOBAGO","TRINIDAD AND TOBAGO",null,null,null,null,null,null,null,"TRINIDAD AND TOBAGO",null,null,null,"VUV",null,"6S50MC-C"]
[null,null,null,null,null,null,null,null,null,null,null,null,null,null,null,null,null,null,null,null,null,null,null,null,null,null,null,null,null,"DCE OIL LIVEL 1","PRE - SEA",null,"HISSAR","TUNISIAN","TUNISIAN",null,null,null,null,null,null,null,"TUNISIA",null,null,null,"WST",null,"6S50MC-C"]
[null,null,null,null,null,null,null,null,null,null,null,null,null,null,null,null,null,null,null,null,null,null,null,null,null,null,null,null,null,"DCE OIL MNGM","PRE - SEA COURSE FOR GP RATINGS.",null,"HO CHI MINH","TURKISH","TURKISH",null,null,null,null,null,null,null,"TURKEY",null,null,null,"XAF",null,"6S70ME-C"]
[null,null,null,null,null,null,null,null,null,null,null,null,null,null,null,null,null,null,null,null,null,null,null,null,null,null,null,null,null,"DCE OIL MNGMNT","PRE SEA",null,"HOUSTON","TURKMENISTAN","TURKMENISTAN",null,null,null,null,null,null,null,"TURKMENISTAN",null,null,null,"XCD",null,"6S7OMC-C"]
[null,null,null,null,null,null,null,null,null,null,null,null,null,null,null,null,null,null,null,null,null,null,null,null,null,null,null,null,null,"DCE OIL ONE","PRE SEA COURSE (GP)",null,"HUBLI","TURKS & CAICOS ISLANDS","TURKS & CAICOS ISLANDS",null,null,null,null,null,null,null,"TURKS & CAICOS ISLANDS",null,null,null,"XOF",null,"6S80MC"]
[null,null,null,null,null,null,null,null,null,null,null,null,null,null,null,null,null,null,null,null,null,null,null,null,null,null,null,null,null,"DCE OIL OP","PRE SEA TRAINING",null,"HUMBERSIDE","TUVALU","TUVALU",null,null,null,null,null,null,null,"TUVALU",null,null,null,"YER",null,"6TM 410 LL"]
[null,null,null,null,null,null,null,null,null,null,null,null,null,null,null,null,null,null,null,null,null,null,null,null,null,null,null,null,null,"DCE OIL OPERATION","PREPARATION COURSE OF MEO CLASS IV",null,"HYDERABAD","UGANDAN","UGANDAN",null,null,null,null,null,null,null,"UGANDA",null,null,null,"ZAR",null,"6UEC37/LA"]
[null,null,null,null,null,null,null,null,null,null,null,null,null,null,null,null,null,null,null,null,null,null,null,null,null,null,null,null,null,"DCE OIL OPERATIONAL","PREPARTORY COURSE FOR MEO CL IV",null,"IBIZA","UKRAINIAN","UKRAINIAN",null,null,null,null,null,null,null,"UKRAINE",null,null,null,"ZMK",null,"6UEC37LA"]
[null,null,null,null,null,null,null,null,null,null,null,null,null,null,null,null,null,null,null,null,null,null,null,null,null,null,null,null,null,"DCE OIL OPRATION","PRE-SEA",null,"IMPHAL","UNITED ARAB EMIRATES","UNITED ARAB EMIRATES",null,null,null,null,null,null,null,"UNITED ARAB EMIRATES",null,null,null,"ZRZ",null,"6UEC45LA"]
[null,null,null,null,null,null,null,null,null,null,null,null,null,null,null,null,null,null,null,null,null,null,null,null,null,null,null,null,null,"DCE OIL OPS","PRE-SEA COURSE FOR G.P. RATINGS",null,"INCHEON","UNITED KINGDOM","UNITED KINGDOM",null,null,null,null,null,null,null,"UNITED KINGDOM",null,null,null,"ZWD",null,"6ZA40S"]
[null,null,null,null,null,null,null,null,null,null,null,null,null,null,null,null,null,null,null,null,null,null,null,null,null,null,null,null,null,"DCE OIL PANAMA","PRE-SEA COURSE FOR RATING",null,"INDORE","UNKNOWN-WRONG","UNKNOWN",null,null,null,null,null,null,null,"UNKNOWN-WRONG",null,null,null,null,null,"7 RND 68"]
[null,null,null,null,null,null,null,null,null,null,null,null,null,null,null,null,null,null,null,null,null,null,null,null,null,null,null,null,null,"DCE OIL SUPPORT","PROFICIENCY IN FRB",null,"ISTANBUL","URUGUAY","URUGUAY",null,null,null,null,null,null,null,"URUGUAY",null,null,null,null,null,"7 RND 90"]
[null,null,null,null,null,null,null,null,null,null,null,null,null,null,null,null,null,null,null,null,null,null,null,null,null,null,null,null,null,"DCE OIL V/1  A-V/1  PAR.1-7","PSC",null,"JABALPUR","UZBEKISTAN","UZBEKISTAN",null,null,null,null,null,null,null,"USA",null,null,null,null,null,"7 RTA 62"]
[null,null,null,null,null,null,null,null,null,null,null,null,null,null,null,null,null,null,null,null,null,null,null,null,null,null,null,null,null,"DECK WATCH-KEEPING","PSC RB (OTFRB)",null,"JAGDALPUR","VANUATU","VANUATU",null,null,null,null,null,null,null,"UZBEKISTAN",null,null,null,null,null,"7 UEC 52/105D"]
[null,null,null,null,null,null,null,null,null,null,null,null,null,null,null,null,null,null,null,null,null,null,null,null,null,null,null,null,null,"ENG FISHING VESSELS (MOTOR)","PSCRB",null,"JAIPUR","VENEZUELAN","VENEZUELAN",null,null,null,null,null,null,null,"VANUATU",null,null,null,null,null,"7 UEC 52/105E"]
[null,null,null,null,null,null,null,null,null,null,null,null,null,null,null,null,null,null,null,null,null,null,null,null,null,null,null,null,null,"FG MASTER","PSCRB (PANAMA)",null,"JAISALMER","VIETNAM","VIETNAM",null,null,null,null,null,null,null,"VENEZUELA",null,null,null,null,null,"7 UEC 60 LS"]
[null,null,null,null,null,null,null,null,null,null,null,null,null,null,null,null,null,null,null,null,null,null,null,null,null,null,null,null,null,"FLAG COC","PSCRB (SURVIVAL)",null,"JAKARTA","VIETNAMESE","VIETNAMESE",null,null,null,null,null,null,null,"VIETNAM",null,null,null,null,null,"7 UEC 60/125E"]
[null,null,null,null,null,null,null,null,null,null,null,null,null,null,null,null,null,null,null,null,null,null,null,null,null,null,null,null,null,"FLAG COC -","PSCRB ENDORSEMENT",null,"JAMMU","VIRGIN ISLANDS (BRITISH)","VIRGIN ISLANDS (BRITISH)",null,null,null,null,null,null,null,"VIRGIN ISLANDS (BRITISH)",null,null,null,null,null,"7 UEC 65/135D"]
[null,null,null,null,null,null,null,null,null,null,null,null,null,null,null,null,null,null,null,null,null,null,null,null,null,null,null,null,null,"FLAG COC 2 MATE F.G","PSF",null,"JAMNAGAR","VIRGIN ISLANDS (US)","VIRGIN ISLANDS (US)",null,null,null,null,null,null,null,"VIRGIN ISLANDS(US)",null,null,null,null,null,"7 UEC 65/135E"]
[null,null,null,null,null,null,null,null,null,null,null,null,null,null,null,null,null,null,null,null,null,null,null,null,null,null,null,null,null,"FLAG COC 2/ENG. LEA","PSF.",null,"JAMSHEDPUR","WESTERN SAMOA","WESTERN SAMOA",null,null,null,null,null,null,null,"WESTERN SAMOA",null,null,null,null,null,"7 UEC 85/180D"]
[null,null,null,null,null,null,null,null,null,null,null,null,null,null,null,null,null,null,null,null,null,null,null,null,null,null,null,null,null,"FLAG COC 2ND MATE","PSSR",null,"JEYPORE","WINDWARD ISLANDS","WINDWARD ISLANDS",null,null,null,null,null,null,null,"WINDWARD ISLANDS",null,null,null,null,null,"7 UEC 85/180E"]
[null,null,null,null,null,null,null,null,null,null,null,null,null,null,null,null,null,null,null,null,null,null,null,null,null,null,null,null,null,"FLAG COC 2ND MATE F.G","PST",null,"JODHPUR","YEMEN","YEMEN",null,null,null,null,null,null,null,"YEMEN",null,null,null,null,null,"7 UET 39/65C"]
[null,null,null,null,null,null,null,null,null,null,null,null,null,null,null,null,null,null,null,null,null,null,null,null,null,null,null,null,null,"FLAG COC 3 RD OFFICER","PST (SURVIVAL)",null,"JOHANNESBURG","YUGOSLAVIAN","YUGOSLAVIAN",null,null,null,null,null,null,null,"YUGOSLAVIA",null,null,null,null,null,"7 UET 45/80D"]
[null,null,null,null,null,null,null,null,null,null,null,null,null,null,null,null,null,null,null,null,null,null,null,null,null,null,null,null,null,"FLAG COC 3RD DECK OFF","RADAR",null,"JORHAT","ZAIRE","ZAIRE",null,null,null,null,null,null,null,"ZAIRE",null,null,null,null,null,"7 UET 52/90D"]
[null,null,null,null,null,null,null,null,null,null,null,null,null,null,null,null,null,null,null,null,null,null,null,null,null,null,null,null,null,"FLAG COC CH. ENGINEER","RADAR ARPA,& NAVIGATION SIMULATOR",null,"KAILASHAHAR",null,null,null,null,null,null,null,null,null,null,null,null,null,null,null,"74 VTBF 140"]
[null,null,null,null,null,null,null,null,null,null,null,null,null,null,null,null,null,null,null,null,null,null,null,null,null,null,null,null,null,"FLAG COC CLASS - 4 [M]","RADAR OBSERVATION & PLOTTING",null,"KALYAN",null,null,null,null,null,null,null,null,null,null,null,null,null,null,null,"74 VTBF 160"]
[null,null,null,null,null,null,null,null,null,null,null,null,null,null,null,null,null,null,null,null,null,null,null,null,null,null,null,null,null,"FLAG COC CLASS 1","RADAR OBSERVER",null,"KAMALPUR",null,null,null,null,null,null,null,null,null,null,null,null,null,null,null,"74 VTF 140"]
[null,null,null,null,null,null,null,null,null,null,null,null,null,null,null,null,null,null,null,null,null,null,null,null,null,null,null,null,null,"FLAG COC CLASS 3RD","RADAR OBSERVERS COURSE",null,"KANDLA",null,null,null,null,null,null,null,null,null,null,null,null,null,null,null,"74 VTF 160"]
[null,null,null,null,null,null,null,null,null,null,null,null,null,null,null,null,null,null,null,null,null,null,null,null,null,null,null,null,null,"FLAG COC CLASS 4(M)","RADAR SIMULATOR (RANSCO)",null,"KANPUR",null,null,null,null,null,null,null,null,null,null,null,null,null,null,null,"774 VT 2BF 160"]
[null,null,null,null,null,null,null,null,null,null,null,null,null,null,null,null,null,null,null,null,null,null,null,null,null,null,null,null,null,"FLAG COC CLASSIV","RADAR SIMULATOR / RANSCO",null,"KARACHI",null,null,null,null,null,null,null,null,null,null,null,null,null,null,null,"7K 45 GF"]
[null,null,null,null,null,null,null,null,null,null,null,null,null,null,null,null,null,null,null,null,null,null,null,null,null,null,null,null,null,"FLAG COC COE","RADAR, ARPA & NAVIGATION SIMULATOR",null,"KESHOD",null,null,null,null,null,null,null,null,null,null,null,null,null,null,null,"7K 62 EF"]
[null,null,null,null,null,null,null,null,null,null,null,null,null,null,null,null,null,null,null,null,null,null,null,null,null,null,null,null,null,"FLAG COC FISHING MATE","RAFF",null,"KHAJURAHO",null,null,null,null,null,null,null,null,null,null,null,null,null,null,null,"7K 67 GF"]
[null,null,null,null,null,null,null,null,null,null,null,null,null,null,null,null,null,null,null,null,null,null,null,null,null,null,null,null,null,"FLAG COC II","RANSCO",null,"KHOWAI",null,null,null,null,null,null,null,null,null,null,null,null,null,null,null,"7K 74 EF"]
[null,null,null,null,null,null,null,null,null,null,null,null,null,null,null,null,null,null,null,null,null,null,null,null,null,null,null,null,null,"FLAG COC MASTER","RAUT 78-95",null,"KIEV",null,null,null,null,null,null,null,null,null,null,null,null,null,null,null,"7K 80MC-C"]
[null,null,null,null,null,null,null,null,null,null,null,null,null,null,null,null,null,null,null,null,null,null,null,null,null,null,null,null,null,"FLAG COC MASTER LESS THAN 3000 GRT","RAVALIDATION",null,"KINGSTON",null,null,null,null,null,null,null,null,null,null,null,null,null,null,null,"7K 90 MC-C"]
[null,null,null,null,null,null,null,null,null,null,null,null,null,null,null,null,null,null,null,null,null,null,null,null,null,null,null,null,null,"FLAG COC NCV","REFERSHER AND UPDATING TRAINING",null,"KOLAGHAT",null,null,null,null,null,null,null,null,null,null,null,null,null,null,null,"7KZ"]
[null,null,null,null,null,null,null,null,null,null,null,null,null,null,null,null,null,null,null,null,null,null,null,null,null,null,null,null,null,"FLAG COC OFFICERS","REFRESHER & UPDATING TRAINING",null,"KOLHAPUR",null,null,null,null,null,null,null,null,null,null,null,null,null,null,null,"7L 35MC"]
[null,null,null,null,null,null,null,null,null,null,null,null,null,null,null,null,null,null,null,null,null,null,null,null,null,null,null,null,null,"FLAG COC OICNW(NCV)","REVALIDATION",null,"KOTA",null,null,null,null,null,null,null,null,null,null,null,null,null,null,null,"7L 52/55A"]
[null,null,null,null,null,null,null,null,null,null,null,null,null,null,null,null,null,null,null,null,null,null,null,null,null,null,null,null,null,"FLAG COC ONE","REVALIDATION AND UP GRADATION COURSE",null,"KOTA KINABALU",null,null,null,null,null,null,null,null,null,null,null,null,null,null,null,"7L 60 MC"]
[null,null,null,null,null,null,null,null,null,null,null,null,null,null,null,null,null,null,null,null,null,null,null,null,null,null,null,null,null,"FLAG COC OOW","REVALIDATION COURCE FOR ENGINEER OFFICER",null,"KOZHIKODE",null,null,null,null,null,null,null,null,null,null,null,null,null,null,null,"7L 70MC"]
[null,null,null,null,null,null,null,null,null,null,null,null,null,null,null,null,null,null,null,null,null,null,null,null,null,null,null,null,null,"FLAG COC OPERATIOAL LEVEL","REVALIDATION COURCE FOR MASTER& DECK OFFICER",null,"KUANTAN",null,null,null,null,null,null,null,null,null,null,null,null,null,null,null,"7L 80GFCA"]
[null,null,null,null,null,null,null,null,null,null,null,null,null,null,null,null,null,null,null,null,null,null,null,null,null,null,null,null,null,"FLAG DCE","REVALIDATION COURSE",null,"KULU",null,null,null,null,null,null,null,null,null,null,null,null,null,null,null,"7L55GFCA"]
[null,null,null,null,null,null,null,null,null,null,null,null,null,null,null,null,null,null,null,null,null,null,null,null,null,null,null,null,null,"FLAG DCE -","REVALIDATION COURSE FOR ENGINEER OFFICERS",null,"LAHORE",null,null,null,null,null,null,null,null,null,null,null,null,null,null,null,"7L67GFCA"]
[null,null,null,null,null,null,null,null,null,null,null,null,null,null,null,null,null,null,null,null,null,null,null,null,null,null,null,null,null,"FLAG DCE LEVEL 2","REVALIDATION COURSE FOR MASTER AND DECK OFFICER",null,"LAS PALMAS",null,null,null,null,null,null,null,null,null,null,null,null,null,null,null,"7RLB90"]
[null,null,null,null,null,null,null,null,null,null,null,null,null,null,null,null,null,null,null,null,null,null,null,null,null,null,null,null,null,"FLAG DCE MNGMNT","REVALIDATION FOR MASTER & DECK OFF.",null,"LAS PIEDRAS",null,null,null,null,null,null,null,null,null,null,null,null,null,null,null,"7RND 90M"]
[null,null,null,null,null,null,null,null,null,null,null,null,null,null,null,null,null,null,null,null,null,null,null,null,null,null,null,null,null,"FLAG GMDSS","REVD. COURSE",null,"LEH",null,null,null,null,null,null,null,null,null,null,null,null,null,null,null,"7RND76M"]
[null,null,null,null,null,null,null,null,null,null,null,null,null,null,null,null,null,null,null,null,null,null,null,null,null,null,null,null,null,"FLAG GMDSS -","RISK ASSESSMENT COURSE",null,"LIANYUNGANG",null,null,null,null,null,null,null,null,null,null,null,null,null,null,null,"7RTA 62U"]
[null,null,null,null,null,null,null,null,null,null,null,null,null,null,null,null,null,null,null,null,null,null,null,null,null,null,null,null,null,"FLAG GMDSS GOC","ROC",null,"LILABARI",null,null,null,null,null,null,null,null,null,null,null,null,null,null,null,"7RTA72U-B"]
[null,null,null,null,null,null,null,null,null,null,null,null,null,null,null,null,null,null,null,null,null,null,null,null,null,null,null,null,null,"GMDSS","ROC & ARPA",null,"LIMA",null,null,null,null,null,null,null,null,null,null,null,null,null,null,null,"7RTA84"]
[null,null,null,null,null,null,null,null,null,null,null,null,null,null,null,null,null,null,null,null,null,null,null,null,null,null,null,null,null,"GMDSS -","ROC / ARPA",null,"LISBON",null,null,null,null,null,null,null,null,null,null,null,null,null,null,null,"7RTA84C(U)"]
[null,null,null,null,null,null,null,null,null,null,null,null,null,null,null,null,null,null,null,null,null,null,null,null,null,null,null,null,null,"GMDSS 2M FG","ROC/ARPA",null,"LIVERPOOL",null,null,null,null,null,null,null,null,null,null,null,null,null,null,null,"7S 35MC"]
[null,null,null,null,null,null,null,null,null,null,null,null,null,null,null,null,null,null,null,null,null,null,null,null,null,null,null,null,null,"GMDSS 2MFG","ROCA",null,"LOS ANGELS",null,null,null,null,null,null,null,null,null,null,null,null,null,null,null,"7S35MC/SNO"]
[null,null,null,null,null,null,null,null,null,null,null,null,null,null,null,null,null,null,null,null,null,null,null,null,null,null,null,null,null,"GMDSS 2ND MATE","ROSC",null,"LUANDA",null,null,null,null,null,null,null,null,null,null,null,null,null,null,null,"7S50MC"]
[null,null,null,null,null,null,null,null,null,null,null,null,null,null,null,null,null,null,null,null,null,null,null,null,null,null,null,null,null,"GMDSS 2ND MATE FG","RUTC",null,"LUCKNOW",null,null,null,null,null,null,null,null,null,null,null,null,null,null,null,"7S60 MC"]
[null,null,null,null,null,null,null,null,null,null,null,null,null,null,null,null,null,null,null,null,null,null,null,null,null,null,null,null,null,"GMDSS 2ND MATE FOREIGN GOING","S.S.O.C.",null,"LUDHIANA",null,null,null,null,null,null,null,null,null,null,null,null,null,null,null,"7S60MC-C"]
[null,null,null,null,null,null,null,null,null,null,null,null,null,null,null,null,null,null,null,null,null,null,null,null,null,null,null,null,null,"GMDSS 2ND/OFF","SAS / PSCRB (SURVIVAL)",null,"MACKAY",null,null,null,null,null,null,null,null,null,null,null,null,null,null,null,"7S60MC-C"]
[null,null,null,null,null,null,null,null,null,null,null,null,null,null,null,null,null,null,null,null,null,null,null,null,null,null,null,null,null,"GMDSS COC","SAS / PST",null,"MADRAS",null,null,null,null,null,null,null,null,null,null,null,null,null,null,null,"7S70MC"]
[null,null,null,null,null,null,null,null,null,null,null,null,null,null,null,null,null,null,null,null,null,null,null,null,null,null,null,null,null,"GMDSS GENERAL","SAS / PST(C)",null,"MADRID",null,null,null,null,null,null,null,null,null,null,null,null,null,null,null,"7UEC60LS M-0"]
[null,null,null,null,null,null,null,null,null,null,null,null,null,null,null,null,null,null,null,null,null,null,null,null,null,null,null,null,null,"GMDSS GENERAL OPERATOR","SAS / PST(C) (SURVIVAL)",null,"MADURAI",null,null,null,null,null,null,null,null,null,null,null,null,null,null,null,"7UEC75LSII"]
[null,null,null,null,null,null,null,null,null,null,null,null,null,null,null,null,null,null,null,null,null,null,null,null,null,null,null,null,null,"GMDSS GENERAL RADIO OPERATOR","SAS / PST(C) /",null,"MAHE ISLAND",null,null,null,null,null,null,null,null,null,null,null,null,null,null,null,"7VT 2BF"]
[null,null,null,null,null,null,null,null,null,null,null,null,null,null,null,null,null,null,null,null,null,null,null,null,null,null,null,null,null,"GMDSS GMDSS (GOC)","SAS / PST(C) / PSCRB (SURVIVAL)",null,"MALAGA",null,null,null,null,null,null,null,null,null,null,null,null,null,null,null,"8 M281 AK"]
[null,null,null,null,null,null,null,null,null,null,null,null,null,null,null,null,null,null,null,null,null,null,null,null,null,null,null,null,null,"GMDSS GOC","SHIP CAPTAIN MEDICAL",null,"MALDA",null,null,null,null,null,null,null,null,null,null,null,null,null,null,null,"8 M282 AK"]
[null,null,null,null,null,null,null,null,null,null,null,null,null,null,null,null,null,null,null,null,null,null,null,null,null,null,null,null,null,"GMDSS GOC - WPC","SHIP HANDLING SIMULATOR",null,"MANGALORE",null,null,null,null,null,null,null,null,null,null,null,null,null,null,null,"8 M332"]
[null,null,null,null,null,null,null,null,null,null,null,null,null,null,null,null,null,null,null,null,null,null,null,null,null,null,null,null,null,"GMDSS GOC-1","SHIP MANOEUVRING SIMULATOR AND BRIDGE TEAM WORK",null,"MANILA",null,null,null,null,null,null,null,null,null,null,null,null,null,null,null,"8 M35"]
[null,null,null,null,null,null,null,null,null,null,null,null,null,null,null,null,null,null,null,null,null,null,null,null,null,null,null,null,null,"GMDSS IV/2","SHIP MASTER MEDICARE (C/OF & MASTER)",null,"MANZANILLO",null,null,null,null,null,null,null,null,null,null,null,null,null,null,null,"8 M451"]
[null,null,null,null,null,null,null,null,null,null,null,null,null,null,null,null,null,null,null,null,null,null,null,null,null,null,null,null,null,"GMDSS MASTER F.G","SHIP SECURITY AWARENESS",null,"MARACAIBO",null,null,null,null,null,null,null,null,null,null,null,null,null,null,null,"8 M451 AK"]
[null,null,null,null,null,null,null,null,null,null,null,null,null,null,null,null,null,null,null,null,null,null,null,null,null,null,null,null,null,"GMDSS NO","SHIP SECURITY OFFICER",null,"MAURITIUS",null,null,null,null,null,null,null,null,null,null,null,null,null,null,null,"8 M452 AK"]
[null,null,null,null,null,null,null,null,null,null,null,null,null,null,null,null,null,null,null,null,null,null,null,null,null,null,null,null,null,"GMDSS OOW","SHIP SECURITY OFFICER COURSE",null,"MAZATLAN",null,null,null,null,null,null,null,null,null,null,null,null,null,null,null,"8 M453 AK"]
[null,null,null,null,null,null,null,null,null,null,null,null,null,null,null,null,null,null,null,null,null,null,null,null,null,null,null,null,null,"GMDSS OPERATION","SHIP SECURITY TRAINING",null,"MELBOURNE",null,null,null,null,null,null,null,null,null,null,null,null,null,null,null,"8 M453 B/C"]
[null,null,null,null,null,null,null,null,null,null,null,null,null,null,null,null,null,null,null,null,null,null,null,null,null,null,null,null,null,"GMDSS OPERATIONAL","SHIPBOARD CRANE OPERATOR (HYDRAULIC)",null,"MINSK 1",null,null,null,null,null,null,null,null,null,null,null,null,null,null,null,"8 M551"]
[null,null,null,null,null,null,null,null,null,null,null,null,null,null,null,null,null,null,null,null,null,null,null,null,null,null,null,null,null,"GMDSS OPERATOR","SHIPBOARD CRANE OPERATORS COURSE",null,"MINSK 2",null,null,null,null,null,null,null,null,null,null,null,null,null,null,null,"8 M551 AK"]
[null,null,null,null,null,null,null,null,null,null,null,null,null,null,null,null,null,null,null,null,null,null,null,null,null,null,null,null,null,"GMDSS OPS","SIGNAL CERTIFICATE",null,"MOHANBARI",null,null,null,null,null,null,null,null,null,null,null,null,null,null,null,"8 M552"]
[null,null,null,null,null,null,null,null,null,null,null,null,null,null,null,null,null,null,null,null,null,null,null,null,null,null,null,null,null,"GMDSS PANAMA","SISC",null,"MOKPO",null,null,null,null,null,null,null,null,null,null,null,null,null,null,null,"8 M552 AK"]
[null,null,null,null,null,null,null,null,null,null,null,null,null,null,null,null,null,null,null,null,null,null,null,null,null,null,null,null,null,"GMDSS R/O","SMS",null,"MOLDE",null,null,null,null,null,null,null,null,null,null,null,null,null,null,null,"8 M601"]
[null,null,null,null,null,null,null,null,null,null,null,null,null,null,null,null,null,null,null,null,null,null,null,null,null,null,null,null,null,"GMDSS RADIO OFFI.","SMS & BTW",null,"MOSCOW",null,null,null,null,null,null,null,null,null,null,null,null,null,null,null,"8 RND 68"]
[null,null,null,null,null,null,null,null,null,null,null,null,null,null,null,null,null,null,null,null,null,null,null,null,null,null,null,null,null,"GMDSS RADIO OFFICER","SOTO",null,"MUBARAKPUR",null,null,null,null,null,null,null,null,null,null,null,null,null,null,null,"8 RND 90"]
[null,null,null,null,null,null,null,null,null,null,null,null,null,null,null,null,null,null,null,null,null,null,null,null,null,null,null,null,null,"GMDSS RADIO OPERATOR COC","SPECIALISED TRAINING PROG ON (OIL)",null,"MUMBAI",null,null,null,null,null,null,null,null,null,null,null,null,null,null,null,"8 UEC 52/105D"]
[null,null,null,null,null,null,null,null,null,null,null,null,null,null,null,null,null,null,null,null,null,null,null,null,null,null,null,null,null,"GMDSS(E)","SPECIALISED TRAINING PROGRAMME ON OIL TANKER.",null,"MUNICH",null,null,null,null,null,null,null,null,null,null,null,null,null,null,null,"8 UEC 52/105E"]
[null,null,null,null,null,null,null,null,null,null,null,null,null,null,null,null,null,null,null,null,null,null,null,null,null,null,null,null,null,"GMDSS(E) -","SSO",null,"MUZAFFARNAGAR",null,null,null,null,null,null,null,null,null,null,null,null,null,null,null,"8 UEC 60 LS"]
[null,null,null,null,null,null,null,null,null,null,null,null,null,null,null,null,null,null,null,null,null,null,null,null,null,null,null,null,null,"GMDSS(E) 2M FG","SSOC",null,"MUZAFFARPUR",null,null,null,null,null,null,null,null,null,null,null,null,null,null,null,"8 UEC 60/125E"]
[null,null,null,null,null,null,null,null,null,null,null,null,null,null,null,null,null,null,null,null,null,null,null,null,null,null,null,null,null,"GMDSS(E) 2MFG","STEERING SIMULATOR",null,"MYSORE",null,null,null,null,null,null,null,null,null,null,null,null,null,null,null,"8 UEC 65/135D"]
[null,null,null,null,null,null,null,null,null,null,null,null,null,null,null,null,null,null,null,null,null,null,null,null,null,null,null,null,null,"GMDSS(E) 2ND MATE FG","STPOTO",null,"NAGOYA",null,null,null,null,null,null,null,null,null,null,null,null,null,null,null,"8 UEC 65/135E"]
[null,null,null,null,null,null,null,null,null,null,null,null,null,null,null,null,null,null,null,null,null,null,null,null,null,null,null,null,null,"GMDSS(E) 2ND MATE FOREIGN GOING","SURVIVAL AT SEA",null,"NAGPUR",null,null,null,null,null,null,null,null,null,null,null,null,null,null,null,"8 UEC 85/180D"]
[null,null,null,null,null,null,null,null,null,null,null,null,null,null,null,null,null,null,null,null,null,null,null,null,null,null,null,null,null,"GMDSS(E) 2ND/OFF","TANKER",null,"NANDED",null,null,null,null,null,null,null,null,null,null,null,null,null,null,null,"8 UEC 85/180E"]
[null,null,null,null,null,null,null,null,null,null,null,null,null,null,null,null,null,null,null,null,null,null,null,null,null,null,null,null,null,"GMDSS(E) ENDORSE","TANKER FAMILIARIZATION",null,"NANJING",null,null,null,null,null,null,null,null,null,null,null,null,null,null,null,"8 UET 39/65C"]
[null,null,null,null,null,null,null,null,null,null,null,null,null,null,null,null,null,null,null,null,null,null,null,null,null,null,null,null,null,"GMDSS(E) GENERAL","TANKER SAFETY",null,"NARITA",null,null,null,null,null,null,null,null,null,null,null,null,null,null,null,"8 UET 45/80D"]
[null,null,null,null,null,null,null,null,null,null,null,null,null,null,null,null,null,null,null,null,null,null,null,null,null,null,null,null,null,"GMDSS(E) GENERAL OPERATOR","TASCO",null,"NASIK",null,null,null,null,null,null,null,null,null,null,null,null,null,null,null,"8 UET 52/90D"]
[null,null,null,null,null,null,null,null,null,null,null,null,null,null,null,null,null,null,null,null,null,null,null,null,null,null,null,null,null,"GMDSS(E) GOC","TASCO / TANK. FAMILARISATION",null,"NAWANSHAHAR",null,null,null,null,null,null,null,null,null,null,null,null,null,null,null,"84 VT 2BF 180"]
[null,null,null,null,null,null,null,null,null,null,null,null,null,null,null,null,null,null,null,null,null,null,null,null,null,null,null,null,null,"GMDSS(E) GOC (E)","TASCO / TANK. FAMILARISATION (OIL)",null,"NEW DELHI",null,null,null,null,null,null,null,null,null,null,null,null,null,null,null,"84 VT 2BF 6"]
[null,null,null,null,null,null,null,null,null,null,null,null,null,null,null,null,null,null,null,null,null,null,null,null,null,null,null,null,null,"GMDSS(E) GOC END","TASCO / TANK. FAMILARISATION((OIL)",null,"NEW PLYMOUTH",null,null,null,null,null,null,null,null,null,null,null,null,null,null,null,"850 VT 2BF"]
[null,null,null,null,null,null,null,null,null,null,null,null,null,null,null,null,null,null,null,null,null,null,null,null,null,null,null,null,null,"GMDSS(E) GOC(E)","TRAINING COURCE FOR SHIPS COOK",null,"NEWCASTLE",null,null,null,null,null,null,null,null,null,null,null,null,null,null,null,"8570 MC"]
[null,null,null,null,null,null,null,null,null,null,null,null,null,null,null,null,null,null,null,null,null,null,null,null,null,null,null,null,null,"GMDSS(E) GOC/MMD","TRAINING FOR TRAINERS",null,"NEWQUAY",null,null,null,null,null,null,null,null,null,null,null,null,null,null,null,"874 VT 2BF"]
[null,null,null,null,null,null,null,null,null,null,null,null,null,null,null,null,null,null,null,null,null,null,null,null,null,null,null,null,null,"GMDSS(E) GOC-1","TRAINING FOR TRAINERS COURSE",null,"NEYVELI",null,null,null,null,null,null,null,null,null,null,null,null,null,null,null,"8K 84 EF"]
[null,null,null,null,null,null,null,null,null,null,null,null,null,null,null,null,null,null,null,null,null,null,null,null,null,null,null,null,null,"GMDSS(E) GOCE","WATCH KEEPING",null,"NHA TRANG",null,null,null,null,null,null,null,null,null,null,null,null,null,null,null,"8K80MC-C"]
[null,null,null,null,null,null,null,null,null,null,null,null,null,null,null,null,null,null,null,null,null,null,null,null,null,null,null,null,null,"GMDSS(E) INDOCEMNT","WATCHKEEPING",null,"NINGBO",null,null,null,null,null,null,null,null,null,null,null,null,null,null,null,"8K90MC-C"]
[null,null,null,null,null,null,null,null,null,null,null,null,null,null,null,null,null,null,null,null,null,null,null,null,null,null,null,null,null,"GMDSS(E) INDORSEMENT","WATCHKEEPING PANAMA",null,"NOVOROSSIYSK",null,null,null,null,null,null,null,null,null,null,null,null,null,null,null,"8L 55 GF"]
[null,null,null,null,null,null,null,null,null,null,null,null,null,null,null,null,null,null,null,null,null,null,null,null,null,null,null,null,null,"GMDSS(E) IV/2","WATCHKEEPPING",null,"ODENSE",null,null,null,null,null,null,null,null,null,null,null,null,null,null,null,"8L 67 GFCA"]
[null,null,null,null,null,null,null,null,null,null,null,null,null,null,null,null,null,null,null,null,null,null,null,null,null,null,null,null,null,"GMDSS(E) MASTER F.G","YELLOW FEVER",null,"ODESSA",null,null,null,null,null,null,null,null,null,null,null,null,null,null,null,"8L35MC"]
[null,null,null,null,null,null,null,null,null,null,null,null,null,null,null,null,null,null,null,null,null,null,null,null,null,null,null,null,null,"GMDSS(E) NOT RESTRICTED",null,null,"OITA",null,null,null,null,null,null,null,null,null,null,null,null,null,null,null,"8L38"]
[null,null,null,null,null,null,null,null,null,null,null,null,null,null,null,null,null,null,null,null,null,null,null,null,null,null,null,null,null,"GMDSS(E) OPERATIONAL",null,null,"OSAKA",null,null,null,null,null,null,null,null,null,null,null,null,null,null,null,"8L45 GFCA"]
[null,null,null,null,null,null,null,null,null,null,null,null,null,null,null,null,null,null,null,null,null,null,null,null,null,null,null,null,null,"GMDSS(E) OPERATOR",null,null,"OSLO",null,null,null,null,null,null,null,null,null,null,null,null,null,null,null,"8L45GFC"]
[null,null,null,null,null,null,null,null,null,null,null,null,null,null,null,null,null,null,null,null,null,null,null,null,null,null,null,null,null,"GMDSS(E) R/O",null,null,"OSMANABAD",null,null,null,null,null,null,null,null,null,null,null,null,null,null,null,"8L50MC"]
[null,null,null,null,null,null,null,null,null,null,null,null,null,null,null,null,null,null,null,null,null,null,null,null,null,null,null,null,null,"GMDSS(E) RADIO OFFI.",null,null,"PANAJI",null,null,null,null,null,null,null,null,null,null,null,null,null,null,null,"8M 552C"]
[null,null,null,null,null,null,null,null,null,null,null,null,null,null,null,null,null,null,null,null,null,null,null,null,null,null,null,null,null,"GMDSS(E) RADIO OFFICER",null,null,"PANAMA",null,null,null,null,null,null,null,null,null,null,null,null,null,null,null,"8M25"]
[null,null,null,null,null,null,null,null,null,null,null,null,null,null,null,null,null,null,null,null,null,null,null,null,null,null,null,null,null,"GMDSS(E) RADIO PRSNL",null,null,"PANTNAGAR",null,null,null,null,null,null,null,null,null,null,null,null,null,null,null,"8M32"]
[null,null,null,null,null,null,null,null,null,null,null,null,null,null,null,null,null,null,null,null,null,null,null,null,null,null,null,null,null,"INDIA",null,null,"PARIS",null,null,null,null,null,null,null,null,null,null,null,null,null,null,null,"8M32C"]
[null,null,null,null,null,null,null,null,null,null,null,null,null,null,null,null,null,null,null,null,null,null,null,null,null,null,null,null,null,"INDIAN",null,null,"PASSIGHAT",null,null,null,null,null,null,null,null,null,null,null,null,null,null,null,"8MU AK 551"]
[null,null,null,null,null,null,null,null,null,null,null,null,null,null,null,null,null,null,null,null,null,null,null,null,null,null,null,null,null,"INDIAN COC",null,null,"PATAN",null,null,null,null,null,null,null,null,null,null,null,null,null,null,null,"8PC2 2L"]
[null,null,null,null,null,null,null,null,null,null,null,null,null,null,null,null,null,null,null,null,null,null,null,null,null,null,null,null,null,"INDIAN DRIVER MOTOR FISHING VESSEL",null,null,"PATHANKOT",null,null,null,null,null,null,null,null,null,null,null,null,null,null,null,"8R32BC"]
[null,null,null,null,null,null,null,null,null,null,null,null,null,null,null,null,null,null,null,null,null,null,null,null,null,null,null,null,null,"INDIAN NCV (CH/OFF)",null,null,"PATNA",null,null,null,null,null,null,null,null,null,null,null,null,null,null,null,"8R32D"]
[null,null,null,null,null,null,null,null,null,null,null,null,null,null,null,null,null,null,null,null,null,null,null,null,null,null,null,null,null,"INDIAN NCV MATE(MHT)",null,null,"PEDRAS RUBRAS",null,null,null,null,null,null,null,null,null,null,null,null,null,null,null,"8RND90M"]
[null,null,null,null,null,null,null,null,null,null,null,null,null,null,null,null,null,null,null,null,null,null,null,null,null,null,null,null,null,"IV 1ST CLASS MASTER",null,null,"PENANG",null,null,null,null,null,null,null,null,null,null,null,null,null,null,null,"8RTA84"]
[null,null,null,null,null,null,null,null,null,null,null,null,null,null,null,null,null,null,null,null,null,null,null,null,null,null,null,null,null,"IV FIRST CLASS MASTER",null,null,"PERTH",null,null,null,null,null,null,null,null,null,null,null,null,null,null,null,"8S70MC"]
[null,null,null,null,null,null,null,null,null,null,null,null,null,null,null,null,null,null,null,null,null,null,null,null,null,null,null,null,null,"MARINE ENG OFF CL IV (NCV)",null,null,"PHILADELPHIA",null,null,null,null,null,null,null,null,null,null,null,null,null,null,null,"8UEC 60 LF"]
[null,null,null,null,null,null,null,null,null,null,null,null,null,null,null,null,null,null,null,null,null,null,null,null,null,null,null,null,null,"MASTER (F.G.)",null,null,"PIEDRAS NEGRAS",null,null,null,null,null,null,null,null,null,null,null,null,null,null,null,"8UEC 60 LSA"]
[null,null,null,null,null,null,null,null,null,null,null,null,null,null,null,null,null,null,null,null,null,null,null,null,null,null,null,null,null,"MASTER (F.G.) U.K",null,null,"PONDICHERRY",null,null,null,null,null,null,null,null,null,null,null,null,null,null,null,"8Z-280ET"]
[null,null,null,null,null,null,null,null,null,null,null,null,null,null,null,null,null,null,null,null,null,null,null,null,null,null,null,null,null,"MASTER HOME TRADE",null,null,"POONA",null,null,null,null,null,null,null,null,null,null,null,null,null,null,null,"9 M 32"]
[null,null,null,null,null,null,null,null,null,null,null,null,null,null,null,null,null,null,null,null,null,null,null,null,null,null,null,null,null,"MASTER HOME TRADE NCV",null,null,"PORBANDAR",null,null,null,null,null,null,null,null,null,null,null,null,null,null,null,"9 M452 AK"]
[null,null,null,null,null,null,null,null,null,null,null,null,null,null,null,null,null,null,null,null,null,null,null,null,null,null,null,null,null,"MASTER UK",null,null,"PORT ELIZABATH",null,null,null,null,null,null,null,null,null,null,null,null,null,null,null,"9 M453 AK"]
[null,null,null,null,null,null,null,null,null,null,null,null,null,null,null,null,null,null,null,null,null,null,null,null,null,null,null,null,null,"MATE (H.T.)",null,null,"PORT HEDLAND",null,null,null,null,null,null,null,null,null,null,null,null,null,null,null,"9 M453 B/C"]
[null,null,null,null,null,null,null,null,null,null,null,null,null,null,null,null,null,null,null,null,null,null,null,null,null,null,null,null,null,"MEO  CLASS III (NCV) SEO",null,null,"PORT LOUIS",null,null,null,null,null,null,null,null,null,null,null,null,null,null,null,"9 M453C"]
[null,null,null,null,null,null,null,null,null,null,null,null,null,null,null,null,null,null,null,null,null,null,null,null,null,null,null,null,null,"MEO (ELECTRICIAN)",null,null,"PORT OF SPAIN",null,null,null,null,null,null,null,null,null,null,null,null,null,null,null,"9 M551 AK"]
[null,null,null,null,null,null,null,null,null,null,null,null,null,null,null,null,null,null,null,null,null,null,null,null,null,null,null,null,null,"MEO CL III (NCV)",null,null,"PORTO",null,null,null,null,null,null,null,null,null,null,null,null,null,null,null,"9 M552"]
[null,null,null,null,null,null,null,null,null,null,null,null,null,null,null,null,null,null,null,null,null,null,null,null,null,null,null,null,null,"MEO CL IV",null,null,"PUTTAPARTHI",null,null,null,null,null,null,null,null,null,null,null,null,null,null,null,"9 M601"]
[null,null,null,null,null,null,null,null,null,null,null,null,null,null,null,null,null,null,null,null,null,null,null,null,null,null,null,null,null,"MEO CL- IV",null,null,"QINGDAO",null,null,null,null,null,null,null,null,null,null,null,null,null,null,null,"9 RND 68"]
[null,null,null,null,null,null,null,null,null,null,null,null,null,null,null,null,null,null,null,null,null,null,null,null,null,null,null,null,null,"MEO CL IV (NCV)",null,null,"RAE BARELI",null,null,null,null,null,null,null,null,null,null,null,null,null,null,null,"9 RTA 84C"]
[null,null,null,null,null,null,null,null,null,null,null,null,null,null,null,null,null,null,null,null,null,null,null,null,null,null,null,null,null,"MEO CLASS I (M)",null,null,"RAIPUR",null,null,null,null,null,null,null,null,null,null,null,null,null,null,null,"9 UEC 52/105D"]
[null,null,null,null,null,null,null,null,null,null,null,null,null,null,null,null,null,null,null,null,null,null,null,null,null,null,null,null,null,"MEO CLASS II",null,null,"RAJAHMUNDRY",null,null,null,null,null,null,null,null,null,null,null,null,null,null,null,"9 UEC 52/105E"]
[null,null,null,null,null,null,null,null,null,null,null,null,null,null,null,null,null,null,null,null,null,null,null,null,null,null,null,null,null,"MEO CLASS III",null,null,"RAJKOT",null,null,null,null,null,null,null,null,null,null,null,null,null,null,null,"9 UEC 60/125E"]
[null,null,null,null,null,null,null,null,null,null,null,null,null,null,null,null,null,null,null,null,null,null,null,null,null,null,null,null,null,"MEO CLASS III (NCV)",null,null,"RAJOURI",null,null,null,null,null,null,null,null,null,null,null,null,null,null,null,"9 UEC 65/135D"]
[null,null,null,null,null,null,null,null,null,null,null,null,null,null,null,null,null,null,null,null,null,null,null,null,null,null,null,null,null,"MEO CLASS III (NCV)SEO",null,null,"RAMAGUNDAM",null,null,null,null,null,null,null,null,null,null,null,null,null,null,null,"9 UEC 65/135E"]
[null,null,null,null,null,null,null,null,null,null,null,null,null,null,null,null,null,null,null,null,null,null,null,null,null,null,null,null,null,"MEO CLASS III NCV 2/ENG",null,null,"RANCHI",null,null,null,null,null,null,null,null,null,null,null,null,null,null,null,"9 UEC 85/180D"]
[null,null,null,null,null,null,null,null,null,null,null,null,null,null,null,null,null,null,null,null,null,null,null,null,null,null,null,null,null,"MEO CLASS IV (NCV)",null,null,"RAROTONGA",null,null,null,null,null,null,null,null,null,null,null,null,null,null,null,"9 UEC 85/180E"]
[null,null,null,null,null,null,null,null,null,null,null,null,null,null,null,null,null,null,null,null,null,null,null,null,null,null,null,null,null,"MEO CLASS IV(NCV)",null,null,"RA'S AL KHAYMAH",null,null,null,null,null,null,null,null,null,null,null,null,null,null,null,"9 UET 45/80D"]
[null,null,null,null,null,null,null,null,null,null,null,null,null,null,null,null,null,null,null,null,null,null,null,null,null,null,null,null,null,"MEO CL-III (2/ENG)",null,null,"RATNAGIRI",null,null,null,null,null,null,null,null,null,null,null,null,null,null,null,"9 UET 52/90D"]
[null,null,null,null,null,null,null,null,null,null,null,null,null,null,null,null,null,null,null,null,null,null,null,null,null,null,null,null,null,"MOT CLASS IV PART-A",null,null,"REWA",null,null,null,null,null,null,null,null,null,null,null,null,null,null,null,"984 VT2 BF 180"]
[null,null,null,null,null,null,null,null,null,null,null,null,null,null,null,null,null,null,null,null,null,null,null,null,null,null,null,null,null,"NCV",null,null,"RICHARDS BAY",null,null,null,null,null,null,null,null,null,null,null,null,null,null,null,"9K 45 GF"]
[null,null,null,null,null,null,null,null,null,null,null,null,null,null,null,null,null,null,null,null,null,null,null,null,null,null,null,null,null,"NCV - CL3",null,null,"RIO DE JANEIRO",null,null,null,null,null,null,null,null,null,null,null,null,null,null,null,"9K90 MC-C"]
[null,null,null,null,null,null,null,null,null,null,null,null,null,null,null,null,null,null,null,null,null,null,null,null,null,null,null,null,null,"NCV CHIEF  MATE",null,null,"RIO GRANDE",null,null,null,null,null,null,null,null,null,null,null,null,null,null,null,"9L 46C"]
[null,null,null,null,null,null,null,null,null,null,null,null,null,null,null,null,null,null,null,null,null,null,null,null,null,null,null,null,null,"NCV CLASS III",null,null,"RIO GRANDE TF",null,null,null,null,null,null,null,null,null,null,null,null,null,null,null,"9L32/40"]
[null,null,null,null,null,null,null,null,null,null,null,null,null,null,null,null,null,null,null,null,null,null,null,null,null,null,null,null,null,"NCV HOME TRADE",null,null,"ROME",null,null,null,null,null,null,null,null,null,null,null,null,null,null,null,"9M 453 AK"]
[null,null,null,null,null,null,null,null,null,null,null,null,null,null,null,null,null,null,null,null,null,null,null,null,null,null,null,null,null,"NCV IV",null,null,"ROSTOV",null,null,null,null,null,null,null,null,null,null,null,null,null,null,null,"A20"]
[null,null,null,null,null,null,null,null,null,null,null,null,null,null,null,null,null,null,null,null,null,null,null,null,null,null,null,null,null,"NCV MASTER",null,null,"ROTORUA",null,null,null,null,null,null,null,null,null,null,null,null,null,null,null,"A900.6L"]
[null,null,null,null,null,null,null,null,null,null,null,null,null,null,null,null,null,null,null,null,null,null,null,null,null,null,null,null,null,"NCV/NWKO",null,null,"ROTTERDAM",null,null,null,null,null,null,null,null,null,null,null,null,null,null,null,"AKASAKA GENERIC"]
[null,null,null,null,null,null,null,null,null,null,null,null,null,null,null,null,null,null,null,null,null,null,null,null,null,null,null,null,null,"NWKO (NCV)",null,null,"ROURKELA",null,null,null,null,null,null,null,null,null,null,null,null,null,null,null,"ALPHA GENERIC"]
[null,null,null,null,null,null,null,null,null,null,null,null,null,null,null,null,null,null,null,null,null,null,null,null,null,null,null,null,null,"NWKO (NCV) PART A",null,null,"RUPSI",null,null,null,null,null,null,null,null,null,null,null,null,null,null,null,"ALSSDM6"]
[null,null,null,null,null,null,null,null,null,null,null,null,null,null,null,null,null,null,null,null,null,null,null,null,null,null,null,null,null,"NZ COC MEC 3",null,null,"SAN JUAN",null,null,null,null,null,null,null,null,null,null,null,null,null,null,null,"AP 32/80"]
[null,null,null,null,null,null,null,null,null,null,null,null,null,null,null,null,null,null,null,null,null,null,null,null,null,null,null,null,null,"OTHERS",null,null,"SANTO DOMINGO",null,null,null,null,null,null,null,null,null,null,null,null,null,null,null,"AS 25"]
[null,null,null,null,null,null,null,null,null,null,null,null,null,null,null,null,null,null,null,null,null,null,null,null,null,null,null,null,null,"OTHERS -----",null,null,"SANTO DOMINGO-SDQ",null,null,null,null,null,null,null,null,null,null,null,null,null,null,null,"AT 25"]
[null,null,null,null,null,null,null,null,null,null,null,null,null,null,null,null,null,null,null,null,null,null,null,null,null,null,null,null,null,"OTHERS 2/OFF",null,null,"SAO PAULO",null,null,null,null,null,null,null,null,null,null,null,null,null,null,null,"B & W GENERIC"]
[null,null,null,null,null,null,null,null,null,null,null,null,null,null,null,null,null,null,null,null,null,null,null,null,null,null,null,null,null,"OTHERS C.I.F.N.E.T",null,null,"SAPPORO",null,null,null,null,null,null,null,null,null,null,null,null,null,null,null,"B52 TS"]
[null,null,null,null,null,null,null,null,null,null,null,null,null,null,null,null,null,null,null,null,null,null,null,null,null,null,null,null,null,"OTHERS MASTER",null,null,"SATNA",null,null,null,null,null,null,null,null,null,null,null,null,null,null,null,"B686 S"]
[null,null,null,null,null,null,null,null,null,null,null,null,null,null,null,null,null,null,null,null,null,null,null,null,null,null,null,null,null,"OTHERS MEO  CL-IV PART A",null,null,"SEATTLE",null,null,null,null,null,null,null,null,null,null,null,null,null,null,null,"B758 S"]
[null,null,null,null,null,null,null,null,null,null,null,null,null,null,null,null,null,null,null,null,null,null,null,null,null,null,null,null,null,"OTHERS MEO CLASS 4-1",null,null,"SEMARANG",null,null,null,null,null,null,null,null,null,null,null,null,null,null,null,"BA 8M 528"]
[null,null,null,null,null,null,null,null,null,null,null,null,null,null,null,null,null,null,null,null,null,null,null,null,null,null,null,null,null,"OTHERS MEO-CL-IV PART A",null,null,"SEOUL",null,null,null,null,null,null,null,null,null,null,null,null,null,null,null,"BERGEN - GENERI"]
[null,null,null,null,null,null,null,null,null,null,null,null,null,null,null,null,null,null,null,null,null,null,null,null,null,null,null,null,null,"PAN COC",null,null,"SHANGHAI",null,null,null,null,null,null,null,null,null,null,null,null,null,null,null,"BVM 540"]
[null,null,null,null,null,null,null,null,null,null,null,null,null,null,null,null,null,null,null,null,null,null,null,null,null,null,null,null,null,"PANAMA",null,null,"SHANTOU",null,null,null,null,null,null,null,null,null,null,null,null,null,null,null,"CATERPILLAR GEN"]
[null,null,null,null,null,null,null,null,null,null,null,null,null,null,null,null,null,null,null,null,null,null,null,null,null,null,null,null,null,"PANAMA COC/4 ENG",null,null,"SHILLONG",null,null,null,null,null,null,null,null,null,null,null,null,null,null,null,"CEGIELSKI GENER"]
[null,null,null,null,null,null,null,null,null,null,null,null,null,null,null,null,null,null,null,null,null,null,null,null,null,null,null,null,null,"PANAMA F.G. MASTER",null,null,"SHOLAPUR",null,null,null,null,null,null,null,null,null,null,null,null,null,null,null,"CROSSLEY GENERI"]
[null,null,null,null,null,null,null,null,null,null,null,null,null,null,null,null,null,null,null,null,null,null,null,null,null,null,null,null,null,"PANAMA MASTER",null,null,"SILCHAR",null,null,null,null,null,null,null,null,null,null,null,null,null,null,null,"D 55"]
[null,null,null,null,null,null,null,null,null,null,null,null,null,null,null,null,null,null,null,null,null,null,null,null,null,null,null,null,null,"PANAMA MEO-III",null,null,"SIMFEROPOL",null,null,null,null,null,null,null,null,null,null,null,null,null,null,null,"DAIHATSU GENERI"]
[null,null,null,null,null,null,null,null,null,null,null,null,null,null,null,null,null,null,null,null,null,null,null,null,null,null,null,null,null,"PANAMA SECOND MATE",null,null,"SIMLA",null,null,null,null,null,null,null,null,null,null,null,null,null,null,null,"DETROIT GENERIC"]
[null,null,null,null,null,null,null,null,null,null,null,null,null,null,null,null,null,null,null,null,null,null,null,null,null,null,null,null,null,"PANAMA(FIRST DECK OFF)",null,null,"SINGAPORE",null,null,null,null,null,null,null,null,null,null,null,null,null,null,null,"DEUTZ GENERIC"]
[null,null,null,null,null,null,null,null,null,null,null,null,null,null,null,null,null,null,null,null,null,null,null,null,null,null,null,null,null,"THIRD DECK OFFICER",null,null,"SOGNOLAL",null,null,null,null,null,null,null,null,null,null,null,null,null,null,null,"DM 520/900 VGS"]
[null,null,null,null,null,null,null,null,null,null,null,null,null,null,null,null,null,null,null,null,null,null,null,null,null,null,null,null,null,"THIRD DECK OFFICER (PAN)",null,null,"SRINAGAR",null,null,null,null,null,null,null,null,null,null,null,null,null,null,null,"DM 630/1300 VGS"]
[null,null,null,null,null,null,null,null,null,null,null,null,null,null,null,null,null,null,null,null,null,null,null,null,null,null,null,null,null,"THIRD DECK OFFICER-PANAMA",null,null,"ST. PETERSBURG",null,null,null,null,null,null,null,null,null,null,null,null,null,null,null,"DM 630/1400 VGS"]
[null,null,null,null,null,null,null,null,null,null,null,null,null,null,null,null,null,null,null,null,null,null,null,null,null,null,null,null,null,"THIRD ENG. OFF.PANAMA",null,null,"SURABAYA",null,null,null,null,null,null,null,null,null,null,null,null,null,null,null,"DM 680/1500 VGS"]
[null,null,null,null,null,null,null,null,null,null,null,null,null,null,null,null,null,null,null,null,null,null,null,null,null,null,null,null,null,"THIRD ENGINEER-PANAMA",null,null,"SURAT",null,null,null,null,null,null,null,null,null,null,null,null,null,null,null,"DM 750/1600 VGS"]
[null,null,null,null,null,null,null,null,null,null,null,null,null,null,null,null,null,null,null,null,null,null,null,null,null,null,null,null,null,"U.A.E ENDROSEMENT",null,null,"SYDNEY",null,null,null,null,null,null,null,null,null,null,null,null,null,null,null,"DM 760/1500 VG6"]
[null,null,null,null,null,null,null,null,null,null,null,null,null,null,null,null,null,null,null,null,null,null,null,null,null,null,null,null,null,"W/K CERT - RATING",null,null,"TAICHUNG",null,null,null,null,null,null,null,null,null,null,null,null,null,null,null,"DM 760/1500 VGS"]
[null,null,null,null,null,null,null,null,null,null,null,null,null,null,null,null,null,null,null,null,null,null,null,null,null,null,null,null,null,"W/K CERT - RATING A",null,null,"TAIPEI",null,null,null,null,null,null,null,null,null,null,null,null,null,null,null,"DM 850/1700 VGA"]
[null,null,null,null,null,null,null,null,null,null,null,null,null,null,null,null,null,null,null,null,null,null,null,null,null,null,null,null,null,"W/K CERT - RATING A.B",null,null,"TAURANGA",null,null,null,null,null,null,null,null,null,null,null,null,null,null,null,"DOXFORD GENERIC"]
[null,null,null,null,null,null,null,null,null,null,null,null,null,null,null,null,null,null,null,null,null,null,null,null,null,null,null,null,null,"W/K CERT - RATING AB",null,null,"TEZPUR",null,null,null,null,null,null,null,null,null,null,null,null,null,null,null,"F212V"]
[null,null,null,null,null,null,null,null,null,null,null,null,null,null,null,null,null,null,null,null,null,null,null,null,null,null,null,null,null,"W/K CERT - RATING DECK",null,null,"TEZU",null,null,null,null,null,null,null,null,null,null,null,null,null,null,null,"FIAT BORSIG GEN"]
[null,null,null,null,null,null,null,null,null,null,null,null,null,null,null,null,null,null,null,null,null,null,null,null,null,null,null,null,null,"W/K CERT - RATING E/R",null,null,"THANJAVUR",null,null,null,null,null,null,null,null,null,null,null,null,null,null,null,"FIAT GENERIC"]
[null,null,null,null,null,null,null,null,null,null,null,null,null,null,null,null,null,null,null,null,null,null,null,null,null,null,null,null,null,"W/K CERT - RATING ENGINE",null,null,"TIANJIN",null,null,null,null,null,null,null,null,null,null,null,null,null,null,null,"G6 V40/60"]
[null,null,null,null,null,null,null,null,null,null,null,null,null,null,null,null,null,null,null,null,null,null,null,null,null,null,null,null,null,"W/K CERT - RATING ENGINE ROOM WATCH",null,null,"TIRUPATI",null,null,null,null,null,null,null,null,null,null,null,null,null,null,null,"G6 V52/74"]
[null,null,null,null,null,null,null,null,null,null,null,null,null,null,null,null,null,null,null,null,null,null,null,null,null,null,null,null,null,"W/K CERT - RATING ENGINE ROOM WATCHKEEPING",null,null,"TORONTO",null,null,null,null,null,null,null,null,null,null,null,null,null,null,null,"G7 V52/74"]
[null,null,null,null,null,null,null,null,null,null,null,null,null,null,null,null,null,null,null,null,null,null,null,null,null,null,null,null,null,"W/K CERT - RATING IIB",null,null,"TRICHY",null,null,null,null,null,null,null,null,null,null,null,null,null,null,null,"G8 V40/60"]
[null,null,null,null,null,null,null,null,null,null,null,null,null,null,null,null,null,null,null,null,null,null,null,null,null,null,null,null,null,"W/K CERT - RATING NO",null,null,"TRIVANDRUM",null,null,null,null,null,null,null,null,null,null,null,null,null,null,null,"G8 V52/74"]
[null,null,null,null,null,null,null,null,null,null,null,null,null,null,null,null,null,null,null,null,null,null,null,null,null,null,null,null,null,"W/K CERT - RATING OILER",null,null,"TUTICORIN",null,null,null,null,null,null,null,null,null,null,null,null,null,null,null,"G9 V40/60"]
[null,null,null,null,null,null,null,null,null,null,null,null,null,null,null,null,null,null,null,null,null,null,null,null,null,null,null,null,null,"W/K CERT - RATING OPRATION",null,null,"UDAIPUR",null,null,null,null,null,null,null,null,null,null,null,null,null,null,null,"G9 V52/74"]
[null,null,null,null,null,null,null,null,null,null,null,null,null,null,null,null,null,null,null,null,null,null,null,null,null,null,null,null,null,"W/K CERT - RATING STCW 95",null,null,"ULSAN",null,null,null,null,null,null,null,null,null,null,null,null,null,null,null,"GAS TURBINE GEN"]
[null,null,null,null,null,null,null,null,null,null,null,null,null,null,null,null,null,null,null,null,null,null,null,null,null,null,null,null,null,"W/K CERT - RATING SUP LEVEL",null,null,"UNKNOWN",null,null,null,null,null,null,null,null,null,null,null,null,null,null,null,"GENERAL MOTORS"]
[null,null,null,null,null,null,null,null,null,null,null,null,null,null,null,null,null,null,null,null,null,null,null,null,null,null,null,null,null,"W/K CERT - RATING SUPPORT",null,null,"VADODARA",null,null,null,null,null,null,null,null,null,null,null,null,null,null,null,"GOTAVERKEN GENE"]
[null,null,null,null,null,null,null,null,null,null,null,null,null,null,null,null,null,null,null,null,null,null,null,null,null,null,null,null,null,null,null,null,"VANCOUVER",null,null,null,null,null,null,null,null,null,null,null,null,null,null,null,"HANSHIN GENERIC"]
[null,null,null,null,null,null,null,null,null,null,null,null,null,null,null,null,null,null,null,null,null,null,null,null,null,null,null,null,null,null,null,null,"VARANASI",null,null,null,null,null,null,null,null,null,null,null,null,null,null,null,"HITACHI GENERIC"]
[null,null,null,null,null,null,null,null,null,null,null,null,null,null,null,null,null,null,null,null,null,null,null,null,null,null,null,null,null,null,null,null,"VARNA",null,null,null,null,null,null,null,null,null,null,null,null,null,null,null,"HRNS"]
[null,null,null,null,null,null,null,null,null,null,null,null,null,null,null,null,null,null,null,null,null,null,null,null,null,null,null,null,null,null,null,null,"VERACRUZ",null,null,null,null,null,null,null,null,null,null,null,null,null,null,null,"HUYNDAI GENERIC"]
[null,null,null,null,null,null,null,null,null,null,null,null,null,null,null,null,null,null,null,null,null,null,null,null,null,null,null,null,null,null,null,null,"VIENNA",null,null,null,null,null,null,null,null,null,null,null,null,null,null,null,"ISUZU GENERIC"]
[null,null,null,null,null,null,null,null,null,null,null,null,null,null,null,null,null,null,null,null,null,null,null,null,null,null,null,null,null,null,null,null,"VIGO",null,null,null,null,null,null,null,null,null,null,null,null,null,null,null,"ITO DIESEL GENE"]
[null,null,null,null,null,null,null,null,null,null,null,null,null,null,null,null,null,null,null,null,null,null,null,null,null,null,null,null,null,null,null,null,"VIJAYAWADA",null,null,null,null,null,null,null,null,null,null,null,null,null,null,null,"K10 SZ 90/160 A"]
[null,null,null,null,null,null,null,null,null,null,null,null,null,null,null,null,null,null,null,null,null,null,null,null,null,null,null,null,null,null,null,null,"VISAKHAPATNAM",null,null,null,null,null,null,null,null,null,null,null,null,null,null,null,"K5SZ70/125B"]
[null,null,null,null,null,null,null,null,null,null,null,null,null,null,null,null,null,null,null,null,null,null,null,null,null,null,null,null,null,null,null,null,"VISHAKHAPATNAM",null,null,null,null,null,null,null,null,null,null,null,null,null,null,null,"K6Z70/120E"]
[null,null,null,null,null,null,null,null,null,null,null,null,null,null,null,null,null,null,null,null,null,null,null,null,null,null,null,null,null,null,null,null,"VIZAG",null,null,null,null,null,null,null,null,null,null,null,null,null,null,null,"K74 EF"]
[null,null,null,null,null,null,null,null,null,null,null,null,null,null,null,null,null,null,null,null,null,null,null,null,null,null,null,null,null,null,null,null,"VLADIVOSTOK",null,null,null,null,null,null,null,null,null,null,null,null,null,null,null,"K7SZ 70/125 BL"]
[null,null,null,null,null,null,null,null,null,null,null,null,null,null,null,null,null,null,null,null,null,null,null,null,null,null,null,null,null,null,null,null,"VORONEZH",null,null,null,null,null,null,null,null,null,null,null,null,null,null,null,"K7SZ90/160"]
[null,null,null,null,null,null,null,null,null,null,null,null,null,null,null,null,null,null,null,null,null,null,null,null,null,null,null,null,null,null,null,null,"WARRANGAL",null,null,null,null,null,null,null,null,null,null,null,null,null,null,null,"K7Z/56/100A"]
[null,null,null,null,null,null,null,null,null,null,null,null,null,null,null,null,null,null,null,null,null,null,null,null,null,null,null,null,null,null,null,null,"WARSAW",null,null,null,null,null,null,null,null,null,null,null,null,null,null,null,"K84 EF"]
[null,null,null,null,null,null,null,null,null,null,null,null,null,null,null,null,null,null,null,null,null,null,null,null,null,null,null,null,null,null,null,null,"WELLINGTON",null,null,null,null,null,null,null,null,null,null,null,null,null,null,null,"K8SSZ52/105CL"]
[null,null,null,null,null,null,null,null,null,null,null,null,null,null,null,null,null,null,null,null,null,null,null,null,null,null,null,null,null,null,null,null,"WILCO DELHI",null,null,null,null,null,null,null,null,null,null,null,null,null,null,null,"K8SZ 70/125"]
[null,null,null,null,null,null,null,null,null,null,null,null,null,null,null,null,null,null,null,null,null,null,null,null,null,null,null,null,null,null,null,null,"WILHELMSHAVEN",null,null,null,null,null,null,null,null,null,null,null,null,null,null,null,"K8SZ52/105"]
[null,null,null,null,null,null,null,null,null,null,null,null,null,null,null,null,null,null,null,null,null,null,null,null,null,null,null,null,null,null,null,null,"WU HAN",null,null,null,null,null,null,null,null,null,null,null,null,null,null,null,"K8Z70/120E"]
[null,null,null,null,null,null,null,null,null,null,null,null,null,null,null,null,null,null,null,null,null,null,null,null,null,null,null,null,null,null,null,null,"XI AN",null,null,null,null,null,null,null,null,null,null,null,null,null,null,null,"K98 FF"]
[null,null,null,null,null,null,null,null,null,null,null,null,null,null,null,null,null,null,null,null,null,null,null,null,null,null,null,null,null,null,null,null,"XIAMEN",null,null,null,null,null,null,null,null,null,null,null,null,null,null,null,"K98 GF"]
[null,null,null,null,null,null,null,null,null,null,null,null,null,null,null,null,null,null,null,null,null,null,null,null,null,null,null,null,null,null,null,null,"YANCHENG",null,null,null,null,null,null,null,null,null,null,null,null,null,null,null,"K9Z60/105E"]
[null,null,null,null,null,null,null,null,null,null,null,null,null,null,null,null,null,null,null,null,null,null,null,null,null,null,null,null,null,null,null,null,"YANTAI",null,null,null,null,null,null,null,null,null,null,null,null,null,null,null,"KAWASAKI GENERI"]
[null,null,null,null,null,null,null,null,null,null,null,null,null,null,null,null,null,null,null,null,null,null,null,null,null,null,null,null,null,null,null,null,"YEOSU",null,null,null,null,null,null,null,null,null,null,null,null,null,null,null,"KHD"]
[null,null,null,null,null,null,null,null,null,null,null,null,null,null,null,null,null,null,null,null,null,null,null,null,null,null,null,null,null,null,null,null,"ZERO",null,null,null,null,null,null,null,null,null,null,null,null,null,null,null,"KSZ 105/180"]
[null,null,null,null,null,null,null,null,null,null,null,null,null,null,null,null,null,null,null,null,null,null,null,null,null,null,null,null,null,null,null,null,"ZHANGJIANG",null,null,null,null,null,null,null,null,null,null,null,null,null,null,null,"KSZ 52/105C/CL"]
[null,null,null,null,null,null,null,null,null,null,null,null,null,null,null,null,null,null,null,null,null,null,null,null,null,null,null,null,null,null,null,null,"ZHENGZHOU",null,null,null,null,null,null,null,null,null,null,null,null,null,null,null,"KSZ 70/125"]
[null,null,null,null,null,null,null,null,null,null,null,null,null,null,null,null,null,null,null,null,null,null,null,null,null,null,null,null,null,null,null,null,"ZHOUSHAN",null,null,null,null,null,null,null,null,null,null,null,null,null,null,null,"KSZ 70/125B/BL"]
[null,null,null,null,null,null,null,null,null,null,null,null,null,null,null,null,null,null,null,null,null,null,null,null,null,null,null,null,null,null,null,null,"ZURICH",null,null,null,null,null,null,null,null,null,null,null,null,null,null,null,"KSZ 70/150C/CL"]
[null,null,null,null,null,null,null,null,null,null,null,null,null,null,null,null,null,null,null,null,null,null,null,null,null,null,null,null,null,null,null,null,"HELSINKI",null,null,null,null,null,null,null,null,null,null,null,null,null,null,null,"KSZ 78/155"]
[null,null,null,null,null,null,null,null,null,null,null,null,null,null,null,null,null,null,null,null,null,null,null,null,null,null,null,null,null,null,null,null,"HERAKLION",null,null,null,null,null,null,null,null,null,null,null,null,null,null,null,"KSZ 90/160"]
[null,null,null,null,null,null,null,null,null,null,null,null,null,null,null,null,null,null,null,null,null,null,null,null,null,null,null,null,null,null,null,null,"HERMOSILLO",null,null,null,null,null,null,null,null,null,null,null,null,null,null,null,"KSZ 90/160B/BL"]
[null,null,null,null,null,null,null,null,null,null,null,null,null,null,null,null,null,null,null,null,null,null,null,null,null,null,null,null,null,null,null,null,"HEWANORRA",null,null,null,null,null,null,null,null,null,null,null,null,null,null,null,"KSZ 90/190C/CL"]
[null,null,null,null,null,null,null,null,null,null,null,null,null,null,null,null,null,null,null,null,null,null,null,null,null,null,null,null,null,null,null,null,"HIROSHIMA",null,null,null,null,null,null,null,null,null,null,null,null,null,null,null,"KVM - 12"]
[null,null,null,null,null,null,null,null,null,null,null,null,null,null,null,null,null,null,null,null,null,null,null,null,null,null,null,null,null,null,null,null,"HO CHI MIN CITY",null,null,null,null,null,null,null,null,null,null,null,null,null,null,null,"KZ 52/90"]
[null,null,null,null,null,null,null,null,null,null,null,null,null,null,null,null,null,null,null,null,null,null,null,null,null,null,null,null,null,null,null,null,"HOBART",null,null,null,null,null,null,null,null,null,null,null,null,null,null,null,"KZ 57/80"]
[null,null,null,null,null,null,null,null,null,null,null,null,null,null,null,null,null,null,null,null,null,null,null,null,null,null,null,null,null,null,null,null,"HODEIDAH",null,null,null,null,null,null,null,null,null,null,null,null,null,null,null,"KZ 60/105"]
[null,null,null,null,null,null,null,null,null,null,null,null,null,null,null,null,null,null,null,null,null,null,null,null,null,null,null,null,null,null,null,null,"HONGKONG",null,null,null,null,null,null,null,null,null,null,null,null,null,null,null,"KZ 70/120"]
[null,null,null,null,null,null,null,null,null,null,null,null,null,null,null,null,null,null,null,null,null,null,null,null,null,null,null,null,null,null,null,null,"HONIARA",null,null,null,null,null,null,null,null,null,null,null,null,null,null,null,"KZ 72/155"]
[null,null,null,null,null,null,null,null,null,null,null,null,null,null,null,null,null,null,null,null,null,null,null,null,null,null,null,null,null,null,null,null,"HONOLULU",null,null,null,null,null,null,null,null,null,null,null,null,null,null,null,"KZ 78/140"]
[null,null,null,null,null,null,null,null,null,null,null,null,null,null,null,null,null,null,null,null,null,null,null,null,null,null,null,null,null,null,null,null,"HONOLULU",null,null,null,null,null,null,null,null,null,null,null,null,null,null,null,"KZ 78/155"]
[null,null,null,null,null,null,null,null,null,null,null,null,null,null,null,null,null,null,null,null,null,null,null,null,null,null,null,null,null,null,null,null,"HONOLULU",null,null,null,null,null,null,null,null,null,null,null,null,null,null,null,"KZ 84/160"]
[null,null,null,null,null,null,null,null,null,null,null,null,null,null,null,null,null,null,null,null,null,null,null,null,null,null,null,null,null,null,null,null,"HORTA",null,null,null,null,null,null,null,null,null,null,null,null,null,null,null,"KZ 86/160"]
[null,null,null,null,null,null,null,null,null,null,null,null,null,null,null,null,null,null,null,null,null,null,null,null,null,null,null,null,null,null,null,null,"HOUSTON",null,null,null,null,null,null,null,null,null,null,null,null,null,null,null,"KZ 88/170"]
[null,null,null,null,null,null,null,null,null,null,null,null,null,null,null,null,null,null,null,null,null,null,null,null,null,null,null,null,null,null,null,null,"HOUSTON",null,null,null,null,null,null,null,null,null,null,null,null,null,null,null,"L/V20/27"]
[null,null,null,null,null,null,null,null,null,null,null,null,null,null,null,null,null,null,null,null,null,null,null,null,null,null,null,null,null,null,null,null,"HOUSTON",null,null,null,null,null,null,null,null,null,null,null,null,null,null,null,"L/V20/27 NG"]
[null,null,null,null,null,null,null,null,null,null,null,null,null,null,null,null,null,null,null,null,null,null,null,null,null,null,null,null,null,null,null,null,"HUALIEN",null,null,null,null,null,null,null,null,null,null,null,null,null,null,null,"L/V20/31 NG"]
[null,null,null,null,null,null,null,null,null,null,null,null,null,null,null,null,null,null,null,null,null,null,null,null,null,null,null,null,null,null,null,null,"HUMBERSIDE",null,null,null,null,null,null,null,null,null,null,null,null,null,null,null,"L/V23/30"]
[null,null,null,null,null,null,null,null,null,null,null,null,null,null,null,null,null,null,null,null,null,null,null,null,null,null,null,null,null,null,null,null,"HYDERABAD",null,null,null,null,null,null,null,null,null,null,null,null,null,null,null,"L/V25/30"]
[null,null,null,null,null,null,null,null,null,null,null,null,null,null,null,null,null,null,null,null,null,null,null,null,null,null,null,null,null,null,null,null,"HYDERABAD",null,null,null,null,null,null,null,null,null,null,null,null,null,null,null,"L/V28/32"]
[null,null,null,null,null,null,null,null,null,null,null,null,null,null,null,null,null,null,null,null,null,null,null,null,null,null,null,null,null,null,null,null,"IASI",null,null,null,null,null,null,null,null,null,null,null,null,null,null,null,"L/V32/36"]
[null,null,null,null,null,null,null,null,null,null,null,null,null,null,null,null,null,null,null,null,null,null,null,null,null,null,null,null,null,null,null,null,"IBIZA",null,null,null,null,null,null,null,null,null,null,null,null,null,null,null,"L/V40/45"]
[null,null,null,null,null,null,null,null,null,null,null,null,null,null,null,null,null,null,null,null,null,null,null,null,null,null,null,null,null,null,null,null,"ILHA DO SAL",null,null,null,null,null,null,null,null,null,null,null,null,null,null,null,"L/V40/54"]
[null,null,null,null,null,null,null,null,null,null,null,null,null,null,null,null,null,null,null,null,null,null,null,null,null,null,null,null,null,null,null,null,"ILHEUS",null,null,null,null,null,null,null,null,null,null,null,null,null,null,null,"L/V52/52"]
[null,null,null,null,null,null,null,null,null,null,null,null,null,null,null,null,null,null,null,null,null,null,null,null,null,null,null,null,null,null,null,null,"ILOILO",null,null,null,null,null,null,null,null,null,null,null,null,null,null,null,"L/V52/55"]
[null,null,null,null,null,null,null,null,null,null,null,null,null,null,null,null,null,null,null,null,null,null,null,null,null,null,null,null,null,null,null,null,"INAGUA",null,null,null,null,null,null,null,null,null,null,null,null,null,null,null,"L52 55B"]
[null,null,null,null,null,null,null,null,null,null,null,null,null,null,null,null,null,null,null,null,null,null,null,null,null,null,null,null,null,null,null,null,"INCHON",null,null,null,null,null,null,null,null,null,null,null,null,null,null,null,"L58/64"]
[null,null,null,null,null,null,null,null,null,null,null,null,null,null,null,null,null,null,null,null,null,null,null,null,null,null,null,null,null,null,null,null,"INDORE",null,null,null,null,null,null,null,null,null,null,null,null,null,null,null,"M.A.K. GENERIC"]
[null,null,null,null,null,null,null,null,null,null,null,null,null,null,null,null,null,null,null,null,null,null,null,null,null,null,null,null,null,null,null,null,"INDORE",null,null,null,null,null,null,null,null,null,null,null,null,null,null,null,"M.A.N. GENERIC"]
[null,null,null,null,null,null,null,null,null,null,null,null,null,null,null,null,null,null,null,null,null,null,null,null,null,null,null,null,null,null,null,null,"INVERCARGILL",null,null,null,null,null,null,null,null,null,null,null,null,null,null,null,"M.T.U. GENERIC"]
[null,null,null,null,null,null,null,null,null,null,null,null,null,null,null,null,null,null,null,null,null,null,null,null,null,null,null,null,null,null,null,null,"INVERNESS",null,null,null,null,null,null,null,null,null,null,null,null,null,null,null,"M.W.M. GENERIC"]
[null,null,null,null,null,null,null,null,null,null,null,null,null,null,null,null,null,null,null,null,null,null,null,null,null,null,null,null,null,null,null,null,"IOANNINA",null,null,null,null,null,null,null,null,null,null,null,null,null,null,null,"M220 AL-SNX"]
[null,null,null,null,null,null,null,null,null,null,null,null,null,null,null,null,null,null,null,null,null,null,null,null,null,null,null,null,null,null,null,null,"IOMBORG",null,null,null,null,null,null,null,null,null,null,null,null,null,null,null,"MAKITA GENERIC"]
[null,null,null,null,null,null,null,null,null,null,null,null,null,null,null,null,null,null,null,null,null,null,null,null,null,null,null,null,null,null,null,null,"IQUIQUI",null,null,null,null,null,null,null,null,null,null,null,null,null,null,null,"MIRRLEES GENERI"]
[null,null,null,null,null,null,null,null,null,null,null,null,null,null,null,null,null,null,null,null,null,null,null,null,null,null,null,null,null,null,null,null,"ISHIGAKI",null,null,null,null,null,null,null,null,null,null,null,null,null,null,null,"MITSUBISHI GENE"]
[null,null,null,null,null,null,null,null,null,null,null,null,null,null,null,null,null,null,null,null,null,null,null,null,null,null,null,null,null,null,null,null,"ISLAY",null,null,null,null,null,null,null,null,null,null,null,null,null,null,null,"MITSUI GENERIC"]
[null,null,null,null,null,null,null,null,null,null,null,null,null,null,null,null,null,null,null,null,null,null,null,null,null,null,null,null,null,null,null,null,"ISLE OF BARRA",null,null,null,null,null,null,null,null,null,null,null,null,null,null,null,"MU 451 AK"]
[null,null,null,null,null,null,null,null,null,null,null,null,null,null,null,null,null,null,null,null,null,null,null,null,null,null,null,null,null,null,null,null,"ISLE OF MAN",null,null,null,null,null,null,null,null,null,null,null,null,null,null,null,"MU 453 AK"]
[null,null,null,null,null,null,null,null,null,null,null,null,null,null,null,null,null,null,null,null,null,null,null,null,null,null,null,null,null,null,null,null,"ISLES OF SCILLY",null,null,null,null,null,null,null,null,null,null,null,null,null,null,null,"NIIGATA GENERIC"]
[null,null,null,null,null,null,null,null,null,null,null,null,null,null,null,null,null,null,null,null,null,null,null,null,null,null,null,null,null,null,null,null,"ISLES OF SCILLY",null,null,null,null,null,null,null,null,null,null,null,null,null,null,null,"NIPATZU"]
[null,null,null,null,null,null,null,null,null,null,null,null,null,null,null,null,null,null,null,null,null,null,null,null,null,null,null,null,null,null,null,null,"ISTANBUL",null,null,null,null,null,null,null,null,null,null,null,null,null,null,null,"NOHAP POLAR GEN"]
[null,null,null,null,null,null,null,null,null,null,null,null,null,null,null,null,null,null,null,null,null,null,null,null,null,null,null,null,null,null,null,null,"ITAJAI",null,null,null,null,null,null,null,null,null,null,null,null,null,null,null,"NORMO GENERIC"]
[null,null,null,null,null,null,null,null,null,null,null,null,null,null,null,null,null,null,null,null,null,null,null,null,null,null,null,null,null,null,null,null,"ITAQUI",null,null,null,null,null,null,null,null,null,null,null,null,null,null,null,"NSD 7RTA 72 U-B"]
[null,null,null,null,null,null,null,null,null,null,null,null,null,null,null,null,null,null,null,null,null,null,null,null,null,null,null,null,null,null,null,null,"IZMIR",null,null,null,null,null,null,null,null,null,null,null,null,null,null,null,"OTHER"]
[null,null,null,null,null,null,null,null,null,null,null,null,null,null,null,null,null,null,null,null,null,null,null,null,null,null,null,null,null,null,null,null,"JACKSONVILLE FL",null,null,null,null,null,null,null,null,null,null,null,null,null,null,null,"PC2 V12"]
[null,null,null,null,null,null,null,null,null,null,null,null,null,null,null,null,null,null,null,null,null,null,null,null,null,null,null,null,null,null,null,null,"JACKSONVILLE FL",null,null,null,null,null,null,null,null,null,null,null,null,null,null,null,"PIELSTICK GENER"]
[null,null,null,null,null,null,null,null,null,null,null,null,null,null,null,null,null,null,null,null,null,null,null,null,null,null,null,null,null,null,null,null,"JACKSONVILLE FL",null,null,null,null,null,null,null,null,null,null,null,null,null,null,null,"POLAR GENERIC"]
[null,null,null,null,null,null,null,null,null,null,null,null,null,null,null,null,null,null,null,null,null,null,null,null,null,null,null,null,null,null,null,null,"JACKSONVILLE NC",null,null,null,null,null,null,null,null,null,null,null,null,null,null,null,"R6V52/55"]
[null,null,null,null,null,null,null,null,null,null,null,null,null,null,null,null,null,null,null,null,null,null,null,null,null,null,null,null,null,null,null,null,"JACKSONVILLE NC",null,null,null,null,null,null,null,null,null,null,null,null,null,null,null,"RBV 16M 540"]
[null,null,null,null,null,null,null,null,null,null,null,null,null,null,null,null,null,null,null,null,null,null,null,null,null,null,null,null,null,null,null,null,"JACKSONVILLE NC",null,null,null,null,null,null,null,null,null,null,null,null,null,null,null,"RBV 6M 358"]
[null,null,null,null,null,null,null,null,null,null,null,null,null,null,null,null,null,null,null,null,null,null,null,null,null,null,null,null,null,null,null,null,"JAKARTA",null,null,null,null,null,null,null,null,null,null,null,null,null,null,null,"RBV 6M 540"]
[null,null,null,null,null,null,null,null,null,null,null,null,null,null,null,null,null,null,null,null,null,null,null,null,null,null,null,null,null,null,null,null,"JAMNAGAR",null,null,null,null,null,null,null,null,null,null,null,null,null,null,null,"RBV 6M 545"]
[null,null,null,null,null,null,null,null,null,null,null,null,null,null,null,null,null,null,null,null,null,null,null,null,null,null,null,null,null,null,null,null,"JEDDAH",null,null,null,null,null,null,null,null,null,null,null,null,null,null,null,"RBV 8M 358"]
[null,null,null,null,null,null,null,null,null,null,null,null,null,null,null,null,null,null,null,null,null,null,null,null,null,null,null,null,null,null,null,null,"JEFFERSON COUNTY",null,null,null,null,null,null,null,null,null,null,null,null,null,null,null,"RBV 8M 366"]
[null,null,null,null,null,null,null,null,null,null,null,null,null,null,null,null,null,null,null,null,null,null,null,null,null,null,null,null,null,null,null,null,"JEREZ DE LA FRONTEIR",null,null,null,null,null,null,null,null,null,null,null,null,null,null,null,"RBV 8M 545"]
[null,null,null,null,null,null,null,null,null,null,null,null,null,null,null,null,null,null,null,null,null,null,null,null,null,null,null,null,null,null,null,null,"JIWANI",null,null,null,null,null,null,null,null,null,null,null,null,null,null,null,"RD 56/100"]
[null,null,null,null,null,null,null,null,null,null,null,null,null,null,null,null,null,null,null,null,null,null,null,null,null,null,null,null,null,null,null,null,"JOHANNESBURG",null,null,null,null,null,null,null,null,null,null,null,null,null,null,null,"RD 60"]
[null,null,null,null,null,null,null,null,null,null,null,null,null,null,null,null,null,null,null,null,null,null,null,null,null,null,null,null,null,null,null,null,"JOHORE BARU",null,null,null,null,null,null,null,null,null,null,null,null,null,null,null,"RD 68"]
[null,null,null,null,null,null,null,null,null,null,null,null,null,null,null,null,null,null,null,null,null,null,null,null,null,null,null,null,null,null,null,null,"JOINVILLE",null,null,null,null,null,null,null,null,null,null,null,null,null,null,null,"RD 76"]
[null,null,null,null,null,null,null,null,null,null,null,null,null,null,null,null,null,null,null,null,null,null,null,null,null,null,null,null,null,null,null,null,"JONKOPING",null,null,null,null,null,null,null,null,null,null,null,null,null,null,null,"RND 90"]
[null,null,null,null,null,null,null,null,null,null,null,null,null,null,null,null,null,null,null,null,null,null,null,null,null,null,null,null,null,null,null,null,"KAGOSHIMA",null,null,null,null,null,null,null,null,null,null,null,null,null,null,null,"RND 90M"]
[null,null,null,null,null,null,null,null,null,null,null,null,null,null,null,null,null,null,null,null,null,null,null,null,null,null,null,null,null,null,null,null,"KALAMATA",null,null,null,null,null,null,null,null,null,null,null,null,null,null,null,"RSBV 12M 540"]
[null,null,null,null,null,null,null,null,null,null,null,null,null,null,null,null,null,null,null,null,null,null,null,null,null,null,null,null,null,null,null,null,"KALININGRAD",null,null,null,null,null,null,null,null,null,null,null,null,null,null,null,"RTA 38"]
[null,null,null,null,null,null,null,null,null,null,null,null,null,null,null,null,null,null,null,null,null,null,null,null,null,null,null,null,null,null,null,null,"KALMAR",null,null,null,null,null,null,null,null,null,null,null,null,null,null,null,"RTA 48"]
[null,null,null,null,null,null,null,null,null,null,null,null,null,null,null,null,null,null,null,null,null,null,null,null,null,null,null,null,null,null,null,null,"KANDLA",null,null,null,null,null,null,null,null,null,null,null,null,null,null,null,"RTA 52"]
[null,null,null,null,null,null,null,null,null,null,null,null,null,null,null,null,null,null,null,null,null,null,null,null,null,null,null,null,null,null,null,null,"KAOHSIUNG",null,null,null,null,null,null,null,null,null,null,null,null,null,null,null,"RTA 58"]
[null,null,null,null,null,null,null,null,null,null,null,null,null,null,null,null,null,null,null,null,null,null,null,null,null,null,null,null,null,null,null,null,"KARACHI",null,null,null,null,null,null,null,null,null,null,null,null,null,null,null,"RTA 62"]
[null,null,null,null,null,null,null,null,null,null,null,null,null,null,null,null,null,null,null,null,null,null,null,null,null,null,null,null,null,null,null,null,"KARLSTAD",null,null,null,null,null,null,null,null,null,null,null,null,null,null,null,"RTA 68"]
[null,null,null,null,null,null,null,null,null,null,null,null,null,null,null,null,null,null,null,null,null,null,null,null,null,null,null,null,null,null,null,null,"KARRATHA",null,null,null,null,null,null,null,null,null,null,null,null,null,null,null,"RTA 72"]
[null,null,null,null,null,null,null,null,null,null,null,null,null,null,null,null,null,null,null,null,null,null,null,null,null,null,null,null,null,null,null,null,"KARUP",null,null,null,null,null,null,null,null,null,null,null,null,null,null,null,"RTA 76"]
[null,null,null,null,null,null,null,null,null,null,null,null,null,null,null,null,null,null,null,null,null,null,null,null,null,null,null,null,null,null,null,null,"KATOWICE",null,null,null,null,null,null,null,null,null,null,null,null,null,null,null,"RTA 84"]
[null,null,null,null,null,null,null,null,null,null,null,null,null,null,null,null,null,null,null,null,null,null,null,null,null,null,null,null,null,null,null,null,"KAVALLA",null,null,null,null,null,null,null,null,null,null,null,null,null,null,null,"RTA 84M"]
[null,null,null,null,null,null,null,null,null,null,null,null,null,null,null,null,null,null,null,null,null,null,null,null,null,null,null,null,null,null,null,null,"KEFLAVIK",null,null,null,null,null,null,null,null,null,null,null,null,null,null,null,"S/4 5CMC"]
[null,null,null,null,null,null,null,null,null,null,null,null,null,null,null,null,null,null,null,null,null,null,null,null,null,null,null,null,null,null,null,null,"KEMI",null,null,null,null,null,null,null,null,null,null,null,null,null,null,null,"S/U28"]
[null,null,null,null,null,null,null,null,null,null,null,null,null,null,null,null,null,null,null,null,null,null,null,null,null,null,null,null,null,null,null,null,"KERRY",null,null,null,null,null,null,null,null,null,null,null,null,null,null,null,"SBA 12M 528"]
[null,null,null,null,null,null,null,null,null,null,null,null,null,null,null,null,null,null,null,null,null,null,null,null,null,null,null,null,null,null,null,null,"KERTEH",null,null,null,null,null,null,null,null,null,null,null,null,null,null,null,"SBA 8M 528"]
[null,null,null,null,null,null,null,null,null,null,null,null,null,null,null,null,null,null,null,null,null,null,null,null,null,null,null,null,null,null,null,null,"KHABAROVSK",null,null,null,null,null,null,null,null,null,null,null,null,null,null,null,"SBV 8M 540"]
[null,null,null,null,null,null,null,null,null,null,null,null,null,null,null,null,null,null,null,null,null,null,null,null,null,null,null,null,null,null,null,null,"KHARTOUM",null,null,null,null,null,null,null,null,null,null,null,null,null,null,null,"SBV 8M 628"]
[null,null,null,null,null,null,null,null,null,null,null,null,null,null,null,null,null,null,null,null,null,null,null,null,null,null,null,null,null,null,null,null,"KHIOS",null,null,null,null,null,null,null,null,null,null,null,null,null,null,null,"SBV 9M 628"]
[null,null,null,null,null,null,null,null,null,null,null,null,null,null,null,null,null,null,null,null,null,null,null,null,null,null,null,null,null,null,null,null,"KIEL",null,null,null,null,null,null,null,null,null,null,null,null,null,null,null,"SBV SM 540"]
[null,null,null,null,null,null,null,null,null,null,null,null,null,null,null,null,null,null,null,null,null,null,null,null,null,null,null,null,null,null,null,null,"KIETA",null,null,null,null,null,null,null,null,null,null,null,null,null,null,null,"SHIKAWAJIMA GEN"]
[null,null,null,null,null,null,null,null,null,null,null,null,null,null,null,null,null,null,null,null,null,null,null,null,null,null,null,null,null,null,null,null,"KIEV",null,null,null,null,null,null,null,null,null,null,null,null,null,null,null,"STAL LAVAL- GEN"]
[null,null,null,null,null,null,null,null,null,null,null,null,null,null,null,null,null,null,null,null,null,null,null,null,null,null,null,null,null,null,null,null,"KINGSCOTE",null,null,null,null,null,null,null,null,null,null,null,null,null,null,null,"STEAM TURBINE G"]
[null,null,null,null,null,null,null,null,null,null,null,null,null,null,null,null,null,null,null,null,null,null,null,null,null,null,null,null,null,null,null,null,"KINGSTON",null,null,null,null,null,null,null,null,null,null,null,null,null,null,null,"STORK GENERIC"]
[null,null,null,null,null,null,null,null,null,null,null,null,null,null,null,null,null,null,null,null,null,null,null,null,null,null,null,null,null,null,null,null,"KINSHASA",null,null,null,null,null,null,null,null,null,null,null,null,null,null,null,"SULZER GENERIC"]
[null,null,null,null,null,null,null,null,null,null,null,null,null,null,null,null,null,null,null,null,null,null,null,null,null,null,null,null,null,null,null,null,"KIRKENES",null,null,null,null,null,null,null,null,null,null,null,null,null,null,null,"T/V23"]
[null,null,null,null,null,null,null,null,null,null,null,null,null,null,null,null,null,null,null,null,null,null,null,null,null,null,null,null,null,null,null,null,"KIRKWALL",null,null,null,null,null,null,null,null,null,null,null,null,null,null,null,"TBD 345 AU"]
[null,null,null,null,null,null,null,null,null,null,null,null,null,null,null,null,null,null,null,null,null,null,null,null,null,null,null,null,null,null,null,null,"KIROV",null,null,null,null,null,null,null,null,null,null,null,null,null,null,null,"TBD 441 V12"]
[null,null,null,null,null,null,null,null,null,null,null,null,null,null,null,null,null,null,null,null,null,null,null,null,null,null,null,null,null,null,null,null,"KISHINEV",null,null,null,null,null,null,null,null,null,null,null,null,null,null,null,"TBD 511 V12"]
[null,null,null,null,null,null,null,null,null,null,null,null,null,null,null,null,null,null,null,null,null,null,null,null,null,null,null,null,null,null,null,null,"KISMAYU",null,null,null,null,null,null,null,null,null,null,null,null,null,null,null,"TBD 518-8"]
[null,null,null,null,null,null,null,null,null,null,null,null,null,null,null,null,null,null,null,null,null,null,null,null,null,null,null,null,null,null,null,null,"KLAGENFURT",null,null,null,null,null,null,null,null,null,null,null,null,null,null,null,"TBDG 500 BV"]
[null,null,null,null,null,null,null,null,null,null,null,null,null,null,null,null,null,null,null,null,null,null,null,null,null,null,null,null,null,null,null,null,"KLAIPEDA",null,null,null,null,null,null,null,null,null,null,null,null,null,null,null,"TBR HS 345"]
[null,null,null,null,null,null,null,null,null,null,null,null,null,null,null,null,null,null,null,null,null,null,null,null,null,null,null,null,null,null,null,null,"KNOCK",null,null,null,null,null,null,null,null,null,null,null,null,null,null,null,"TD 48"]
[null,null,null,null,null,null,null,null,null,null,null,null,null,null,null,null,null,null,null,null,null,null,null,null,null,null,null,null,null,null,null,null,"KOBE",null,null,null,null,null,null,null,null,null,null,null,null,null,null,null,"TOYOTA"]
[null,null,null,null,null,null,null,null,null,null,null,null,null,null,null,null,null,null,null,null,null,null,null,null,null,null,null,null,null,null,null,null,"KOCHI",null,null,null,null,null,null,null,null,null,null,null,null,null,null,null,"UA-400"]
[null,null,null,null,null,null,null,null,null,null,null,null,null,null,null,null,null,null,null,null,null,null,null,null,null,null,null,null,null,null,null,null,"KOH SAMUI",null,null,null,null,null,null,null,null,null,null,null,null,null,null,null,"UET 45/80D"]
[null,null,null,null,null,null,null,null,null,null,null,null,null,null,null,null,null,null,null,null,null,null,null,null,null,null,null,null,null,null,null,null,"KOKOLLA",null,null,null,null,null,null,null,null,null,null,null,null,null,null,null,"V 16"]
[null,null,null,null,null,null,null,null,null,null,null,null,null,null,null,null,null,null,null,null,null,null,null,null,null,null,null,null,null,null,null,null,"KOLKATA",null,null,null,null,null,null,null,null,null,null,null,null,null,null,null,"V52/52"]
[null,null,null,null,null,null,null,null,null,null,null,null,null,null,null,null,null,null,null,null,null,null,null,null,null,null,null,null,null,null,null,null,"KOMATSU",null,null,null,null,null,null,null,null,null,null,null,null,null,null,null,"V6 V40/54"]
[null,null,null,null,null,null,null,null,null,null,null,null,null,null,null,null,null,null,null,null,null,null,null,null,null,null,null,null,null,null,null,null,"KOROR  PALAU",null,null,null,null,null,null,null,null,null,null,null,null,null,null,null,"V6A 6U"]
[null,null,null,null,null,null,null,null,null,null,null,null,null,null,null,null,null,null,null,null,null,null,null,null,null,null,null,null,null,null,null,null,"KOS",null,null,null,null,null,null,null,null,null,null,null,null,null,null,null,"V8 V40/54"]
[null,null,null,null,null,null,null,null,null,null,null,null,null,null,null,null,null,null,null,null,null,null,null,null,null,null,null,null,null,null,null,null,"KOSICE KSC",null,null,null,null,null,null,null,null,null,null,null,null,null,null,null,"VOLVO GENERIC"]
[null,null,null,null,null,null,null,null,null,null,null,null,null,null,null,null,null,null,null,null,null,null,null,null,null,null,null,null,null,null,null,null,"KOSICE KSC",null,null,null,null,null,null,null,null,null,null,null,null,null,null,null,"VOLVO PENTA"]
[null,null,null,null,null,null,null,null,null,null,null,null,null,null,null,null,null,null,null,null,null,null,null,null,null,null,null,null,null,null,null,null,"KOTA BHARU",null,null,null,null,null,null,null,null,null,null,null,null,null,null,null,"VT 2BV"]
[null,null,null,null,null,null,null,null,null,null,null,null,null,null,null,null,null,null,null,null,null,null,null,null,null,null,null,null,null,null,null,null,"KOTA KINABALU",null,null,null,null,null,null,null,null,null,null,null,null,null,null,null,"VT BF"]
[null,null,null,null,null,null,null,null,null,null,null,null,null,null,null,null,null,null,null,null,null,null,null,null,null,null,null,null,null,null,null,null,"KOZHIKODE",null,null,null,null,null,null,null,null,null,null,null,null,null,null,null,"WARTSILA GENERI"]
[null,null,null,null,null,null,null,null,null,null,null,null,null,null,null,null,null,null,null,null,null,null,null,null,null,null,null,null,null,null,null,null,"KRAKOW",null,null,null,null,null,null,null,null,null,null,null,null,null,null,null,"WICHANN GENERIC"]
[null,null,null,null,null,null,null,null,null,null,null,null,null,null,null,null,null,null,null,null,null,null,null,null,null,null,null,null,null,null,null,null,"KRAKOW",null,null,null,null,null,null,null,null,null,null,null,null,null,null,null,"WIZEMAN GENERIC"]
[null,null,null,null,null,null,null,null,null,null,null,null,null,null,null,null,null,null,null,null,null,null,null,null,null,null,null,null,null,null,null,null,"KRASNODAR",null,null,null,null,null,null,null,null,null,null,null,null,null,null,null,"WM 240"]
[null,null,null,null,null,null,null,null,null,null,null,null,null,null,null,null,null,null,null,null,null,null,null,null,null,null,null,null,null,null,null,null,"KRISTIANSAND",null,null,null,null,null,null,null,null,null,null,null,null,null,null,null,"YANMAR GENERIC"]
[null,null,null,null,null,null,null,null,null,null,null,null,null,null,null,null,null,null,null,null,null,null,null,null,null,null,null,null,null,null,null,null,"KRISTIANSUND",null,null,null,null,null,null,null,null,null,null,null,null,null,null,null,"Z40"]
[null,null,null,null,null,null,null,null,null,null,null,null,null,null,null,null,null,null,null,null,null,null,null,null,null,null,null,null,null,null,null,null,"KUALA LUMPUR",null,null,null,null,null,null,null,null,null,null,null,null,null,null,null,"ZA 40"]
[null,null,null,null,null,null,null,null,null,null,null,null,null,null,null,null,null,null,null,null,null,null,null,null,null,null,null,null,null,null,null,null,"KUANTAN"]
[null,null,null,null,null,null,null,null,null,null,null,null,null,null,null,null,null,null,null,null,null,null,null,null,null,null,null,null,null,null,null,null,"KUCHING"]
[null,null,null,null,null,null,null,null,null,null,null,null,null,null,null,null,null,null,null,null,null,null,null,null,null,null,null,null,null,null,null,null,"KUMAMOTU"]
[null,null,null,null,null,null,null,null,null,null,null,null,null,null,null,null,null,null,null,null,null,null,null,null,null,null,null,null,null,null,null,null,"KUNSAN"]
[null,null,null,null,null,null,null,null,null,null,null,null,null,null,null,null,null,null,null,null,null,null,null,null,null,null,null,null,null,null,null,null,"KUPANG"]
[null,null,null,null,null,null,null,null,null,null,null,null,null,null,null,null,null,null,null,null,null,null,null,null,null,null,null,null,null,null,null,null,"KUSHIRO"]
[null,null,null,null,null,null,null,null,null,null,null,null,null,null,null,null,null,null,null,null,null,null,null,null,null,null,null,null,null,null,null,null,"KUWAIT"]
[null,null,null,null,null,null,null,null,null,null,null,null,null,null,null,null,null,null,null,null,null,null,null,null,null,null,null,null,null,null,null,null,"LA CEIBA"]
[null,null,null,null,null,null,null,null,null,null,null,null,null,null,null,null,null,null,null,null,null,null,null,null,null,null,null,null,null,null,null,null,"LA CORUNA"]
[null,null,null,null,null,null,null,null,null,null,null,null,null,null,null,null,null,null,null,null,null,null,null,null,null,null,null,null,null,null,null,null,"LA ROCHELLE"]
[null,null,null,null,null,null,null,null,null,null,null,null,null,null,null,null,null,null,null,null,null,null,null,null,null,null,null,null,null,null,null,null,"LABUAN"]
[null,null,null,null,null,null,null,null,null,null,null,null,null,null,null,null,null,null,null,null,null,null,null,null,null,null,null,null,null,null,null,null,"LAE"]
[null,null,null,null,null,null,null,null,null,null,null,null,null,null,null,null,null,null,null,null,null,null,null,null,null,null,null,null,null,null,null,null,"LAGOS"]
[null,null,null,null,null,null,null,null,null,null,null,null,null,null,null,null,null,null,null,null,null,null,null,null,null,null,null,null,null,null,null,null,"LAHAD DATU"]
[null,null,null,null,null,null,null,null,null,null,null,null,null,null,null,null,null,null,null,null,null,null,null,null,null,null,null,null,null,null,null,null,"LAKE CHARLES"]
[null,null,null,null,null,null,null,null,null,null,null,null,null,null,null,null,null,null,null,null,null,null,null,null,null,null,null,null,null,null,null,null,"LAKE CHARLES"]
[null,null,null,null,null,null,null,null,null,null,null,null,null,null,null,null,null,null,null,null,null,null,null,null,null,null,null,null,null,null,null,null,"LAMEZIA TERME"]
[null,null,null,null,null,null,null,null,null,null,null,null,null,null,null,null,null,null,null,null,null,null,null,null,null,null,null,null,null,null,null,null,"LAOAG"]
[null,null,null,null,null,null,null,null,null,null,null,null,null,null,null,null,null,null,null,null,null,null,null,null,null,null,null,null,null,null,null,null,"LAOAG INTERNATIONAL"]
[null,null,null,null,null,null,null,null,null,null,null,null,null,null,null,null,null,null,null,null,null,null,null,null,null,null,null,null,null,null,null,null,"LARNACA"]
[null,null,null,null,null,null,null,null,null,null,null,null,null,null,null,null,null,null,null,null,null,null,null,null,null,null,null,null,null,null,null,null,"LAS AMERICAS"]
[null,null,null,null,null,null,null,null,null,null,null,null,null,null,null,null,null,null,null,null,null,null,null,null,null,null,null,null,null,null,null,null,"LAS PALMAS - GRAN CA"]
[null,null,null,null,null,null,null,null,null,null,null,null,null,null,null,null,null,null,null,null,null,null,null,null,null,null,null,null,null,null,null,null,"LAS PALMAS - GRAN CA"]
[null,null,null,null,null,null,null,null,null,null,null,null,null,null,null,null,null,null,null,null,null,null,null,null,null,null,null,null,null,null,null,null,"LAS PIEDRAS"]
[null,null,null,null,null,null,null,null,null,null,null,null,null,null,null,null,null,null,null,null,null,null,null,null,null,null,null,null,null,null,null,null,"LAS VEGAS"]
[null,null,null,null,null,null,null,null,null,null,null,null,null,null,null,null,null,null,null,null,null,null,null,null,null,null,null,null,null,null,null,null,"LATTAKIA"]
[null,null,null,null,null,null,null,null,null,null,null,null,null,null,null,null,null,null,null,null,null,null,null,null,null,null,null,null,null,null,null,null,"LAUNCESTON"]
[null,null,null,null,null,null,null,null,null,null,null,null,null,null,null,null,null,null,null,null,null,null,null,null,null,null,null,null,null,null,null,null,"LE HAVRE"]
[null,null,null,null,null,null,null,null,null,null,null,null,null,null,null,null,null,null,null,null,null,null,null,null,null,null,null,null,null,null,null,null,"LEEDS/BRADFORD"]
[null,null,null,null,null,null,null,null,null,null,null,null,null,null,null,null,null,null,null,null,null,null,null,null,null,null,null,null,null,null,null,null,"LEGASPI"]
[null,null,null,null,null,null,null,null,null,null,null,null,null,null,null,null,null,null,null,null,null,null,null,null,null,null,null,null,null,null,null,null,"LEIPZIG"]
[null,null,null,null,null,null,null,null,null,null,null,null,null,null,null,null,null,null,null,null,null,null,null,null,null,null,null,null,null,null,null,null,"LIANYUNGANG"]
[null,null,null,null,null,null,null,null,null,null,null,null,null,null,null,null,null,null,null,null,null,null,null,null,null,null,null,null,null,null,null,null,"LIBREVILLE"]
[null,null,null,null,null,null,null,null,null,null,null,null,null,null,null,null,null,null,null,null,null,null,null,null,null,null,null,null,null,null,null,null,"LILLE"]
[null,null,null,null,null,null,null,null,null,null,null,null,null,null,null,null,null,null,null,null,null,null,null,null,null,null,null,null,null,null,null,null,"LIMA"]
[null,null,null,null,null,null,null,null,null,null,null,null,null,null,null,null,null,null,null,null,null,null,null,null,null,null,null,null,null,null,null,null,"LIMOGES (BELLEGARDE)"]
[null,null,null,null,null,null,null,null,null,null,null,null,null,null,null,null,null,null,null,null,null,null,null,null,null,null,null,null,null,null,null,null,"LINZ"]
[null,null,null,null,null,null,null,null,null,null,null,null,null,null,null,null,null,null,null,null,null,null,null,null,null,null,null,null,null,null,null,null,"LISBON"]
[null,null,null,null,null,null,null,null,null,null,null,null,null,null,null,null,null,null,null,null,null,null,null,null,null,null,null,null,null,null,null,null,"LIVERPOOL"]
[null,null,null,null,null,null,null,null,null,null,null,null,null,null,null,null,null,null,null,null,null,null,null,null,null,null,null,null,null,null,null,null,"LJUBLIANJA"]
[null,null,null,null,null,null,null,null,null,null,null,null,null,null,null,null,null,null,null,null,null,null,null,null,null,null,null,null,null,null,null,null,"LLABANERE"]
[null,null,null,null,null,null,null,null,null,null,null,null,null,null,null,null,null,null,null,null,null,null,null,null,null,null,null,null,null,null,null,null,"LODZ"]
[null,null,null,null,null,null,null,null,null,null,null,null,null,null,null,null,null,null,null,null,null,null,null,null,null,null,null,null,null,null,null,null,"LOME"]
[null,null,null,null,null,null,null,null,null,null,null,null,null,null,null,null,null,null,null,null,null,null,null,null,null,null,null,null,null,null,null,null,"LONDON (ONTARIO)"]
[null,null,null,null,null,null,null,null,null,null,null,null,null,null,null,null,null,null,null,null,null,null,null,null,null,null,null,null,null,null,null,null,"LONDON CITY"]
[null,null,null,null,null,null,null,null,null,null,null,null,null,null,null,null,null,null,null,null,null,null,null,null,null,null,null,null,null,null,null,null,"LONDON GATWICK"]
[null,null,null,null,null,null,null,null,null,null,null,null,null,null,null,null,null,null,null,null,null,null,null,null,null,null,null,null,null,null,null,null,"LONDON HEATHROW"]
[null,null,null,null,null,null,null,null,null,null,null,null,null,null,null,null,null,null,null,null,null,null,null,null,null,null,null,null,null,null,null,null,"LONDON LUTON"]
[null,null,null,null,null,null,null,null,null,null,null,null,null,null,null,null,null,null,null,null,null,null,null,null,null,null,null,null,null,null,null,null,"LONDON LUTON"]
[null,null,null,null,null,null,null,null,null,null,null,null,null,null,null,null,null,null,null,null,null,null,null,null,null,null,null,null,null,null,null,null,"LONDONDERRY"]
[null,null,null,null,null,null,null,null,null,null,null,null,null,null,null,null,null,null,null,null,null,null,null,null,null,null,null,null,null,null,null,null,"LONG BEACH"]
[null,null,null,null,null,null,null,null,null,null,null,null,null,null,null,null,null,null,null,null,null,null,null,null,null,null,null,null,null,null,null,null,"LONG BEACH"]
[null,null,null,null,null,null,null,null,null,null,null,null,null,null,null,null,null,null,null,null,null,null,null,null,null,null,null,null,null,null,null,null,"LORIENT"]
[null,null,null,null,null,null,null,null,null,null,null,null,null,null,null,null,null,null,null,null,null,null,null,null,null,null,null,null,null,null,null,null,"LOS ANGELES"]
[null,null,null,null,null,null,null,null,null,null,null,null,null,null,null,null,null,null,null,null,null,null,null,null,null,null,null,null,null,null,null,null,"LOS ANGELES"]
[null,null,null,null,null,null,null,null,null,null,null,null,null,null,null,null,null,null,null,null,null,null,null,null,null,null,null,null,null,null,null,null,"LUANDA"]
[null,null,null,null,null,null,null,null,null,null,null,null,null,null,null,null,null,null,null,null,null,null,null,null,null,null,null,null,null,null,null,null,"LUCKNOW"]
[null,null,null,null,null,null,null,null,null,null,null,null,null,null,null,null,null,null,null,null,null,null,null,null,null,null,null,null,null,null,null,null,"LUDERITZ"]
[null,null,null,null,null,null,null,null,null,null,null,null,null,null,null,null,null,null,null,null,null,null,null,null,null,null,null,null,null,null,null,null,"LUGANO"]
[null,null,null,null,null,null,null,null,null,null,null,null,null,null,null,null,null,null,null,null,null,null,null,null,null,null,null,null,null,null,null,null,"LULEA"]
[null,null,null,null,null,null,null,null,null,null,null,null,null,null,null,null,null,null,null,null,null,null,null,null,null,null,null,null,null,null,null,null,"LUXEMBOURG"]
[null,null,null,null,null,null,null,null,null,null,null,null,null,null,null,null,null,null,null,null,null,null,null,null,null,null,null,null,null,null,null,null,"LVOV"]
[null,null,null,null,null,null,null,null,null,null,null,null,null,null,null,null,null,null,null,null,null,null,null,null,null,null,null,null,null,null,null,null,"MAASTRICHT"]
[null,null,null,null,null,null,null,null,null,null,null,null,null,null,null,null,null,null,null,null,null,null,null,null,null,null,null,null,null,null,null,null,"MACAPA"]
[null,null,null,null,null,null,null,null,null,null,null,null,null,null,null,null,null,null,null,null,null,null,null,null,null,null,null,null,null,null,null,null,"MACAU"]
[null,null,null,null,null,null,null,null,null,null,null,null,null,null,null,null,null,null,null,null,null,null,null,null,null,null,null,null,null,null,null,null,"MACEIO"]
[null,null,null,null,null,null,null,null,null,null,null,null,null,null,null,null,null,null,null,null,null,null,null,null,null,null,null,null,null,null,null,null,"MACKAY"]
[null,null,null,null,null,null,null,null,null,null,null,null,null,null,null,null,null,null,null,null,null,null,null,null,null,null,null,null,null,null,null,null,"MACTAN CEBU"]
[null,null,null,null,null,null,null,null,null,null,null,null,null,null,null,null,null,null,null,null,null,null,null,null,null,null,null,null,null,null,null,null,"MACTAN CEBU"]
[null,null,null,null,null,null,null,null,null,null,null,null,null,null,null,null,null,null,null,null,null,null,null,null,null,null,null,null,null,null,null,null,"MADANG"]
[null,null,null,null,null,null,null,null,null,null,null,null,null,null,null,null,null,null,null,null,null,null,null,null,null,null,null,null,null,null,null,null,"MADRAS"]
[null,null,null,null,null,null,null,null,null,null,null,null,null,null,null,null,null,null,null,null,null,null,null,null,null,null,null,null,null,null,null,null,"MADRID"]
[null,null,null,null,null,null,null,null,null,null,null,null,null,null,null,null,null,null,null,null,null,null,null,null,null,null,null,null,null,null,null,null,"MADURAI"]
[null,null,null,null,null,null,null,null,null,null,null,null,null,null,null,null,null,null,null,null,null,null,null,null,null,null,null,null,null,null,null,null,"MAHE"]
[null,null,null,null,null,null,null,null,null,null,null,null,null,null,null,null,null,null,null,null,null,null,null,null,null,null,null,null,null,null,null,null,"MAJUNGA"]
[null,null,null,null,null,null,null,null,null,null,null,null,null,null,null,null,null,null,null,null,null,null,null,null,null,null,null,null,null,null,null,null,"MAJURO"]
[null,null,null,null,null,null,null,null,null,null,null,null,null,null,null,null,null,null,null,null,null,null,null,null,null,null,null,null,null,null,null,null,"MAKHACHKALA"]
[null,null,null,null,null,null,null,null,null,null,null,null,null,null,null,null,null,null,null,null,null,null,null,null,null,null,null,null,null,null,null,null,"MALABO"]
[null,null,null,null,null,null,null,null,null,null,null,null,null,null,null,null,null,null,null,null,null,null,null,null,null,null,null,null,null,null,null,null,"MALABO"]
[null,null,null,null,null,null,null,null,null,null,null,null,null,null,null,null,null,null,null,null,null,null,null,null,null,null,null,null,null,null,null,null,"MALABO"]
[null,null,null,null,null,null,null,null,null,null,null,null,null,null,null,null,null,null,null,null,null,null,null,null,null,null,null,null,null,null,null,null,"MALACCA"]
[null,null,null,null,null,null,null,null,null,null,null,null,null,null,null,null,null,null,null,null,null,null,null,null,null,null,null,null,null,null,null,null,"MALAGA"]
[null,null,null,null,null,null,null,null,null,null,null,null,null,null,null,null,null,null,null,null,null,null,null,null,null,null,null,null,null,null,null,null,"MALE"]
[null,null,null,null,null,null,null,null,null,null,null,null,null,null,null,null,null,null,null,null,null,null,null,null,null,null,null,null,null,null,null,null,"MALE"]
[null,null,null,null,null,null,null,null,null,null,null,null,null,null,null,null,null,null,null,null,null,null,null,null,null,null,null,null,null,null,null,null,"MALE"]
[null,null,null,null,null,null,null,null,null,null,null,null,null,null,null,null,null,null,null,null,null,null,null,null,null,null,null,null,null,null,null,null,"MALMO"]
[null,null,null,null,null,null,null,null,null,null,null,null,null,null,null,null,null,null,null,null,null,null,null,null,null,null,null,null,null,null,null,null,"MALTA"]
[null,null,null,null,null,null,null,null,null,null,null,null,null,null,null,null,null,null,null,null,null,null,null,null,null,null,null,null,null,null,null,null,"MANADO"]
[null,null,null,null,null,null,null,null,null,null,null,null,null,null,null,null,null,null,null,null,null,null,null,null,null,null,null,null,null,null,null,null,"MANAGUA"]
[null,null,null,null,null,null,null,null,null,null,null,null,null,null,null,null,null,null,null,null,null,null,null,null,null,null,null,null,null,null,null,null,"MANANJARY"]
[null,null,null,null,null,null,null,null,null,null,null,null,null,null,null,null,null,null,null,null,null,null,null,null,null,null,null,null,null,null,null,null,"MANAUS"]
[null,null,null,null,null,null,null,null,null,null,null,null,null,null,null,null,null,null,null,null,null,null,null,null,null,null,null,null,null,null,null,null,"MANCHESTER"]
[null,null,null,null,null,null,null,null,null,null,null,null,null,null,null,null,null,null,null,null,null,null,null,null,null,null,null,null,null,null,null,null,"MANGALORE"]
[null,null,null,null,null,null,null,null,null,null,null,null,null,null,null,null,null,null,null,null,null,null,null,null,null,null,null,null,null,null,null,null,"MANILA"]
[null,null,null,null,null,null,null,null,null,null,null,null,null,null,null,null,null,null,null,null,null,null,null,null,null,null,null,null,null,null,null,null,"MANTAS"]
[null,null,null,null,null,null,null,null,null,null,null,null,null,null,null,null,null,null,null,null,null,null,null,null,null,null,null,null,null,null,null,null,"MANZANILLO"]
[null,null,null,null,null,null,null,null,null,null,null,null,null,null,null,null,null,null,null,null,null,null,null,null,null,null,null,null,null,null,null,null,"MAPUTO"]
[null,null,null,null,null,null,null,null,null,null,null,null,null,null,null,null,null,null,null,null,null,null,null,null,null,null,null,null,null,null,null,null,"MAR DEL PLATA"]
[null,null,null,null,null,null,null,null,null,null,null,null,null,null,null,null,null,null,null,null,null,null,null,null,null,null,null,null,null,null,null,null,"MAR DEL PLATA"]
[null,null,null,null,null,null,null,null,null,null,null,null,null,null,null,null,null,null,null,null,null,null,null,null,null,null,null,null,null,null,null,null,"MAR DEL PLATA"]
[null,null,null,null,null,null,null,null,null,null,null,null,null,null,null,null,null,null,null,null,null,null,null,null,null,null,null,null,null,null,null,null,"MARACAIBO"]
[null,null,null,null,null,null,null,null,null,null,null,null,null,null,null,null,null,null,null,null,null,null,null,null,null,null,null,null,null,null,null,null,"MARGHARITA ISL"]
[null,null,null,null,null,null,null,null,null,null,null,null,null,null,null,null,null,null,null,null,null,null,null,null,null,null,null,null,null,null,null,null,"MARIEHAMN"]
[null,null,null,null,null,null,null,null,null,null,null,null,null,null,null,null,null,null,null,null,null,null,null,null,null,null,null,null,null,null,null,null,"MAROOCHYDORE"]
[null,null,null,null,null,null,null,null,null,null,null,null,null,null,null,null,null,null,null,null,null,null,null,null,null,null,null,null,null,null,null,null,"MARSA EL BREGA"]
[null,null,null,null,null,null,null,null,null,null,null,null,null,null,null,null,null,null,null,null,null,null,null,null,null,null,null,null,null,null,null,null,"MARSEILLES"]
[null,null,null,null,null,null,null,null,null,null,null,null,null,null,null,null,null,null,null,null,null,null,null,null,null,null,null,null,null,null,null,null,"MARSHALL"]
[null,null,null,null,null,null,null,null,null,null,null,null,null,null,null,null,null,null,null,null,null,null,null,null,null,null,null,null,null,null,null,null,"MASAMBA"]
[null,null,null,null,null,null,null,null,null,null,null,null,null,null,null,null,null,null,null,null,null,null,null,null,null,null,null,null,null,null,null,null,"MASIRAH"]
[null,null,null,null,null,null,null,null,null,null,null,null,null,null,null,null,null,null,null,null,null,null,null,null,null,null,null,null,null,null,null,null,"MASSAWA"]
[null,null,null,null,null,null,null,null,null,null,null,null,null,null,null,null,null,null,null,null,null,null,null,null,null,null,null,null,null,null,null,null,"MATADI"]
[null,null,null,null,null,null,null,null,null,null,null,null,null,null,null,null,null,null,null,null,null,null,null,null,null,null,null,null,null,null,null,null,"MATSUYAMA"]
[null,null,null,null,null,null,null,null,null,null,null,null,null,null,null,null,null,null,null,null,null,null,null,null,null,null,null,null,null,null,null,null,"MAURITIUS"]
[null,null,null,null,null,null,null,null,null,null,null,null,null,null,null,null,null,null,null,null,null,null,null,null,null,null,null,null,null,null,null,null,"MEDAN"]
[null,null,null,null,null,null,null,null,null,null,null,null,null,null,null,null,null,null,null,null,null,null,null,null,null,null,null,null,null,null,null,null,"MELBOURNE"]
[null,null,null,null,null,null,null,null,null,null,null,null,null,null,null,null,null,null,null,null,null,null,null,null,null,null,null,null,null,null,null,null,"MELILLA"]
[null,null,null,null,null,null,null,null,null,null,null,null,null,null,null,null,null,null,null,null,null,null,null,null,null,null,null,null,null,null,null,null,"MERIDA"]
[null,null,null,null,null,null,null,null,null,null,null,null,null,null,null,null,null,null,null,null,null,null,null,null,null,null,null,null,null,null,null,null,"MERIMBULA"]
[null,null,null,null,null,null,null,null,null,null,null,null,null,null,null,null,null,null,null,null,null,null,null,null,null,null,null,null,null,null,null,null,"MEXICO CITY"]
[null,null,null,null,null,null,null,null,null,null,null,null,null,null,null,null,null,null,null,null,null,null,null,null,null,null,null,null,null,null,null,null,"MIAMI FL"]
[null,null,null,null,null,null,null,null,null,null,null,null,null,null,null,null,null,null,null,null,null,null,null,null,null,null,null,null,null,null,null,null,"MIAMI FL"]
[null,null,null,null,null,null,null,null,null,null,null,null,null,null,null,null,null,null,null,null,null,null,null,null,null,null,null,null,null,null,null,null,"MIDLANDA"]
[null,null,null,null,null,null,null,null,null,null,null,null,null,null,null,null,null,null,null,null,null,null,null,null,null,null,null,null,null,null,null,null,"MILAN"]
[null,null,null,null,null,null,null,null,null,null,null,null,null,null,null,null,null,null,null,null,null,null,null,null,null,null,null,null,null,null,null,null,"MINATITLAN"]
[null,null,null,null,null,null,null,null,null,null,null,null,null,null,null,null,null,null,null,null,null,null,null,null,null,null,null,null,null,null,null,null,"MINSK"]
[null,null,null,null,null,null,null,null,null,null,null,null,null,null,null,null,null,null,null,null,null,null,null,null,null,null,null,null,null,null,null,null,"MIRI"]
[null,null,null,null,null,null,null,null,null,null,null,null,null,null,null,null,null,null,null,null,null,null,null,null,null,null,null,null,null,null,null,null,"MISAWA"]
[null,null,null,null,null,null,null,null,null,null,null,null,null,null,null,null,null,null,null,null,null,null,null,null,null,null,null,null,null,null,null,null,"MISURATA"]
[null,null,null,null,null,null,null,null,null,null,null,null,null,null,null,null,null,null,null,null,null,null,null,null,null,null,null,null,null,null,null,null,"MIYAZAKI"]
[null,null,null,null,null,null,null,null,null,null,null,null,null,null,null,null,null,null,null,null,null,null,null,null,null,null,null,null,null,null,null,null,"MO I RANA"]
[null,null,null,null,null,null,null,null,null,null,null,null,null,null,null,null,null,null,null,null,null,null,null,null,null,null,null,null,null,null,null,null,"MOBILE"]
[null,null,null,null,null,null,null,null,null,null,null,null,null,null,null,null,null,null,null,null,null,null,null,null,null,null,null,null,null,null,null,null,"MOBILE"]
[null,null,null,null,null,null,null,null,null,null,null,null,null,null,null,null,null,null,null,null,null,null,null,null,null,null,null,null,null,null,null,null,"MOGADISHU"]
[null,null,null,null,null,null,null,null,null,null,null,null,null,null,null,null,null,null,null,null,null,null,null,null,null,null,null,null,null,null,null,null,"MOKPO"]
[null,null,null,null,null,null,null,null,null,null,null,null,null,null,null,null,null,null,null,null,null,null,null,null,null,null,null,null,null,null,null,null,"MOLDE"]
[null,null,null,null,null,null,null,null,null,null,null,null,null,null,null,null,null,null,null,null,null,null,null,null,null,null,null,null,null,null,null,null,"MOMBASA"]
[null,null,null,null,null,null,null,null,null,null,null,null,null,null,null,null,null,null,null,null,null,null,null,null,null,null,null,null,null,null,null,null,"MONROVIA"]
[null,null,null,null,null,null,null,null,null,null,null,null,null,null,null,null,null,null,null,null,null,null,null,null,null,null,null,null,null,null,null,null,"MONTEGO BAY"]
[null,null,null,null,null,null,null,null,null,null,null,null,null,null,null,null,null,null,null,null,null,null,null,null,null,null,null,null,null,null,null,null,"MONTEREY CA"]
[null,null,null,null,null,null,null,null,null,null,null,null,null,null,null,null,null,null,null,null,null,null,null,null,null,null,null,null,null,null,null,null,"MONTEREY CA"]
[null,null,null,null,null,null,null,null,null,null,null,null,null,null,null,null,null,null,null,null,null,null,null,null,null,null,null,null,null,null,null,null,"MONTERREY"]
[null,null,null,null,null,null,null,null,null,null,null,null,null,null,null,null,null,null,null,null,null,null,null,null,null,null,null,null,null,null,null,null,"MONTEVIDEO"]
[null,null,null,null,null,null,null,null,null,null,null,null,null,null,null,null,null,null,null,null,null,null,null,null,null,null,null,null,null,null,null,null,"MONTPELLIER"]
[null,null,null,null,null,null,null,null,null,null,null,null,null,null,null,null,null,null,null,null,null,null,null,null,null,null,null,null,null,null,null,null,"MONTREAL"]
[null,null,null,null,null,null,null,null,null,null,null,null,null,null,null,null,null,null,null,null,null,null,null,null,null,null,null,null,null,null,null,null,"MONTREAL/DORVAL"]
[null,null,null,null,null,null,null,null,null,null,null,null,null,null,null,null,null,null,null,null,null,null,null,null,null,null,null,null,null,null,null,null,"MORA"]
[null,null,null,null,null,null,null,null,null,null,null,null,null,null,null,null,null,null,null,null,null,null,null,null,null,null,null,null,null,null,null,null,"MORONI"]
[null,null,null,null,null,null,null,null,null,null,null,null,null,null,null,null,null,null,null,null,null,null,null,null,null,null,null,null,null,null,null,null,"MOSCOW"]
[null,null,null,null,null,null,null,null,null,null,null,null,null,null,null,null,null,null,null,null,null,null,null,null,null,null,null,null,null,null,null,null,"MOUNT PLEASANT"]
[null,null,null,null,null,null,null,null,null,null,null,null,null,null,null,null,null,null,null,null,null,null,null,null,null,null,null,null,null,null,null,null,"MTWARA"]
[null,null,null,null,null,null,null,null,null,null,null,null,null,null,null,null,null,null,null,null,null,null,null,null,null,null,null,null,null,null,null,null,"MUNICH"]
[null,null,null,null,null,null,null,null,null,null,null,null,null,null,null,null,null,null,null,null,null,null,null,null,null,null,null,null,null,null,null,null,"MURCIA"]
[null,null,null,null,null,null,null,null,null,null,null,null,null,null,null,null,null,null,null,null,null,null,null,null,null,null,null,null,null,null,null,null,"MURMANSK"]
[null,null,null,null,null,null,null,null,null,null,null,null,null,null,null,null,null,null,null,null,null,null,null,null,null,null,null,null,null,null,null,null,"MUSCAT"]
[null,null,null,null,null,null,null,null,null,null,null,null,null,null,null,null,null,null,null,null,null,null,null,null,null,null,null,null,null,null,null,null,"NAGASAKI"]
[null,null,null,null,null,null,null,null,null,null,null,null,null,null,null,null,null,null,null,null,null,null,null,null,null,null,null,null,null,null,null,null,"NAGOYA"]
[null,null,null,null,null,null,null,null,null,null,null,null,null,null,null,null,null,null,null,null,null,null,null,null,null,null,null,null,null,null,null,null,"NAIA"]
[null,null,null,null,null,null,null,null,null,null,null,null,null,null,null,null,null,null,null,null,null,null,null,null,null,null,null,null,null,null,null,null,"NAIN"]
[null,null,null,null,null,null,null,null,null,null,null,null,null,null,null,null,null,null,null,null,null,null,null,null,null,null,null,null,null,null,null,null,"NAIROBI"]
[null,null,null,null,null,null,null,null,null,null,null,null,null,null,null,null,null,null,null,null,null,null,null,null,null,null,null,null,null,null,null,null,"NAMIBE"]
[null,null,null,null,null,null,null,null,null,null,null,null,null,null,null,null,null,null,null,null,null,null,null,null,null,null,null,null,null,null,null,null,"NAMSOS"]
[null,null,null,null,null,null,null,null,null,null,null,null,null,null,null,null,null,null,null,null,null,null,null,null,null,null,null,null,null,null,null,null,"NANDI"]
[null,null,null,null,null,null,null,null,null,null,null,null,null,null,null,null,null,null,null,null,null,null,null,null,null,null,null,null,null,null,null,null,"NANTES"]
[null,null,null,null,null,null,null,null,null,null,null,null,null,null,null,null,null,null,null,null,null,null,null,null,null,null,null,null,null,null,null,null,"NAPIER/HASTINGS"]
[null,null,null,null,null,null,null,null,null,null,null,null,null,null,null,null,null,null,null,null,null,null,null,null,null,null,null,null,null,null,null,null,"NAPLES"]
[null,null,null,null,null,null,null,null,null,null,null,null,null,null,null,null,null,null,null,null,null,null,null,null,null,null,null,null,null,null,null,null,"NARITA"]
[null,null,null,null,null,null,null,null,null,null,null,null,null,null,null,null,null,null,null,null,null,null,null,null,null,null,null,null,null,null,null,null,"NARVIK"]
[null,null,null,null,null,null,null,null,null,null,null,null,null,null,null,null,null,null,null,null,null,null,null,null,null,null,null,null,null,null,null,null,"NASSAU"]
[null,null,null,null,null,null,null,null,null,null,null,null,null,null,null,null,null,null,null,null,null,null,null,null,null,null,null,null,null,null,null,null,"NATAL"]
[null,null,null,null,null,null,null,null,null,null,null,null,null,null,null,null,null,null,null,null,null,null,null,null,null,null,null,null,null,null,null,null,"NAURU"]
[null,null,null,null,null,null,null,null,null,null,null,null,null,null,null,null,null,null,null,null,null,null,null,null,null,null,null,null,null,null,null,null,"NAVEGANTES"]
[null,null,null,null,null,null,null,null,null,null,null,null,null,null,null,null,null,null,null,null,null,null,null,null,null,null,null,null,null,null,null,null,"NECOCHEA"]
[null,null,null,null,null,null,null,null,null,null,null,null,null,null,null,null,null,null,null,null,null,null,null,null,null,null,null,null,null,null,null,null,"NECOCHEA"]
[null,null,null,null,null,null,null,null,null,null,null,null,null,null,null,null,null,null,null,null,null,null,null,null,null,null,null,null,null,null,null,null,"NELSON"]
[null,null,null,null,null,null,null,null,null,null,null,null,null,null,null,null,null,null,null,null,null,null,null,null,null,null,null,null,null,null,null,null,"NETAJI SUBHAS CHANDR"]
[null,null,null,null,null,null,null,null,null,null,null,null,null,null,null,null,null,null,null,null,null,null,null,null,null,null,null,null,null,null,null,null,"NEW BERN"]
[null,null,null,null,null,null,null,null,null,null,null,null,null,null,null,null,null,null,null,null,null,null,null,null,null,null,null,null,null,null,null,null,"NEW BERN"]
[null,null,null,null,null,null,null,null,null,null,null,null,null,null,null,null,null,null,null,null,null,null,null,null,null,null,null,null,null,null,null,null,"NEW JERSY"]
[null,null,null,null,null,null,null,null,null,null,null,null,null,null,null,null,null,null,null,null,null,null,null,null,null,null,null,null,null,null,null,null,"NEW JERSY"]
[null,null,null,null,null,null,null,null,null,null,null,null,null,null,null,null,null,null,null,null,null,null,null,null,null,null,null,null,null,null,null,null,"NEW ORLEANS"]
[null,null,null,null,null,null,null,null,null,null,null,null,null,null,null,null,null,null,null,null,null,null,null,null,null,null,null,null,null,null,null,null,"NEW ORLEANS"]
[null,null,null,null,null,null,null,null,null,null,null,null,null,null,null,null,null,null,null,null,null,null,null,null,null,null,null,null,null,null,null,null,"NEW PLYMOUTH"]
[null,null,null,null,null,null,null,null,null,null,null,null,null,null,null,null,null,null,null,null,null,null,null,null,null,null,null,null,null,null,null,null,"NEW YORK"]
[null,null,null,null,null,null,null,null,null,null,null,null,null,null,null,null,null,null,null,null,null,null,null,null,null,null,null,null,null,null,null,null,"NEW YORK"]
[null,null,null,null,null,null,null,null,null,null,null,null,null,null,null,null,null,null,null,null,null,null,null,null,null,null,null,null,null,null,null,null,"NEWCASTLE AU"]
[null,null,null,null,null,null,null,null,null,null,null,null,null,null,null,null,null,null,null,null,null,null,null,null,null,null,null,null,null,null,null,null,"NEWCASTLE GB"]
[null,null,null,null,null,null,null,null,null,null,null,null,null,null,null,null,null,null,null,null,null,null,null,null,null,null,null,null,null,null,null,null,"NEWQUAY"]
[null,null,null,null,null,null,null,null,null,null,null,null,null,null,null,null,null,null,null,null,null,null,null,null,null,null,null,null,null,null,null,null,"NEWQUAY"]
[null,null,null,null,null,null,null,null,null,null,null,null,null,null,null,null,null,null,null,null,null,null,null,null,null,null,null,null,null,null,null,null,"NICE"]
[null,null,null,null,null,null,null,null,null,null,null,null,null,null,null,null,null,null,null,null,null,null,null,null,null,null,null,null,null,null,null,null,"NINOY AQUINO"]
[null,null,null,null,null,null,null,null,null,null,null,null,null,null,null,null,null,null,null,null,null,null,null,null,null,null,null,null,null,null,null,null,"NINOY AQUINO"]
[null,null,null,null,null,null,null,null,null,null,null,null,null,null,null,null,null,null,null,null,null,null,null,null,null,null,null,null,null,null,null,null,"NIUAFO'OU"]
[null,null,null,null,null,null,null,null,null,null,null,null,null,null,null,null,null,null,null,null,null,null,null,null,null,null,null,null,null,null,null,null,"NORFOLK"]
[null,null,null,null,null,null,null,null,null,null,null,null,null,null,null,null,null,null,null,null,null,null,null,null,null,null,null,null,null,null,null,null,"NORFOLK"]
[null,null,null,null,null,null,null,null,null,null,null,null,null,null,null,null,null,null,null,null,null,null,null,null,null,null,null,null,null,null,null,null,"NORFOLK"]
[null,null,null,null,null,null,null,null,null,null,null,null,null,null,null,null,null,null,null,null,null,null,null,null,null,null,null,null,null,null,null,null,"NORRKOPING"]
[null,null,null,null,null,null,null,null,null,null,null,null,null,null,null,null,null,null,null,null,null,null,null,null,null,null,null,null,null,null,null,null,"NORTH BEND  OR."]
[null,null,null,null,null,null,null,null,null,null,null,null,null,null,null,null,null,null,null,null,null,null,null,null,null,null,null,null,null,null,null,null,"NORTH BEND  OR."]
[null,null,null,null,null,null,null,null,null,null,null,null,null,null,null,null,null,null,null,null,null,null,null,null,null,null,null,null,null,null,null,null,"NORTH BEND OR."]
[null,null,null,null,null,null,null,null,null,null,null,null,null,null,null,null,null,null,null,null,null,null,null,null,null,null,null,null,null,null,null,null,"NORWICH"]
[null,null,null,null,null,null,null,null,null,null,null,null,null,null,null,null,null,null,null,null,null,null,null,null,null,null,null,null,null,null,null,null,"NOUADHIBOU"]
[null,null,null,null,null,null,null,null,null,null,null,null,null,null,null,null,null,null,null,null,null,null,null,null,null,null,null,null,null,null,null,null,"NOUAKCHOTT"]
[null,null,null,null,null,null,null,null,null,null,null,null,null,null,null,null,null,null,null,null,null,null,null,null,null,null,null,null,null,null,null,null,"NOUMEA"]
[null,null,null,null,null,null,null,null,null,null,null,null,null,null,null,null,null,null,null,null,null,null,null,null,null,null,null,null,null,null,null,null,"NOVOROSSIYSK"]
[null,null,null,null,null,null,null,null,null,null,null,null,null,null,null,null,null,null,null,null,null,null,null,null,null,null,null,null,null,null,null,null,"NUREMBERG"]
[null,null,null,null,null,null,null,null,null,null,null,null,null,null,null,null,null,null,null,null,null,null,null,null,null,null,null,null,null,null,null,null,"OAKLAND CA"]
[null,null,null,null,null,null,null,null,null,null,null,null,null,null,null,null,null,null,null,null,null,null,null,null,null,null,null,null,null,null,null,null,"OAKLAND CA"]
[null,null,null,null,null,null,null,null,null,null,null,null,null,null,null,null,null,null,null,null,null,null,null,null,null,null,null,null,null,null,null,null,"OAKLAND CA"]
[null,null,null,null,null,null,null,null,null,null,null,null,null,null,null,null,null,null,null,null,null,null,null,null,null,null,null,null,null,null,null,null,"ODENSE"]
[null,null,null,null,null,null,null,null,null,null,null,null,null,null,null,null,null,null,null,null,null,null,null,null,null,null,null,null,null,null,null,null,"ODESSA"]
[null,null,null,null,null,null,null,null,null,null,null,null,null,null,null,null,null,null,null,null,null,null,null,null,null,null,null,null,null,null,null,null,"OITA"]
[null,null,null,null,null,null,null,null,null,null,null,null,null,null,null,null,null,null,null,null,null,null,null,null,null,null,null,null,null,null,null,null,"OKAYAMA"]
[null,null,null,null,null,null,null,null,null,null,null,null,null,null,null,null,null,null,null,null,null,null,null,null,null,null,null,null,null,null,null,null,"OKINAWA"]
[null,null,null,null,null,null,null,null,null,null,null,null,null,null,null,null,null,null,null,null,null,null,null,null,null,null,null,null,null,null,null,null,"OLBIA  SARDINIA"]
[null,null,null,null,null,null,null,null,null,null,null,null,null,null,null,null,null,null,null,null,null,null,null,null,null,null,null,null,null,null,null,null,"OLONGAPO"]
[null,null,null,null,null,null,null,null,null,null,null,null,null,null,null,null,null,null,null,null,null,null,null,null,null,null,null,null,null,null,null,null,"OMSK"]
[null,null,null,null,null,null,null,null,null,null,null,null,null,null,null,null,null,null,null,null,null,null,null,null,null,null,null,null,null,null,null,null,"OPORTO"]
[null,null,null,null,null,null,null,null,null,null,null,null,null,null,null,null,null,null,null,null,null,null,null,null,null,null,null,null,null,null,null,null,"ORADEA"]
[null,null,null,null,null,null,null,null,null,null,null,null,null,null,null,null,null,null,null,null,null,null,null,null,null,null,null,null,null,null,null,null,"ORAN"]
[null,null,null,null,null,null,null,null,null,null,null,null,null,null,null,null,null,null,null,null,null,null,null,null,null,null,null,null,null,null,null,null,"ORKNEY"]
[null,null,null,null,null,null,null,null,null,null,null,null,null,null,null,null,null,null,null,null,null,null,null,null,null,null,null,null,null,null,null,null,"ORKNEY"]
[null,null,null,null,null,null,null,null,null,null,null,null,null,null,null,null,null,null,null,null,null,null,null,null,null,null,null,null,null,null,null,null,"ORLANDO"]
[null,null,null,null,null,null,null,null,null,null,null,null,null,null,null,null,null,null,null,null,null,null,null,null,null,null,null,null,null,null,null,null,"ORLANDO"]
[null,null,null,null,null,null,null,null,null,null,null,null,null,null,null,null,null,null,null,null,null,null,null,null,null,null,null,null,null,null,null,null,"ORLANDO"]
[null,null,null,null,null,null,null,null,null,null,null,null,null,null,null,null,null,null,null,null,null,null,null,null,null,null,null,null,null,null,null,null,"OSAKA"]
[null,null,null,null,null,null,null,null,null,null,null,null,null,null,null,null,null,null,null,null,null,null,null,null,null,null,null,null,null,null,null,null,"OSLO"]
[null,null,null,null,null,null,null,null,null,null,null,null,null,null,null,null,null,null,null,null,null,null,null,null,null,null,null,null,null,null,null,null,"OSTEND"]
[null,null,null,null,null,null,null,null,null,null,null,null,null,null,null,null,null,null,null,null,null,null,null,null,null,null,null,null,null,null,null,null,"OTTAWA"]
[null,null,null,null,null,null,null,null,null,null,null,null,null,null,null,null,null,null,null,null,null,null,null,null,null,null,null,null,null,null,null,null,"OUJDA"]
[null,null,null,null,null,null,null,null,null,null,null,null,null,null,null,null,null,null,null,null,null,null,null,null,null,null,null,null,null,null,null,null,"OULU"]
[null,null,null,null,null,null,null,null,null,null,null,null,null,null,null,null,null,null,null,null,null,null,null,null,null,null,null,null,null,null,null,null,"OWATONNA"]
[null,null,null,null,null,null,null,null,null,null,null,null,null,null,null,null,null,null,null,null,null,null,null,null,null,null,null,null,null,null,null,null,"OWATONNA"]
[null,null,null,null,null,null,null,null,null,null,null,null,null,null,null,null,null,null,null,null,null,null,null,null,null,null,null,null,null,null,null,null,"OWENDO"]
[null,null,null,null,null,null,null,null,null,null,null,null,null,null,null,null,null,null,null,null,null,null,null,null,null,null,null,null,null,null,null,null,"PAGO PAGO"]
[null,null,null,null,null,null,null,null,null,null,null,null,null,null,null,null,null,null,null,null,null,null,null,null,null,null,null,null,null,null,null,null,"PALANGA"]
[null,null,null,null,null,null,null,null,null,null,null,null,null,null,null,null,null,null,null,null,null,null,null,null,null,null,null,null,null,null,null,null,"PALEMBANG"]
[null,null,null,null,null,null,null,null,null,null,null,null,null,null,null,null,null,null,null,null,null,null,null,null,null,null,null,null,null,null,null,null,"PALERMO"]
[null,null,null,null,null,null,null,null,null,null,null,null,null,null,null,null,null,null,null,null,null,null,null,null,null,null,null,null,null,null,null,null,"PALMA DE MALLORCA"]
[null,null,null,null,null,null,null,null,null,null,null,null,null,null,null,null,null,null,null,null,null,null,null,null,null,null,null,null,null,null,null,null,"PANAMA CITY"]
[null,null,null,null,null,null,null,null,null,null,null,null,null,null,null,null,null,null,null,null,null,null,null,null,null,null,null,null,null,null,null,null,"PANAMA CITY"]
[null,null,null,null,null,null,null,null,null,null,null,null,null,null,null,null,null,null,null,null,null,null,null,null,null,null,null,null,null,null,null,null,"PANAMA CITY"]
[null,null,null,null,null,null,null,null,null,null,null,null,null,null,null,null,null,null,null,null,null,null,null,null,null,null,null,null,null,null,null,null,"PANAMA CITY/BALBOA"]
[null,null,null,null,null,null,null,null,null,null,null,null,null,null,null,null,null,null,null,null,null,null,null,null,null,null,null,null,null,null,null,null,"PANGKALPINANG"]
[null,null,null,null,null,null,null,null,null,null,null,null,null,null,null,null,null,null,null,null,null,null,null,null,null,null,null,null,null,null,null,null,"PAPEETE"]
[null,null,null,null,null,null,null,null,null,null,null,null,null,null,null,null,null,null,null,null,null,null,null,null,null,null,null,null,null,null,null,null,"PAPHOS"]
[null,null,null,null,null,null,null,null,null,null,null,null,null,null,null,null,null,null,null,null,null,null,null,null,null,null,null,null,null,null,null,null,"PARAMARIBO"]
[null,null,null,null,null,null,null,null,null,null,null,null,null,null,null,null,null,null,null,null,null,null,null,null,null,null,null,null,null,null,null,null,"PARIS"]
[null,null,null,null,null,null,null,null,null,null,null,null,null,null,null,null,null,null,null,null,null,null,null,null,null,null,null,null,null,null,null,null,"PARIS - ORLY"]
[null,null,null,null,null,null,null,null,null,null,null,null,null,null,null,null,null,null,null,null,null,null,null,null,null,null,null,null,null,null,null,null,"PASCAGOULA"]
[null,null,null,null,null,null,null,null,null,null,null,null,null,null,null,null,null,null,null,null,null,null,null,null,null,null,null,null,null,null,null,null,"PASCAGOULA"]
[null,null,null,null,null,null,null,null,null,null,null,null,null,null,null,null,null,null,null,null,null,null,null,null,null,null,null,null,null,null,null,null,"PASCAGOULA"]
[null,null,null,null,null,null,null,null,null,null,null,null,null,null,null,null,null,null,null,null,null,null,null,null,null,null,null,null,null,null,null,null,"PASNI"]
[null,null,null,null,null,null,null,null,null,null,null,null,null,null,null,null,null,null,null,null,null,null,null,null,null,null,null,null,null,null,null,null,"PATNA"]
[null,null,null,null,null,null,null,null,null,null,null,null,null,null,null,null,null,null,null,null,null,null,null,null,null,null,null,null,null,null,null,null,"PATNA"]
[null,null,null,null,null,null,null,null,null,null,null,null,null,null,null,null,null,null,null,null,null,null,null,null,null,null,null,null,null,null,null,null,"PAU"]
[null,null,null,null,null,null,null,null,null,null,null,null,null,null,null,null,null,null,null,null,null,null,null,null,null,null,null,null,null,null,null,null,"PEMBA"]
[null,null,null,null,null,null,null,null,null,null,null,null,null,null,null,null,null,null,null,null,null,null,null,null,null,null,null,null,null,null,null,null,"PENANG"]
[null,null,null,null,null,null,null,null,null,null,null,null,null,null,null,null,null,null,null,null,null,null,null,null,null,null,null,null,null,null,null,null,"PENSACOLA FL"]
[null,null,null,null,null,null,null,null,null,null,null,null,null,null,null,null,null,null,null,null,null,null,null,null,null,null,null,null,null,null,null,null,"PENSACOLA FL"]
[null,null,null,null,null,null,null,null,null,null,null,null,null,null,null,null,null,null,null,null,null,null,null,null,null,null,null,null,null,null,null,null,"PERTH"]
[null,null,null,null,null,null,null,null,null,null,null,null,null,null,null,null,null,null,null,null,null,null,null,null,null,null,null,null,null,null,null,null,"PHILADELPHIA"]
[null,null,null,null,null,null,null,null,null,null,null,null,null,null,null,null,null,null,null,null,null,null,null,null,null,null,null,null,null,null,null,null,"PHILADELPHIA"]
[null,null,null,null,null,null,null,null,null,null,null,null,null,null,null,null,null,null,null,null,null,null,null,null,null,null,null,null,null,null,null,null,"PHILIPPINES"]
[null,null,null,null,null,null,null,null,null,null,null,null,null,null,null,null,null,null,null,null,null,null,null,null,null,null,null,null,null,null,null,null,"PHNOM PHEN"]
[null,null,null,null,null,null,null,null,null,null,null,null,null,null,null,null,null,null,null,null,null,null,null,null,null,null,null,null,null,null,null,null,"PHOENIX"]
[null,null,null,null,null,null,null,null,null,null,null,null,null,null,null,null,null,null,null,null,null,null,null,null,null,null,null,null,null,null,null,null,"PHOENIX"]
[null,null,null,null,null,null,null,null,null,null,null,null,null,null,null,null,null,null,null,null,null,null,null,null,null,null,null,null,null,null,null,null,"PHUKET"]
[null,null,null,null,null,null,null,null,null,null,null,null,null,null,null,null,null,null,null,null,null,null,null,null,null,null,null,null,null,null,null,null,"PIARCO"]
[null,null,null,null,null,null,null,null,null,null,null,null,null,null,null,null,null,null,null,null,null,null,null,null,null,null,null,null,null,null,null,null,"PISA"]
[null,null,null,null,null,null,null,null,null,null,null,null,null,null,null,null,null,null,null,null,null,null,null,null,null,null,null,null,null,null,null,null,"PIURA"]
[null,null,null,null,null,null,null,null,null,null,null,null,null,null,null,null,null,null,null,null,null,null,null,null,null,null,null,null,null,null,null,null,"PLYMOUTH"]
[null,null,null,null,null,null,null,null,null,null,null,null,null,null,null,null,null,null,null,null,null,null,null,null,null,null,null,null,null,null,null,null,"POINTE NOIRE"]
[null,null,null,null,null,null,null,null,null,null,null,null,null,null,null,null,null,null,null,null,null,null,null,null,null,null,null,null,null,null,null,null,"PONAPE"]
[null,null,null,null,null,null,null,null,null,null,null,null,null,null,null,null,null,null,null,null,null,null,null,null,null,null,null,null,null,null,null,null,"PONTA DELGADA"]
[null,null,null,null,null,null,null,null,null,null,null,null,null,null,null,null,null,null,null,null,null,null,null,null,null,null,null,null,null,null,null,null,"PORBANDAR"]
[null,null,null,null,null,null,null,null,null,null,null,null,null,null,null,null,null,null,null,null,null,null,null,null,null,null,null,null,null,null,null,null,"PORI"]
[null,null,null,null,null,null,null,null,null,null,null,null,null,null,null,null,null,null,null,null,null,null,null,null,null,null,null,null,null,null,null,null,"PORT AU PRINCE"]
[null,null,null,null,null,null,null,null,null,null,null,null,null,null,null,null,null,null,null,null,null,null,null,null,null,null,null,null,null,null,null,null,"PORT ELIZABETH"]
[null,null,null,null,null,null,null,null,null,null,null,null,null,null,null,null,null,null,null,null,null,null,null,null,null,null,null,null,null,null,null,null,"PORT GENTIL"]
[null,null,null,null,null,null,null,null,null,null,null,null,null,null,null,null,null,null,null,null,null,null,null,null,null,null,null,null,null,null,null,null,"PORT HARCOURT"]
[null,null,null,null,null,null,null,null,null,null,null,null,null,null,null,null,null,null,null,null,null,null,null,null,null,null,null,null,null,null,null,null,"PORT HEDLAND"]
[null,null,null,null,null,null,null,null,null,null,null,null,null,null,null,null,null,null,null,null,null,null,null,null,null,null,null,null,null,null,null,null,"PORT LINCOLN"]
[null,null,null,null,null,null,null,null,null,null,null,null,null,null,null,null,null,null,null,null,null,null,null,null,null,null,null,null,null,null,null,null,"PORT MACQUARIE"]
[null,null,null,null,null,null,null,null,null,null,null,null,null,null,null,null,null,null,null,null,null,null,null,null,null,null,null,null,null,null,null,null,"PORT MORESBY"]
[null,null,null,null,null,null,null,null,null,null,null,null,null,null,null,null,null,null,null,null,null,null,null,null,null,null,null,null,null,null,null,null,"PORT OF SPAIN"]
[null,null,null,null,null,null,null,null,null,null,null,null,null,null,null,null,null,null,null,null,null,null,null,null,null,null,null,null,null,null,null,null,"PORT SUDAN"]
[null,null,null,null,null,null,null,null,null,null,null,null,null,null,null,null,null,null,null,null,null,null,null,null,null,null,null,null,null,null,null,null,"PORT VILA"]
[null,null,null,null,null,null,null,null,null,null,null,null,null,null,null,null,null,null,null,null,null,null,null,null,null,null,null,null,null,null,null,null,"PORTBLAIR"]
[null,null,null,null,null,null,null,null,null,null,null,null,null,null,null,null,null,null,null,null,null,null,null,null,null,null,null,null,null,null,null,null,"PORTLAND  VIC."]
[null,null,null,null,null,null,null,null,null,null,null,null,null,null,null,null,null,null,null,null,null,null,null,null,null,null,null,null,null,null,null,null,"PORTLAND ME"]
[null,null,null,null,null,null,null,null,null,null,null,null,null,null,null,null,null,null,null,null,null,null,null,null,null,null,null,null,null,null,null,null,"PORTLAND ME"]
[null,null,null,null,null,null,null,null,null,null,null,null,null,null,null,null,null,null,null,null,null,null,null,null,null,null,null,null,null,null,null,null,"PORTLAND ME"]
[null,null,null,null,null,null,null,null,null,null,null,null,null,null,null,null,null,null,null,null,null,null,null,null,null,null,null,null,null,null,null,null,"PORTLAND OR"]
[null,null,null,null,null,null,null,null,null,null,null,null,null,null,null,null,null,null,null,null,null,null,null,null,null,null,null,null,null,null,null,null,"PORTLAND OR"]
[null,null,null,null,null,null,null,null,null,null,null,null,null,null,null,null,null,null,null,null,null,null,null,null,null,null,null,null,null,null,null,null,"PORTLAND OR"]
[null,null,null,null,null,null,null,null,null,null,null,null,null,null,null,null,null,null,null,null,null,null,null,null,null,null,null,null,null,null,null,null,"PORTO ALEGRE"]
[null,null,null,null,null,null,null,null,null,null,null,null,null,null,null,null,null,null,null,null,null,null,null,null,null,null,null,null,null,null,null,null,"PORTO AMBOIM"]
[null,null,null,null,null,null,null,null,null,null,null,null,null,null,null,null,null,null,null,null,null,null,null,null,null,null,null,null,null,null,null,null,"POZA RICA"]
[null,null,null,null,null,null,null,null,null,null,null,null,null,null,null,null,null,null,null,null,null,null,null,null,null,null,null,null,null,null,null,null,"POZNAN"]
[null,null,null,null,null,null,null,null,null,null,null,null,null,null,null,null,null,null,null,null,null,null,null,null,null,null,null,null,null,null,null,null,"PRAGUE"]
[null,null,null,null,null,null,null,null,null,null,null,null,null,null,null,null,null,null,null,null,null,null,null,null,null,null,null,null,null,null,null,null,"PRAIA"]
[null,null,null,null,null,null,null,null,null,null,null,null,null,null,null,null,null,null,null,null,null,null,null,null,null,null,null,null,null,null,null,null,"PRAIA"]
[null,null,null,null,null,null,null,null,null,null,null,null,null,null,null,null,null,null,null,null,null,null,null,null,null,null,null,null,null,null,null,null,"PRESTWICK"]
[null,null,null,null,null,null,null,null,null,null,null,null,null,null,null,null,null,null,null,null,null,null,null,null,null,null,null,null,null,null,null,null,"PRESTWICK"]
[null,null,null,null,null,null,null,null,null,null,null,null,null,null,null,null,null,null,null,null,null,null,null,null,null,null,null,null,null,null,null,null,"PRINCE RUPERT"]
[null,null,null,null,null,null,null,null,null,null,null,null,null,null,null,null,null,null,null,null,null,null,null,null,null,null,null,null,null,null,null,null,"PROSERPINE"]
[null,null,null,null,null,null,null,null,null,null,null,null,null,null,null,null,null,null,null,null,null,null,null,null,null,null,null,null,null,null,null,null,"PROSERPINE"]
[null,null,null,null,null,null,null,null,null,null,null,null,null,null,null,null,null,null,null,null,null,null,null,null,null,null,null,null,null,null,null,null,"PROVIDENCE"]
[null,null,null,null,null,null,null,null,null,null,null,null,null,null,null,null,null,null,null,null,null,null,null,null,null,null,null,null,null,null,null,null,"PROVIDENCE"]
[null,null,null,null,null,null,null,null,null,null,null,null,null,null,null,null,null,null,null,null,null,null,null,null,null,null,null,null,null,null,null,null,"PUERTO CABELLO"]
[null,null,null,null,null,null,null,null,null,null,null,null,null,null,null,null,null,null,null,null,null,null,null,null,null,null,null,null,null,null,null,null,"PUERTO CABEZAS"]
[null,null,null,null,null,null,null,null,null,null,null,null,null,null,null,null,null,null,null,null,null,null,null,null,null,null,null,null,null,null,null,null,"PUERTO ESCONDIDO"]
[null,null,null,null,null,null,null,null,null,null,null,null,null,null,null,null,null,null,null,null,null,null,null,null,null,null,null,null,null,null,null,null,"PUERTO LIMON"]
[null,null,null,null,null,null,null,null,null,null,null,null,null,null,null,null,null,null,null,null,null,null,null,null,null,null,null,null,null,null,null,null,"PUERTO MONTT"]
[null,null,null,null,null,null,null,null,null,null,null,null,null,null,null,null,null,null,null,null,null,null,null,null,null,null,null,null,null,null,null,null,"PUERTO ORDAZ"]
[null,null,null,null,null,null,null,null,null,null,null,null,null,null,null,null,null,null,null,null,null,null,null,null,null,null,null,null,null,null,null,null,"PUERTO PLATA"]
[null,null,null,null,null,null,null,null,null,null,null,null,null,null,null,null,null,null,null,null,null,null,null,null,null,null,null,null,null,null,null,null,"PUERTO PRINCESA"]
[null,null,null,null,null,null,null,null,null,null,null,null,null,null,null,null,null,null,null,null,null,null,null,null,null,null,null,null,null,null,null,null,"PUERTO VALLARTA"]
[null,null,null,null,null,null,null,null,null,null,null,null,null,null,null,null,null,null,null,null,null,null,null,null,null,null,null,null,null,null,null,null,"PULA"]
[null,null,null,null,null,null,null,null,null,null,null,null,null,null,null,null,null,null,null,null,null,null,null,null,null,null,null,null,null,null,null,null,"PUNE"]
[null,null,null,null,null,null,null,null,null,null,null,null,null,null,null,null,null,null,null,null,null,null,null,null,null,null,null,null,null,null,null,null,"PUNTA ARENAS"]
[null,null,null,null,null,null,null,null,null,null,null,null,null,null,null,null,null,null,null,null,null,null,null,null,null,null,null,null,null,null,null,null,"PUSAN"]
[null,null,null,null,null,null,null,null,null,null,null,null,null,null,null,null,null,null,null,null,null,null,null,null,null,null,null,null,null,null,null,null,"PYONG YANG"]
[null,null,null,null,null,null,null,null,null,null,null,null,null,null,null,null,null,null,null,null,null,null,null,null,null,null,null,null,null,null,null,null,"QINGDAO"]
[null,null,null,null,null,null,null,null,null,null,null,null,null,null,null,null,null,null,null,null,null,null,null,null,null,null,null,null,null,null,null,null,"QUEBEC"]
[null,null,null,null,null,null,null,null,null,null,null,null,null,null,null,null,null,null,null,null,null,null,null,null,null,null,null,null,null,null,null,null,"QUEENSTOWN"]
[null,null,null,null,null,null,null,null,null,null,null,null,null,null,null,null,null,null,null,null,null,null,null,null,null,null,null,null,null,null,null,null,"RABAT"]
[null,null,null,null,null,null,null,null,null,null,null,null,null,null,null,null,null,null,null,null,null,null,null,null,null,null,null,null,null,null,null,null,"RABAUL"]
[null,null,null,null,null,null,null,null,null,null,null,null,null,null,null,null,null,null,null,null,null,null,null,null,null,null,null,null,null,null,null,null,"RAROTONGA"]
[null,null,null,null,null,null,null,null,null,null,null,null,null,null,null,null,null,null,null,null,null,null,null,null,null,null,null,null,null,null,null,null,"REBIECHOWO"]
[null,null,null,null,null,null,null,null,null,null,null,null,null,null,null,null,null,null,null,null,null,null,null,null,null,null,null,null,null,null,null,null,"RECIFE"]
[null,null,null,null,null,null,null,null,null,null,null,null,null,null,null,null,null,null,null,null,null,null,null,null,null,null,null,null,null,null,null,null,"REGGIO CALABRIA"]
[null,null,null,null,null,null,null,null,null,null,null,null,null,null,null,null,null,null,null,null,null,null,null,null,null,null,null,null,null,null,null,null,"REKYJAVIK"]
[null,null,null,null,null,null,null,null,null,null,null,null,null,null,null,null,null,null,null,null,null,null,null,null,null,null,null,null,null,null,null,null,"RENNES (ST JACQUES)"]
[null,null,null,null,null,null,null,null,null,null,null,null,null,null,null,null,null,null,null,null,null,null,null,null,null,null,null,null,null,null,null,null,"RENO"]
[null,null,null,null,null,null,null,null,null,null,null,null,null,null,null,null,null,null,null,null,null,null,null,null,null,null,null,null,null,null,null,null,"RENO"]
[null,null,null,null,null,null,null,null,null,null,null,null,null,null,null,null,null,null,null,null,null,null,null,null,null,null,null,null,null,null,null,null,"REUNION ISLAND"]
[null,null,null,null,null,null,null,null,null,null,null,null,null,null,null,null,null,null,null,null,null,null,null,null,null,null,null,null,null,null,null,null,"REUS"]
[null,null,null,null,null,null,null,null,null,null,null,null,null,null,null,null,null,null,null,null,null,null,null,null,null,null,null,null,null,null,null,null,"RHODES"]
[null,null,null,null,null,null,null,null,null,null,null,null,null,null,null,null,null,null,null,null,null,null,null,null,null,null,null,null,null,null,null,null,"RICHARDS BAY"]
[null,null,null,null,null,null,null,null,null,null,null,null,null,null,null,null,null,null,null,null,null,null,null,null,null,null,null,null,null,null,null,null,"RICHMOND"]
[null,null,null,null,null,null,null,null,null,null,null,null,null,null,null,null,null,null,null,null,null,null,null,null,null,null,null,null,null,null,null,null,"RICHMOND"]
[null,null,null,null,null,null,null,null,null,null,null,null,null,null,null,null,null,null,null,null,null,null,null,null,null,null,null,null,null,null,null,null,"RIGA"]
[null,null,null,null,null,null,null,null,null,null,null,null,null,null,null,null,null,null,null,null,null,null,null,null,null,null,null,null,null,null,null,null,"RIJEKA"]
[null,null,null,null,null,null,null,null,null,null,null,null,null,null,null,null,null,null,null,null,null,null,null,null,null,null,null,null,null,null,null,null,"RIMINI"]
[null,null,null,null,null,null,null,null,null,null,null,null,null,null,null,null,null,null,null,null,null,null,null,null,null,null,null,null,null,null,null,null,"RIO DE JANIERO"]
[null,null,null,null,null,null,null,null,null,null,null,null,null,null,null,null,null,null,null,null,null,null,null,null,null,null,null,null,null,null,null,null,"RIO GALLEGOS"]
[null,null,null,null,null,null,null,null,null,null,null,null,null,null,null,null,null,null,null,null,null,null,null,null,null,null,null,null,null,null,null,null,"RIO GALLEGOS"]
[null,null,null,null,null,null,null,null,null,null,null,null,null,null,null,null,null,null,null,null,null,null,null,null,null,null,null,null,null,null,null,null,"RIO GRANDE DO SUL"]
[null,null,null,null,null,null,null,null,null,null,null,null,null,null,null,null,null,null,null,null,null,null,null,null,null,null,null,null,null,null,null,null,"RIYADH"]
[null,null,null,null,null,null,null,null,null,null,null,null,null,null,null,null,null,null,null,null,null,null,null,null,null,null,null,null,null,null,null,null,"ROCKHAMPTON"]
[null,null,null,null,null,null,null,null,null,null,null,null,null,null,null,null,null,null,null,null,null,null,null,null,null,null,null,null,null,null,null,null,"ROISSY"]
[null,null,null,null,null,null,null,null,null,null,null,null,null,null,null,null,null,null,null,null,null,null,null,null,null,null,null,null,null,null,null,null,"ROME"]
[null,null,null,null,null,null,null,null,null,null,null,null,null,null,null,null,null,null,null,null,null,null,null,null,null,null,null,null,null,null,null,null,"ROME GUIANA"]
[null,null,null,null,null,null,null,null,null,null,null,null,null,null,null,null,null,null,null,null,null,null,null,null,null,null,null,null,null,null,null,null,"RONNEBY"]
[null,null,null,null,null,null,null,null,null,null,null,null,null,null,null,null,null,null,null,null,null,null,null,null,null,null,null,null,null,null,null,null,"ROSARIO"]
[null,null,null,null,null,null,null,null,null,null,null,null,null,null,null,null,null,null,null,null,null,null,null,null,null,null,null,null,null,null,null,null,"ROSARIO"]
[null,null,null,null,null,null,null,null,null,null,null,null,null,null,null,null,null,null,null,null,null,null,null,null,null,null,null,null,null,null,null,null,"ROSTOCK-LAAGE"]
[null,null,null,null,null,null,null,null,null,null,null,null,null,null,null,null,null,null,null,null,null,null,null,null,null,null,null,null,null,null,null,null,"ROSTOV"]
[null,null,null,null,null,null,null,null,null,null,null,null,null,null,null,null,null,null,null,null,null,null,null,null,null,null,null,null,null,null,null,null,"ROTTERDAM"]
[null,null,null,null,null,null,null,null,null,null,null,null,null,null,null,null,null,null,null,null,null,null,null,null,null,null,null,null,null,null,null,null,"ROXAS"]
[null,null,null,null,null,null,null,null,null,null,null,null,null,null,null,null,null,null,null,null,null,null,null,null,null,null,null,null,null,null,null,null,"RZESZOW"]
[null,null,null,null,null,null,null,null,null,null,null,null,null,null,null,null,null,null,null,null,null,null,null,null,null,null,null,null,null,null,null,null,"SAIPAN"]
[null,null,null,null,null,null,null,null,null,null,null,null,null,null,null,null,null,null,null,null,null,null,null,null,null,null,null,null,null,null,null,null,"SALALAH"]
[null,null,null,null,null,null,null,null,null,null,null,null,null,null,null,null,null,null,null,null,null,null,null,null,null,null,null,null,null,null,null,null,"SALISBURY"]
[null,null,null,null,null,null,null,null,null,null,null,null,null,null,null,null,null,null,null,null,null,null,null,null,null,null,null,null,null,null,null,null,"SALISBURY"]
[null,null,null,null,null,null,null,null,null,null,null,null,null,null,null,null,null,null,null,null,null,null,null,null,null,null,null,null,null,null,null,null,"SALVADOR"]
[null,null,null,null,null,null,null,null,null,null,null,null,null,null,null,null,null,null,null,null,null,null,null,null,null,null,null,null,null,null,null,null,"SALZBURG"]
[null,null,null,null,null,null,null,null,null,null,null,null,null,null,null,null,null,null,null,null,null,null,null,null,null,null,null,null,null,null,null,null,"SAMARA"]
[null,null,null,null,null,null,null,null,null,null,null,null,null,null,null,null,null,null,null,null,null,null,null,null,null,null,null,null,null,null,null,null,"SAN DIEGO"]
[null,null,null,null,null,null,null,null,null,null,null,null,null,null,null,null,null,null,null,null,null,null,null,null,null,null,null,null,null,null,null,null,"SAN DIEGO"]
[null,null,null,null,null,null,null,null,null,null,null,null,null,null,null,null,null,null,null,null,null,null,null,null,null,null,null,null,null,null,null,null,"SAN DOMINGO"]
[null,null,null,null,null,null,null,null,null,null,null,null,null,null,null,null,null,null,null,null,null,null,null,null,null,null,null,null,null,null,null,null,"SAN FRANCISCO"]
[null,null,null,null,null,null,null,null,null,null,null,null,null,null,null,null,null,null,null,null,null,null,null,null,null,null,null,null,null,null,null,null,"SAN FRANCISCO"]
[null,null,null,null,null,null,null,null,null,null,null,null,null,null,null,null,null,null,null,null,null,null,null,null,null,null,null,null,null,null,null,null,"SAN JOSE"]
[null,null,null,null,null,null,null,null,null,null,null,null,null,null,null,null,null,null,null,null,null,null,null,null,null,null,null,null,null,null,null,null,"SAN JUAN PR"]
[null,null,null,null,null,null,null,null,null,null,null,null,null,null,null,null,null,null,null,null,null,null,null,null,null,null,null,null,null,null,null,null,"SAN PEDRO"]
[null,null,null,null,null,null,null,null,null,null,null,null,null,null,null,null,null,null,null,null,null,null,null,null,null,null,null,null,null,null,null,null,"SAN PEDRO SULA"]
[null,null,null,null,null,null,null,null,null,null,null,null,null,null,null,null,null,null,null,null,null,null,null,null,null,null,null,null,null,null,null,null,"SAN SALVADOR"]
[null,null,null,null,null,null,null,null,null,null,null,null,null,null,null,null,null,null,null,null,null,null,null,null,null,null,null,null,null,null,null,null,"SAN SEBASTIAN"]
[null,null,null,null,null,null,null,null,null,null,null,null,null,null,null,null,null,null,null,null,null,null,null,null,null,null,null,null,null,null,null,null,"SANAA"]
[null,null,null,null,null,null,null,null,null,null,null,null,null,null,null,null,null,null,null,null,null,null,null,null,null,null,null,null,null,null,null,null,"SANDAKAN"]
[null,null,null,null,null,null,null,null,null,null,null,null,null,null,null,null,null,null,null,null,null,null,null,null,null,null,null,null,null,null,null,null,"SANDE FJORD"]
[null,null,null,null,null,null,null,null,null,null,null,null,null,null,null,null,null,null,null,null,null,null,null,null,null,null,null,null,null,null,null,null,"SANTA FE"]
[null,null,null,null,null,null,null,null,null,null,null,null,null,null,null,null,null,null,null,null,null,null,null,null,null,null,null,null,null,null,null,null,"SANTA FE"]
[null,null,null,null,null,null,null,null,null,null,null,null,null,null,null,null,null,null,null,null,null,null,null,null,null,null,null,null,null,null,null,null,"SANTA MARTA"]
[null,null,null,null,null,null,null,null,null,null,null,null,null,null,null,null,null,null,null,null,null,null,null,null,null,null,null,null,null,null,null,null,"SANTANDER"]
[null,null,null,null,null,null,null,null,null,null,null,null,null,null,null,null,null,null,null,null,null,null,null,null,null,null,null,null,null,null,null,null,"SANTIAGO"]
[null,null,null,null,null,null,null,null,null,null,null,null,null,null,null,null,null,null,null,null,null,null,null,null,null,null,null,null,null,null,null,null,"SANTIAGO DE COMPOSTE"]
[null,null,null,null,null,null,null,null,null,null,null,null,null,null,null,null,null,null,null,null,null,null,null,null,null,null,null,null,null,null,null,null,"SANTIAGO DE CUBA"]
[null,null,null,null,null,null,null,null,null,null,null,null,null,null,null,null,null,null,null,null,null,null,null,null,null,null,null,null,null,null,null,null,"SANTO DOMINGO"]
[null,null,null,null,null,null,null,null,null,null,null,null,null,null,null,null,null,null,null,null,null,null,null,null,null,null,null,null,null,null,null,null,"SANYA"]
[null,null,null,null,null,null,null,null,null,null,null,null,null,null,null,null,null,null,null,null,null,null,null,null,null,null,null,null,null,null,null,null,"SAO PAULO"]
[null,null,null,null,null,null,null,null,null,null,null,null,null,null,null,null,null,null,null,null,null,null,null,null,null,null,null,null,null,null,null,null,"SAO TOME"]
[null,null,null,null,null,null,null,null,null,null,null,null,null,null,null,null,null,null,null,null,null,null,null,null,null,null,null,null,null,null,null,null,"SAO VICENTE"]
[null,null,null,null,null,null,null,null,null,null,null,null,null,null,null,null,null,null,null,null,null,null,null,null,null,null,null,null,null,null,null,null,"SAPPORO"]
[null,null,null,null,null,null,null,null,null,null,null,null,null,null,null,null,null,null,null,null,null,null,null,null,null,null,null,null,null,null,null,null,"SATU MARE"]
[null,null,null,null,null,null,null,null,null,null,null,null,null,null,null,null,null,null,null,null,null,null,null,null,null,null,null,null,null,null,null,null,"SAVANNAH GA"]
[null,null,null,null,null,null,null,null,null,null,null,null,null,null,null,null,null,null,null,null,null,null,null,null,null,null,null,null,null,null,null,null,"SAVANNAH GA"]
[null,null,null,null,null,null,null,null,null,null,null,null,null,null,null,null,null,null,null,null,null,null,null,null,null,null,null,null,null,null,null,null,"SEATTLE"]
[null,null,null,null,null,null,null,null,null,null,null,null,null,null,null,null,null,null,null,null,null,null,null,null,null,null,null,null,null,null,null,null,"SEATTLE"]
[null,null,null,null,null,null,null,null,null,null,null,null,null,null,null,null,null,null,null,null,null,null,null,null,null,null,null,null,null,null,null,null,"SEMARANG"]
[null,null,null,null,null,null,null,null,null,null,null,null,null,null,null,null,null,null,null,null,null,null,null,null,null,null,null,null,null,null,null,null,"SENAI"]
[null,null,null,null,null,null,null,null,null,null,null,null,null,null,null,null,null,null,null,null,null,null,null,null,null,null,null,null,null,null,null,null,"SENDAI"]
[null,null,null,null,null,null,null,null,null,null,null,null,null,null,null,null,null,null,null,null,null,null,null,null,null,null,null,null,null,null,null,null,"SENIPAH"]
[null,null,null,null,null,null,null,null,null,null,null,null,null,null,null,null,null,null,null,null,null,null,null,null,null,null,null,null,null,null,null,null,"SEOUL"]
[null,null,null,null,null,null,null,null,null,null,null,null,null,null,null,null,null,null,null,null,null,null,null,null,null,null,null,null,null,null,null,null,"SEPT ILES"]
[null,null,null,null,null,null,null,null,null,null,null,null,null,null,null,null,null,null,null,null,null,null,null,null,null,null,null,null,null,null,null,null,"SEVILLE"]
[null,null,null,null,null,null,null,null,null,null,null,null,null,null,null,null,null,null,null,null,null,null,null,null,null,null,null,null,null,null,null,null,"SFAX"]
[null,null,null,null,null,null,null,null,null,null,null,null,null,null,null,null,null,null,null,null,null,null,null,null,null,null,null,null,null,null,null,null,"SHANGHAI"]
[null,null,null,null,null,null,null,null,null,null,null,null,null,null,null,null,null,null,null,null,null,null,null,null,null,null,null,null,null,null,null,null,"SHANNON"]
[null,null,null,null,null,null,null,null,null,null,null,null,null,null,null,null,null,null,null,null,null,null,null,null,null,null,null,null,null,null,null,null,"SHANTOU"]
[null,null,null,null,null,null,null,null,null,null,null,null,null,null,null,null,null,null,null,null,null,null,null,null,null,null,null,null,null,null,null,null,"SHARJAH"]
[null,null,null,null,null,null,null,null,null,null,null,null,null,null,null,null,null,null,null,null,null,null,null,null,null,null,null,null,null,null,null,null,"SHENYANG"]
[null,null,null,null,null,null,null,null,null,null,null,null,null,null,null,null,null,null,null,null,null,null,null,null,null,null,null,null,null,null,null,null,"SHENZHEN"]
[null,null,null,null,null,null,null,null,null,null,null,null,null,null,null,null,null,null,null,null,null,null,null,null,null,null,null,null,null,null,null,null,"SHETLAND ISLANDS"]
[null,null,null,null,null,null,null,null,null,null,null,null,null,null,null,null,null,null,null,null,null,null,null,null,null,null,null,null,null,null,null,null,"SIBIU"]
[null,null,null,null,null,null,null,null,null,null,null,null,null,null,null,null,null,null,null,null,null,null,null,null,null,null,null,null,null,null,null,null,"SIBIU INTERNATIONAL"]
[null,null,null,null,null,null,null,null,null,null,null,null,null,null,null,null,null,null,null,null,null,null,null,null,null,null,null,null,null,null,null,null,"SIMFEROPOL"]
[null,null,null,null,null,null,null,null,null,null,null,null,null,null,null,null,null,null,null,null,null,null,null,null,null,null,null,null,null,null,null,null,"SINES"]
[null,null,null,null,null,null,null,null,null,null,null,null,null,null,null,null,null,null,null,null,null,null,null,null,null,null,null,null,null,null,null,null,"SINGAPORE"]
[null,null,null,null,null,null,null,null,null,null,null,null,null,null,null,null,null,null,null,null,null,null,null,null,null,null,null,null,null,null,null,null,"SINOE"]
[null,null,null,null,null,null,null,null,null,null,null,null,null,null,null,null,null,null,null,null,null,null,null,null,null,null,null,null,null,null,null,null,"SKIEN"]
[null,null,null,null,null,null,null,null,null,null,null,null,null,null,null,null,null,null,null,null,null,null,null,null,null,null,null,null,null,null,null,null,"SOFIA"]
[null,null,null,null,null,null,null,null,null,null,null,null,null,null,null,null,null,null,null,null,null,null,null,null,null,null,null,null,null,null,null,null,"SONDERBORG"]
[null,null,null,null,null,null,null,null,null,null,null,null,null,null,null,null,null,null,null,null,null,null,null,null,null,null,null,null,null,null,null,null,"SOUDA"]
[null,null,null,null,null,null,null,null,null,null,null,null,null,null,null,null,null,null,null,null,null,null,null,null,null,null,null,null,null,null,null,null,"SOUTHAMPTON"]
[null,null,null,null,null,null,null,null,null,null,null,null,null,null,null,null,null,null,null,null,null,null,null,null,null,null,null,null,null,null,null,null,"SOYO"]
[null,null,null,null,null,null,null,null,null,null,null,null,null,null,null,null,null,null,null,null,null,null,null,null,null,null,null,null,null,null,null,null,"SPLIT"]
[null,null,null,null,null,null,null,null,null,null,null,null,null,null,null,null,null,null,null,null,null,null,null,null,null,null,null,null,null,null,null,null,"ST. CROIX"]
[null,null,null,null,null,null,null,null,null,null,null,null,null,null,null,null,null,null,null,null,null,null,null,null,null,null,null,null,null,null,null,null,"ST. EUSTATIUS"]
[null,null,null,null,null,null,null,null,null,null,null,null,null,null,null,null,null,null,null,null,null,null,null,null,null,null,null,null,null,null,null,null,"ST. JOHNS NB."]
[null,null,null,null,null,null,null,null,null,null,null,null,null,null,null,null,null,null,null,null,null,null,null,null,null,null,null,null,null,null,null,null,"ST. JOHNS NEWFOUNDLA"]
[null,null,null,null,null,null,null,null,null,null,null,null,null,null,null,null,null,null,null,null,null,null,null,null,null,null,null,null,null,null,null,null,"ST. KITTS"]
[null,null,null,null,null,null,null,null,null,null,null,null,null,null,null,null,null,null,null,null,null,null,null,null,null,null,null,null,null,null,null,null,"ST. LUCIA"]
[null,null,null,null,null,null,null,null,null,null,null,null,null,null,null,null,null,null,null,null,null,null,null,null,null,null,null,null,null,null,null,null,"ST. MAARTEN"]
[null,null,null,null,null,null,null,null,null,null,null,null,null,null,null,null,null,null,null,null,null,null,null,null,null,null,null,null,null,null,null,null,"ST. NAZAIRE"]
[null,null,null,null,null,null,null,null,null,null,null,null,null,null,null,null,null,null,null,null,null,null,null,null,null,null,null,null,null,null,null,null,"ST. PETERSBURG"]
[null,null,null,null,null,null,null,null,null,null,null,null,null,null,null,null,null,null,null,null,null,null,null,null,null,null,null,null,null,null,null,null,"ST. PIERRE"]
[null,null,null,null,null,null,null,null,null,null,null,null,null,null,null,null,null,null,null,null,null,null,null,null,null,null,null,null,null,null,null,null,"ST. THOMAS"]
[null,null,null,null,null,null,null,null,null,null,null,null,null,null,null,null,null,null,null,null,null,null,null,null,null,null,null,null,null,null,null,null,"ST. VINCENT"]
[null,null,null,null,null,null,null,null,null,null,null,null,null,null,null,null,null,null,null,null,null,null,null,null,null,null,null,null,null,null,null,null,"STANSTEAD"]
[null,null,null,null,null,null,null,null,null,null,null,null,null,null,null,null,null,null,null,null,null,null,null,null,null,null,null,null,null,null,null,null,"STAVANGER"]
[null,null,null,null,null,null,null,null,null,null,null,null,null,null,null,null,null,null,null,null,null,null,null,null,null,null,null,null,null,null,null,null,"STEPHENVILLE"]
[null,null,null,null,null,null,null,null,null,null,null,null,null,null,null,null,null,null,null,null,null,null,null,null,null,null,null,null,null,null,null,null,"STOCKHOLM"]
[null,null,null,null,null,null,null,null,null,null,null,null,null,null,null,null,null,null,null,null,null,null,null,null,null,null,null,null,null,null,null,null,"STORNOWAY"]
[null,null,null,null,null,null,null,null,null,null,null,null,null,null,null,null,null,null,null,null,null,null,null,null,null,null,null,null,null,null,null,null,"STUTTGART"]
[null,null,null,null,null,null,null,null,null,null,null,null,null,null,null,null,null,null,null,null,null,null,null,null,null,null,null,null,null,null,null,null,"SUCEAVA"]
[null,null,null,null,null,null,null,null,null,null,null,null,null,null,null,null,null,null,null,null,null,null,null,null,null,null,null,null,null,null,null,null,"SUDBURY"]
[null,null,null,null,null,null,null,null,null,null,null,null,null,null,null,null,null,null,null,null,null,null,null,null,null,null,null,null,null,null,null,null,"SUNDSVALL"]
[null,null,null,null,null,null,null,null,null,null,null,null,null,null,null,null,null,null,null,null,null,null,null,null,null,null,null,null,null,null,null,null,"SURABAYA"]
[null,null,null,null,null,null,null,null,null,null,null,null,null,null,null,null,null,null,null,null,null,null,null,null,null,null,null,null,null,null,null,null,"SURIGAO DEL SUR"]
[null,null,null,null,null,null,null,null,null,null,null,null,null,null,null,null,null,null,null,null,null,null,null,null,null,null,null,null,null,null,null,null,"SUVA"]
[null,null,null,null,null,null,null,null,null,null,null,null,null,null,null,null,null,null,null,null,null,null,null,null,null,null,null,null,null,null,null,null,"SYDNEY"]
[null,null,null,null,null,null,null,null,null,null,null,null,null,null,null,null,null,null,null,null,null,null,null,null,null,null,null,null,null,null,null,null,"SYDNEY"]
[null,null,null,null,null,null,null,null,null,null,null,null,null,null,null,null,null,null,null,null,null,null,null,null,null,null,null,null,null,null,null,null,"SZCZECIN"]
[null,null,null,null,null,null,null,null,null,null,null,null,null,null,null,null,null,null,null,null,null,null,null,null,null,null,null,null,null,null,null,null,"TACLOBAN"]
[null,null,null,null,null,null,null,null,null,null,null,null,null,null,null,null,null,null,null,null,null,null,null,null,null,null,null,null,null,null,null,null,"TACNA"]
[null,null,null,null,null,null,null,null,null,null,null,null,null,null,null,null,null,null,null,null,null,null,null,null,null,null,null,null,null,null,null,null,"TAINAN"]
[null,null,null,null,null,null,null,null,null,null,null,null,null,null,null,null,null,null,null,null,null,null,null,null,null,null,null,null,null,null,null,null,"TAIPEI"]
[null,null,null,null,null,null,null,null,null,null,null,null,null,null,null,null,null,null,null,null,null,null,null,null,null,null,null,null,null,null,null,null,"TAITUNG"]
[null,null,null,null,null,null,null,null,null,null,null,null,null,null,null,null,null,null,null,null,null,null,null,null,null,null,null,null,null,null,null,null,"TAKAMATSU"]
[null,null,null,null,null,null,null,null,null,null,null,null,null,null,null,null,null,null,null,null,null,null,null,null,null,null,null,null,null,null,null,null,"TALARA"]
[null,null,null,null,null,null,null,null,null,null,null,null,null,null,null,null,null,null,null,null,null,null,null,null,null,null,null,null,null,null,null,null,"TALLINN"]
[null,null,null,null,null,null,null,null,null,null,null,null,null,null,null,null,null,null,null,null,null,null,null,null,null,null,null,null,null,null,null,null,"TAMATAVE"]
[null,null,null,null,null,null,null,null,null,null,null,null,null,null,null,null,null,null,null,null,null,null,null,null,null,null,null,null,null,null,null,null,"TAMPA"]
[null,null,null,null,null,null,null,null,null,null,null,null,null,null,null,null,null,null,null,null,null,null,null,null,null,null,null,null,null,null,null,null,"TAMPA"]
[null,null,null,null,null,null,null,null,null,null,null,null,null,null,null,null,null,null,null,null,null,null,null,null,null,null,null,null,null,null,null,null,"TAMPICO"]
[null,null,null,null,null,null,null,null,null,null,null,null,null,null,null,null,null,null,null,null,null,null,null,null,null,null,null,null,null,null,null,null,"TANGA"]
[null,null,null,null,null,null,null,null,null,null,null,null,null,null,null,null,null,null,null,null,null,null,null,null,null,null,null,null,null,null,null,null,"TANGIER"]
[null,null,null,null,null,null,null,null,null,null,null,null,null,null,null,null,null,null,null,null,null,null,null,null,null,null,null,null,null,null,null,null,"TANJUNG PENANG"]
[null,null,null,null,null,null,null,null,null,null,null,null,null,null,null,null,null,null,null,null,null,null,null,null,null,null,null,null,null,null,null,null,"TAPACHULA"]
[null,null,null,null,null,null,null,null,null,null,null,null,null,null,null,null,null,null,null,null,null,null,null,null,null,null,null,null,null,null,null,null,"TARAKAN"]
[null,null,null,null,null,null,null,null,null,null,null,null,null,null,null,null,null,null,null,null,null,null,null,null,null,null,null,null,null,null,null,null,"TARANTO"]
[null,null,null,null,null,null,null,null,null,null,null,null,null,null,null,null,null,null,null,null,null,null,null,null,null,null,null,null,null,null,null,null,"TARAWA"]
[null,null,null,null,null,null,null,null,null,null,null,null,null,null,null,null,null,null,null,null,null,null,null,null,null,null,null,null,null,null,null,null,"TARGU MURES VIDRASAU"]
[null,null,null,null,null,null,null,null,null,null,null,null,null,null,null,null,null,null,null,null,null,null,null,null,null,null,null,null,null,null,null,null,"TASMANIA"]
[null,null,null,null,null,null,null,null,null,null,null,null,null,null,null,null,null,null,null,null,null,null,null,null,null,null,null,null,null,null,null,null,"TAURANGA"]
[null,null,null,null,null,null,null,null,null,null,null,null,null,null,null,null,null,null,null,null,null,null,null,null,null,null,null,null,null,null,null,null,"TBILISI"]
[null,null,null,null,null,null,null,null,null,null,null,null,null,null,null,null,null,null,null,null,null,null,null,null,null,null,null,null,null,null,null,null,"TEESIDE"]
[null,null,null,null,null,null,null,null,null,null,null,null,null,null,null,null,null,null,null,null,null,null,null,null,null,null,null,null,null,null,null,null,"TEGEL"]
[null,null,null,null,null,null,null,null,null,null,null,null,null,null,null,null,null,null,null,null,null,null,null,null,null,null,null,null,null,null,null,null,"TEGUCIGALPA"]
[null,null,null,null,null,null,null,null,null,null,null,null,null,null,null,null,null,null,null,null,null,null,null,null,null,null,null,null,null,null,null,null,"TEHRAN"]
[null,null,null,null,null,null,null,null,null,null,null,null,null,null,null,null,null,null,null,null,null,null,null,null,null,null,null,null,null,null,null,null,"TEL AVIV"]
[null,null,null,null,null,null,null,null,null,null,null,null,null,null,null,null,null,null,null,null,null,null,null,null,null,null,null,null,null,null,null,null,"TEMBAGAPURA"]
[null,null,null,null,null,null,null,null,null,null,null,null,null,null,null,null,null,null,null,null,null,null,null,null,null,null,null,null,null,null,null,null,"TENERIFE"]
[null,null,null,null,null,null,null,null,null,null,null,null,null,null,null,null,null,null,null,null,null,null,null,null,null,null,null,null,null,null,null,null,"TENERIFFE"]
[null,null,null,null,null,null,null,null,null,null,null,null,null,null,null,null,null,null,null,null,null,null,null,null,null,null,null,null,null,null,null,null,"TENERIFFE"]
[null,null,null,null,null,null,null,null,null,null,null,null,null,null,null,null,null,null,null,null,null,null,null,null,null,null,null,null,null,null,null,null,"TERCEIRA"]
[null,null,null,null,null,null,null,null,null,null,null,null,null,null,null,null,null,null,null,null,null,null,null,null,null,null,null,null,null,null,null,null,"TERRACE"]
[null,null,null,null,null,null,null,null,null,null,null,null,null,null,null,null,null,null,null,null,null,null,null,null,null,null,null,null,null,null,null,null,"THESSALONIKI"]
[null,null,null,null,null,null,null,null,null,null,null,null,null,null,null,null,null,null,null,null,null,null,null,null,null,null,null,null,null,null,null,null,"THUNDER BAY"]
[null,null,null,null,null,null,null,null,null,null,null,null,null,null,null,null,null,null,null,null,null,null,null,null,null,null,null,null,null,null,null,null,"TIANJIN"]
[null,null,null,null,null,null,null,null,null,null,null,null,null,null,null,null,null,null,null,null,null,null,null,null,null,null,null,null,null,null,null,null,"TIJUANA"]
[null,null,null,null,null,null,null,null,null,null,null,null,null,null,null,null,null,null,null,null,null,null,null,null,null,null,null,null,null,null,null,null,"TIMISOARA"]
[null,null,null,null,null,null,null,null,null,null,null,null,null,null,null,null,null,null,null,null,null,null,null,null,null,null,null,null,null,null,null,null,"TIMMINS"]
[null,null,null,null,null,null,null,null,null,null,null,null,null,null,null,null,null,null,null,null,null,null,null,null,null,null,null,null,null,null,null,null,"TIRANA",null,null,null,null,null,null,null,null,null,null,null,null,null,null,null,null,null,null,null,null,null,null,null,null,null,null,null,null,null,null,null,null,null,null,null,null,null,null,null,null,null,null,null,null,null,null,null,null,null,null,null,null,null,null,null,null,null,null,null,null,null,null,null,null,null,null,null,null,null,null,null,null,null,null,null,null,null,null,null,null,null,null,null,null,null,null,null,null,null,null,null,null,null,null,null,null,null,null,null,null,null,null,null,null,null,null,null,null,null,null,null,null,null,null,null,null,null,null,null,null,null,null,null,null,null,null,null,null,null,null,null,null,null,null,null,null,null,null,null,null,null,null,null,null,null,null,null,null,null,null,null,null,null,null,null,null,null,null,null,null,null,null,null,null,null,null,null,null,null,null,null,null,null,null,null,"IMPORTED"]
[null,null,null,null,null,null,null,null,null,null,null,null,null,null,null,null,null,null,null,null,null,null,null,null,null,null,null,null,null,null,null,null,"TIVAT"]
[null,null,null,null,null,null,null,null,null,null,null,null,null,null,null,null,null,null,null,null,null,null,null,null,null,null,null,null,null,null,null,null,"TOCUMEN"]
[null,null,null,null,null,null,null,null,null,null,null,null,null,null,null,null,null,null,null,null,null,null,null,null,null,null,null,null,null,null,null,null,"TOKYO"]
[null,null,null,null,null,null,null,null,null,null,null,null,null,null,null,null,null,null,null,null,null,null,null,null,null,null,null,null,null,null,null,null,"TORBAY"]
[null,null,null,null,null,null,null,null,null,null,null,null,null,null,null,null,null,null,null,null,null,null,null,null,null,null,null,null,null,null,null,null,"TORONTO"]
[null,null,null,null,null,null,null,null,null,null,null,null,null,null,null,null,null,null,null,null,null,null,null,null,null,null,null,null,null,null,null,null,"TORP"]
[null,null,null,null,null,null,null,null,null,null,null,null,null,null,null,null,null,null,null,null,null,null,null,null,null,null,null,null,null,null,null,null,"TORTOLA"]
[null,null,null,null,null,null,null,null,null,null,null,null,null,null,null,null,null,null,null,null,null,null,null,null,null,null,null,null,null,null,null,null,"TOWNSVILLE"]
[null,null,null,null,null,null,null,null,null,null,null,null,null,null,null,null,null,null,null,null,null,null,null,null,null,null,null,null,null,null,null,null,"TOYAMA"]
[null,null,null,null,null,null,null,null,null,null,null,null,null,null,null,null,null,null,null,null,null,null,null,null,null,null,null,null,null,null,null,null,"TRABZON"]
[null,null,null,null,null,null,null,null,null,null,null,null,null,null,null,null,null,null,null,null,null,null,null,null,null,null,null,null,null,null,null,null,"TRELEW"]
[null,null,null,null,null,null,null,null,null,null,null,null,null,null,null,null,null,null,null,null,null,null,null,null,null,null,null,null,null,null,null,null,"TRELEW"]
[null,null,null,null,null,null,null,null,null,null,null,null,null,null,null,null,null,null,null,null,null,null,null,null,null,null,null,null,null,null,null,null,"TRIESTE"]
[null,null,null,null,null,null,null,null,null,null,null,null,null,null,null,null,null,null,null,null,null,null,null,null,null,null,null,null,null,null,null,null,"TRIPOLI"]
[null,null,null,null,null,null,null,null,null,null,null,null,null,null,null,null,null,null,null,null,null,null,null,null,null,null,null,null,null,null,null,null,"TRIVANDRUM"]
[null,null,null,null,null,null,null,null,null,null,null,null,null,null,null,null,null,null,null,null,null,null,null,null,null,null,null,null,null,null,null,null,"TROMSO"]
[null,null,null,null,null,null,null,null,null,null,null,null,null,null,null,null,null,null,null,null,null,null,null,null,null,null,null,null,null,null,null,null,"TRONDHEIM"]
[null,null,null,null,null,null,null,null,null,null,null,null,null,null,null,null,null,null,null,null,null,null,null,null,null,null,null,null,null,null,null,null,"TRUJILLO"]
[null,null,null,null,null,null,null,null,null,null,null,null,null,null,null,null,null,null,null,null,null,null,null,null,null,null,null,null,null,null,null,null,"TULCEA"]
[null,null,null,null,null,null,null,null,null,null,null,null,null,null,null,null,null,null,null,null,null,null,null,null,null,null,null,null,null,null,null,null,"TULEAR"]
[null,null,null,null,null,null,null,null,null,null,null,null,null,null,null,null,null,null,null,null,null,null,null,null,null,null,null,null,null,null,null,null,"TUMBES"]
[null,null,null,null,null,null,null,null,null,null,null,null,null,null,null,null,null,null,null,null,null,null,null,null,null,null,null,null,null,null,null,null,"TUNIS"]
[null,null,null,null,null,null,null,null,null,null,null,null,null,null,null,null,null,null,null,null,null,null,null,null,null,null,null,null,null,null,null,null,"TURKU"]
[null,null,null,null,null,null,null,null,null,null,null,null,null,null,null,null,null,null,null,null,null,null,null,null,null,null,null,null,null,null,null,null,"UJUNG PANDANG"]
[null,null,null,null,null,null,null,null,null,null,null,null,null,null,null,null,null,null,null,null,null,null,null,null,null,null,null,null,null,null,null,null,"ULSAN"]
[null,null,null,null,null,null,null,null,null,null,null,null,null,null,null,null,null,null,null,null,null,null,null,null,null,null,null,null,null,null,null,null,"UNKNOWN/NO AIRPORT"]
[null,null,null,null,null,null,null,null,null,null,null,null,null,null,null,null,null,null,null,null,null,null,null,null,null,null,null,null,null,null,null,null,"UNKNOWN/NO AIRPORT"]
[null,null,null,null,null,null,null,null,null,null,null,null,null,null,null,null,null,null,null,null,null,null,null,null,null,null,null,null,null,null,null,null,"USHUAIA"]
[null,null,null,null,null,null,null,null,null,null,null,null,null,null,null,null,null,null,null,null,null,null,null,null,null,null,null,null,null,null,null,null,"USHUAIA"]
[null,null,null,null,null,null,null,null,null,null,null,null,null,null,null,null,null,null,null,null,null,null,null,null,null,null,null,null,null,null,null,null,"VAASA"]
[null,null,null,null,null,null,null,null,null,null,null,null,null,null,null,null,null,null,null,null,null,null,null,null,null,null,null,null,null,null,null,null,"VALENCIA"]
[null,null,null,null,null,null,null,null,null,null,null,null,null,null,null,null,null,null,null,null,null,null,null,null,null,null,null,null,null,null,null,null,"VALENCIA- VENEZUELA"]
[null,null,null,null,null,null,null,null,null,null,null,null,null,null,null,null,null,null,null,null,null,null,null,null,null,null,null,null,null,null,null,null,"VALLENAR"]
[null,null,null,null,null,null,null,null,null,null,null,null,null,null,null,null,null,null,null,null,null,null,null,null,null,null,null,null,null,null,null,null,"VANCOUVER"]
[null,null,null,null,null,null,null,null,null,null,null,null,null,null,null,null,null,null,null,null,null,null,null,null,null,null,null,null,null,null,null,null,"VARANASI"]
[null,null,null,null,null,null,null,null,null,null,null,null,null,null,null,null,null,null,null,null,null,null,null,null,null,null,null,null,null,null,null,null,"VARNA"]
[null,null,null,null,null,null,null,null,null,null,null,null,null,null,null,null,null,null,null,null,null,null,null,null,null,null,null,null,null,null,null,null,"VENEZIA"]
[null,null,null,null,null,null,null,null,null,null,null,null,null,null,null,null,null,null,null,null,null,null,null,null,null,null,null,null,null,null,null,null,"VENICE"]
[null,null,null,null,null,null,null,null,null,null,null,null,null,null,null,null,null,null,null,null,null,null,null,null,null,null,null,null,null,null,null,null,"VERA CRUZ"]
[null,null,null,null,null,null,null,null,null,null,null,null,null,null,null,null,null,null,null,null,null,null,null,null,null,null,null,null,null,null,null,null,"VICTORIA"]
[null,null,null,null,null,null,null,null,null,null,null,null,null,null,null,null,null,null,null,null,null,null,null,null,null,null,null,null,null,null,null,null,"VIENNA"]
[null,null,null,null,null,null,null,null,null,null,null,null,null,null,null,null,null,null,null,null,null,null,null,null,null,null,null,null,null,null,null,null,"VIGO"]
[null,null,null,null,null,null,null,null,null,null,null,null,null,null,null,null,null,null,null,null,null,null,null,null,null,null,null,null,null,null,null,null,"VILNIUS"]
[null,null,null,null,null,null,null,null,null,null,null,null,null,null,null,null,null,null,null,null,null,null,null,null,null,null,null,null,null,null,null,null,"VISHAKHAPATNAM"]
[null,null,null,null,null,null,null,null,null,null,null,null,null,null,null,null,null,null,null,null,null,null,null,null,null,null,null,null,null,null,null,null,"VITORIA"]
[null,null,null,null,null,null,null,null,null,null,null,null,null,null,null,null,null,null,null,null,null,null,null,null,null,null,null,null,null,null,null,null,"VITTORIA"]
[null,null,null,null,null,null,null,null,null,null,null,null,null,null,null,null,null,null,null,null,null,null,null,null,null,null,null,null,null,null,null,null,"VLADIVOSTOCK"]
[null,null,null,null,null,null,null,null,null,null,null,null,null,null,null,null,null,null,null,null,null,null,null,null,null,null,null,null,null,null,null,null,"VORONEZH"]
[null,null,null,null,null,null,null,null,null,null,null,null,null,null,null,null,null,null,null,null,null,null,null,null,null,null,null,null,null,null,null,null,"WALVIS BAY"]
[null,null,null,null,null,null,null,null,null,null,null,null,null,null,null,null,null,null,null,null,null,null,null,null,null,null,null,null,null,null,null,null,"WARRI"]
[null,null,null,null,null,null,null,null,null,null,null,null,null,null,null,null,null,null,null,null,null,null,null,null,null,null,null,null,null,null,null,null,"WARSAW"]
[null,null,null,null,null,null,null,null,null,null,null,null,null,null,null,null,null,null,null,null,null,null,null,null,null,null,null,null,null,null,null,null,"WASHINGTON DC"]
[null,null,null,null,null,null,null,null,null,null,null,null,null,null,null,null,null,null,null,null,null,null,null,null,null,null,null,null,null,null,null,null,"WASHINGTON DC"]
[null,null,null,null,null,null,null,null,null,null,null,null,null,null,null,null,null,null,null,null,null,null,null,null,null,null,null,null,null,null,null,null,"WELLINGTON"]
[null,null,null,null,null,null,null,null,null,null,null,null,null,null,null,null,null,null,null,null,null,null,null,null,null,null,null,null,null,null,null,null,"WENZHOU"]
[null,null,null,null,null,null,null,null,null,null,null,null,null,null,null,null,null,null,null,null,null,null,null,null,null,null,null,null,null,null,null,null,"WEST PALM BEACH"]
[null,null,null,null,null,null,null,null,null,null,null,null,null,null,null,null,null,null,null,null,null,null,null,null,null,null,null,null,null,null,null,null,"WEST PALM BEACH"]
[null,null,null,null,null,null,null,null,null,null,null,null,null,null,null,null,null,null,null,null,null,null,null,null,null,null,null,null,null,null,null,null,"WEWAK"]
[null,null,null,null,null,null,null,null,null,null,null,null,null,null,null,null,null,null,null,null,null,null,null,null,null,null,null,null,null,null,null,null,"WHANGAREI"]
[null,null,null,null,null,null,null,null,null,null,null,null,null,null,null,null,null,null,null,null,null,null,null,null,null,null,null,null,null,null,null,null,"WHYALLA"]
[null,null,null,null,null,null,null,null,null,null,null,null,null,null,null,null,null,null,null,null,null,null,null,null,null,null,null,null,null,null,null,null,"WICK"]
[null,null,null,null,null,null,null,null,null,null,null,null,null,null,null,null,null,null,null,null,null,null,null,null,null,null,null,null,null,null,null,null,"WILMINGTON NC"]
[null,null,null,null,null,null,null,null,null,null,null,null,null,null,null,null,null,null,null,null,null,null,null,null,null,null,null,null,null,null,null,null,"WILMINGTON NC"]
[null,null,null,null,null,null,null,null,null,null,null,null,null,null,null,null,null,null,null,null,null,null,null,null,null,null,null,null,null,null,null,null,"WINDHOEK"]
[null,null,null,null,null,null,null,null,null,null,null,null,null,null,null,null,null,null,null,null,null,null,null,null,null,null,null,null,null,null,null,null,"WINDSOR  ONT."]
[null,null,null,null,null,null,null,null,null,null,null,null,null,null,null,null,null,null,null,null,null,null,null,null,null,null,null,null,null,null,null,null,"WROCLAW"]
[null,null,null,null,null,null,null,null,null,null,null,null,null,null,null,null,null,null,null,null,null,null,null,null,null,null,null,null,null,null,null,null,"WYNYARD"]
[null,null,null,null,null,null,null,null,null,null,null,null,null,null,null,null,null,null,null,null,null,null,null,null,null,null,null,null,null,null,null,null,"XIAMEN"]
[null,null,null,null,null,null,null,null,null,null,null,null,null,null,null,null,null,null,null,null,null,null,null,null,null,null,null,null,null,null,null,null,"YAMAGATA"]
[null,null,null,null,null,null,null,null,null,null,null,null,null,null,null,null,null,null,null,null,null,null,null,null,null,null,null,null,null,null,null,null,"YANBU"]
[null,null,null,null,null,null,null,null,null,null,null,null,null,null,null,null,null,null,null,null,null,null,null,null,null,null,null,null,null,null,null,null,"YANGON"]
[null,null,null,null,null,null,null,null,null,null,null,null,null,null,null,null,null,null,null,null,null,null,null,null,null,null,null,null,null,null,null,null,"YANTAI"]
[null,null,null,null,null,null,null,null,null,null,null,null,null,null,null,null,null,null,null,null,null,null,null,null,null,null,null,null,null,null,null,null,"YAP ISLAND"]
[null,null,null,null,null,null,null,null,null,null,null,null,null,null,null,null,null,null,null,null,null,null,null,null,null,null,null,null,null,null,null,null,"YOSU"]
[null,null,null,null,null,null,null,null,null,null,null,null,null,null,null,null,null,null,null,null,null,null,null,null,null,null,null,null,null,null,null,null,"ZADAR"]
[null,null,null,null,null,null,null,null,null,null,null,null,null,null,null,null,null,null,null,null,null,null,null,null,null,null,null,null,null,null,null,null,"ZAGREB"]
[null,null,null,null,null,null,null,null,null,null,null,null,null,null,null,null,null,null,null,null,null,null,null,null,null,null,null,null,null,null,null,null,"ZAMBALES"]
[null,null,null,null,null,null,null,null,null,null,null,null,null,null,null,null,null,null,null,null,null,null,null,null,null,null,null,null,null,null,null,null,"ZAMBOANGA"]
[null,null,null,null,null,null,null,null,null,null,null,null,null,null,null,null,null,null,null,null,null,null,null,null,null,null,null,null,null,null,null,null,"ZANZIBAR"]
[null,null,null,null,null,null,null,null,null,null,null,null,null,null,null,null,null,null,null,null,null,null,null,null,null,null,null,null,null,null,null,null,"ZHUHAI"]
[null,null,null,null,null,null,null,null,null,null,null,null,null,null,null,null,null,null,null,null,null,null,null,null,null,null,null,null,null,null,null,null,"ZURICH"]